Workbook

Sheet Accueil
B2: Saison du Championnat : | D2: 2023 - 2024 | H2: Championnat de France de Rugby à 15 - Nationale | U2: =IF($H$2="","",IF($H$2="Choix du Championnat de Rugby","","Nous sommes le "&TEXT(TODAY(),"jjjj jj mmmm aaaa"))) -> Nous sommes le vendredi 29 mars 2024
B4: =IF($B$2="","",IF($D$2="","",IF($D$2="Choix de la saison","","Date du début du Championnat"))) -> Date du début du Championnat | T4: =IF(AF4="","",IF(AF4>3,"",IF(AF4<-3,"",IF(AF4<-3,"",IF(AF4>3,"",IF(AF4>3,"P",IF(AF4<-3,"P",IF(AF4<=3,"P",IF(AF4<=3,"P",IF(AF4<=3,"P")))))))))) ->  | U4: =IF($B$2="","",IF($D$2="","",IF($D$2="Choix de la saison","","Date de la fin du Championnat"))) -> Date de la fin du Championnat | AF4: =IF(N4=0,"",IF(N4="","",N4-AG4)) ->  | AG4: =NOW() -> 2024-03-29T14:06:41.520
B6: 2023-08-25 | M6: =IF($U$2="","",IF(N6=0,"",IF(N6="","",_xlfn.XLOOKUP(N6,Suivi!DH2:DH31,Suivi!DI2:DI31)))) ->  | T6: =IF(AF6="","",IF(AF6>3,"",IF(AF6<-3,"",IF(AF6<-3,"",IF(AF6>3,"",IF(AF6>3,"P",IF(AF6<-3,"P",IF(AF6<=3,"P",IF(AF6<=3,"P",IF(AF6<=3,"P")))))))))) ->  | U6: 2024-04-27 | AF6: =IF(N6=0,"",IF(N6="","",N6-AG6)) ->  | AG6: =NOW() -> 2024-03-29T14:06:41.520
G8: =IF($U$2="","",IF(N8=0,"",IF(N8="","","Tableau final : niveau, date et heure du prochain match à jouer :"))) ->  | M8: =IF($U$2="","",IF(N8=0,"",IF(N8="","",_xlfn.XLOOKUP(N8,'Tableau Final'!BC3:BC7,'Tableau Final'!BD3:BD7)))) ->  | N8: =IF($U$2="","",MIN('Tableau Final'!BC3:BC7)) -> 00:00:00 | T8: =IF(AF8="","",IF(AF8>3,"",IF(AF8<-3,"",IF(AF8<-3,"",IF(AF8>3,"",IF(AF8>3,"P",IF(AF8<-3,"P",IF(AF8<=3,"P",IF(AF8<=3,"P",IF(AF8<=3,"P")))))))))) ->  | AF8: =IF(N8=0,"",IF(N8="","",N8-AG8)) ->  | AG8: =NOW() -> 2024-03-29T14:06:41.520
G10: =IF($U$2="","",IF(N10=0,"",IF(N10="","","Tableau final : niveau, date et heure du dernier match programmé :"))) ->  | M10: =IF($U$2="","",IF(N10=0,"",IF(N10="","",_xlfn.XLOOKUP(N10,'Tableau Final'!BC3:BC7,'Tableau Final'!BD3:BD7)))) ->  | N10: =IF($U$2="","",MAX('Tableau Final'!BC3:BC7)) -> 00:00:00 | T10: =IF(AF10="","",IF(AF10>3,"",IF(AF10<-3,"",IF(AF10<-3,"",IF(AF10>3,"",IF(AF10>3,"P",IF(AF10<-3,"P",IF(AF10<=3,"P",IF(AF10<=3,"P",IF(AF10<=3,"P")))))))))) ->  | AF10: =IF(N10=0,"",IF(N10="","",N10-AG10)) ->  | AG10: =NOW() -> 2024-03-29T14:06:41.520
K22: Championnat en cours
K24: =IF('Tableau Final'!C3="","",IF(COUNTBLANK('Tableau Final'!AZ1:AZ5)>=1,"Tableau final en cours","Championnat terminé")) -> 
G26: Match à rejouer | H26: Match annulé | I26: Match arrêté | J26: Match avec réserves | K26: Match reporté | L26: Match reprogrammé | N26: Equipe exclue | O26: Forfait gagnant | P26: Forfait général | Q26: Forfait perdant | R26: Gagné sur tapis vert | S26: Perdu sur tapis vert
G27: =IF(G28="","",IF(COUNTA(G28:G507)<=1,"Match à rejouer","Matchs à rejouer")) -> Match à rejouer | H27: =IF(H28="","",IF(COUNTA(H28:H507)<=1,"Match annulé","Matchs annulés")) ->  | I27: =IF(I28="","",IF(COUNTA(I28:I507)<=1,"Match arrêté","Matchs arrêtés")) ->  | J27: =IF(J28="","",IF(COUNTA(J28:J507)<=1,"Match avec réserves","Matchs avec réserves")) ->  | K27: =IF(K28="","",IF(COUNTA(K28:K507)<=1,"Match reporté","Matchs reportés")) -> Match reporté | L27: =IF(L28="","",IF(COUNTA(L28:L507)<=1,"Match reprogrammé","Matchs reprogrammés")) ->  | N27: =IF(N28="","",IF(COUNTA(N28:N507)<=1,"Equipe exclue","Equipes exclues")) ->  | O27: =IF(O28="","",IF(COUNTA(O28:O507)<=1,"Forfait gagnant","Forfaits gagnants")) -> Forfaits gagnants | P27: =IF(P28="","",IF(COUNTA(P28:P507)<=1,"Forfait général","Forfaits généraux")) -> Forfaits généraux | Q27: =IF(Q28="","",IF(COUNTA(Q28:Q507)<=1,"Forfait perdant","Forfaits perdants")) ->  | R27: =IF(R28="","",IF(COUNTA(R28:R507)<=1,"Gagné sur tapis vert","Gagnés sur tapis vert")) ->  | S27: =IF(S28="","",IF(COUNTA(S28:S507)<=1,"Perdu sur tapis vert","Perdus sur tapis vert")) -> 
G28: =_xlfn._xlws.FILTER(Données!$J$2:$J$241,Données!$I$2:$I$241=Accueil!G26,"") -> Journée 12 | H28: =_xlfn._xlws.FILTER(Données!$J$2:$J$241,Données!$I$2:$I$241=Accueil!H26,"") ->  | I28: =_xlfn._xlws.FILTER(Données!$J$2:$J$241,Données!$I$2:$I$241=Accueil!I26,"") ->  | J28: =_xlfn._xlws.FILTER(Données!$J$2:$J$241,Données!$I$2:$I$241=Accueil!J26,"") ->  | K28: =_xlfn._xlws.FILTER(Données!$J$2:$J$241,Données!$I$2:$I$241=Accueil!K26,"") -> Journée 21 | L28: =_xlfn._xlws.FILTER(Données!$J$2:$J$241,Données!$I$2:$I$241=Accueil!L26,"") ->  | N28: =_xlfn._xlws.FILTER(Données!$L$2:$L$481,Données!$K$2:$K$481=Accueil!N26,"") ->  | O28: =_xlfn._xlws.FILTER(Données!$L$2:$L$481,Données!$K$2:$K$481=Accueil!O26,"") -> Journée 01 | P28: =_xlfn._xlws.FILTER(Données!$L$2:$L$481,Données!$K$2:$K$481=Accueil!P26,"") -> Journée 01 | Q28: =_xlfn._xlws.FILTER(Données!$L$2:$L$481,Données!$K$2:$K$481=Accueil!Q26,"") ->  | R28: =_xlfn._xlws.FILTER(Données!$L$2:$L$481,Données!$K$2:$K$481=Accueil!R26,"") ->  | S28: =_xlfn._xlws.FILTER(Données!$L$2:$L$481,Données!$K$2:$K$481=Accueil!S26,"") -> 
O29: Journée 02 | P29: Journée 02
O30: Journée 03 | P30: Journée 03
O31: Journée 04 | P31: Journée 04
O32: Journée 05 | P32: Journée 05
O33: Journée 06 | P33: Journée 06
O34: Journée 07 | P34: Journée 07
O35: Journée 08 | P35: Journée 08
O36: Journée 09 | P36: Journée 09
O37: Journée 10 | P37: Journée 10
O38: Journée 11 | P38: Journée 11
O39: Journée 12 | P39: Journée 12
O40: Journée 13 | P40: Journée 13
O41: Journée 14 | P41: Journée 14
O42: Journée 15 | P42: Journée 15
O43: Journée 16 | P43: Journée 16
O44: Journée 17 | P44: Journée 17
O45: Journée 18 | P45: Journée 18
O46: Journée 19 | P46: Journée 19
O47: Journée 20 | P47: Journée 20
O48: Journée 21 | P48: Journée 21
O49: Journée 22 | P49: Journée 22
O50: Journée 23 | P50: Journée 23
O51: Journée 24 | P51: Journée 24
O52: Journée 25 | P52: Journée 25
O53: Journée 26 | P53: Journée 26

Sheet Equipes
C1: Equipes du Championnat
C2: Albi
C3: Blagnac
C4: Bourg-en-Bresse
C5: Bourgoin-Jallieu
C6: Carcassonne
C7: Chambéry
C8: Hyères | M8: =IF(Accueil!$U$2="","",Accueil!$U$2) -> Nous sommes le vendredi 29 mars 2024
C9: Massy
C10: Narbonne
C11: Nice
C12: Périgueux
C13: Suresnes
C14: Tarbes
C15: Vienne
M16: =IF(Accueil!$H$2="","",IF(Accueil!$H$2="Choix du Championnat de Rugby","",Accueil!$H$2)) -> Championnat de France de Rugby à 15 - Nationale
O18: =IF(Accueil!$B$2="","",IF(Accueil!$D$2="","",IF(Accueil!$D$2="Choix de la saison","",_xlfn.CONCAT(Accueil!$B$2," ",Accueil!$D$2)))) -> Saison du Championnat : 2023 - 2024
M20: =IF(Accueil!$D$2="","",IF(Accueil!$D$2="Choix de la saison","",IF(Accueil!$B$4="","",IF(Accueil!$B$6="","",_xlfn.CONCAT(Accueil!$B$4," : ",TEXT(Accueil!$B$6,"jjjj jj mmmm aaaa")))))) -> Date du début du Championnat : vendredi 25 août 2023
M22: =IF(Accueil!$D$2="","",IF(Accueil!$D$2="Choix de la saison","",IF(Accueil!$U$4="","",IF(Accueil!$U$6="","",_xlfn.CONCAT(Accueil!$U$4," : ",TEXT(Accueil!$U$6,"jjjj jj mmmm aaaa")))))) -> Date de la fin du Championnat : samedi 27 avril 2024

Sheet Suivi
A1: Journées "Aller" | B1: Matchs inscrits ou non-inscrits | C1: Dates complètes ou incomplètes | D1: Horaires complets ou incomplets | E1: Résultats complets ou incomplets | F1: Dates et heures du déroulement de chaque journée | G1: =IF(SUM(O2:O14)>1,"Matchs restant à jouer",IF(SUM(O2:O14)=1,"Match restant à jouer","Tous les matchs sont joués")) -> Matchs restant à jouer | I1: Journées "Retour" | J1: Matchs inscrits ou non-inscrits | K1: Dates complètes ou incomplètes | L1: Horaires complets ou incomplets | M1: Résultats complets ou incomplets | N1: Dates et heures du déroulement de chaque journée | O1: =IF(SUM(O2:O14)>1,"Matchs restant à jouer",IF(SUM(O2:O14)=1,"Match restant à jouer","Tous les matchs sont joués")) -> Matchs restant à jouer | AY1: Journées | AZ1: Dates et heures du début de chaque journée | BB1: Journées | BC1: Dates et heures de la fin de chaque journée | BE1: Journées | BF1: Dates et heures du prochain match | BH1: Journées | BI1: Dates et heures du dernier match | BK1: Etats | BM1: Nombre de matchs | CG1: =TODAY() -> 2024-03-29 | CH1: =NOW() -> 2024-03-29T14:06:41.510 | CI1: Dates et heures de début | CJ1: Dates et heures de fin | CK1: Journées | CS1: Plus petites journées | CT1: Plus grandes journées | CV1: Plus petites journées | CW1: Plus grandes journées | CX1: Journées | DE1: Dates et heures du prochain match | DF1: Journées | DH1: Dates et heures du dernier match | DI1: Journées | DK1: Journées | DL1: du | DM1: Début de la journée | DN1: au | DO1: Fin de la journée
A2: =IF(CS2="","",IF(CT2="","",IF(AND(CS2>3,CT2>3),"J01",IF(AND(CS2<-3,CT2>3),"J01",IF(AND(CS2<-3,CT2<-3),"J01",IF(AND(CS2>3,CT2<-3),"J01",IF(AND(CS2>3,CT2<=3),"J01*",IF(AND(CS2<-3,CT2<=3),"J01*",IF(AND(CS2<=3,CT2>3),"J01*",IF(AND(CS2<=3,CT2<=3),"J01*",IF(AND(CS2<=3,CT2<-3),"J01*"))))))))))) -> J01 | B2: =IF(COUNTA('J01'!$D$3:$D$9)+COUNTA('J01'!$M$3:$M$9)<14,"Matchs non-inscrits","Matchs inscrits") -> Matchs inscrits | C2: =IF(COUNTA('J01'!$Q$3:$Q$9)<7,"Dates incomplètes","Dates complètes") -> Dates complètes | D2: =IF(COUNTA('J01'!$R$3:$R$9)<7,"Horaires incomplets","Horaires complets") -> Horaires complets | E2: =IF(SUM('J01'!$FH$3:$FI$9)="","Résultats incomplets",IF(SUM('J01'!$FH$3:$FI$9)<14,"Résultats incomplets","Résultats complets")) -> Résultats complets | F2: =IF(DM2="","",IF(DO2="","",_xlfn.CONCAT(DL2," ",TEXT(DM2,"jjjj jj mmmm aaaa - hh""h"":mm")," ",DN2," ",TEXT(DO2,"jjjj jj mmmm aaaa - hh""h"":mm")))) -> du vendredi 25 août 2023 - 19h:30 au samedi 26 août 2023 - 19h:00 | G2: =COUNTBLANK('J01'!$GQ$3:$GR$9)/2 -> 0 | I2: =IF(CS2="","",IF(CT2="","",IF(AND(CS2>3,CT2>3),"J14",IF(AND(CS2<-3,CT2>3),"J14",IF(AND(CS2<-3,CT2<-3),"J14",IF(AND(CS2>3,CT2<-3),"J14",IF(AND(CS2>3,CT2<=3),"J14*",IF(AND(CS2<-3,CT2<=3),"J14*",IF(AND(CS2<=3,CT2>3),"J14*",IF(AND(CS2<=3,CT2<=3),"J14*",IF(AND(CS2<=3,CT2<-3),"J14*"))))))))))) -> J14 | J2: =IF(COUNTA('J14'!$D$3:$D$9)+COUNTA('J14'!$M$3:$M$9)<14,"Matchs non-inscrits","Matchs inscrits") -> Matchs inscrits | K2: =IF(COUNTA('J14'!$Q$3:$Q$9)<7,"Dates incomplètes","Dates complètes") -> Dates complètes | L2: =IF(COUNTA('J14'!$R$3:$R$9)<7,"Horaires incomplets","Horaires complets") -> Horaires complets | M2: =IF(SUM('J14'!$FH$3:$FI$9)="","Résultats incomplets",IF(SUM('J14'!$FH$3:$FI$9)<14,"Résultats incomplets","Résultats complets")) -> Résultats complets | N2: =IF(DM15="","",IF(DO15="","",_xlfn.CONCAT(DL15," ",TEXT(DM15,"jjjj jj mmmm aaaa - hh""h"":mm")," ",DN15," ",TEXT(DO15,"jjjj jj mmmm aaaa - hh""h"":mm")))) -> du vendredi 15 décembre 2023 - 19h:30 au samedi 16 décembre 2023 - 19h:30 | O2: =COUNTBLANK('J14'!$GQ$3:$GR$9)/2 -> 0 | AY2: J01 | AZ2: =IF('J01'!$GL$3=0,"",IF('J01'!$GL$3="","",'J01'!$GL$3)) -> 2023-08-26T15:30:00 | BB2: J01 | BC2: =IF('J01'!$GL$9=0,"",IF('J01'!$GL$9="","",'J01'!$GL$9)) -> 2023-08-25T19:30:00 | BE2: J01 | BF2: =IF('J01'!$GN$3=0,"",IF('J01'!$GN$3="","",'J01'!$GN$3)) ->  | BH2: J01 | BI2: =IF('J01'!$GO$3=0,"",IF('J01'!$GO$3="","",'J01'!$GO$3)) ->  | BK2: =IF(B2="Matchs inscrits",1)+IF(C2="Dates complètes",1)+IF(D2="Horaires complets",1)+IF(E2="Résultats complets",1) -> 4 | BM2: =G2 -> 0 | CI2: =IF(AZ2=0,"",IF(AZ2="","",AZ2)) -> 2023-08-26T15:30:00 | CJ2: =IF(BC2=0,"",IF(BC2="","",BC2)) -> 2023-08-25T19:30:00 | CK2: Journée 01 | CS2: =IF(CV2="","",CV2-$CH$1) -> -216.7754804 | CT2: =IF(CW2="","",CW2-$CH$1) -> -215.7963138 | CV2: =IF('J01'!$GL$3="","",SMALL('J01'!$GL$3:$GL$9,1)) -> 2023-08-25T19:30:00 | CW2: =IF('J01'!$GL$3="","",LARGE('J01'!$GL$3:$GL$9,1)) -> 2023-08-26T19:00:00 | CX2: Journée 01 | DE2: =IF(BF2=0,"",IF(BF2="","",BF2)) ->  | DF2: Journée 01 | DH2: =IF(BI2=0,"",IF(BI2="","",BI2)) ->  | DI2: Journée 01 | DK2: J01 | DL2: du | DM2: =IF('J01'!$GL$3="","",IF(COUNTA('J01'!$GL$3:$GL$9)<7,"",MIN('J01'!$GL$3:$GL$9))) -> 2023-08-25T19:30:00 | DN2: au | DO2: =IF('J01'!$GL$3="","",IF(COUNTA('J01'!$GL$3:$GL$9)<7,"",MAX('J01'!$GL$3:$GL$9))) -> 2023-08-26T19:00:00
A3: =IF(CS2="","",IF(CT2="","",IF(AND(CS2>3,CT2>3),"J02",IF(AND(CS2<-3,CT2>3),"J02",IF(AND(CS2<-3,CT2<-3),"J02",IF(AND(CS2>3,CT2<-3),"J02",IF(AND(CS2>3,CT2<=3),"J02*",IF(AND(CS2<-3,CT2<=3),"J02*",IF(AND(CS2<=3,CT2>3),"J02*",IF(AND(CS2<=3,CT2<=3),"J02*",IF(AND(CS2<=3,CT2<-3),"J02*"))))))))))) -> J02 | B3: =IF(COUNTA('J02'!$D$3:$D$9)+COUNTA('J02'!$M$3:$M$9)<14,"Matchs non-inscrits","Matchs inscrits") -> Matchs inscrits | C3: =IF(COUNTA('J02'!$Q$3:$Q$9)<7,"Dates incomplètes","Dates complètes") -> Dates complètes | D3: =IF(COUNTA('J02'!$R$3:$R$9)<7,"Horaires incomplets","Horaires complets") -> Horaires complets | E3: =IF(SUM('J02'!$FH$3:$FI$9)="","Résultats incomplets",IF(SUM('J02'!$FH$3:$FI$9)<14,"Résultats incomplets","Résultats complets")) -> Résultats complets | F3: =IF(DM3="","",IF(DO3="","",_xlfn.CONCAT(DL3," ",TEXT(DM3,"jjjj jj mmmm aaaa - hh""h"":mm")," ",DN3," ",TEXT(DO3,"jjjj jj mmmm aaaa - hh""h"":mm")))) -> du vendredi 01 septembre 2023 - 19h:30 au samedi 02 septembre 2023 - 19h:30 | G3: =COUNTBLANK('J02'!$GQ$3:$GR$9)/2 -> 0 | I3: =IF(CS2="","",IF(CT2="","",IF(AND(CS2>3,CT2>3),"J15",IF(AND(CS2<-3,CT2>3),"J15",IF(AND(CS2<-3,CT2<-3),"J15",IF(AND(CS2>3,CT2<-3),"J15",IF(AND(CS2>3,CT2<=3),"J15*",IF(AND(CS2<-3,CT2<=3),"J15*",IF(AND(CS2<=3,CT2>3),"J15*",IF(AND(CS2<=3,CT2<=3),"J15*",IF(AND(CS2<=3,CT2<-3),"J15*"))))))))))) -> J15 | J3: =IF(COUNTA('J15'!$D$3:$D$9)+COUNTA('J15'!$M$3:$M$9)<14,"Matchs non-inscrits","Matchs inscrits") -> Matchs inscrits | K3: =IF(COUNTA('J15'!$Q$3:$Q$9)<7,"Dates incomplètes","Dates complètes") -> Dates complètes | L3: =IF(COUNTA('J15'!$R$3:$R$9)<7,"Horaires incomplets","Horaires complets") -> Horaires complets | M3: =IF(SUM('J15'!$FH$3:$FI$9)="","Résultats incomplets",IF(SUM('J15'!$FH$3:$FI$9)<14,"Résultats incomplets","Résultats complets")) -> Résultats complets | N3: du vendredi 12 janvier 2024 - 19h:30 au samedi 13 janvier 2024 - 19h:00 | O3: =COUNTBLANK('J15'!$GQ$3:$GR$9)/2 -> 0 | AY3: J02 | AZ3: =IF('J02'!$GL$3=0,"",IF('J02'!$GL$3="","",'J02'!$GL$3)) -> 2023-09-02T15:30:00 | BB3: J02 | BC3: =IF('J02'!$GL$9=0,"",IF('J02'!$GL$9="","",'J02'!$GL$9)) -> 2023-09-01T19:30:00 | BE3: J02 | BF3: =IF('J02'!$GN$3=0,"",IF('J02'!$GN$3="","",'J02'!$GN$3)) ->  | BH3: J02 | BI3: =IF('J02'!$GO$3=0,"",IF('J02'!$GO$3="","",'J02'!$GO$3)) ->  | BK3: =IF(B3="Matchs inscrits",1)+IF(C3="Dates complètes",1)+IF(D3="Horaires complets",1)+IF(E3="Résultats complets",1) -> 4 | BM3: =G3 -> 0 | CI3: =IF(AZ3=0,"",IF(AZ3="","",AZ3)) -> 2023-09-02T15:30:00 | CJ3: =IF(BC3=0,"",IF(BC3="","",BC3)) -> 2023-09-01T19:30:00 | CK3: Journée 02 | CS3: =IF(CV3="","",CV3-$CH$1) -> -209.7754804 | CT3: -208.7754804 | CV3: =IF('J02'!$GL$3="","",SMALL('J02'!$GL$3:$GL$9,1)) -> 2023-09-01T19:30:00 | CW3: =IF('J02'!$GL$3="","",LARGE('J02'!$GL$3:$GL$9,1)) -> 2023-09-02T19:30:00 | CX3: Journée 02 | DE3: =IF(BF3=0,"",IF(BF3="","",BF3)) ->  | DF3: Journée 02 | DH3: =IF(BI3=0,"",IF(BI3="","",BI3)) ->  | DI3: Journée 02 | DK3: J02 | DL3: du | DM3: =IF('J02'!$GL$3="","",IF(COUNTA('J02'!$GL$3:$GL$9)<7,"",MIN('J02'!$GL$3:$GL$9))) -> 2023-09-01T19:30:00 | DN3: au | DO3: =IF('J02'!$GL$3="","",IF(COUNTA('J02'!$GL$3:$GL$9)<7,"",MAX('J02'!$GL$3:$GL$9))) -> 2023-09-02T19:30:00
A4: =IF(CS2="","",IF(CT2="","",IF(AND(CS2>3,CT2>3),"J03",IF(AND(CS2<-3,CT2>3),"J03",IF(AND(CS2<-3,CT2<-3),"J03",IF(AND(CS2>3,CT2<-3),"J03",IF(AND(CS2>3,CT2<=3),"J03*",IF(AND(CS2<-3,CT2<=3),"J03*",IF(AND(CS2<=3,CT2>3),"J03*",IF(AND(CS2<=3,CT2<=3),"J03*",IF(AND(CS2<=3,CT2<-3),"J03*"))))))))))) -> J03 | B4: =IF(COUNTA('J03'!$D$3:$D$9)+COUNTA('J03'!$M$3:$M$9)<14,"Matchs non-inscrits","Matchs inscrits") -> Matchs inscrits | C4: =IF(COUNTA('J03'!$Q$3:$Q$9)<7,"Dates incomplètes","Dates complètes") -> Dates complètes | D4: =IF(COUNTA('J03'!$R$3:$R$9)<7,"Horaires incomplets","Horaires complets") -> Horaires complets | E4: =IF(SUM('J03'!$FH$3:$FI$9)="","Résultats incomplets",IF(SUM('J03'!$FH$3:$FI$9)<14,"Résultats incomplets","Résultats complets")) -> Résultats complets | F4: =IF(DM4="","",IF(DO4="","",_xlfn.CONCAT(DL4," ",TEXT(DM4,"jjjj jj mmmm aaaa - hh""h"":mm")," ",DN4," ",TEXT(DO4,"jjjj jj mmmm aaaa - hh""h"":mm")))) -> du vendredi 08 septembre 2023 - 18h:00 au samedi 09 septembre 2023 - 19h:30 | G4: =COUNTBLANK('J03'!$GQ$3:$GR$9)/2 -> 0 | I4: =IF(CS2="","",IF(CT2="","",IF(AND(CS2>3,CT2>3),"J16",IF(AND(CS2<-3,CT2>3),"J16",IF(AND(CS2<-3,CT2<-3),"J16",IF(AND(CS2>3,CT2<-3),"J16",IF(AND(CS2>3,CT2<=3),"J16*",IF(AND(CS2<-3,CT2<=3),"J16*",IF(AND(CS2<=3,CT2>3),"J16*",IF(AND(CS2<=3,CT2<=3),"J16*",IF(AND(CS2<=3,CT2<-3),"J16*"))))))))))) -> J16 | J4: =IF(COUNTA('J16'!$D$3:$D$9)+COUNTA('J16'!$M$3:$M$9)<14,"Matchs non-inscrits","Matchs inscrits") -> Matchs inscrits | K4: =IF(COUNTA('J16'!$Q$3:$Q$9)<7,"Dates incomplètes","Dates complètes") -> Dates complètes | L4: =IF(COUNTA('J16'!$R$3:$R$9)<7,"Horaires incomplets","Horaires complets") -> Horaires complets | M4: =IF(SUM('J16'!$FH$3:$FI$9)="","Résultats incomplets",IF(SUM('J16'!$FH$3:$FI$9)<14,"Résultats incomplets","Résultats complets")) -> Résultats complets | N4: du vendredi 19 janvier 2024 - 19h:30 au samedi 20 janvier 2024 - 18h:30 | O4: =COUNTBLANK('J16'!$GQ$3:$GR$9)/2 -> 0 | AY4: J03 | AZ4: =IF('J03'!$GL$3=0,"",IF('J03'!$GL$3="","",'J03'!$GL$3)) -> 2023-09-09T19:00:00 | BB4: J03 | BC4: =IF('J03'!$GL$9=0,"",IF('J03'!$GL$9="","",'J03'!$GL$9)) -> 2023-09-08T19:00:00 | BE4: J03 | BF4: =IF('J03'!$GN$3=0,"",IF('J03'!$GN$3="","",'J03'!$GN$3)) ->  | BH4: J03 | BI4: =IF('J03'!$GO$3=0,"",IF('J03'!$GO$3="","",'J03'!$GO$3)) ->  | BK4: 4 | BM4: 0 | CI4: 2023-09-09T19:00:00 | CJ4: 2023-09-08T19:00:00 | CK4: Journée 03 | CS4: -202.8379804 | CT4: -201.7754804 | CV4: =IF('J03'!$GL$3="","",SMALL('J03'!$GL$3:$GL$9,1)) -> 2023-09-08T18:00:00 | CW4: =IF('J03'!$GL$3="","",LARGE('J03'!$GL$3:$GL$9,1)) -> 2023-09-09T19:30:00 | CX4: Journée 03 | DF4: Journée 03 | DI4: Journée 03 | DK4: J03 | DL4: du | DM4: =IF('J03'!$GL$3="","",IF(COUNTA('J03'!$GL$3:$GL$9)<7,"",MIN('J03'!$GL$3:$GL$9))) -> 2023-09-08T18:00:00 | DN4: au | DO4: =IF('J03'!$GL$3="","",IF(COUNTA('J03'!$GL$3:$GL$9)<7,"",MAX('J03'!$GL$3:$GL$9))) -> 2023-09-09T19:30:00
A5: =IF(CS2="","",IF(CT2="","",IF(AND(CS2>3,CT2>3),"J4",IF(AND(CS2<-3,CT2>3),"J4",IF(AND(CS2<-3,CT2<-3),"J4",IF(AND(CS2>3,CT2<-3),"J4",IF(AND(CS2>3,CT2<=3),"J4*",IF(AND(CS2<-3,CT2<=3),"J4*",IF(AND(CS2<=3,CT2>3),"J4*",IF(AND(CS2<=3,CT2<=3),"J4*",IF(AND(CS2<=3,CT2<-3),"J4*"))))))))))) -> J4 | B5: =IF(COUNTA('J04'!$D$3:$D$9)+COUNTA('J04'!$M$3:$M$9)<14,"Matchs non-inscrits","Matchs inscrits") -> Matchs inscrits | C5: =IF(COUNTA('J04'!$Q$3:$Q$9)<7,"Dates incomplètes","Dates complètes") -> Dates complètes | D5: =IF(COUNTA('J04'!$R$3:$R$9)<7,"Horaires incomplets","Horaires complets") -> Horaires complets | E5: =IF(SUM('J04'!$FH$3:$FI$9)="","Résultats incomplets",IF(SUM('J04'!$FH$3:$FI$9)<14,"Résultats incomplets","Résultats complets")) -> Résultats complets | F5: du vendredi 15 septembre 2023 - 19h:30 au samedi 16 septembre 2023 - 19h:30 | G5: =COUNTBLANK('J04'!$GQ$3:$GR$9)/2 -> 0 | I5: =IF(CS2="","",IF(CT2="","",IF(AND(CS2>3,CT2>3),"J17",IF(AND(CS2<-3,CT2>3),"J17",IF(AND(CS2<-3,CT2<-3),"J17",IF(AND(CS2>3,CT2<-3),"J17",IF(AND(CS2>3,CT2<=3),"J17*",IF(AND(CS2<-3,CT2<=3),"J17*",IF(AND(CS2<=3,CT2>3),"J17*",IF(AND(CS2<=3,CT2<=3),"J17*",IF(AND(CS2<=3,CT2<-3),"J17*"))))))))))) -> J17 | J5: =IF(COUNTA('J17'!$D$3:$D$9)+COUNTA('J17'!$M$3:$M$9)<14,"Matchs non-inscrits","Matchs inscrits") -> Matchs inscrits | K5: =IF(COUNTA('J17'!$Q$3:$Q$9)<7,"Dates incomplètes","Dates complètes") -> Dates complètes | L5: =IF(COUNTA('J17'!$R$3:$R$9)<7,"Horaires incomplets","Horaires complets") -> Horaires complets | M5: =IF(SUM('J17'!$FH$3:$FI$9)="","Résultats incomplets",IF(SUM('J17'!$FH$3:$FI$9)<14,"Résultats incomplets","Résultats complets")) -> Résultats complets | N5: du vendredi 26 janvier 2024 - 19h:30 au samedi 27 janvier 2024 - 19h:30 | O5: =COUNTBLANK('J17'!$GQ$3:$GR$9)/2 -> 0 | AY5: J04 | AZ5: =IF('J04'!$GL$3=0,"",IF('J04'!$GL$3="","",'J04'!$GL$3)) -> 2023-09-16T15:00:00 | BB5: J04 | BC5: =IF('J04'!$GL$9=0,"",IF('J04'!$GL$9="","",'J04'!$GL$9)) -> 2023-09-15T19:30:00 | BE5: J04 | BF5: =IF('J04'!$GN$3=0,"",IF('J04'!$GN$3="","",'J04'!$GN$3)) ->  | BH5: J04 | BI5: =IF('J04'!$GO$3=0,"",IF('J04'!$GO$3="","",'J04'!$GO$3)) ->  | BK5: =IF(B5="Matchs inscrits",1)+IF(C5="Dates complètes",1)+IF(D5="Horaires complets",1)+IF(E5="Résultats complets",1) -> 4 | BM5: 0 | CI5: 2023-09-16T15:00:00 | CJ5: 2023-09-15T19:30:00 | CK5: Journée 04 | CS5: -195.7754804 | CT5: -194.7754804 | CV5: =IF('J04'!$GL$3="","",SMALL('J04'!$GL$3:$GL$9,1)) -> 2023-09-15T19:30:00 | CW5: =IF('J04'!$GL$3="","",LARGE('J04'!$GL$3:$GL$9,1)) -> 2023-09-16T19:30:00 | CX5: Journée 04 | DF5: Journée 04 | DI5: Journée 04 | DK5: J04 | DL5: du | DM5: =IF('J04'!$GL$3="","",IF(COUNTA('J04'!$GL$3:$GL$9)<7,"",MIN('J04'!$GL$3:$GL$9))) -> 2023-09-15T19:30:00 | DN5: au | DO5: =IF('J04'!$GL$3="","",IF(COUNTA('J04'!$GL$3:$GL$9)<7,"",MAX('J04'!$GL$3:$GL$9))) -> 2023-09-16T19:30:00
A6: =IF(CS2="","",IF(CT2="","",IF(AND(CS2>3,CT2>3),"J05",IF(AND(CS2<-3,CT2>3),"J05",IF(AND(CS2<-3,CT2<-3),"J05",IF(AND(CS2>3,CT2<-3),"J05",IF(AND(CS2>3,CT2<=3),"J05*",IF(AND(CS2<-3,CT2<=3),"J05*",IF(AND(CS2<=3,CT2>3),"J05*",IF(AND(CS2<=3,CT2<=3),"J05*",IF(AND(CS2<=3,CT2<-3),"J05*"))))))))))) -> J05 | B6: =IF(COUNTA('J05'!$D$3:$D$9)+COUNTA('J05'!$M$3:$M$9)<14,"Matchs non-inscrits","Matchs inscrits") -> Matchs inscrits | C6: =IF(COUNTA('J05'!$Q$3:$Q$9)<7,"Dates incomplètes","Dates complètes") -> Dates complètes | D6: =IF(COUNTA('J05'!$R$3:$R$9)<7,"Horaires incomplets","Horaires complets") -> Horaires complets | E6: =IF(SUM('J05'!$FH$3:$FI$9)="","Résultats incomplets",IF(SUM('J05'!$FH$3:$FI$9)<14,"Résultats incomplets","Résultats complets")) -> Résultats complets | F6: du vendredi 29 septembre 2023 - 18h:30 au samedi 30 septembre 2023 - 19h:00 | G6: =COUNTBLANK('J05'!$GQ$3:$GR$9)/2 -> 0 | I6: =IF(CS2="","",IF(CT2="","",IF(AND(CS2>3,CT2>3),"J18",IF(AND(CS2<-3,CT2>3),"J18",IF(AND(CS2<-3,CT2<-3),"J18",IF(AND(CS2>3,CT2<-3),"J18",IF(AND(CS2>3,CT2<=3),"J18*",IF(AND(CS2<-3,CT2<=3),"J18*",IF(AND(CS2<=3,CT2>3),"J18*",IF(AND(CS2<=3,CT2<=3),"J18*",IF(AND(CS2<=3,CT2<-3),"J18*"))))))))))) -> J18 | J6: =IF(COUNTA('J18'!$D$3:$D$9)+COUNTA('J18'!$M$3:$M$9)<14,"Matchs non-inscrits","Matchs inscrits") -> Matchs inscrits | K6: =IF(COUNTA('J18'!$Q$3:$Q$9)<7,"Dates incomplètes","Dates complètes") -> Dates complètes | L6: =IF(COUNTA('J18'!$R$3:$R$9)<7,"Horaires incomplets","Horaires complets") -> Horaires complets | M6: =IF(SUM('J18'!$FH$3:$FI$9)="","Résultats incomplets",IF(SUM('J18'!$FH$3:$FI$9)<14,"Résultats incomplets","Résultats complets")) -> Résultats complets | N6: du vendredi 09 février 2024 - 19h:30 au samedi 10 février 2024 - 19h:30 | O6: =COUNTBLANK('J18'!$GQ$3:$GR$9)/2 -> 0 | AY6: J05 | AZ6: =IF('J05'!$GL$3=0,"",IF('J05'!$GL$3="","",'J05'!$GL$3)) -> 2023-09-30T15:00:00 | BB6: J05 | BC6: =IF('J05'!$GL$9=0,"",IF('J05'!$GL$9="","",'J05'!$GL$9)) -> 2023-09-29T20:30:00 | BE6: J05 | BF6: =IF('J05'!$GN$3=0,"",IF('J05'!$GN$3="","",'J05'!$GN$3)) ->  | BH6: J05 | BI6: =IF('J05'!$GO$3=0,"",IF('J05'!$GO$3="","",'J05'!$GO$3)) ->  | BK6: 4 | BM6: 0 | CI6: 2023-09-30T15:00:00 | CJ6: 2023-09-29T20:30:00 | CK6: Journée 05 | CS6: -181.8171471 | CT6: -180.7963138 | CV6: =IF('J05'!$GL$3="","",SMALL('J05'!$GL$3:$GL$9,1)) -> 2023-09-29T18:30:00 | CW6: =IF('J05'!$GL$3="","",LARGE('J05'!$GL$3:$GL$9,1)) -> 2023-09-30T19:00:00 | CX6: Journée 05 | DF6: Journée 05 | DI6: Journée 05 | DK6: J05 | DL6: du | DM6: =IF('J05'!$GL$3="","",IF(COUNTA('J05'!$GL$3:$GL$9)<7,"",MIN('J05'!$GL$3:$GL$9))) -> 2023-09-29T18:30:00 | DN6: au | DO6: =IF('J05'!$GL$3="","",IF(COUNTA('J05'!$GL$3:$GL$9)<7,"",MAX('J05'!$GL$3:$GL$9))) -> 2023-09-30T19:00:00
A7: =IF(CS2="","",IF(CT2="","",IF(AND(CS2>3,CT2>3),"J06",IF(AND(CS2<-3,CT2>3),"J06",IF(AND(CS2<-3,CT2<-3),"J06",IF(AND(CS2>3,CT2<-3),"J06",IF(AND(CS2>3,CT2<=3),"J06*",IF(AND(CS2<-3,CT2<=3),"J06*",IF(AND(CS2<=3,CT2>3),"J06*",IF(AND(CS2<=3,CT2<=3),"J06*",IF(AND(CS2<=3,CT2<-3),"J06*"))))))))))) -> J06 | B7: =IF(COUNTA('J06'!$D$3:$D$9)+COUNTA('J06'!$M$3:$M$9)<14,"Matchs non-inscrits","Matchs inscrits") -> Matchs inscrits | C7: =IF(COUNTA('J06'!$Q$3:$Q$9)<7,"Dates incomplètes","Dates complètes") -> Dates complètes | D7: =IF(COUNTA('J06'!$R$3:$R$9)<7,"Horaires incomplets","Horaires complets") -> Horaires complets | E7: =IF(SUM('J06'!$FH$3:$FI$9)="","Résultats incomplets",IF(SUM('J06'!$FH$3:$FI$9)<14,"Résultats incomplets","Résultats complets")) -> Résultats complets | F7: du vendredi 06 octobre 2023 - 19h:00 au samedi 07 octobre 2023 - 19h:00 | G7: =COUNTBLANK('J06'!$GQ$3:$GR$9)/2 -> 0 | I7: =IF(CS2="","",IF(CT2="","",IF(AND(CS2>3,CT2>3),"J19",IF(AND(CS2<-3,CT2>3),"J19",IF(AND(CS2<-3,CT2<-3),"J19",IF(AND(CS2>3,CT2<-3),"J19",IF(AND(CS2>3,CT2<=3),"J19*",IF(AND(CS2<-3,CT2<=3),"J19*",IF(AND(CS2<=3,CT2>3),"J19*",IF(AND(CS2<=3,CT2<=3),"J19*",IF(AND(CS2<=3,CT2<-3),"J19*"))))))))))) -> J19 | J7: =IF(COUNTA('J19'!$D$3:$D$9)+COUNTA('J19'!$M$3:$M$9)<14,"Matchs non-inscrits","Matchs inscrits") -> Matchs inscrits | K7: =IF(COUNTA('J19'!$Q$3:$Q$9)<7,"Dates incomplètes","Dates complètes") -> Dates complètes | L7: =IF(COUNTA('J19'!$R$3:$R$9)<7,"Horaires incomplets","Horaires complets") -> Horaires complets | M7: =IF(SUM('J19'!$FH$3:$FI$9)="","Résultats incomplets",IF(SUM('J19'!$FH$3:$FI$9)<14,"Résultats incomplets","Résultats complets")) -> Résultats complets | N7: du vendredi 16 février 2024 - 19h:00 au samedi 17 février 2024 - 19h:00 | O7: =COUNTBLANK('J19'!$GQ$3:$GR$9)/2 -> 0 | AY7: J06 | AZ7: =IF('J06'!$GL$3=0,"",IF('J06'!$GL$3="","",'J06'!$GL$3)) -> 2023-10-07T18:00:00 | BB7: J06 | BC7: =IF('J06'!$GL$9=0,"",IF('J06'!$GL$9="","",'J06'!$GL$9)) -> 2023-10-06T19:00:00 | BE7: J06 | BF7: =IF('J06'!$GN$3=0,"",IF('J06'!$GN$3="","",'J06'!$GN$3)) ->  | BH7: J06 | BI7: =IF('J06'!$GO$3=0,"",IF('J06'!$GO$3="","",'J06'!$GO$3)) ->  | BK7: 4 | BM7: 0 | CI7: 2023-10-07T18:00:00 | CJ7: 2023-10-06T19:00:00 | CK7: Journée 06 | CS7: -174.7963138 | CT7: -173.7963138 | CV7: =IF('J06'!$GL$3="","",SMALL('J06'!$GL$3:$GL$9,1)) -> 2023-10-06T19:00:00 | CW7: =IF('J06'!$GL$3="","",LARGE('J06'!$GL$3:$GL$9,1)) -> 2023-10-07T19:00:00 | CX7: Journée 06 | DF7: Journée 06 | DI7: Journée 06 | DK7: J06 | DL7: du | DM7: =IF('J06'!$GL$3="","",IF(COUNTA('J06'!$GL$3:$GL$9)<7,"",MIN('J06'!$GL$3:$GL$9))) -> 2023-10-06T19:00:00 | DN7: au | DO7: =IF('J06'!$GL$3="","",IF(COUNTA('J06'!$GL$3:$GL$9)<7,"",MAX('J06'!$GL$3:$GL$9))) -> 2023-10-07T19:00:00
A8: =IF(CS2="","",IF(CT2="","",IF(AND(CS2>3,CT2>3),"J07",IF(AND(CS2<-3,CT2>3),"J07",IF(AND(CS2<-3,CT2<-3),"J07",IF(AND(CS2>3,CT2<-3),"J07",IF(AND(CS2>3,CT2<=3),"J07*",IF(AND(CS2<-3,CT2<=3),"J07*",IF(AND(CS2<=3,CT2>3),"J07*",IF(AND(CS2<=3,CT2<=3),"J07*",IF(AND(CS2<=3,CT2<-3),"J07*"))))))))))) -> J07 | B8: =IF(COUNTA('J07'!$D$3:$D$9)+COUNTA('J07'!$M$3:$M$9)<14,"Matchs non-inscrits","Matchs inscrits") -> Matchs inscrits | C8: =IF(COUNTA('J07'!$Q$3:$Q$9)<7,"Dates incomplètes","Dates complètes") -> Dates complètes | D8: =IF(COUNTA('J07'!$R$3:$R$9)<7,"Horaires incomplets","Horaires complets") -> Horaires complets | E8: =IF(SUM('J07'!$FH$3:$FI$9)="","Résultats incomplets",IF(SUM('J07'!$FH$3:$FI$9)<14,"Résultats incomplets","Résultats complets")) -> Résultats complets | F8: du vendredi 13 octobre 2023 - 19h:30 au samedi 14 octobre 2023 - 19h:00 | G8: =COUNTBLANK('J07'!$GQ$3:$GR$9)/2 -> 0 | I8: =IF(CS2="","",IF(CT2="","",IF(AND(CS2>3,CT2>3),"J20",IF(AND(CS2<-3,CT2>3),"J20",IF(AND(CS2<-3,CT2<-3),"J20",IF(AND(CS2>3,CT2<-3),"J20",IF(AND(CS2>3,CT2<=3),"J20*",IF(AND(CS2<-3,CT2<=3),"J20*",IF(AND(CS2<=3,CT2>3),"J20*",IF(AND(CS2<=3,CT2<=3),"J20*",IF(AND(CS2<=3,CT2<-3),"J20*"))))))))))) -> J20 | J8: =IF(COUNTA('J20'!$D$3:$D$9)+COUNTA('J20'!$M$3:$M$9)<14,"Matchs non-inscrits","Matchs inscrits") -> Matchs inscrits | K8: =IF(COUNTA('J20'!$Q$3:$Q$9)<7,"Dates incomplètes","Dates complètes") -> Dates complètes | L8: =IF(COUNTA('J20'!$R$3:$R$9)<7,"Horaires incomplets","Horaires complets") -> Horaires complets | M8: =IF(SUM('J20'!$FH$3:$FI$9)="","Résultats incomplets",IF(SUM('J20'!$FH$3:$FI$9)<14,"Résultats incomplets","Résultats complets")) -> Résultats complets | N8: du vendredi 23 février 2024 - 19h:30 au samedi 24 février 2024 - 19h:30 | O8: =COUNTBLANK('J20'!$GQ$3:$GR$9)/2 -> 0 | AY8: J07 | AZ8: =IF('J07'!$GL$3=0,"",IF('J07'!$GL$3="","",'J07'!$GL$3)) -> 2023-10-14T15:00:00 | BB8: J07 | BC8: =IF('J07'!$GL$9=0,"",IF('J07'!$GL$9="","",'J07'!$GL$9)) -> 2023-10-13T20:00:00 | BE8: J07 | BF8: =IF('J07'!$GN$3=0,"",IF('J07'!$GN$3="","",'J07'!$GN$3)) ->  | BH8: J07 | BI8: =IF('J07'!$GO$3=0,"",IF('J07'!$GO$3="","",'J07'!$GO$3)) ->  | BK8: 4 | BM8: 0 | CI8: 2023-10-14T15:00:00 | CJ8: 2023-10-13T20:00:00 | CK8: Journée 07 | CS8: -167.7754804 | CT8: -166.7963138 | CV8: =IF('J07'!$GL$3="","",SMALL('J07'!$GL$3:$GL$9,1)) -> 2023-10-13T19:30:00 | CW8: =IF('J07'!$GL$3="","",LARGE('J07'!$GL$3:$GL$9,1)) -> 2023-10-14T19:00:00 | CX8: Journée 07 | DF8: Journée 07 | DI8: Journée 07 | DK8: J07 | DL8: du | DM8: =IF('J07'!$GL$3="","",IF(COUNTA('J07'!$GL$3:$GL$9)<7,"",MIN('J07'!$GL$3:$GL$9))) -> 2023-10-13T19:30:00 | DN8: au | DO8: =IF('J07'!$GL$3="","",IF(COUNTA('J07'!$GL$3:$GL$9)<7,"",MAX('J07'!$GL$3:$GL$9))) -> 2023-10-14T19:00:00
A9: =IF(CS2="","",IF(CT2="","",IF(AND(CS2>3,CT2>3),"J08",IF(AND(CS2<-3,CT2>3),"J08",IF(AND(CS2<-3,CT2<-3),"J08",IF(AND(CS2>3,CT2<-3),"J08",IF(AND(CS2>3,CT2<=3),"J08*",IF(AND(CS2<-3,CT2<=3),"J08*",IF(AND(CS2<=3,CT2>3),"J08*",IF(AND(CS2<=3,CT2<=3),"J08*",IF(AND(CS2<=3,CT2<-3),"J08*"))))))))))) -> J08 | B9: =IF(COUNTA('J08'!$D$3:$D$9)+COUNTA('J08'!$M$3:$M$9)<14,"Matchs non-inscrits","Matchs inscrits") -> Matchs inscrits | C9: =IF(COUNTA('J08'!$Q$3:$Q$9)<7,"Dates incomplètes","Dates complètes") -> Dates complètes | D9: =IF(COUNTA('J08'!$R$3:$R$9)<7,"Horaires incomplets","Horaires complets") -> Horaires complets | E9: =IF(SUM('J08'!$FH$3:$FI$9)="","Résultats incomplets",IF(SUM('J08'!$FH$3:$FI$9)<14,"Résultats incomplets","Résultats complets")) -> Résultats complets | F9: du vendredi 20 octobre 2023 - 19h:00 au samedi 21 octobre 2023 - 18h:30 | G9: =COUNTBLANK('J08'!$GQ$3:$GR$9)/2 -> 0 | I9: =IF(CS2="","",IF(CT2="","",IF(AND(CS2>3,CT2>3),"J21",IF(AND(CS2<-3,CT2>3),"J21",IF(AND(CS2<-3,CT2<-3),"J21",IF(AND(CS2>3,CT2<-3),"J21",IF(AND(CS2>3,CT2<=3),"J21*",IF(AND(CS2<-3,CT2<=3),"J21*",IF(AND(CS2<=3,CT2>3),"J21*",IF(AND(CS2<=3,CT2<=3),"J21*",IF(AND(CS2<=3,CT2<-3),"J21*"))))))))))) -> J21 | J9: =IF(COUNTA('J21'!$D$3:$D$9)+COUNTA('J21'!$M$3:$M$9)<14,"Matchs non-inscrits","Matchs inscrits") -> Matchs inscrits | K9: =IF(COUNTA('J21'!$Q$3:$Q$9)<7,"Dates incomplètes","Dates complètes") -> Dates complètes | L9: =IF(COUNTA('J21'!$R$3:$R$9)<7,"Horaires incomplets","Horaires complets") -> Horaires complets | M9: =IF(SUM('J21'!$FH$3:$FI$9)="","Résultats incomplets",IF(SUM('J21'!$FH$3:$FI$9)<14,"Résultats incomplets","Résultats complets")) -> Résultats incomplets | N9: du vendredi 01 mars 2024 - 19h:30 au samedi 13 avril 2024 - 15h:00 | O9: =COUNTBLANK('J21'!$GQ$3:$GR$9)/2 -> 1 | AY9: J08 | AZ9: =IF('J08'!$GL$3=0,"",IF('J08'!$GL$3="","",'J08'!$GL$3)) -> 2023-10-21T15:30:00 | BB9: J08 | BC9: =IF('J08'!$GL$9=0,"",IF('J08'!$GL$9="","",'J08'!$GL$9)) -> 2023-10-20T19:00:00 | BE9: J08 | BF9: =IF('J08'!$GN$3=0,"",IF('J08'!$GN$3="","",'J08'!$GN$3)) ->  | BH9: J08 | BI9: =IF('J08'!$GO$3=0,"",IF('J08'!$GO$3="","",'J08'!$GO$3)) ->  | BK9: 4 | BM9: 0 | CI9: 2023-10-21T15:30:00 | CJ9: 2023-10-20T19:00:00 | CK9: Journée 08 | CS9: -160.7963138 | CT9: -159.8171471 | CV9: =IF('J08'!$GL$3="","",SMALL('J08'!$GL$3:$GL$9,1)) -> 2023-10-20T19:00:00 | CW9: =IF('J08'!$GL$3="","",LARGE('J08'!$GL$3:$GL$9,1)) -> 2023-10-21T18:30:00 | CX9: Journée 08 | DF9: Journée 08 | DI9: Journée 08 | DK9: J08 | DL9: du | DM9: =IF('J08'!$GL$3="","",IF(COUNTA('J08'!$GL$3:$GL$9)<7,"",MIN('J08'!$GL$3:$GL$9))) -> 2023-10-20T19:00:00 | DN9: au | DO9: =IF('J08'!$GL$3="","",IF(COUNTA('J08'!$GL$3:$GL$9)<7,"",MAX('J08'!$GL$3:$GL$9))) -> 2023-10-21T18:30:00
A10: =IF(CS2="","",IF(CT2="","",IF(AND(CS2>3,CT2>3),"J09",IF(AND(CS2<-3,CT2>3),"J09",IF(AND(CS2<-3,CT2<-3),"J09",IF(AND(CS2>3,CT2<-3),"J09",IF(AND(CS2>3,CT2<=3),"J09*",IF(AND(CS2<-3,CT2<=3),"J09*",IF(AND(CS2<=3,CT2>3),"J09*",IF(AND(CS2<=3,CT2<=3),"J09*",IF(AND(CS2<=3,CT2<-3),"J09*"))))))))))) -> J09 | B10: =IF(COUNTA('J09'!$D$3:$D$9)+COUNTA('J09'!$M$3:$M$9)<14,"Matchs non-inscrits","Matchs inscrits") -> Matchs inscrits | C10: =IF(COUNTA('J09'!$Q$3:$Q$9)<7,"Dates incomplètes","Dates complètes") -> Dates complètes | D10: =IF(COUNTA('J09'!$R$3:$R$9)<7,"Horaires incomplets","Horaires complets") -> Horaires complets | E10: =IF(SUM('J09'!$FH$3:$FI$9)="","Résultats incomplets",IF(SUM('J09'!$FH$3:$FI$9)<14,"Résultats incomplets","Résultats complets")) -> Résultats complets | F10: du vendredi 03 novembre 2023 - 19h:30 au samedi 04 novembre 2023 - 19h:00 | G10: =COUNTBLANK('J09'!$GQ$3:$GR$9)/2 -> 0 | I10: =IF(CS2="","",IF(CT2="","",IF(AND(CS2>3,CT2>3),"J22",IF(AND(CS2<-3,CT2>3),"J22",IF(AND(CS2<-3,CT2<-3),"J22",IF(AND(CS2>3,CT2<-3),"J22",IF(AND(CS2>3,CT2<=3),"J22*",IF(AND(CS2<-3,CT2<=3),"J22*",IF(AND(CS2<=3,CT2>3),"J22*",IF(AND(CS2<=3,CT2<=3),"J22*",IF(AND(CS2<=3,CT2<-3),"J22*"))))))))))) -> J22 | J10: =IF(COUNTA('J22'!$D$3:$D$9)+COUNTA('J22'!$M$3:$M$9)<14,"Matchs non-inscrits","Matchs inscrits") -> Matchs inscrits | K10: =IF(COUNTA('J22'!$Q$3:$Q$9)<7,"Dates incomplètes","Dates complètes") -> Dates complètes | L10: =IF(COUNTA('J22'!$R$3:$R$9)<7,"Horaires incomplets","Horaires complets") -> Horaires complets | M10: =IF(SUM('J22'!$FH$3:$FI$9)="","Résultats incomplets",IF(SUM('J22'!$FH$3:$FI$9)<14,"Résultats incomplets","Résultats complets")) -> Résultats complets | N10: du vendredi 08 mars 2024 - 19h:00 au samedi 09 mars 2024 - 19h:30 | O10: =COUNTBLANK('J22'!$GQ$3:$GR$9)/2 -> 0 | AY10: J09 | AZ10: =IF('J09'!$GL$3=0,"",IF('J09'!$GL$3="","",'J09'!$GL$3)) -> 2023-11-04T15:00:00 | BB10: J09 | BC10: =IF('J09'!$GL$9=0,"",IF('J09'!$GL$9="","",'J09'!$GL$9)) -> 2023-11-03T19:30:00 | BE10: J09 | BF10: =IF('J09'!$GN$3=0,"",IF('J09'!$GN$3="","",'J09'!$GN$3)) ->  | BH10: J09 | BI10: =IF('J09'!$GO$3=0,"",IF('J09'!$GO$3="","",'J09'!$GO$3)) ->  | BK10: 4 | BM10: 0 | CI10: 2023-11-04T15:00:00 | CJ10: 2023-11-03T19:30:00 | CK10: Journée 09 | CS10: -146.7754804 | CT10: -145.7963138 | CV10: =IF('J09'!$GL$3="","",SMALL('J09'!$GL$3:$GL$9,1)) -> 2023-11-03T19:30:00 | CW10: =IF('J09'!$GL$3="","",LARGE('J09'!$GL$3:$GL$9,1)) -> 2023-11-04T19:00:00 | CX10: Journée 09 | DF10: Journée 09 | DI10: Journée 09 | DK10: J09 | DL10: du | DM10: =IF('J09'!$GL$3="","",IF(COUNTA('J09'!$GL$3:$GL$9)<7,"",MIN('J09'!$GL$3:$GL$9))) -> 2023-11-03T19:30:00 | DN10: au | DO10: =IF('J09'!$GL$3="","",IF(COUNTA('J09'!$GL$3:$GL$9)<7,"",MAX('J09'!$GL$3:$GL$9))) -> 2023-11-04T19:00:00
A11: =IF(CS2="","",IF(CT2="","",IF(AND(CS2>3,CT2>3),"J10",IF(AND(CS2<-3,CT2>3),"J10",IF(AND(CS2<-3,CT2<-3),"J10",IF(AND(CS2>3,CT2<-3),"J10",IF(AND(CS2>3,CT2<=3),"J10*",IF(AND(CS2<-3,CT2<=3),"J10*",IF(AND(CS2<=3,CT2>3),"J10*",IF(AND(CS2<=3,CT2<=3),"J10*",IF(AND(CS2<=3,CT2<-3),"J10*"))))))))))) -> J10 | B11: =IF(COUNTA('J10'!$D$3:$D$9)+COUNTA('J10'!$M$3:$M$9)<14,"Matchs non-inscrits","Matchs inscrits") -> Matchs inscrits | C11: =IF(COUNTA('J10'!$Q$3:$Q$9)<7,"Dates incomplètes","Dates complètes") -> Dates complètes | D11: =IF(COUNTA('J10'!$R$3:$R$9)<7,"Horaires incomplets","Horaires complets") -> Horaires complets | E11: =IF(SUM('J10'!$FH$3:$FI$9)="","Résultats incomplets",IF(SUM('J10'!$FH$3:$FI$9)<14,"Résultats incomplets","Résultats complets")) -> Résultats complets | F11: du vendredi 10 novembre 2023 - 19h:00 au samedi 11 novembre 2023 - 19h:00 | G11: =COUNTBLANK('J10'!$GQ$3:$GR$9)/2 -> 0 | I11: =IF(CS2="","",IF(CT2="","",IF(AND(CS2>3,CT2>3),"J23",IF(AND(CS2<-3,CT2>3),"J23",IF(AND(CS2<-3,CT2<-3),"J23",IF(AND(CS2>3,CT2<-3),"J23",IF(AND(CS2>3,CT2<=3),"J23*",IF(AND(CS2<-3,CT2<=3),"J23*",IF(AND(CS2<=3,CT2>3),"J23*",IF(AND(CS2<=3,CT2<=3),"J23*",IF(AND(CS2<=3,CT2<-3),"J23*"))))))))))) -> J23 | J11: =IF(COUNTA('J23'!$D$3:$D$9)+COUNTA('J23'!$M$3:$M$9)<14,"Matchs non-inscrits","Matchs inscrits") -> Matchs inscrits | K11: =IF(COUNTA('J23'!$Q$3:$Q$9)<7,"Dates incomplètes","Dates complètes") -> Dates complètes | L11: =IF(COUNTA('J23'!$R$3:$R$9)<7,"Horaires incomplets","Horaires complets") -> Horaires complets | M11: =IF(SUM('J23'!$FH$3:$FI$9)="","Résultats incomplets",IF(SUM('J23'!$FH$3:$FI$9)<14,"Résultats incomplets","Résultats complets")) -> Résultats complets | N11: du vendredi 22 mars 2024 - 19h:30 au samedi 23 mars 2024 - 19h:30 | O11: =COUNTBLANK('J23'!$GQ$3:$GR$9)/2 -> 0 | AY11: J10 | AZ11: =IF('J10'!$GL$3=0,"",IF('J10'!$GL$3="","",'J10'!$GL$3)) -> 2023-11-10T19:00:00 | BB11: J10 | BC11: =IF('J10'!$GL$9=0,"",IF('J10'!$GL$9="","",'J10'!$GL$9)) -> 2023-11-11T19:00:00 | BE11: J10 | BF11: =IF('J10'!$GN$3=0,"",IF('J10'!$GN$3="","",'J10'!$GN$3)) ->  | BH11: J10 | BI11: =IF('J10'!$GO$3=0,"",IF('J10'!$GO$3="","",'J10'!$GO$3)) ->  | BK11: 4 | BM11: 0 | CI11: 2023-11-10T19:00:00 | CJ11: 2023-11-11T19:00:00 | CK11: Journée 10 | CS11: -139.7963138 | CT11: -138.7963138 | CV11: =IF('J10'!$GL$3="","",SMALL('J10'!$GL$3:$GL$9,1)) -> 2023-11-10T19:00:00 | CW11: =IF('J10'!$GL$3="","",LARGE('J10'!$GL$3:$GL$9,1)) -> 2023-11-11T19:00:00 | CX11: Journée 10 | DF11: Journée 10 | DI11: Journée 10 | DK11: J10 | DL11: du | DM11: =IF('J10'!$GL$3="","",IF(COUNTA('J10'!$GL$3:$GL$9)<7,"",MIN('J10'!$GL$3:$GL$9))) -> 2023-11-10T19:00:00 | DN11: au | DO11: =IF('J10'!$GL$3="","",IF(COUNTA('J10'!$GL$3:$GL$9)<7,"",MAX('J10'!$GL$3:$GL$9))) -> 2023-11-11T19:00:00
A12: =IF(CS2="","",IF(CT2="","",IF(AND(CS2>3,CT2>3),"J11",IF(AND(CS2<-3,CT2>3),"J11",IF(AND(CS2<-3,CT2<-3),"J11",IF(AND(CS2>3,CT2<-3),"J11",IF(AND(CS2>3,CT2<=3),"J11*",IF(AND(CS2<-3,CT2<=3),"J11*",IF(AND(CS2<=3,CT2>3),"J11*",IF(AND(CS2<=3,CT2<=3),"J11*",IF(AND(CS2<=3,CT2<-3),"J11*"))))))))))) -> J11 | B12: =IF(COUNTA('J11'!$D$3:$D$9)+COUNTA('J11'!$M$3:$M$9)<14,"Matchs non-inscrits","Matchs inscrits") -> Matchs inscrits | C12: =IF(COUNTA('J11'!$Q$3:$Q$9)<7,"Dates incomplètes","Dates complètes") -> Dates complètes | D12: =IF(COUNTA('J11'!$R$3:$R$9)<7,"Horaires incomplets","Horaires complets") -> Horaires complets | E12: =IF(SUM('J11'!$FH$3:$FI$9)="","Résultats incomplets",IF(SUM('J11'!$FH$3:$FI$9)<14,"Résultats incomplets","Résultats complets")) -> Résultats complets | F12: du vendredi 17 novembre 2023 - 19h:30 au dimanche 19 novembre 2023 - 15h:00 | G12: =COUNTBLANK('J11'!$GQ$3:$GR$9)/2 -> 0 | I12: =IF(CS2="","",IF(CT2="","",IF(AND(CS2>3,CT2>3),"J24",IF(AND(CS2<-3,CT2>3),"J24",IF(AND(CS2<-3,CT2<-3),"J24",IF(AND(CS2>3,CT2<-3),"J24",IF(AND(CS2>3,CT2<=3),"J24*",IF(AND(CS2<-3,CT2<=3),"J24",IF(AND(CS2<=3,CT2>3),"J24*",IF(AND(CS2<=3,CT2<=3),"J24*",IF(AND(CS2<=3,CT2<-3),"J24*"))))))))))) -> J24 | J12: =IF(COUNTA('J24'!$D$3:$D$9)+COUNTA('J24'!$M$3:$M$9)<14,"Matchs non-inscrits","Matchs inscrits") -> Matchs inscrits | K12: =IF(COUNTA('J24'!$Q$3:$Q$9)<7,"Dates incomplètes","Dates complètes") -> Dates complètes | L12: =IF(COUNTA('J24'!$R$3:$R$9)<7,"Horaires incomplets","Horaires complets") -> Horaires complets | M12: =IF(SUM('J24'!$FH$3:$FI$9)="","Résultats incomplets",IF(SUM('J24'!$FH$3:$FI$9)<14,"Résultats incomplets","Résultats complets")) -> Résultats incomplets | N12: du vendredi 29 mars 2024 - 19h:00 au samedi 30 mars 2024 - 19h:00 | O12: =COUNTBLANK('J24'!$GQ$3:$GR$9)/2 -> 6 | AY12: J11 | AZ12: =IF('J11'!$GL$3=0,"",IF('J11'!$GL$3="","",'J11'!$GL$3)) -> 2023-11-17T19:30:00 | BB12: J11 | BC12: =IF('J11'!$GL$9=0,"",IF('J11'!$GL$9="","",'J11'!$GL$9)) -> 2023-11-19T15:00:00 | BE12: J11 | BF12: =IF('J11'!$GN$3=0,"",IF('J11'!$GN$3="","",'J11'!$GN$3)) ->  | BH12: J11 | BI12: =IF('J11'!$GO$3=0,"",IF('J11'!$GO$3="","",'J11'!$GO$3)) ->  | BK12: 4 | BM12: 0 | CI12: 2023-11-17T19:30:00 | CJ12: 2023-11-19T15:00:00 | CK12: Journée 11 | CS12: -132.7754804 | CT12: -130.9629804 | CV12: =IF('J11'!$GL$3="","",SMALL('J11'!$GL$3:$GL$9,1)) -> 2023-11-17T19:30:00 | CW12: =IF('J11'!$GL$3="","",LARGE('J11'!$GL$3:$GL$9,1)) -> 2023-11-19T15:00:00 | CX12: Journée 11 | DF12: Journée 11 | DI12: Journée 11 | DK12: J11 | DL12: du | DM12: =IF('J11'!$GL$3="","",IF(COUNTA('J11'!$GL$3:$GL$9)<7,"",MIN('J11'!$GL$3:$GL$9))) -> 2023-11-17T19:30:00 | DN12: au | DO12: =IF('J11'!$GL$3="","",IF(COUNTA('J11'!$GL$3:$GL$9)<7,"",MAX('J11'!$GL$3:$GL$9))) -> 2023-11-19T15:00:00
A13: =IF(CS2="","",IF(CT2="","",IF(AND(CS2>3,CT2>3),"J12",IF(AND(CS2<-3,CT2>3),"J12",IF(AND(CS2<-3,CT2<-3),"J12",IF(AND(CS2>3,CT2<-3),"J12",IF(AND(CS2>3,CT2<=3),"J12*",IF(AND(CS2<-3,CT2<=3),"J12*",IF(AND(CS2<=3,CT2>3),"J12*",IF(AND(CS2<=3,CT2<=3),"J12*",IF(AND(CS2<=3,CT2<-3),"J12*"))))))))))) -> J12 | B13: =IF(COUNTA('J12'!$D$3:$D$9)+COUNTA('J12'!$M$3:$M$9)<14,"Matchs non-inscrits","Matchs inscrits") -> Matchs inscrits | C13: =IF(COUNTA('J12'!$Q$3:$Q$9)<7,"Dates incomplètes","Dates complètes") -> Dates complètes | D13: =IF(COUNTA('J12'!$R$3:$R$9)<7,"Horaires incomplets","Horaires complets") -> Horaires complets | E13: =IF(SUM('J12'!$FH$3:$FI$9)="","Résultats incomplets",IF(SUM('J12'!$FH$3:$FI$9)<14,"Résultats incomplets","Résultats complets")) -> Résultats incomplets | F13: du vendredi 01 décembre 2023 - 19h:00 au vendredi 12 avril 2024 - 19h:30 | G13: =COUNTBLANK('J12'!$GQ$3:$GR$9)/2 -> 1 | I13: =IF(CS2="","",IF(CT2="","",IF(AND(CS2>3,CT2>3),"J25",IF(AND(CS2<-3,CT2>3),"J25",IF(AND(CS2<-3,CT2<-3),"J25",IF(AND(CS2>3,CT2<-3),"J25",IF(AND(CS2>3,CT2<=3),"J25*",IF(AND(CS2<-3,CT2<=3),"J25",IF(AND(CS2<=3,CT2>3),"J25*",IF(AND(CS2<=3,CT2<=3),"J25*",IF(AND(CS2<=3,CT2<-3),"J25*"))))))))))) -> J25 | J13: =IF(COUNTA('J25'!$D$3:$D$9)+COUNTA('J25'!$M$3:$M$9)<14,"Matchs non-inscrits","Matchs inscrits") -> Matchs inscrits | K13: =IF(COUNTA('J25'!$Q$3:$Q$9)<7,"Dates incomplètes","Dates complètes") -> Dates complètes | L13: =IF(COUNTA('J25'!$R$3:$R$9)<7,"Horaires incomplets","Horaires complets") -> Horaires complets | M13: =IF(SUM('J25'!$FH$3:$FI$9)="","Résultats incomplets",IF(SUM('J25'!$FH$3:$FI$9)<14,"Résultats incomplets","Résultats complets")) -> Résultats incomplets | N13: du vendredi 05 avril 2024 - 19h:30 au samedi 06 avril 2024 - 19h:30 | O13: =COUNTBLANK('J25'!$GQ$3:$GR$9)/2 -> 6 | AY13: J12 | AZ13: =IF('J12'!$GL$3=0,"",IF('J12'!$GL$3="","",'J12'!$GL$3)) -> 2023-12-01T19:00:00 | BB13: J12 | BC13: =IF('J12'!$GL$9=0,"",IF('J12'!$GL$9="","",'J12'!$GL$9)) -> 2023-12-03T19:00:00 | BE13: J12 | BF13: =IF('J12'!$GN$3=0,"",IF('J12'!$GN$3="","",'J12'!$GN$3)) ->  | BH13: J12 | BI13: =IF('J12'!$GO$3=0,"",IF('J12'!$GO$3="","",'J12'!$GO$3)) ->  | BK13: 3 | BM13: 1 | CI13: 2023-12-01T19:00:00 | CJ13: 2023-12-03T19:00:00 | CK13: Journée 12 | CS13: -118.7963138 | CT13: 14.22451956 | CV13: =IF('J12'!$GL$3="","",SMALL('J12'!$GL$3:$GL$9,1)) -> 2023-12-01T19:00:00 | CW13: =IF('J12'!$GL$3="","",LARGE('J12'!$GL$3:$GL$9,1)) -> 2024-04-12T19:30:00 | CX13: Journée 12 | DF13: Journée 12 | DI13: Journée 12 | DK13: J12 | DL13: du | DM13: =IF('J12'!$GL$3="","",IF(COUNTA('J12'!$GL$3:$GL$9)<7,"",MIN('J12'!$GL$3:$GL$9))) -> 2023-12-01T19:00:00 | DN13: au | DO13: =IF('J12'!$GL$3="","",IF(COUNTA('J12'!$GL$3:$GL$9)<7,"",MAX('J12'!$GL$3:$GL$9))) -> 2024-04-12T19:30:00
A14: =IF(CS2="","",IF(CT2="","",IF(AND(CS2>3,CT2>3),"J13",IF(AND(CS2<-3,CT2>3),"J13",IF(AND(CS2<-3,CT2<-3),"J13",IF(AND(CS2>3,CT2<-3),"J13",IF(AND(CS2>3,CT2<=3),"J13*",IF(AND(CS2<-3,CT2<=3),"J13*",IF(AND(CS2<=3,CT2>3),"J13*",IF(AND(CS2<=3,CT2<=3),"J13*",IF(AND(CS2<=3,CT2<-3),"J13*"))))))))))) -> J13 | B14: =IF(COUNTA('J13'!$D$3:$D$9)+COUNTA('J13'!$M$3:$M$9)<14,"Matchs non-inscrits","Matchs inscrits") -> Matchs inscrits | C14: =IF(COUNTA('J13'!$Q$3:$Q$9)<7,"Dates incomplètes","Dates complètes") -> Dates complètes | D14: =IF(COUNTA('J13'!$R$3:$R$9)<7,"Horaires incomplets","Horaires complets") -> Horaires complets | E14: =IF(SUM('J13'!$FH$3:$FI$9)="","Résultats incomplets",IF(SUM('J13'!$FH$3:$FI$9)<14,"Résultats incomplets","Résultats complets")) -> Résultats complets | F14: =IF(DM14="","",IF(DO14="","",_xlfn.CONCAT(DL14," ",TEXT(DM14,"jjjj jj mmmm aaaa - hh""h"":mm")," ",DN14," ",TEXT(DO14,"jjjj jj mmmm aaaa - hh""h"":mm")))) -> du vendredi 08 décembre 2023 - 19h:30 au samedi 09 décembre 2023 - 19h:00 | G14: =COUNTBLANK('J13'!$GQ$3:$GR$9)/2 -> 0 | I14: =IF(CS2="","",IF(CT2="","",IF(AND(CS2>3,CT2>3),"J26",IF(AND(CS2<-3,CT2>3),"J26",IF(AND(CS2<-3,CT2<-3),"J26",IF(AND(CS2>3,CT2<-3),"J26",IF(AND(CS2>3,CT2<=3),"J26*",IF(AND(CS2<-3,CT2<=3),"J26",IF(AND(CS2<=3,CT2>3),"J26*",IF(AND(CS2<=3,CT2<=3),"J26*",IF(AND(CS2<=3,CT2<-3),"J26*"))))))))))) -> J26 | J14: =IF(COUNTA('J26'!$D$3:$D$9)+COUNTA('J26'!$M$3:$M$9)<14,"Matchs non-inscrits","Matchs inscrits") -> Matchs inscrits | K14: =IF(COUNTA('J26'!$Q$3:$Q$9)<7,"Dates incomplètes","Dates complètes") -> Dates complètes | L14: =IF(COUNTA('J26'!$R$3:$R$9)<7,"Horaires incomplets","Horaires complets") -> Horaires complets | M14: =IF(SUM('J26'!$FH$3:$FI$9)="","Résultats incomplets",IF(SUM('J26'!$FH$3:$FI$9)<14,"Résultats incomplets","Résultats complets")) -> Résultats incomplets | N14: du samedi 27 avril 2024 - 19h:00 au samedi 27 avril 2024 - 19h:00 | O14: =COUNTBLANK('J26'!$GQ$3:$GR$9)/2 -> 6 | AY14: J13 | AZ14: =IF('J13'!$GL$3=0,"",IF('J13'!$GL$3="","",'J13'!$GL$3)) -> 2023-12-08T19:30:00 | BB14: J13 | BC14: =IF('J13'!$GL$9=0,"",IF('J13'!$GL$9="","",'J13'!$GL$9)) -> 2023-12-09T19:00:00 | BE14: J13 | BF14: =IF('J13'!$GN$3=0,"",IF('J13'!$GN$3="","",'J13'!$GN$3)) ->  | BH14: J13 | BI14: =IF('J13'!$GO$3=0,"",IF('J13'!$GO$3="","",'J13'!$GO$3)) ->  | BK14: 4 | BM14: 0 | CI14: 2023-12-08T19:30:00 | CJ14: 2023-12-09T19:00:00 | CK14: Journée 13 | CS14: -111.7754804 | CT14: -110.7963138 | CV14: =IF('J13'!$GL$3="","",SMALL('J13'!$GL$3:$GL$9,1)) -> 2023-12-08T19:30:00 | CW14: =IF('J13'!$GL$3="","",LARGE('J13'!$GL$3:$GL$9,1)) -> 2023-12-09T19:00:00 | CX14: Journée 13 | DF14: Journée 13 | DI14: Journée 13 | DK14: J13 | DL14: du | DM14: =IF('J13'!$GL$3="","",IF(COUNTA('J13'!$GL$3:$GL$9)<7,"",MIN('J13'!$GL$3:$GL$9))) -> 2023-12-08T19:30:00 | DN14: au | DO14: =IF('J13'!$GL$3="","",IF(COUNTA('J13'!$GL$3:$GL$9)<7,"",MAX('J13'!$GL$3:$GL$9))) -> 2023-12-09T19:00:00
A15: J00* : Le début ou la fin des journées ayant été ou devant être jouées dans les derniers/prochains 3 jours. | I15: J00* : Le début ou la fin des journées ayant été ou devant être jouées dans les derniers/prochains 3 jours. | AY15: J14 | AZ15: =IF('J14'!$GL$3=0,"",IF('J14'!$GL$3="","",'J14'!$GL$3)) -> 2023-12-15T19:30:00 | BB15: J14 | BC15: =IF('J14'!$GL$9=0,"",IF('J14'!$GL$9="","",'J14'!$GL$9)) -> 2023-12-16T19:30:00 | BE15: J14 | BF15: =IF('J14'!$GN$3=0,"",IF('J14'!$GN$3="","",'J14'!$GN$3)) ->  | BH15: J14 | BI15: =IF('J14'!$GO$3=0,"",IF('J14'!$GO$3="","",'J14'!$GO$3)) ->  | BK15: =IF(J2="Matchs inscrits",1)+IF(K2="Dates complètes",1)+IF(L2="Horaires complets",1)+IF(M2="Résultats complets",1) -> 4 | BM15: =O2 -> 0 | CI15: 2023-12-15T19:30:00 | CJ15: 2023-12-16T19:30:00 | CK15: Journée 14 | CS15: -104.7754804 | CT15: -103.7754804 | CV15: =IF('J14'!$GL$3="","",SMALL('J14'!$GL$3:$GL$9,1)) -> 2023-12-15T19:30:00 | CW15: =IF('J14'!$GL$3="","",LARGE('J14'!$GL$3:$GL$9,1)) -> 2023-12-16T19:30:00 | CX15: Journée 14 | DF15: Journée 14 | DI15: Journée 14 | DK15: J14 | DL15: du | DM15: =IF('J14'!$GL$3="","",IF(COUNTA('J14'!$GL$3:$GL$9)<7,"",MIN('J14'!$GL$3:$GL$9))) -> 2023-12-15T19:30:00 | DN15: au | DO15: =IF('J14'!$GL$3="","",IF(COUNTA('J14'!$GL$3:$GL$9)<7,"",MAX('J14'!$GL$3:$GL$9))) -> 2023-12-16T19:30:00
A16: =IF(Accueil!$U$2="","",Accueil!$U$2) -> Nous sommes le vendredi 29 mars 2024 | N16: =IF(O16=0,"",IF(O16="","",IF(O16=1,"Nombre de match restant à jouer :","Nombre de matchs restant à jouer :"))) -> Nombre de matchs restant à jouer : | O16: =BM33 -> 20 | AY16: J15 | AZ16: =IF('J15'!$GL$3=0,"",IF('J15'!$GL$3="","",'J15'!$GL$3)) -> 2024-01-12T19:30:00 | BB16: J15 | BC16: =IF('J15'!$GL$9=0,"",IF('J15'!$GL$9="","",'J15'!$GL$9)) -> 2024-01-13T19:00:00 | BE16: J15 | BF16: =IF('J15'!$GN$3=0,"",IF('J15'!$GN$3="","",'J15'!$GN$3)) ->  | BH16: J15 | BI16: =IF('J15'!$GO$3=0,"",IF('J15'!$GO$3="","",'J15'!$GO$3)) ->  | BK16: 4 | BM16: 0 | CI16: 2024-01-12T19:30:00 | CJ16: 2024-01-13T19:00:00 | CK16: Journée 15 | CS16: -76.77548044 | CT16: -75.79631377 | CV16: =IF('J15'!$GL$3="","",SMALL('J15'!$GL$3:$GL$9,1)) -> 2024-01-12T19:30:00 | CW16: =IF('J15'!$GL$3="","",LARGE('J15'!$GL$3:$GL$9,1)) -> 2024-01-13T19:00:00 | CX16: Journée 15 | DF16: Journée 15 | DI16: Journée 15 | DK16: J15 | DL16: du | DM16: =IF('J15'!$GL$3="","",IF(COUNTA('J15'!$GL$3:$GL$9)<7,"",MIN('J15'!$GL$3:$GL$9))) -> 2024-01-12T19:30:00 | DN16: au | DO16: =IF('J15'!$GL$3="","",IF(COUNTA('J15'!$GL$3:$GL$9)<7,"",MAX('J15'!$GL$3:$GL$9))) -> 2024-01-13T19:00:00
AY17: J16 | AZ17: =IF('J16'!$GL$3=0,"",IF('J16'!$GL$3="","",'J16'!$GL$3)) -> 2024-01-19T19:30:00 | BB17: J16 | BC17: =IF('J16'!$GL$9=0,"",IF('J16'!$GL$9="","",'J16'!$GL$9)) -> 2024-01-20T18:30:00 | BE17: J16 | BF17: =IF('J16'!$GN$3=0,"",IF('J16'!$GN$3="","",'J16'!$GN$3)) ->  | BH17: J16 | BI17: =IF('J16'!$GO$3=0,"",IF('J16'!$GO$3="","",'J16'!$GO$3)) ->  | BK17: 4 | BM17: 0 | CI17: 2024-01-19T19:30:00 | CJ17: 2024-01-20T18:30:00 | CK17: Journée 16 | CS17: -69.77548044 | CT17: -68.81714711 | CV17: =IF('J16'!$GL$3="","",SMALL('J16'!$GL$3:$GL$9,1)) -> 2024-01-19T19:30:00 | CW17: =IF('J16'!$GL$3="","",LARGE('J16'!$GL$3:$GL$9,1)) -> 2024-01-20T18:30:00 | CX17: Journée 16 | DF17: Journée 16 | DI17: Journée 16 | DK17: J16 | DL17: du | DM17: =IF('J16'!$GL$3="","",IF(COUNTA('J16'!$GL$3:$GL$9)<7,"",MIN('J16'!$GL$3:$GL$9))) -> 2024-01-19T19:30:00 | DN17: au | DO17: =IF('J16'!$GL$3="","",IF(COUNTA('J16'!$GL$3:$GL$9)<7,"",MAX('J16'!$GL$3:$GL$9))) -> 2024-01-20T18:30:00
A18: =IF(Equipes!$M$16="","",Equipes!$M$16) -> Championnat de France de Rugby à 15 - Nationale | N18: =IF(Equipes!$M$20="","",Equipes!$M$20) -> Date du début du Championnat : vendredi 25 août 2023 | AY18: J17 | AZ18: =IF('J17'!$GL$3=0,"",IF('J17'!$GL$3="","",'J17'!$GL$3)) -> 2024-01-26T19:30:00 | BB18: J17 | BC18: =IF('J17'!$GL$9=0,"",IF('J17'!$GL$9="","",'J17'!$GL$9)) -> 2024-01-27T19:30:00 | BE18: J17 | BF18: =IF('J17'!$GN$3=0,"",IF('J17'!$GN$3="","",'J17'!$GN$3)) ->  | BH18: J17 | BI18: =IF('J17'!$GO$3=0,"",IF('J17'!$GO$3="","",'J17'!$GO$3)) ->  | BK18: 4 | BM18: 0 | CI18: 2024-01-26T19:30:00 | CJ18: 2024-01-27T19:30:00 | CK18: Journée 17 | CS18: -62.77548044 | CT18: -61.77548044 | CV18: =IF('J17'!$GL$3="","",SMALL('J17'!$GL$3:$GL$9,1)) -> 2024-01-26T19:30:00 | CW18: =IF('J17'!$GL$3="","",LARGE('J17'!$GL$3:$GL$9,1)) -> 2024-01-27T19:30:00 | CX18: Journée 17 | DF18: Journée 17 | DI18: Journée 17 | DK18: J17 | DL18: du | DM18: =IF('J17'!$GL$3="","",IF(COUNTA('J17'!$GL$3:$GL$9)<7,"",MIN('J17'!$GL$3:$GL$9))) -> 2024-01-26T19:30:00 | DN18: au | DO18: =IF('J17'!$GL$3="","",IF(COUNTA('J17'!$GL$3:$GL$9)<7,"",MAX('J17'!$GL$3:$GL$9))) -> 2024-01-27T19:30:00
AY19: J18 | AZ19: =IF('J18'!$GL$3=0,"",IF('J18'!$GL$3="","",'J18'!$GL$3)) -> 2024-02-09T19:30:00 | BB19: J18 | BC19: =IF('J18'!$GL$9=0,"",IF('J18'!$GL$9="","",'J18'!$GL$9)) -> 2024-02-10T19:30:00 | BE19: J18 | BF19: =IF('J18'!$GN$3=0,"",IF('J18'!$GN$3="","",'J18'!$GN$3)) ->  | BH19: J18 | BI19: =IF('J18'!$GO$3=0,"",IF('J18'!$GO$3="","",'J18'!$GO$3)) ->  | BK19: 4 | BM19: 0 | CI19: 2024-02-09T19:30:00 | CJ19: 2024-02-10T19:30:00 | CK19: Journée 18 | CS19: -48.77548044 | CT19: -47.77548044 | CV19: =IF('J18'!$GL$3="","",SMALL('J18'!$GL$3:$GL$9,1)) -> 2024-02-09T19:30:00 | CW19: =IF('J18'!$GL$3="","",LARGE('J18'!$GL$3:$GL$9,1)) -> 2024-02-10T19:30:00 | CX19: Journée 18 | DF19: Journée 18 | DI19: Journée 18 | DK19: J18 | DL19: du | DM19: =IF('J18'!$GL$3="","",IF(COUNTA('J18'!$GL$3:$GL$9)<7,"",MIN('J18'!$GL$3:$GL$9))) -> 2024-02-09T19:30:00 | DN19: au | DO19: =IF('J18'!$GL$3="","",IF(COUNTA('J18'!$GL$3:$GL$9)<7,"",MAX('J18'!$GL$3:$GL$9))) -> 2024-02-10T19:30:00
A20: =IF(Equipes!$O$18="","",Equipes!$O$18) -> Saison du Championnat : 2023 - 2024 | N20: =IF(Equipes!$M$22="","",Equipes!$M$22) -> Date de la fin du Championnat : samedi 27 avril 2024 | AY20: J19 | AZ20: =IF('J19'!$GL$3=0,"",IF('J19'!$GL$3="","",'J19'!$GL$3)) -> 2024-02-16T19:00:00 | BB20: J19 | BC20: =IF('J19'!$GL$9=0,"",IF('J19'!$GL$9="","",'J19'!$GL$9)) -> 2024-02-17T19:00:00 | BE20: J19 | BF20: =IF('J19'!$GN$3=0,"",IF('J19'!$GN$3="","",'J19'!$GN$3)) ->  | BH20: J19 | BI20: =IF('J19'!$GO$3=0,"",IF('J19'!$GO$3="","",'J19'!$GO$3)) ->  | BK20: 4 | BM20: 0 | CI20: 2024-02-16T19:00:00 | CJ20: 2024-02-17T19:00:00 | CK20: Journée 19 | CS20: -41.79631377 | CT20: -40.79631377 | CV20: =IF('J19'!$GL$3="","",SMALL('J19'!$GL$3:$GL$9,1)) -> 2024-02-16T19:00:00 | CW20: =IF('J19'!$GL$3="","",LARGE('J19'!$GL$3:$GL$9,1)) -> 2024-02-17T19:00:00 | CX20: Journée 19 | DF20: Journée 19 | DI20: Journée 19 | DK20: J19 | DL20: du | DM20: =IF('J19'!$GL$3="","",IF(COUNTA('J19'!$GL$3:$GL$9)<7,"",MIN('J19'!$GL$3:$GL$9))) -> 2024-02-16T19:00:00 | DN20: au | DO20: =IF('J19'!$GL$3="","",IF(COUNTA('J19'!$GL$3:$GL$9)<7,"",MAX('J19'!$GL$3:$GL$9))) -> 2024-02-17T19:00:00
AY21: J20 | AZ21: =IF('J20'!$GL$3=0,"",IF('J20'!$GL$3="","",'J20'!$GL$3)) -> 2024-02-23T19:30:00 | BB21: J20 | BC21: =IF('J20'!$GL$9=0,"",IF('J20'!$GL$9="","",'J20'!$GL$9)) -> 2024-02-24T19:30:00 | BE21: J20 | BF21: =IF('J20'!$GN$3=0,"",IF('J20'!$GN$3="","",'J20'!$GN$3)) ->  | BH21: J20 | BI21: =IF('J20'!$GO$3=0,"",IF('J20'!$GO$3="","",'J20'!$GO$3)) ->  | BK21: 4 | BM21: 0 | CI21: 2024-02-23T19:30:00 | CJ21: 2024-02-24T19:30:00 | CK21: Journée 20 | CS21: -34.77548044 | CT21: -33.77548044 | CV21: =IF('J20'!$GL$3="","",SMALL('J20'!$GL$3:$GL$9,1)) -> 2024-02-23T19:30:00 | CW21: =IF('J20'!$GL$3="","",LARGE('J20'!$GL$3:$GL$9,1)) -> 2024-02-24T19:30:00 | CX21: Journée 20 | DF21: Journée 20 | DI21: Journée 20 | DK21: J20 | DL21: du | DM21: =IF('J20'!$GL$3="","",IF(COUNTA('J20'!$GL$3:$GL$9)<7,"",MIN('J20'!$GL$3:$GL$9))) -> 2024-02-23T19:30:00 | DN21: au | DO21: =IF('J20'!$GL$3="","",IF(COUNTA('J20'!$GL$3:$GL$9)<7,"",MAX('J20'!$GL$3:$GL$9))) -> 2024-02-24T19:30:00
AY22: J21 | AZ22: =IF('J21'!$GL$3=0,"",IF('J21'!$GL$3="","",'J21'!$GL$3)) -> 2024-03-01T19:30:00 | BB22: J21 | BC22: =IF('J21'!$GL$9=0,"",IF('J21'!$GL$9="","",'J21'!$GL$9)) -> 2024-03-02T19:00:00 | BE22: J21 | BF22: =IF('J21'!$GN$3=0,"",IF('J21'!$GN$3="","",'J21'!$GN$3)) ->  | BH22: J21 | BI22: =IF('J21'!$GO$3=0,"",IF('J21'!$GO$3="","",'J21'!$GO$3)) ->  | BK22: 3 | BM22: 1 | CI22: 2024-03-01T19:30:00 | CJ22: 2024-03-02T19:00:00 | CK22: Journée 21 | CS22: -27.77548044 | CT22: 15.03701956 | CV22: =IF('J21'!$GL$3="","",SMALL('J21'!$GL$3:$GL$9,1)) -> 2024-03-01T19:30:00 | CW22: =IF('J21'!$GL$3="","",LARGE('J21'!$GL$3:$GL$9,1)) -> 2024-04-13T15:00:00 | CX22: Journée 21 | DF22: Journée 21 | DI22: Journée 21 | DK22: J21 | DL22: du | DM22: =IF('J21'!$GL$3="","",IF(COUNTA('J21'!$GL$3:$GL$9)<7,"",MIN('J21'!$GL$3:$GL$9))) -> 2024-03-01T19:30:00 | DN22: au | DO22: =IF('J21'!$GL$3="","",IF(COUNTA('J21'!$GL$3:$GL$9)<7,"",MAX('J21'!$GL$3:$GL$9))) -> 2024-04-13T15:00:00
AY23: J22 | AZ23: =IF('J22'!$GL$3=0,"",IF('J22'!$GL$3="","",'J22'!$GL$3)) -> 2024-03-08T19:00:00 | BB23: J22 | BC23: =IF('J22'!$GL$9=0,"",IF('J22'!$GL$9="","",'J22'!$GL$9)) -> 2024-03-09T19:00:00 | BE23: J22 | BF23: =IF('J22'!$GN$3=0,"",IF('J01'!$GN$3="","",'J22'!$GN$3)) ->  | BH23: J22 | BI23: =IF('J22'!$GO$3=0,"",IF('J22'!$GO$3="","",'J22'!$GO$3)) ->  | BK23: 4 | BM23: 0 | CI23: 2024-03-08T19:00:00 | CJ23: 2024-03-09T19:00:00 | CK23: Journée 22 | CS23: -20.79631377 | CT23: -19.77548044 | CV23: =IF('J22'!$GL$3="","",SMALL('J22'!$GL$3:$GL$9,1)) -> 2024-03-08T19:00:00 | CW23: =IF('J22'!$GL$3="","",LARGE('J22'!$GL$3:$GL$9,1)) -> 2024-03-09T19:30:00 | CX23: Journée 22 | DF23: Journée 22 | DI23: Journée 22 | DK23: J22 | DL23: du | DM23: =IF('J22'!$GL$3="","",IF(COUNTA('J22'!$GL$3:$GL$9)<7,"",MIN('J22'!$GL$3:$GL$9))) -> 2024-03-08T19:00:00 | DN23: au | DO23: =IF('J22'!$GL$3="","",IF(COUNTA('J22'!$GL$3:$GL$9)<7,"",MAX('J22'!$GL$3:$GL$9))) -> 2024-03-09T19:30:00
AY24: J23 | AZ24: =IF('J23'!$GL$3=0,"",IF('J23'!$GL$3="","",'J23'!$GL$3)) -> 2024-03-22T19:30:00 | BB24: J23 | BC24: =IF('J23'!$GL$9=0,"",IF('J23'!$GL$9="","",'J23'!$GL$9)) -> 2024-03-23T19:30:00 | BE24: J23 | BF24: =IF('J23'!$GN$3=0,"",IF('J23'!$GN$3="","",'J23'!$GN$3)) ->  | BH24: J23 | BI24: =IF('J23'!$GO$3=0,"",IF('J23'!$GO$3="","",'J23'!$GO$3)) ->  | BK24: 4 | BM24: 0 | CI24: 2024-03-22T19:30:00 | CJ24: 2024-03-23T19:30:00 | CK24: Journée 23 | CS24: -6.77548044 | CT24: -5.77548044 | CV24: =IF('J23'!$GL$3="","",SMALL('J23'!$GL$3:$GL$9,1)) -> 2024-03-22T19:30:00 | CW24: =IF('J23'!$GL$3="","",LARGE('J23'!$GL$3:$GL$9,1)) -> 2024-03-23T19:30:00 | CX24: Journée 23 | DF24: Journée 23 | DI24: Journée 23 | DK24: J23 | DL24: du | DM24: =IF('J23'!$GL$3="","",IF(COUNTA('J23'!$GL$3:$GL$9)<7,"",MIN('J23'!$GL$3:$GL$9))) -> 2024-03-22T19:30:00 | DN24: au | DO24: =IF('J23'!$GL$3="","",IF(COUNTA('J23'!$GL$3:$GL$9)<7,"",MAX('J23'!$GL$3:$GL$9))) -> 2024-03-23T19:30:00
AY25: J24 | AZ25: =IF('J24'!$GL$3=0,"",IF('J24'!$GL$3="","",'J24'!$GL$3)) -> 2024-03-29T19:00:00 | BB25: J24 | BC25: =IF('J24'!$GL$9=0,"",IF('J24'!$GL$9="","",'J24'!$GL$9)) -> 2024-03-30T19:00:00 | BE25: J24 | BF25: =IF('J24'!$GN$3=0,"",IF('J24'!$GN$3="","",'J24'!$GN$3)) -> 2024-03-29T19:00:00 | BH25: J24 | BI25: =IF('J24'!$GO$3=0,"",IF('J24'!$GO$3="","",'J24'!$GO$3)) -> 2024-03-30T19:00:00 | BK25: 3 | BM25: 6 | CI25: 2024-03-29T19:00:00 | CJ25: 2024-03-30T19:00:00 | CK25: Journée 24 | CS25: 0.2036862269 | CT25: 1.203686227 | CV25: =IF('J24'!$GL$3="","",SMALL('J24'!$GL$3:$GL$9,1)) -> 2024-03-29T19:00:00 | CW25: =IF('J24'!$GL$3="","",LARGE('J24'!$GL$3:$GL$9,1)) -> 2024-03-30T19:00:00 | CX25: Journée 24 | DE25: 2024-03-29T19:00:00 | DF25: Journée 24 | DH25: 2024-03-30T19:00:00 | DI25: Journée 24 | DK25: J24 | DL25: du | DM25: =IF('J24'!$GL$3="","",IF(COUNTA('J24'!$GL$3:$GL$9)<7,"",MIN('J24'!$GL$3:$GL$9))) -> 2024-03-29T19:00:00 | DN25: au | DO25: =IF('J24'!$GL$3="","",IF(COUNTA('J24'!$GL$3:$GL$9)<7,"",MAX('J24'!$GL$3:$GL$9))) -> 2024-03-30T19:00:00
AY26: J25 | AZ26: =IF('J25'!$GL$3=0,"",IF('J25'!$GL$3="","",'J25'!$GL$3)) -> 2024-04-05T19:30:00 | BB26: J25 | BC26: =IF('J25'!$GL$9=0,"",IF('J25'!$GL$9="","",'J25'!$GL$9)) -> 2024-04-06T19:30:00 | BE26: J25 | BF26: =IF('J25'!$GN$3=0,"",IF('J25'!$GN$3="","",'J25'!$GN$3)) -> 2024-04-05T19:30:00 | BH26: J25 | BI26: =IF('J25'!$GO$3=0,"",IF('J25'!$GO$3="","",'J25'!$GO$3)) -> 2024-04-06T19:30:00 | BK26: 3 | BM26: 6 | CI26: 2024-04-05T19:30:00 | CJ26: 2024-04-06T19:30:00 | CK26: Journée 25 | CS26: 7.22451956 | CT26: 8.22451956 | CV26: =IF('J25'!$GL$3="","",SMALL('J25'!$GL$3:$GL$9,1)) -> 2024-04-05T19:30:00 | CW26: =IF('J25'!$GL$3="","",LARGE('J25'!$GL$3:$GL$9,1)) -> 2024-04-06T19:30:00 | CX26: Journée 25 | DE26: 2024-04-05T19:30:00 | DF26: Journée 25 | DH26: 2024-04-06T19:30:00 | DI26: Journée 25 | DK26: J25 | DL26: du | DM26: =IF('J25'!$GL$3="","",IF(COUNTA('J25'!$GL$3:$GL$9)<7,"",MIN('J25'!$GL$3:$GL$9))) -> 2024-04-05T19:30:00 | DN26: au | DO26: =IF('J25'!$GL$3="","",IF(COUNTA('J25'!$GL$3:$GL$9)<7,"",MAX('J25'!$GL$3:$GL$9))) -> 2024-04-06T19:30:00
AY27: J26 | AZ27: =IF('J26'!$GL$3=0,"",IF('J26'!$GL$3="","",'J26'!$GL$3)) -> 2024-04-27T19:00:00 | BB27: J26 | BC27: =IF('J26'!$GL$9=0,"",IF('J26'!$GL$9="","",'J26'!$GL$9)) -> 2024-04-27T19:00:00 | BE27: J26 | BF27: =IF('J26'!$GN$3=0,"",IF('J26'!$GN$3="","",'J26'!$GN$3)) -> 2024-04-27T19:00:00 | BH27: J26 | BI27: =IF('J26'!$GO$3=0,"",IF('J26'!$GO$3="","",'J26'!$GO$3)) -> 2024-04-27T19:00:00 | BK27: 3 | BM27: 6 | CI27: 2024-04-27T19:00:00 | CJ27: 2024-04-27T19:00:00 | CK27: Journée 26 | CS27: 29.20368623 | CT27: 29.20368623 | CV27: =IF('J26'!$GL$3="","",SMALL('J26'!$GL$3:$GL$9,1)) -> 2024-04-27T19:00:00 | CW27: =IF('J26'!$GL$3="","",LARGE('J26'!$GL$3:$GL$9,1)) -> 2024-04-27T19:00:00 | CX27: Journée 26 | DE27: 2024-04-27T19:00:00 | DF27: Journée 26 | DH27: 2024-04-27T19:00:00 | DI27: Journée 26 | DK27: J26 | DL27: du | DM27: =IF('J26'!$GL$3="","",IF(COUNTA('J26'!$GL$3:$GL$9)<7,"",MIN('J26'!$GL$3:$GL$9))) -> 2024-04-27T19:00:00 | DN27: au | DO27: =IF('J26'!$GL$3="","",IF(COUNTA('J26'!$GL$3:$GL$9)<7,"",MAX('J26'!$GL$3:$GL$9))) -> 2024-04-27T19:00:00
BM33: =SUM(BM2:BM31) -> 20

Sheet J01
A1: =IF(Accueil!$H$2="","",IF(Accueil!$H$2="Choix du Championnat de Rugby","",IF(Accueil!$B$2="","",IF(Accueil!$D$2="","",IF(Accueil!$D$2="Choix de la saison","",_xlfn.CONCAT(Accueil!$H$2," / ",Accueil!$B$2," ",Accueil!$D$2)))))) -> Championnat de France de Rugby à 15 - Nationale / Saison du Championnat : 2023 - 2024 | S1: 1 | U1: CLASSEMENT TOUS BONUS | AO1: CLASSEMENT B.O+B.D. | BH1: CLASSEMENT STRICT | BX1: =U1 -> CLASSEMENT TOUS BONUS | BZ1: =AO1 -> CLASSEMENT B.O+B.D. | CB1: =BH1 -> CLASSEMENT STRICT | CD1: =U1 -> CLASSEMENT TOUS BONUS | CY1: =AO1 -> CLASSEMENT B.O+B.D. | DS1: =BH1 -> CLASSEMENT STRICT | EJ1: =U1 -> CLASSEMENT TOUS BONUS | EL1: =AO1 -> CLASSEMENT B.O+B.D. | EN1: =BH1 -> CLASSEMENT STRICT | EP1: Dom. | EQ1: Ext. | ER1: Dom. | ES1: Ext. | ET1: Dom. | EU1: Ext. | EV1: Dom. | EW1: Ext. | EX1: Dom. | EY1: Ext. | EZ1: Dom. | FA1: Ext. | FB1: Dom. | FC1: Ext. | FD1: Dom. | FE1: Ext. | FF1: Dom. | FG1: Ext. | FH1: Dom. | FI1: Ext. | FJ1: Dom. | FK1: Ext. | FL1: Dom. | FM1: Ext. | FN1: Dom. | FO1: Ext. | FP1: Dom. | FQ1: Ext. | FR1: Dom. | FS1: Ext. | FT1: Dom. | FU1: Ext. | FV1: Dom. | FW1: Ext. | FX1: =U1 -> CLASSEMENT TOUS BONUS | GB1: =AO1 -> CLASSEMENT B.O+B.D. | GF1: =BH1 -> CLASSEMENT STRICT
A2: Points de pénalités | B2: Points de bonus | C2: Equipes exclues, forfaits, matchs gagnés ou perdus sur tapis vert | D2: Equipes | E2: Points | F2: Bonus défensif Bd | G2: Essais | H2: Bonus offensif Bo | I2: Points | J2: Bonus défensif Bd | K2: Essais | L2: Bonus offensif Bo | M2: Equipes | N2: Equipes exclues, forfaits, matchs gagnés ou perdus sur tapis vert | O2: Points de bonus | P2: Points de pénalités | Q2: Dates | R2: Horaires | S2: Matchs à rejouer, annulés, arrêtés, avec réserves, reportés ou reprogrammés | U2: Place | V2: Equipes | W2: Logo | X2: Points | Y2: Evolution | AA2: Joués | AB2: Gagnés | AC2: Nuls | AD2: Perdus | AE2: Points marqués | AF2: Points encaissés | AG2: +/- | AH2: Tous les bonus | AI2: Bonus offensif | AJ2: Bonus défensif | AK2: Bonus fédération | AL2: Essais marqués | AM2: Essais encaissés | AN2: +/- | AO2: Place | AP2: Equipes | AQ2: Logo | AR2: Points | AS2: Evolution | AU2: Joués | AV2: Gagnés | AW2: Nuls | AX2: Perdus | AY2: Points marqués | AZ2: Points encaissés | BA2: +/- | BB2: B.O+B.D | BC2: Bonus offensif | BD2: Bonus défensif | BE2: Essais marqués | BF2: Essais encaissés | BG2: +/- | BH2: Place | BI2: Equipes | BJ2: Logo | BK2: Points | BL2: Evolution | BN2: Joués | BO2: Gagnés | BP2: Nuls | BQ2: Perdus | BR2: Points marqués | BS2: Points encaissés | BT2: +/- | BU2: Essais marqués | BV2: Essais encaissés | BW2: +/- | BX2: Rang | BY2: Place | BZ2: Rang | CA2: Place | CB2: Rang | CC2: Place | CD2: Equipes | CE2: Logo | CF2: Rang | CG2: Evolution | CI2: Place | CJ2: Points | CK2: Joués | CL2: Gagnés | CM2: Nuls | CN2: Perdus | CO2: Points marqués | CP2: Points encaissés | CQ2: +/- | CR2: Tous les bonus | CS2: Bonus offensif | CT2: Bonus défensif | CU2: Bonus fédération | CV2: Essais marqués | CW2: Essais encaissés | CX2: +/- | CY2: Equipes | CZ2: Logo | DA2: Rang | DB2: Evolution | DD2: Place | DE2: Points | DF2: Joués | DG2: Gagnés | DH2: Nuls | DI2: Perdus | DJ2: Points marqués | DK2: Points encaissés | DL2: +/- | DM2: B.O + B.O. | DN2: Bonus offensif | DO2: Bonus défensif | DP2: Essais marqués | DQ2: Essais encaissés | DR2: +/- | DS2: Equipes | DT2: Logo | DU2: Rang | DV2: Evolution | DX2: Place | DY2: Points | DZ2: Joués | EA2: Gagnés | EB2: Nuls | EC2: Perdus | ED2: Points marqués | EE2: Points encaissés | EF2: +/- | EG2: Essais marqués | EH2: Essais encaissés | EI2: +/- | EJ2: Rang | EK2: Place | EL2: Rang | EM2: Place | EN2: Rang | EO2: Place | EP2: Points de pénalités | EQ2: Points de pénalités | ER2: Points de bonus | ES2: Points de bonus | ET2: Pts | EU2: Pts | EV2: Bo | EW2: Bo | EX2: Bd | EY2: Bd | EZ2: T Pts | FA2: T Pts | FB2: T Pts | FC2: TPts | FD2: J annulé | FE2: J annulé | FF2: J | FG2: J | FH2: Total J | FI2: Total J | FJ2: G | FK2: G | FL2: N | FM2: N | FN2: P | FO2: P | FP2: Pts + | FQ2: Pts + | FR2: Pts - | FS2: Pts - | FT2: Essais + | FU2: Essais + | FV2: Essais - | FW2: Essais - | FX2: Equipes | FY2: Rang | FZ2: Place | GA2: Equipes | GB2: Equipes | GC2: Rang | GD2: Place | GE2: Equipes | GF2: Equipes | GG2: Rang | GH2: Place | GI2: Equipes | GK2: ok | GL2: Dates et horaires des matchs prévus | GM2: Dates et horaires des matchs restant à jouer | GN2: Date et horaire minimum à jouer | GO2: Date et horaire maximum à jouer | GQ2: Total J | GR2: Total J
A3: 2 | C3: Forfait général | D3: Blagnac | E3: 0 | F3: =IF(E3="","",IF(I3="","",IF(E3>I3,"",IF(E3=I3,"",IF(E3<I3,IF(SUM(I3-E3)<=7,"Bd","")))))) ->  | H3: =IF(G3="","",IF(K3="","",IF(SUM(G3-K3)>=3,"Bo",""))) ->  | I3: 25 | J3: =IF(I3="","",IF(E3="","",IF(I3>E3,"",IF(I3=E3,"",IF(I3<E3,IF(SUM(E3-I3)<=7,"Bd","")))))) ->  | L3: =IF(K3="","",IF(G3="","",IF(SUM(K3-G3)>=3,"Bo",""))) ->  | M3: Vienne | N3: Forfait gagnant | O3: 1 | Q3: 2023-08-26 | R3: 15:30:00 | U3: 1 | V3: =IFERROR(_xlfn.XLOOKUP(BX3,$BY$3:$BY$18,$CD$3:$CD$18),"") -> Vienne | X3: =IFERROR(_xlfn.XLOOKUP(V3,$CD$3:$CD$18,$CJ$3:$CJ$18),"") -> 5 | Y3: =IFERROR(_xlfn.XLOOKUP(V3,$CD$3:$CD$18,$CG$3:$CG$18),"") -> 0 | Z3: =IFERROR(_xlfn.XLOOKUP(V3,$CD$3:$CD$18,$CH$3:$CH$18),"") -> u | AA3: =IFERROR(_xlfn.XLOOKUP(V3,$CD$3:$CD$18,$CK$3:$CK$18),"") -> 1 | AB3: =IFERROR(_xlfn.XLOOKUP(V3,$CD$3:$CD$18,$CL$3:$CL$18),"") -> 1 | AC3: =IFERROR(_xlfn.XLOOKUP(V3,$CD$3:$CD$18,$CM$3:$CM$18),"") -> 0 | AD3: =IFERROR(_xlfn.XLOOKUP(V3,$CD$3:$CD$18,$CN$3:$CN$18),"") -> 0 | AE3: =IFERROR(_xlfn.XLOOKUP(V3,$CD$3:$CD$18,$CO$3:$CO$18),"") -> 25 | AF3: =IFERROR(_xlfn.XLOOKUP(V3,$CD$3:$CD$18,$CP$3:$CP$18),"") -> 0 | AG3: =IFERROR(_xlfn.XLOOKUP(V3,$CD$3:$CD$18,$CQ$3:$CQ$18),"") -> 25 | AH3: =IFERROR(_xlfn.XLOOKUP(V3,$CD$3:$CD$18,$CR$3:$CR$18),"") -> 0 | AI3: =IFERROR(_xlfn.XLOOKUP(V3,$CD$3:$CD$18,$CS$3:$CS$18),"") -> 0 | AJ3: =IFERROR(_xlfn.XLOOKUP(V3,$CD$3:$CD$18,$CT$3:$CT$18),"") -> 0 | AK3: =IFERROR(_xlfn.XLOOKUP(V3,$CD$3:$CD$18,$CU$3:$CU$18),"") -> 0 | AL3: =IFERROR(_xlfn.XLOOKUP(V3,$CD$3:$CD$18,$CV$3:$CV$18),"") -> 0 | AM3: =IFERROR(_xlfn.XLOOKUP(V3,$CD$3:$CD$18,$CW$3:$CW$18),"") -> 0 | AN3: =IFERROR(_xlfn.XLOOKUP(V3,$CD$3:$CD$18,$CX$3:$CX$18),"") -> 0 | AO3: 1 | AP3: =IFERROR(_xlfn.XLOOKUP(BZ3,$CA$3:$CA$18,$CY$3:$CY$18),"") -> Vienne | AR3: =IFERROR(_xlfn.XLOOKUP(AP3,$CY$3:$CY$18,$DE$3:$DE$18),"") -> 5 | AS3: =IFERROR(_xlfn.XLOOKUP(AP3,$CY$3:$CY$18,$DB$3:$DB$18),"") -> 0 | AT3: =IFERROR(_xlfn.XLOOKUP(AP3,$CY$3:$CY$18,$DC$3:$DC$18),"") -> u | AU3: =IFERROR(_xlfn.XLOOKUP(AP3,$CY$3:$CY$18,$DF$3:$DF$18),"") -> 1 | AV3: =IFERROR(_xlfn.XLOOKUP(AP3,$CY$3:$CY$18,$DG$3:$DG$18),"") -> 1 | AW3: =IFERROR(_xlfn.XLOOKUP(AP3,$CY$3:$CY$18,$DH$3:$DH$18),"") -> 0 | AX3: =IFERROR(_xlfn.XLOOKUP(AP3,$CY$3:$CY$18,$DI$3:$DI$18),"") -> 0 | AY3: =IFERROR(_xlfn.XLOOKUP(AP3,$CY$3:$CY$18,$DJ$3:$DJ$18),"") -> 25 | AZ3: =IFERROR(_xlfn.XLOOKUP(AP3,$CY$3:$CY$18,$DK$3:$DK$18),"") -> 0 | BA3: =IFERROR(_xlfn.XLOOKUP(AP3,$CY$3:$CY$18,$DL$3:$DL$18),"") -> 25 | BB3: =IFERROR(_xlfn.XLOOKUP(AP3,$CY$3:$CY$18,$DM$3:$DM$18),"") -> 0 | BC3: =IFERROR(_xlfn.XLOOKUP(AP3,$CY$3:$CY$18,$DN$3:$DN$18),"") -> 0 | BD3: =IFERROR(_xlfn.XLOOKUP(AP3,$CY$3:$CY$18,$DO$3:$DO$18),"") -> 0 | BE3: =IFERROR(_xlfn.XLOOKUP(AP3,$CY$3:$CY$18,$DP$3:$DP$18),"") -> 0 | BF3: =IFERROR(_xlfn.XLOOKUP(AP3,$CY$3:$CY$18,$DQ$3:$DQ$18),"") -> 0 | BG3: =IFERROR(_xlfn.XLOOKUP(AP3,$CY$3:$CY$18,$DR$3:$DR$18),"") -> 0 | BH3: 1 | BI3: =IFERROR(_xlfn.XLOOKUP(CB3,$CC$3:$CC$18,$DS$3:$DS$18),"") -> Vienne | BK3: =IFERROR(_xlfn.XLOOKUP(BI3,$DS$3:$DS$18,$DY$3:$DY$18),"") -> 4 | BL3: =IFERROR(_xlfn.XLOOKUP(BI3,$DS$3:$DS$18,$DV$3:$DV$18),"") -> 0 | BM3: =IFERROR(_xlfn.XLOOKUP(BI3,$DS$3:$DS$18,$DW$3:$DW$18),"") -> u | BN3: =IFERROR(_xlfn.XLOOKUP(BI3,$DS$3:$DS$18,$DZ$3:$DZ$18),"") -> 1 | BO3: =IFERROR(_xlfn.XLOOKUP(BI3,$DS$3:$DS$18,$EA$3:$EA$18),"") -> 1 | BP3: =IFERROR(_xlfn.XLOOKUP(BI3,$DS$3:$DS$18,$EB$3:$EB$18),"") -> 0 | BQ3: =IFERROR(_xlfn.XLOOKUP(BI3,$DS$3:$DS$18,$EC$3:$EC$18),"") -> 0 | BR3: =IFERROR(_xlfn.XLOOKUP(BI3,$DS$3:$DS$18,$ED$3:$ED$18),"") -> 25 | BS3: =IFERROR(_xlfn.XLOOKUP(BI3,$DS$3:$DS$18,$EE$3:$EE$18),"") -> 0 | BT3: =IFERROR(_xlfn.XLOOKUP(BI3,$DS$3:$DS$18,$EF$3:$EF$18),"") -> 25 | BU3: =IFERROR(_xlfn.XLOOKUP(BI3,$DS$3:$DS$18,$EG$3:$EG$18),"") -> 0 | BV3: =IFERROR(_xlfn.XLOOKUP(BI3,$DS$3:$DS$18,$EH$3:$EH$18),"") -> 0 | BW3: =IFERROR(_xlfn.XLOOKUP(BI3,$DS$3:$DS$18,$EI$3:$EI$18),"") -> 0 | BX3: 1 | BY3: =CF3 -> 11 | BZ3: 1 | CA3: =DA3 -> 11 | CB3: 1 | CC3: =DU3 -> 11 | CD3: =IF(Equipes!$C$2="","",Equipes!$C$2) -> Albi | CF3: =_xlfn.RANK.EQ(EJ3,$EJ$3:$EJ$18) -> 11 | CG3: =CF3-CF3 -> 0 | CH3: u | CI3: =_xlfn.RANK.EQ(EK3,$EK$3:$EK$18) -> 11 | CJ3: =SUMPRODUCT(($D$3:$D$10=CD3)*($FB$3:$FB$10))+SUMPRODUCT(($M$3:$M$10=CD3)*($FC$3:$FC$10))+CU3 -> 0 | CK3: =SUMPRODUCT(($D$3:$D$10=CD3)*($FF$3:$FF$10))+SUMPRODUCT(($M$3:$M$10=CD3)*($FG$3:$FG$10)) -> 1 | CL3: =SUMPRODUCT(($D$3:$D$10=CD3)*($FJ$3:$FJ$10))+SUMPRODUCT(($M$3:$M$10=CD3)*($FK$3:$FK$10)) -> 0 | CM3: =SUMPRODUCT(($D$3:$D$10=CD3)*($FL$3:$FL$10))+SUMPRODUCT(($M$3:$M$10=CD3)*($FM$3:$FM$10)) -> 0 | CN3: =SUMPRODUCT(($D$3:$D$10=CD3)*($FN$3:$FN$10))+SUMPRODUCT(($M$3:$M$10=CD3)*($FO$3:$FO$10)) -> 1 | CO3: =SUMPRODUCT(($D$3:$D$10=CD3)*($FP$3:$FP$10))+SUMPRODUCT(($M$3:$M$10=CD3)*($FQ$3:$FQ$10)) -> 6 | CP3: =SUMPRODUCT(($D$3:$D$10=CD3)*($FR$3:$FR$10))+SUMPRODUCT(($M$3:$M$10=CD3)*($FS$3:$FS$10)) -> 17 | CQ3: =CO3-CP3 -> -11 | CR3: =SUM(CS3:CU3) -> 0 | CS3: =SUMPRODUCT(($D$3:$D$10=CD3)*($EV$3:$EV$10))+SUMPRODUCT(($M$3:$M$10=CD3)*($EW$3:$EW$10)) -> 0 | CT3: =SUMPRODUCT(($D$3:$D$10=CD3)*($EX$3:$EX$10))+SUMPRODUCT(($M$3:$M$10=CD3)*($EY$3:$EY$10)) -> 0 | CU3: 0 | CV3: =SUMPRODUCT(($D$3:$D$10=CD3)*($FT$3:$FT$10))+SUMPRODUCT(($M$3:$M$10=CD3)*($FU$3:$FU$10)) -> 0 | CW3: =SUMPRODUCT(($D$3:$D$10=CD3)*($FV$3:$FV$10))+SUMPRODUCT(($M$3:$M$10=CD3)*($FW$3:$FW$10)) -> 1 | CX3: =CV3-CW3 -> -1 | CY3: =IF(Equipes!$C$2="","",Equipes!$C$2) -> Albi | DA3: =_xlfn.RANK.EQ(EL3,$EL$3:$EL$18) -> 11 | DB3: =DA3-DA3 -> 0 | DC3: u | DD3: =_xlfn.RANK.EQ(EM3,$EM$3:$EM$18) -> 11 | DE3: =SUMPRODUCT(($D$3:$D$10=CY3)*($FB$3:$FB$10))+SUMPRODUCT(($M$3:$M$10=CY3)*($FC$3:$FC$10)) -> 0 | DF3: =SUMPRODUCT(($D$3:$D$10=CY3)*($FF$3:$FF$10))+SUMPRODUCT(($M$3:$M$10=CY3)*($FG$3:$FG$10)) -> 1 | DG3: =SUMPRODUCT(($D$3:$D$10=CY3)*($FJ$3:$FJ$10))+SUMPRODUCT(($M$3:$M$10=CY3)*($FK$3:$FK$10)) -> 0 | DH3: =SUMPRODUCT(($D$3:$D$10=CY3)*($FL$3:$FL$10))+SUMPRODUCT(($M$3:$M$10=CY3)*($FM$3:$FM$10)) -> 0 | DI3: =SUMPRODUCT(($D$3:$D$10=CY3)*($FN$3:$FN$10))+SUMPRODUCT(($M$3:$M$10=CY3)*($FO$3:$FO$10)) -> 1 | DJ3: =SUMPRODUCT(($D$3:$D$10=CY3)*($FP$3:$FP$10))+SUMPRODUCT(($M$3:$M$10=CY3)*($FQ$3:$FQ$10)) -> 6 | DK3: =SUMPRODUCT(($D$3:$D$10=CY3)*($FR$3:$FR$10))+SUMPRODUCT(($M$3:$M$10=CY3)*($FS$3:$FS$10)) -> 17 | DL3: =DJ3-DK3 -> -11 | DM3: =SUM(DN3:DO3) -> 0 | DN3: =SUMPRODUCT(($D$3:$D$10=CY3)*($EV$3:$EV$10))+SUMPRODUCT(($M$3:$M$10=CY3)*($EW$3:$EW$10)) -> 0 | DO3: =SUMPRODUCT(($D$3:$D$10=CY3)*($EX$3:$EX$10))+SUMPRODUCT(($M$3:$M$10=CY3)*($EY$3:$EY$10)) -> 0 | DP3: =SUMPRODUCT(($D$3:$D$10=CY3)*($FT$3:$FT$10))+SUMPRODUCT(($M$3:$M$10=CY3)*($FU$3:$FU$10)) -> 0 | DQ3: =SUMPRODUCT(($D$3:$D$10=CY3)*($FV$3:$FV$10))+SUMPRODUCT(($M$3:$M$10=CY3)*($FW$3:$FW$10)) -> 1 | DR3: =DP3-DQ3 -> -1 | DS3: =IF(Equipes!$C$2="","",Equipes!$C$2) -> Albi | DU3: =_xlfn.RANK.EQ(EN3,$EN$3:$EN$18) -> 11 | DV3: =DU3-DU3 -> 0 | DW3: u | DX3: =_xlfn.RANK.EQ(EO3,$EO$3:$EO$18) -> 11 | DY3: =SUMPRODUCT(($D$3:$D$10=DS3)*($ET$3:$ET$10))+SUMPRODUCT(($M$3:$M$10=DS3)*($EU$3:$EU$10)) -> 0 | DZ3: =SUMPRODUCT(($D3:$D$10=DS3)*($FF$3:$FF$10))+SUMPRODUCT(($M$3:$M$10=DS3)*($FG$3:$FG$10)) -> 1 | EA3: =SUMPRODUCT(($D$3:$D$10=DS3)*($FJ$3:$FJ$10))+SUMPRODUCT(($M$3:$M$10=DS3)*($FK$3:$FK$10)) -> 0 | EB3: =SUMPRODUCT(($D$3:$D$10=DS3)*($FL$3:$FL$10))+SUMPRODUCT(($M$3:$M$10=DS3)*($FM$3:$FM$10)) -> 0 | EC3: =SUMPRODUCT(($D$3:$D$10=DS3)*($FN$3:$FN$10))+SUMPRODUCT(($M$3:$M$10=DS3)*($FO$3:$FO$10)) -> 1 | ED3: =SUMPRODUCT(($D$3:$D$10=DS3)*($FP$3:$FP$10))+SUMPRODUCT(($M$3:$M$10=DS3)*($FQ$3:$FQ$10)) -> 6 | EE3: =SUMPRODUCT(($D$3:$D$10=DS3)*($FR$3:$FR$10))+SUMPRODUCT(($M$3:$M$10=DS3)*($FS$3:$FS$10)) -> 17 | EF3: =ED3-EE3 -> -11 | EG3: =SUMPRODUCT(($D$3:$D$10=DS3)*($FT$3:$FT$10))+SUMPRODUCT(($M$3:$M$10=DS3)*($FU$3:$FU$10)) -> 0 | EH3: =SUMPRODUCT(($D$3:$D$10=DS3)*($FV$3:$FV$10))+SUMPRODUCT(($M$3:$M$10=DS3)*($FW$3:$FW$10)) -> 1 | EI3: =EG3-EH3 -> -1 | EJ3: =SUM(CJ3*1000)+(CQ3/100)+(CO3/10000) -> -0.1094 | EK3: =EJ3+0.00000014 -> -0.10939986 | EL3: =SUM(DE3*1000)+(DL3/100)+(DJ3/10000) -> -0.1094 | EM3: =EL3+0.00000014 -> -0.10939986 | EN3: =SUM(DY3*1000)+(EF3/100)+(ED3/10000) -> -0.1094 | EO3: =EN3+0.00000014 -> -0.10939986 | EP3: =A3 -> 2 | EQ3: =P3 -> 0 | ER3: =B3 -> 0 | ES3: =O3 -> 1 | ET3: =IF(E3="",0,IF(I3="",0,IF(E3>I3,0,IF(E3=I3,-2,IF(E3<I3,-4))))) -> -4 | EU3: =IF(I3="",0,IF(E3="",0,IF(I3>E3,4,IF(I3=E3,2,IF(I3<E3,0))))) -> 4 | EV3: =IF(G3<>"",IF(SUM(G3-K3)>=3,1)) -> FALSE | EW3: =IF(K3<>"",IF(SUM(K3-G3)>=3,1)) -> FALSE | EX3: =IF(E3<>"",IF(E3<I3,IF(SUM(I3-E3)<=7,1))) -> FALSE | EY3: =IF(I3<>"",IF(I3<E3,IF(SUM(E3-I3)<=7,1))) -> FALSE | EZ3: =SUM(ET3,EV3,EX3) -> -4 | FA3: =SUM(EU3,EW3,EY3) -> 4 | FB3: =EZ3-EP3+ER3 -> -6 | FC3: =FA3-EQ3+ES3 -> 5 | FD3: =IF(S3="Match annulé",1,"") ->  | FE3: =IF(S3="Match annulé",1,"") ->  | FF3: =IF(E3="",0,1) -> 1 | FG3: =IF(I3="",0,1) -> 1 | FH3: =IF(SUM(FD3,FF3)<>0,SUM(FD3,FF3),0) -> 1 | FI3: =IF(SUM(FE3,FG3)<>0,SUM(FE3,FG3),0) -> 1 | FJ3: =IF(E3<>"",IF(E3>I3,1)) -> FALSE | FK3: =IF(I3<>"",IF(I3>E3,1)) -> 1 | FL3: =IF(E3<>"",IF(E3=I3,1)) -> FALSE | FM3: =IF(I3<>"",IF(I3=E3,1)) -> FALSE | FN3: =IF(E3<>"",IF(E3<I3,1)) -> 1 | FO3: =IF(I3<>"",IF(I3<E3,1)) -> FALSE | FP3: =E3 -> 0 | FQ3: =I3 -> 25 | FR3: =I3 -> 25 | FS3: =E3 -> 0 | FT3: =G3 -> 0 | FU3: =K3 -> 0 | FV3: =K3 -> 0 | FW3: =G3 -> 0 | FX3: =IFERROR(_xlfn.XLOOKUP(BX3,$BY$3:$BY$18,$CD$3:$CD$18),"") -> Vienne | FY3: =IFERROR(_xlfn.XLOOKUP(FX3,$CD$3:$CD$18,$EJ$3:$EJ$18),"") -> 5000.2525 | FZ3: =IF(FY3="","",_xlfn.RANK.EQ(FY3,FY3:FY18)) -> 1 | GA3: =IF(CD3="","",CD3) -> Albi | GB3: =IFERROR(_xlfn.XLOOKUP(BZ3,$CA$3:$CA$18,$CY$3:$CY$18),"") -> Vienne | GC3: =IFERROR(_xlfn.XLOOKUP(GB3,$CY$3:$CY$18,$EL$3:$EL$18),"") -> 5000.2525 | GD3: =IF(GC3="","",_xlfn.RANK.EQ(GC3,GC3:GC18)) -> 1 | GE3: =IF(CY3="","",CY3) -> Albi | GF3: =IFERROR(_xlfn.XLOOKUP(CB3,$CC$3:$CC$18,$DS$3:$DS$18),"") -> Vienne | GG3: =IFERROR(_xlfn.XLOOKUP(GF3,$DS$3:$DS$18,$EN$3:$EN$18),"") -> 4000.2525 | GH3: =IF(GG3="","",_xlfn.RANK.EQ(GG3,GG3:GG18)) -> 1 | GI3: =IF(DS3="","",DS3) -> Albi | GK3: =IF(AND(I3="",S3=""),"",IF(AND(I3>=0,S3=""),"ok",IF(AND(I3="",S3="Match à rejouer"),"ok",IF(AND(I3="",S3="Match annulé"),"ok",IF(AND(I3="",S3="Match arrêté"),"ok",IF(AND(I3="",S3="Match avec réserves"),"ok",IF(AND(I3="",S3="Match reporté"),"ok",IF(AND(I3="",S3="Match reprogrammé"),"")))))))) -> ok | GL3: =IF(Q3="","",IF(R3="","",Q3+R3)) -> 2023-08-26T15:30:00 | GM3: =IF(Q3="","",IF(R3="","",IF(GK3="ok","",Q3+R3))) ->  | GN3: =MIN(GM3:GM9) -> 00:00:00 | GO3: =MAX(GM3:GM9) -> 00:00:00 | GQ3: =IF(SUM(FD3,FF3)<>0,SUM(FD3,FF3),"") -> 1 | GR3: =IF(SUM(FE3,FG3)<>0,SUM(FE3,FG3),"") -> 1
D4: Hyères | E4: 24 | G4: 2 | I4: 10 | K4: 1 | M4: Suresnes | Q4: 2023-08-26 | R4: 17:30:00 | U4: =IF(FY4=FY3,FZ3,FZ4) -> 2 | V4: =IFERROR(_xlfn.XLOOKUP(BX4,$BY$3:$BY$18,$CD$3:$CD$18),"") -> Carcassonne | X4: =IFERROR(_xlfn.XLOOKUP(V4,$CD$3:$CD$18,$CJ$3:$CJ$18),"") -> 4 | Y4: =IFERROR(_xlfn.XLOOKUP(V4,$CD$3:$CD$18,$CG$3:$CG$18),"") -> 0 | Z4: =IFERROR(_xlfn.XLOOKUP(V4,$CD$3:$CD$18,$CH$3:$CH$18),"") -> u | AA4: =IFERROR(_xlfn.XLOOKUP(V4,$CD$3:$CD$18,$CK$3:$CK$18),"") -> 1 | AB4: =IFERROR(_xlfn.XLOOKUP(V4,$CD$3:$CD$18,$CL$3:$CL$18),"") -> 1 | AC4: =IFERROR(_xlfn.XLOOKUP(V4,$CD$3:$CD$18,$CM$3:$CM$18),"") -> 0 | AD4: =IFERROR(_xlfn.XLOOKUP(V4,$CD$3:$CD$18,$CN$3:$CN$18),"") -> 0 | AE4: =IFERROR(_xlfn.XLOOKUP(V4,$CD$3:$CD$18,$CO$3:$CO$18),"") -> 12 | AF4: =IFERROR(_xlfn.XLOOKUP(V4,$CD$3:$CD$18,$CP$3:$CP$18),"") -> 10 | AG4: =IFERROR(_xlfn.XLOOKUP(V4,$CD$3:$CD$18,$CQ$3:$CQ$18),"") -> 2 | AH4: =IFERROR(_xlfn.XLOOKUP(V4,$CD$3:$CD$18,$CR$3:$CR$18),"") -> 0 | AI4: =IFERROR(_xlfn.XLOOKUP(V4,$CD$3:$CD$18,$CS$3:$CS$18),"") -> 0 | AJ4: =IFERROR(_xlfn.XLOOKUP(V4,$CD$3:$CD$18,$CT$3:$CT$18),"") -> 0 | AK4: =IFERROR(_xlfn.XLOOKUP(V4,$CD$3:$CD$18,$CU$3:$CU$18),"") -> 0 | AL4: =IFERROR(_xlfn.XLOOKUP(V4,$CD$3:$CD$18,$CV$3:$CV$18),"") -> 0 | AM4: =IFERROR(_xlfn.XLOOKUP(V4,$CD$3:$CD$18,$CW$3:$CW$18),"") -> 1 | AN4: =IFERROR(_xlfn.XLOOKUP(V4,$CD$3:$CD$18,$CX$3:$CX$18),"") -> -1 | AO4: =IF(GC4=GC3,GD3,GD4) -> 2 | AP4: =IFERROR(_xlfn.XLOOKUP(BZ4,$CA$3:$CA$18,$CY$3:$CY$18),"") -> Carcassonne | AR4: =IFERROR(_xlfn.XLOOKUP(AP4,$CY$3:$CY$18,$DE$3:$DE$18),"") -> 4 | AS4: =IFERROR(_xlfn.XLOOKUP(AP4,$CY$3:$CY$18,$DB$3:$DB$18),"") -> 0 | AT4: =IFERROR(_xlfn.XLOOKUP(AP4,$CY$3:$CY$18,$DC$3:$DC$18),"") -> u | AU4: =IFERROR(_xlfn.XLOOKUP(AP4,$CY$3:$CY$18,$DF$3:$DF$18),"") -> 1 | AV4: =IFERROR(_xlfn.XLOOKUP(AP4,$CY$3:$CY$18,$DG$3:$DG$18),"") -> 1 | AW4: =IFERROR(_xlfn.XLOOKUP(AP4,$CY$3:$CY$18,$DH$3:$DH$18),"") -> 0 | AX4: =IFERROR(_xlfn.XLOOKUP(AP4,$CY$3:$CY$18,$DI$3:$DI$18),"") -> 0 | AY4: =IFERROR(_xlfn.XLOOKUP(AP4,$CY$3:$CY$18,$DJ$3:$DJ$18),"") -> 12 | AZ4: =IFERROR(_xlfn.XLOOKUP(AP4,$CY$3:$CY$18,$DK$3:$DK$18),"") -> 10 | BA4: =IFERROR(_xlfn.XLOOKUP(AP4,$CY$3:$CY$18,$DL$3:$DL$18),"") -> 2 | BB4: =IFERROR(_xlfn.XLOOKUP(AP4,$CY$3:$CY$18,$DM$3:$DM$18),"") -> 0 | BC4: =IFERROR(_xlfn.XLOOKUP(AP4,$CY$3:$CY$18,$DN$3:$DN$18),"") -> 0 | BD4: =IFERROR(_xlfn.XLOOKUP(AP4,$CY$3:$CY$18,$DO$3:$DO$18),"") -> 0 | BE4: =IFERROR(_xlfn.XLOOKUP(AP4,$CY$3:$CY$18,$DP$3:$DP$18),"") -> 0 | BF4: =IFERROR(_xlfn.XLOOKUP(AP4,$CY$3:$CY$18,$DQ$3:$DQ$18),"") -> 1 | BG4: =IFERROR(_xlfn.XLOOKUP(AP4,$CY$3:$CY$18,$DR$3:$DR$18),"") -> -1 | BH4: =IF(GG4=GG3,GH3,GH4) -> 2 | BI4: =IFERROR(_xlfn.XLOOKUP(CB4,$CC$3:$CC$18,$DS$3:$DS$18),"") -> Carcassonne | BK4: =IFERROR(_xlfn.XLOOKUP(BI4,$DS$3:$DS$18,$DY$3:$DY$18),"") -> 4 | BL4: =IFERROR(_xlfn.XLOOKUP(BI4,$DS$3:$DS$18,$DV$3:$DV$18),"") -> 0 | BM4: =IFERROR(_xlfn.XLOOKUP(BI4,$DS$3:$DS$18,$DW$3:$DW$18),"") -> u | BN4: =IFERROR(_xlfn.XLOOKUP(BI4,$DS$3:$DS$18,$DZ$3:$DZ$18),"") -> 1 | BO4: =IFERROR(_xlfn.XLOOKUP(BI4,$DS$3:$DS$18,$EA$3:$EA$18),"") -> 1 | BP4: =IFERROR(_xlfn.XLOOKUP(BI4,$DS$3:$DS$18,$EB$3:$EB$18),"") -> 0 | BQ4: =IFERROR(_xlfn.XLOOKUP(BI4,$DS$3:$DS$18,$EC$3:$EC$18),"") -> 0 | BR4: =IFERROR(_xlfn.XLOOKUP(BI4,$DS$3:$DS$18,$ED$3:$ED$18),"") -> 12 | BS4: =IFERROR(_xlfn.XLOOKUP(BI4,$DS$3:$DS$18,$EE$3:$EE$18),"") -> 10 | BT4: =IFERROR(_xlfn.XLOOKUP(BI4,$DS$3:$DS$18,$EF$3:$EF$18),"") -> 2 | BU4: =IFERROR(_xlfn.XLOOKUP(BI4,$DS$3:$DS$18,$EG$3:$EG$18),"") -> 0 | BV4: =IFERROR(_xlfn.XLOOKUP(BI4,$DS$3:$DS$18,$EH$3:$EH$18),"") -> 1 | BW4: =IFERROR(_xlfn.XLOOKUP(BI4,$DS$3:$DS$18,$EI$3:$EI$18),"") -> -1 | BX4: 2 | BY4: =CF4 -> 14 | BZ4: 2 | CA4: =DA4 -> 14 | CB4: 2 | CC4: =DU4 -> 14 | CD4: =IF(Equipes!$C$3="","",Equipes!$C$3) -> Blagnac | CF4: =_xlfn.RANK.EQ(EJ4,$EJ$3:$EJ$18) -> 14 | CG4: =CF4-CF4 -> 0 | CH4: u | CI4: =_xlfn.RANK.EQ(EK4,$EK$3:$EK$18) -> 14 | CJ4: =SUMPRODUCT(($D$3:$D$10=CD4)*($FB$3:$FB$10))+SUMPRODUCT(($M$3:$M$10=CD4)*($FC$3:$FC$10))+CU4 -> -6 | CK4: =SUMPRODUCT(($D$3:$D$10=CD4)*($FF$3:$FF$10))+SUMPRODUCT(($M$3:$M$10=CD4)*($FG$3:$FG$10)) -> 1 | CL4: =SUMPRODUCT(($D$3:$D$10=CD4)*($FJ$3:$FJ$10))+SUMPRODUCT(($M$3:$M$10=CD4)*($FK$3:$FK$10)) -> 0 | CM4: =SUMPRODUCT(($D$3:$D$10=CD4)*($FL$3:$FL$10))+SUMPRODUCT(($M$3:$M$10=CD4)*($FM$3:$FM$10)) -> 0 | CN4: =SUMPRODUCT(($D$3:$D$10=CD4)*($FN$3:$FN$10))+SUMPRODUCT(($M$3:$M$10=CD4)*($FO$3:$FO$10)) -> 1 | CO4: =SUMPRODUCT(($D$3:$D$10=CD4)*($FP$3:$FP$10))+SUMPRODUCT(($M$3:$M$10=CD4)*($FQ$3:$FQ$10)) -> 0 | CP4: =SUMPRODUCT(($D$3:$D$10=CD4)*($FR$3:$FR$10))+SUMPRODUCT(($M$3:$M$10=CD4)*($FS$3:$FS$10)) -> 25 | CQ4: -25 | CR4: =SUM(CS4:CU4) -> 0 | CS4: =SUMPRODUCT(($D$3:$D$10=CD4)*($EV$3:$EV$10))+SUMPRODUCT(($M$3:$M$10=CD4)*($EW$3:$EW$10)) -> 0 | CT4: =SUMPRODUCT(($D$3:$D$10=CD4)*($EX$3:$EX$10))+SUMPRODUCT(($M$3:$M$10=CD4)*($EY$3:$EY$10)) -> 0 | CU4: 0 | CV4: =SUMPRODUCT(($D$3:$D$10=CD4)*($FT$3:$FT$10))+SUMPRODUCT(($M$3:$M$10=CD4)*($FU$3:$FU$10)) -> 0 | CW4: =SUMPRODUCT(($D$3:$D$10=CD4)*($FV$3:$FV$10))+SUMPRODUCT(($M$3:$M$10=CD4)*($FW$3:$FW$10)) -> 0 | CX4: 0 | CY4: =IF(Equipes!$C$3="","",Equipes!$C$3) -> Blagnac | DA4: =_xlfn.RANK.EQ(EL4,$EL$3:$EL$18) -> 14 | DB4: =DA4-DA4 -> 0 | DC4: u | DD4: =_xlfn.RANK.EQ(EL4,$EL$3:$EL$18) -> 14 | DE4: =SUMPRODUCT(($D$3:$D$10=CY4)*($FB$3:$FB$10))+SUMPRODUCT(($M$3:$M$10=CY4)*($FC$3:$FC$10)) -> -6 | DF4: =SUMPRODUCT(($D$3:$D$10=CY4)*($FF$3:$FF$10))+SUMPRODUCT(($M$3:$M$10=CY4)*($FG$3:$FG$10)) -> 1 | DG4: =SUMPRODUCT(($D$3:$D$10=CY4)*($FJ$3:$FJ$10))+SUMPRODUCT(($M$3:$M$10=CY4)*($FK$3:$FK$10)) -> 0 | DH4: =SUMPRODUCT(($D$3:$D$10=CY4)*($FL$3:$FL$10))+SUMPRODUCT(($M$3:$M$10=CY4)*($FM$3:$FM$10)) -> 0 | DI4: =SUMPRODUCT(($D$3:$D$10=CY4)*($FN$3:$FN$10))+SUMPRODUCT(($M$3:$M$10=CY4)*($FO$3:$FO$10)) -> 1 | DJ4: =SUMPRODUCT(($D$3:$D$10=CY4)*($FP$3:$FP$10))+SUMPRODUCT(($M$3:$M$10=CY4)*($FQ$3:$FQ$10)) -> 0 | DK4: =SUMPRODUCT(($D$3:$D$10=CY4)*($FR$3:$FR$10))+SUMPRODUCT(($M$3:$M$10=CY4)*($FS$3:$FS$10)) -> 25 | DL4: =DJ4-DK4 -> -25 | DM4: =SUM(DN4:DO4) -> 0 | DN4: =SUMPRODUCT(($D$3:$D$10=CY4)*($EV$3:$EV$10))+SUMPRODUCT(($M$3:$M$10=CY4)*($EW$3:$EW$10)) -> 0 | DO4: =SUMPRODUCT(($D$3:$D$10=CY4)*($EX$3:$EX$10))+SUMPRODUCT(($M$3:$M$10=CY4)*($EY$3:$EY$10)) -> 0 | DP4: =SUMPRODUCT(($D$3:$D$10=CY4)*($FT$3:$FT$10))+SUMPRODUCT(($M$3:$M$10=CY4)*($FU$3:$FU$10)) -> 0 | DQ4: =SUMPRODUCT(($D$3:$D$10=CY4)*($FV$3:$FV$10))+SUMPRODUCT(($M$3:$M$10=CY4)*($FW$3:$FW$10)) -> 0 | DR4: =DP4-DQ4 -> 0 | DS4: =IF(Equipes!$C$3="","",Equipes!$C$3) -> Blagnac | DU4: =_xlfn.RANK.EQ(EN4,$EN$3:$EN$18) -> 14 | DV4: =DU4-DU4 -> 0 | DW4: u | DX4: =_xlfn.RANK.EQ(EN4,$EN$3:$EN$18) -> 14 | DY4: =SUMPRODUCT(($D$3:$D$10=DS4)*($ET$3:$ET$10))+SUMPRODUCT(($M$3:$M$10=DS4)*($EU$3:$EU$10)) -> -4 | DZ4: =SUMPRODUCT(($D3:$D$10=DS4)*($FF$3:$FF$10))+SUMPRODUCT(($M$3:$M$10=DS4)*($FG$3:$FG$10)) -> 1 | EA4: =SUMPRODUCT(($D$3:$D$10=DS4)*($FJ$3:$FJ$10))+SUMPRODUCT(($M$3:$M$10=DS4)*($FK$3:$FK$10)) -> 0 | EB4: =SUMPRODUCT(($D$3:$D$10=DS4)*($FL$3:$FL$10))+SUMPRODUCT(($M$3:$M$10=DS4)*($FM$3:$FM$10)) -> 0 | EC4: =SUMPRODUCT(($D$3:$D$10=DS4)*($FN$3:$FN$10))+SUMPRODUCT(($M$3:$M$10=DS4)*($FO$3:$FO$10)) -> 1 | ED4: =SUMPRODUCT(($D$3:$D$10=DS4)*($FP$3:$FP$10))+SUMPRODUCT(($M$3:$M$10=DS4)*($FQ$3:$FQ$10)) -> 0 | EE4: =SUMPRODUCT(($D$3:$D$10=DS4)*($FR$3:$FR$10))+SUMPRODUCT(($M$3:$M$10=DS4)*($FS$3:$FS$10)) -> 25 | EF4: =ED4-EE4 -> -25 | EG4: =SUMPRODUCT(($D$3:$D$10=DS4)*($FT$3:$FT$10))+SUMPRODUCT(($M$3:$M$10=DS4)*($FU$3:$FU$10)) -> 0 | EH4: =SUMPRODUCT(($D$3:$D$10=DS4)*($FV$3:$FV$10))+SUMPRODUCT(($M$3:$M$10=DS4)*($FW$3:$FW$10)) -> 0 | EI4: =EG4-EH4 -> 0 | EJ4: =SUM(CJ4*1000)+(CQ4/100)+(CO4/10000) -> -6000.25 | EK4: =EJ4+0.00000013 -> -6000.25 | EL4: =SUM(DE4*1000)+(DL4/100)+(DJ4/10000) -> -6000.25 | EM4: =EL4+0.00000013 -> -6000.25 | EN4: =SUM(DY4*1000)+(EF4/100)+(ED4/10000) -> -4000.25 | EO4: =EN4+0.00000013 -> -4000.25 | EP4: =A4 -> 0 | EQ4: =P4 -> 0 | ER4: =B4 -> 0 | ES4: =O4 -> 0 | ET4: =IF(E4="",0,IF(I4="",0,IF(E4>I4,0,IF(E4=I4,-2,IF(E4<I4,-4))))) -> 0 | EU4: =IF(I4="",0,IF(E4="",0,IF(I4>E4,4,IF(I4=E4,2,IF(I4<E4,0))))) -> 0 | EV4: =IF(G4<>"",IF(SUM(G4-K4)>=3,1)) -> FALSE | EW4: =IF(K4<>"",IF(SUM(K4-G4)>=3,1)) -> FALSE | EX4: =IF(E4<>"",IF(E4<I4,IF(SUM(I4-E4)<=7,1))) -> FALSE | EY4: =IF(I4<>"",IF(I4<E4,IF(SUM(E4-I4)<=7,1))) -> FALSE | EZ4: =SUM(ET4,EV4,EX4) -> 0 | FA4: =SUM(EU4,EW4,EY4) -> 0 | FB4: =EZ4-EP4+ER4 -> 0 | FC4: =FA4-EQ4+ES4 -> 0 | FD4: =IF(S4="Match annulé",1,"") ->  | FE4: =IF(S4="Match annulé",1,"") ->  | FF4: =IF(E4="",0,1) -> 1 | FG4: =IF(I4="",0,1) -> 1 | FH4: =IF(SUM(FD4,FF4)<>0,SUM(FD4,FF4),0) -> 1 | FI4: =IF(SUM(FE4,FG4)<>0,SUM(FE4,FG4),0) -> 1 | FJ4: =IF(E4<>"",IF(E4>I4,1)) -> 1 | FK4: =IF(I4<>"",IF(I4>E4,1)) -> FALSE | FL4: =IF(E4<>"",IF(E4=I4,1)) -> FALSE | FM4: =IF(I4<>"",IF(I4=E4,1)) -> FALSE | FN4: =IF(E4<>"",IF(E4<I4,1)) -> FALSE | FO4: =IF(I4<>"",IF(I4<E4,1)) -> 1 | FP4: =E4 -> 24 | FQ4: =I4 -> 10 | FR4: =I4 -> 10 | FS4: =E4 -> 24 | FT4: =G4 -> 2 | FU4: =K4 -> 1 | FV4: =K4 -> 1 | FW4: =G4 -> 2 | FX4: =IFERROR(_xlfn.XLOOKUP(BX4,$BY$3:$BY$18,$CD$3:$CD$18),"") -> Carcassonne | FY4: =IFERROR(_xlfn.XLOOKUP(FX4,$CD$3:$CD$18,$EJ$3:$EJ$18),"") -> 4000.0212 | FZ4: =IF(FY4="","",_xlfn.RANK.EQ(FY4,FY3:FY18)) -> 2 | GA4: =IF(CD4="","",CD4) -> Blagnac | GB4: =IFERROR(_xlfn.XLOOKUP(BZ4,$CA$3:$CA$18,$CY$3:$CY$18),"") -> Carcassonne | GC4: =IFERROR(_xlfn.XLOOKUP(GB4,$CY$3:$CY$18,$EL$3:$EL$18),"") -> 4000.0212 | GD4: =IF(GC4="","",_xlfn.RANK.EQ(GC4,GC3:GC18)) -> 2 | GE4: =IF(CY4="","",CY4) -> Blagnac | GF4: =IFERROR(_xlfn.XLOOKUP(CB4,$CC$3:$CC$18,$DS$3:$DS$18),"") -> Carcassonne | GG4: =IFERROR(_xlfn.XLOOKUP(GF4,$DS$3:$DS$18,$EN$3:$EN$18),"") -> 4000.0212 | GH4: =IF(GG4="","",_xlfn.RANK.EQ(GG4,GG3:GG18)) -> 2 | GI4: =IF(DS4="","",DS4) -> Blagnac | GK4: ok | GL4: 2023-08-26T17:30:00 | GQ4: =IF(SUM(FD4,FF4)<>0,SUM(FD4,FF4),"") -> 1 | GR4: =IF(SUM(FE4,FG4)<>0,SUM(FE4,FG4),"") -> 1
D5: Massy | E5: 20 | G5: 2 | I5: 13 | J5: Bd | K5: 1 | M5: Tarbes | Q5: 2023-08-26 | R5: 18:00:00 | U5: =IF(FY5=FY4,FZ4,FZ5) -> 3 | V5: Tarbes | X5: 1 | Y5: 0 | Z5: u | AA5: 1 | AB5: 0 | AC5: 0 | AD5: 1 | AE5: 13 | AF5: 20 | AG5: -7 | AH5: 1 | AI5: 0 | AJ5: 1 | AK5: 0 | AL5: 1 | AM5: 2 | AN5: -1 | AO5: =IF(GC5=GC4,GD4,GD5) -> 3 | AP5: Tarbes | AR5: 1 | AS5: 0 | AT5: u | AU5: 1 | AV5: 0 | AW5: 0 | AX5: 1 | AY5: 13 | AZ5: 20 | BA5: -7 | BB5: 1 | BC5: 0 | BD5: 1 | BE5: 1 | BF5: 2 | BG5: -1 | BH5: =IF(GG5=GG4,GH4,GH5) -> 3 | BI5: Hyères | BK5: 0 | BL5: 0 | BM5: u | BN5: 1 | BO5: 1 | BP5: 0 | BQ5: 0 | BR5: 24 | BS5: 10 | BT5: 14 | BU5: 2 | BV5: 1 | BW5: 1 | BX5: 3 | BY5: 13 | BZ5: 3 | CA5: 13 | CB5: 3 | CC5: 13 | CD5: =IF(Equipes!$C$4="","",Equipes!$C$4) -> Bourg-en-Bresse | CF5: 13 | CG5: =CF5-CF5 -> 0 | CH5: u | CI5: 13 | CJ5: =SUMPRODUCT(($D$3:$D$10=CD5)*($FB$3:$FB$10))+SUMPRODUCT(($M$3:$M$10=CD5)*($FC$3:$FC$10))+CU5 -> -3 | CK5: =SUMPRODUCT(($D$3:$D$10=CD5)*($FF$3:$FF$10))+SUMPRODUCT(($M$3:$M$10=CD5)*($FG$3:$FG$10)) -> 1 | CL5: =SUMPRODUCT(($D$3:$D$10=CD5)*($FJ$3:$FJ$10))+SUMPRODUCT(($M$3:$M$10=CD5)*($FK$3:$FK$10)) -> 0 | CM5: =SUMPRODUCT(($D$3:$D$10=CD5)*($FL$3:$FL$10))+SUMPRODUCT(($M$3:$M$10=CD5)*($FM$3:$FM$10)) -> 0 | CN5: =SUMPRODUCT(($D$3:$D$10=CD5)*($FN$3:$FN$10))+SUMPRODUCT(($M$3:$M$10=CD5)*($FO$3:$FO$10)) -> 1 | CO5: =SUMPRODUCT(($D$3:$D$10=CD5)*($FP$3:$FP$10))+SUMPRODUCT(($M$3:$M$10=CD5)*($FQ$3:$FQ$10)) -> 10 | CP5: =SUMPRODUCT(($D$3:$D$10=CD5)*($FR$3:$FR$10))+SUMPRODUCT(($M$3:$M$10=CD5)*($FS$3:$FS$10)) -> 12 | CQ5: -2 | CR5: 1 | CS5: =SUMPRODUCT(($D$3:$D$10=CD5)*($EV$3:$EV$10))+SUMPRODUCT(($M$3:$M$10=CD5)*($EW$3:$EW$10)) -> 0 | CT5: =SUMPRODUCT(($D$3:$D$10=CD5)*($EX$3:$EX$10))+SUMPRODUCT(($M$3:$M$10=CD5)*($EY$3:$EY$10)) -> 1 | CU5: 0 | CV5: =SUMPRODUCT(($D$3:$D$10=CD5)*($FT$3:$FT$10))+SUMPRODUCT(($M$3:$M$10=CD5)*($FU$3:$FU$10)) -> 1 | CW5: =SUMPRODUCT(($D$3:$D$10=CD5)*($FV$3:$FV$10))+SUMPRODUCT(($M$3:$M$10=CD5)*($FW$3:$FW$10)) -> 0 | CX5: 1 | CY5: =IF(Equipes!$C$4="","",Equipes!$C$4) -> Bourg-en-Bresse | DA5: 13 | DB5: 0 | DC5: u | DD5: 13 | DE5: =SUMPRODUCT(($D$3:$D$10=CY5)*($FB$3:$FB$10))+SUMPRODUCT(($M$3:$M$10=CY5)*($FC$3:$FC$10)) -> -3 | DF5: =SUMPRODUCT(($D$3:$D$10=CY5)*($FF$3:$FF$10))+SUMPRODUCT(($M$3:$M$10=CY5)*($FG$3:$FG$10)) -> 1 | DG5: =SUMPRODUCT(($D$3:$D$10=CY5)*($FJ$3:$FJ$10))+SUMPRODUCT(($M$3:$M$10=CY5)*($FK$3:$FK$10)) -> 0 | DH5: =SUMPRODUCT(($D$3:$D$10=CY5)*($FL$3:$FL$10))+SUMPRODUCT(($M$3:$M$10=CY5)*($FM$3:$FM$10)) -> 0 | DI5: =SUMPRODUCT(($D$3:$D$10=CY5)*($FN$3:$FN$10))+SUMPRODUCT(($M$3:$M$10=CY5)*($FO$3:$FO$10)) -> 1 | DJ5: =SUMPRODUCT(($D$3:$D$10=CY5)*($FP$3:$FP$10))+SUMPRODUCT(($M$3:$M$10=CY5)*($FQ$3:$FQ$10)) -> 10 | DK5: =SUMPRODUCT(($D$3:$D$10=CY5)*($FR$3:$FR$10))+SUMPRODUCT(($M$3:$M$10=CY5)*($FS$3:$FS$10)) -> 12 | DL5: -2 | DM5: 1 | DN5: =SUMPRODUCT(($D$3:$D$10=CY5)*($EV$3:$EV$10))+SUMPRODUCT(($M$3:$M$10=CY5)*($EW$3:$EW$10)) -> 0 | DO5: =SUMPRODUCT(($D$3:$D$10=CY5)*($EX$3:$EX$10))+SUMPRODUCT(($M$3:$M$10=CY5)*($EY$3:$EY$10)) -> 1 | DP5: =SUMPRODUCT(($D$3:$D$10=CY5)*($FT$3:$FT$10))+SUMPRODUCT(($M$3:$M$10=CY5)*($FU$3:$FU$10)) -> 1 | DQ5: =SUMPRODUCT(($D$3:$D$10=CY5)*($FV$3:$FV$10))+SUMPRODUCT(($M$3:$M$10=CY5)*($FW$3:$FW$10)) -> 0 | DR5: 1 | DS5: =IF(Equipes!$C$4="","",Equipes!$C$4) -> Bourg-en-Bresse | DU5: 13 | DV5: =DU5-DU5 -> 0 | DW5: u | DX5: 13 | DY5: =SUMPRODUCT(($D$3:$D$10=DS5)*($ET$3:$ET$10))+SUMPRODUCT(($M$3:$M$10=DS5)*($EU$3:$EU$10)) -> -4 | DZ5: =SUMPRODUCT(($D3:$D$10=DS5)*($FF$3:$FF$10))+SUMPRODUCT(($M$3:$M$10=DS5)*($FG$3:$FG$10)) -> 1 | EA5: =SUMPRODUCT(($D$3:$D$10=DS5)*($FJ$3:$FJ$10))+SUMPRODUCT(($M$3:$M$10=DS5)*($FK$3:$FK$10)) -> 0 | EB5: =SUMPRODUCT(($D$3:$D$10=DS5)*($FL$3:$FL$10))+SUMPRODUCT(($M$3:$M$10=DS5)*($FM$3:$FM$10)) -> 0 | EC5: =SUMPRODUCT(($D$3:$D$10=DS5)*($FN$3:$FN$10))+SUMPRODUCT(($M$3:$M$10=DS5)*($FO$3:$FO$10)) -> 1 | ED5: =SUMPRODUCT(($D$3:$D$10=DS5)*($FP$3:$FP$10))+SUMPRODUCT(($M$3:$M$10=DS5)*($FQ$3:$FQ$10)) -> 10 | EE5: =SUMPRODUCT(($D$3:$D$10=DS5)*($FR$3:$FR$10))+SUMPRODUCT(($M$3:$M$10=DS5)*($FS$3:$FS$10)) -> 12 | EF5: -2 | EG5: =SUMPRODUCT(($D$3:$D$10=DS5)*($FT$3:$FT$10))+SUMPRODUCT(($M$3:$M$10=DS5)*($FU$3:$FU$10)) -> 1 | EH5: =SUMPRODUCT(($D$3:$D$10=DS5)*($FV$3:$FV$10))+SUMPRODUCT(($M$3:$M$10=DS5)*($FW$3:$FW$10)) -> 0 | EI5: 1 | EJ5: -3000.019 | EK5: =EJ5+0.00000012 -> -3000.019 | EL5: -3000.019 | EM5: =EL5+0.00000012 -> -3000.019 | EN5: -4000.019 | EO5: =EN5+0.00000012 -> -4000.019 | EP5: 0 | EQ5: 0 | ER5: 0 | ES5: 0 | ET5: 0 | EU5: 0 | EV5: FALSE | EW5: FALSE | EX5: FALSE | EY5: 1 | EZ5: 0 | FA5: 1 | FB5: 0 | FC5: 1 | FF5: 1 | FG5: 1 | FH5: 1 | FI5: 1 | FJ5: 1 | FK5: FALSE | FL5: FALSE | FM5: FALSE | FN5: FALSE | FO5: 1 | FP5: 20 | FQ5: 13 | FR5: 13 | FS5: 20 | FT5: 2 | FU5: 1 | FV5: 1 | FW5: 2 | FX5: =IFERROR(_xlfn.XLOOKUP(BX5,$BY$3:$BY$18,$CD$3:$CD$18),"") -> Tarbes | FY5: =IFERROR(_xlfn.XLOOKUP(FX5,$CD$3:$CD$18,$EJ$3:$EJ$18),"") -> 999.9313 | FZ5: =IF(FY5="","",_xlfn.RANK.EQ(FY5,FY3:FY18)) -> 3 | GA5: =IF(CD5="","",CD5) -> Bourg-en-Bresse | GB5: =IFERROR(_xlfn.XLOOKUP(BZ5,$CA$3:$CA$18,$CY$3:$CY$18),"") -> Tarbes | GC5: 999.9313 | GD5: =IF(GC5="","",_xlfn.RANK.EQ(GC5,GC3:GC18)) -> 3 | GE5: =IF(CY5="","",CY5) -> Bourg-en-Bresse | GF5: Hyères | GG5: 0.1424 | GH5: =IF(GG5="","",_xlfn.RANK.EQ(GG5,GG3:GG18)) -> 3 | GI5: Bourg-en-Bresse | GK5: ok | GL5: 2023-08-26T18:00:00 | GQ5: 1 | GR5: 1
D6: Périgueux | E6: 25 | G6: 3 | I6: 14 | K6: 2 | M6: Nice | Q6: 2023-08-26 | R6: 18:00:00 | U6: 4 | V6: Hyères | X6: 0 | Y6: 0 | Z6: u | AA6: 1 | AB6: 1 | AC6: 0 | AD6: 0 | AE6: 24 | AF6: 10 | AG6: 14 | AH6: 0 | AI6: 0 | AJ6: 0 | AK6: 0 | AL6: 2 | AM6: 1 | AN6: 1 | AO6: 4 | AP6: Hyères | AR6: 0 | AS6: 0 | AT6: u | AU6: 1 | AV6: 1 | AW6: 0 | AX6: 0 | AY6: 24 | AZ6: 10 | BA6: 14 | BB6: 0 | BC6: 0 | BD6: 0 | BE6: 2 | BF6: 1 | BG6: 1 | BH6: 4 | BI6: Périgueux | BK6: 0 | BL6: 0 | BM6: u | BN6: 1 | BO6: 1 | BP6: 0 | BQ6: 0 | BR6: 25 | BS6: 14 | BT6: 11 | BU6: 3 | BV6: 2 | BW6: 1 | BX6: 4 | BY6: 6 | BZ6: 4 | CA6: 6 | CB6: 4 | CC6: 5 | CD6: =IF(Equipes!$C$5="","",Equipes!$C$5) -> Bourgoin-Jallieu | CF6: 6 | CG6: 0 | CH6: u | CI6: 6 | CJ6: =SUMPRODUCT(($D$3:$D$10=CD6)*($FB$3:$FB$10))+SUMPRODUCT(($M$3:$M$10=CD6)*($FC$3:$FC$10))+CU6 -> 0 | CK6: =SUMPRODUCT(($D$3:$D$10=CD6)*($FF$3:$FF$10))+SUMPRODUCT(($M$3:$M$10=CD6)*($FG$3:$FG$10)) -> 1 | CL6: =SUMPRODUCT(($D$3:$D$10=CD6)*($FJ$3:$FJ$10))+SUMPRODUCT(($M$3:$M$10=CD6)*($FK$3:$FK$10)) -> 1 | CM6: =SUMPRODUCT(($D$3:$D$10=CD6)*($FL$3:$FL$10))+SUMPRODUCT(($M$3:$M$10=CD6)*($FM$3:$FM$10)) -> 0 | CN6: =SUMPRODUCT(($D$3:$D$10=CD6)*($FN$3:$FN$10))+SUMPRODUCT(($M$3:$M$10=CD6)*($FO$3:$FO$10)) -> 0 | CO6: =SUMPRODUCT(($D$3:$D$10=CD6)*($FP$3:$FP$10))+SUMPRODUCT(($M$3:$M$10=CD6)*($FQ$3:$FQ$10)) -> 17 | CP6: =SUMPRODUCT(($D$3:$D$10=CD6)*($FR$3:$FR$10))+SUMPRODUCT(($M$3:$M$10=CD6)*($FS$3:$FS$10)) -> 6 | CQ6: 11 | CR6: 0 | CS6: =SUMPRODUCT(($D$3:$D$10=CD6)*($EV$3:$EV$10))+SUMPRODUCT(($M$3:$M$10=CD6)*($EW$3:$EW$10)) -> 0 | CT6: =SUMPRODUCT(($D$3:$D$10=CD6)*($EX$3:$EX$10))+SUMPRODUCT(($M$3:$M$10=CD6)*($EY$3:$EY$10)) -> 0 | CU6: 0 | CV6: =SUMPRODUCT(($D$3:$D$10=CD6)*($FT$3:$FT$10))+SUMPRODUCT(($M$3:$M$10=CD6)*($FU$3:$FU$10)) -> 1 | CW6: =SUMPRODUCT(($D$3:$D$10=CD6)*($FV$3:$FV$10))+SUMPRODUCT(($M$3:$M$10=CD6)*($FW$3:$FW$10)) -> 0 | CX6: 1 | CY6: =IF(Equipes!$C$5="","",Equipes!$C$5) -> Bourgoin-Jallieu | DA6: 6 | DB6: 0 | DC6: u | DD6: 6 | DE6: =SUMPRODUCT(($D$3:$D$10=CY6)*($FB$3:$FB$10))+SUMPRODUCT(($M$3:$M$10=CY6)*($FC$3:$FC$10)) -> 0 | DF6: =SUMPRODUCT(($D$3:$D$10=CY6)*($FF$3:$FF$10))+SUMPRODUCT(($M$3:$M$10=CY6)*($FG$3:$FG$10)) -> 1 | DG6: =SUMPRODUCT(($D$3:$D$10=CY6)*($FJ$3:$FJ$10))+SUMPRODUCT(($M$3:$M$10=CY6)*($FK$3:$FK$10)) -> 1 | DH6: =SUMPRODUCT(($D$3:$D$10=CY6)*($FL$3:$FL$10))+SUMPRODUCT(($M$3:$M$10=CY6)*($FM$3:$FM$10)) -> 0 | DI6: =SUMPRODUCT(($D$3:$D$10=CY6)*($FN$3:$FN$10))+SUMPRODUCT(($M$3:$M$10=CY6)*($FO$3:$FO$10)) -> 0 | DJ6: =SUMPRODUCT(($D$3:$D$10=CY6)*($FP$3:$FP$10))+SUMPRODUCT(($M$3:$M$10=CY6)*($FQ$3:$FQ$10)) -> 17 | DK6: =SUMPRODUCT(($D$3:$D$10=CY6)*($FR$3:$FR$10))+SUMPRODUCT(($M$3:$M$10=CY6)*($FS$3:$FS$10)) -> 6 | DL6: 11 | DM6: 0 | DN6: =SUMPRODUCT(($D$3:$D$10=CY6)*($EV$3:$EV$10))+SUMPRODUCT(($M$3:$M$10=CY6)*($EW$3:$EW$10)) -> 0 | DO6: =SUMPRODUCT(($D$3:$D$10=CY6)*($EX$3:$EX$10))+SUMPRODUCT(($M$3:$M$10=CY6)*($EY$3:$EY$10)) -> 0 | DP6: =SUMPRODUCT(($D$3:$D$10=CY6)*($FT$3:$FT$10))+SUMPRODUCT(($M$3:$M$10=CY6)*($FU$3:$FU$10)) -> 1 | DQ6: =SUMPRODUCT(($D$3:$D$10=CY6)*($FV$3:$FV$10))+SUMPRODUCT(($M$3:$M$10=CY6)*($FW$3:$FW$10)) -> 0 | DR6: 1 | DS6: =IF(Equipes!$C$5="","",Equipes!$C$5) -> Bourgoin-Jallieu | DU6: 5 | DV6: 0 | DW6: u | DX6: 5 | DY6: =SUMPRODUCT(($D$3:$D$10=DS6)*($ET$3:$ET$10))+SUMPRODUCT(($M$3:$M$10=DS6)*($EU$3:$EU$10)) -> 0 | DZ6: =SUMPRODUCT(($D3:$D$10=DS6)*($FF$3:$FF$10))+SUMPRODUCT(($M$3:$M$10=DS6)*($FG$3:$FG$10)) -> 1 | EA6: =SUMPRODUCT(($D$3:$D$10=DS6)*($FJ$3:$FJ$10))+SUMPRODUCT(($M$3:$M$10=DS6)*($FK$3:$FK$10)) -> 1 | EB6: =SUMPRODUCT(($D$3:$D$10=DS6)*($FL$3:$FL$10))+SUMPRODUCT(($M$3:$M$10=DS6)*($FM$3:$FM$10)) -> 0 | EC6: =SUMPRODUCT(($D$3:$D$10=DS6)*($FN$3:$FN$10))+SUMPRODUCT(($M$3:$M$10=DS6)*($FO$3:$FO$10)) -> 0 | ED6: =SUMPRODUCT(($D$3:$D$10=DS6)*($FP$3:$FP$10))+SUMPRODUCT(($M$3:$M$10=DS6)*($FQ$3:$FQ$10)) -> 17 | EE6: =SUMPRODUCT(($D$3:$D$10=DS6)*($FR$3:$FR$10))+SUMPRODUCT(($M$3:$M$10=DS6)*($FS$3:$FS$10)) -> 6 | EF6: 11 | EG6: =SUMPRODUCT(($D$3:$D$10=DS6)*($FT$3:$FT$10))+SUMPRODUCT(($M$3:$M$10=DS6)*($FU$3:$FU$10)) -> 1 | EH6: =SUMPRODUCT(($D$3:$D$10=DS6)*($FV$3:$FV$10))+SUMPRODUCT(($M$3:$M$10=DS6)*($FW$3:$FW$10)) -> 0 | EI6: 1 | EJ6: 0.1117 | EK6: =EJ6+0.00000011 -> 0.11170011 | EL6: 0.1117 | EM6: =EL6+0.00000011 -> 0.11170011 | EN6: 0.1117 | EO6: =EN6+0.00000011 -> 0.11170011 | EP6: 0 | EQ6: 0 | ER6: 0 | ES6: 0 | ET6: 0 | EU6: 0 | EV6: FALSE | EW6: FALSE | EX6: FALSE | EY6: FALSE | EZ6: 0 | FA6: 0 | FB6: 0 | FC6: 0 | FF6: 1 | FG6: 1 | FH6: 1 | FI6: 1 | FJ6: 1 | FK6: FALSE | FL6: FALSE | FM6: FALSE | FN6: FALSE | FO6: 1 | FP6: 25 | FQ6: 14 | FR6: 14 | FS6: 25 | FT6: 3 | FU6: 2 | FV6: 2 | FW6: 3 | FX6: =IFERROR(_xlfn.XLOOKUP(BX6,$BY$3:$BY$18,$CD$3:$CD$18),"") -> Hyères | FY6: =IFERROR(_xlfn.XLOOKUP(FX6,$CD$3:$CD$18,$EJ$3:$EJ$18),"") -> 0.1424 | FZ6: =IF(FY6="","",_xlfn.RANK.EQ(FY6,FY3:FY18)) -> 4 | GA6: Bourgoin-Jallieu | GB6: Hyères | GC6: 0.1424 | GD6: =IF(GC6="","",_xlfn.RANK.EQ(GC6,GC3:GC18)) -> 4 | GE6: Bourgoin-Jallieu | GF6: Périgueux | GG6: 0.1125 | GH6: =IF(GG6="","",_xlfn.RANK.EQ(GG6,GG3:GG18)) -> 4 | GI6: Bourgoin-Jallieu | GK6: ok | GL6: 2023-08-26T18:00:00 | GQ6: 1 | GR6: 1
D7: Bourgoin-Jallieu | E7: 17 | G7: 1 | I7: 6 | K7: 0 | M7: Albi | Q7: 2023-08-26 | R7: 19:00:00 | U7: 5 | V7: Périgueux | X7: 0 | Y7: 0 | Z7: u | AA7: 1 | AB7: 1 | AC7: 0 | AD7: 0 | AE7: 25 | AF7: 14 | AG7: 11 | AH7: 0 | AI7: 0 | AJ7: 0 | AK7: 0 | AL7: 3 | AM7: 2 | AN7: 1 | AO7: 5 | AP7: Périgueux | AR7: 0 | AS7: 0 | AT7: u | AU7: 1 | AV7: 1 | AW7: 0 | AX7: 0 | AY7: 25 | AZ7: 14 | BA7: 11 | BB7: 0 | BC7: 0 | BD7: 0 | BE7: 3 | BF7: 2 | BG7: 1 | BH7: 5 | BI7: Bourgoin-Jallieu | BK7: 0 | BL7: 0 | BM7: u | BN7: 1 | BO7: 1 | BP7: 0 | BQ7: 0 | BR7: 17 | BS7: 6 | BT7: 11 | BU7: 1 | BV7: 0 | BW7: 1 | BX7: 5 | BY7: 2 | BZ7: 5 | CA7: 2 | CB7: 5 | CC7: 2 | CD7: =IF(Equipes!$C$6="","",Equipes!$C$6) -> Carcassonne | CF7: 2 | CG7: 0 | CH7: u | CI7: 2 | CJ7: =SUMPRODUCT(($D$3:$D$10=CD7)*($FB$3:$FB$10))+SUMPRODUCT(($M$3:$M$10=CD7)*($FC$3:$FC$10))+CU7 -> 4 | CK7: =SUMPRODUCT(($D$3:$D$10=CD7)*($FF$3:$FF$10))+SUMPRODUCT(($M$3:$M$10=CD7)*($FG$3:$FG$10)) -> 1 | CL7: =SUMPRODUCT(($D$3:$D$10=CD7)*($FJ$3:$FJ$10))+SUMPRODUCT(($M$3:$M$10=CD7)*($FK$3:$FK$10)) -> 1 | CM7: =SUMPRODUCT(($D$3:$D$10=CD7)*($FL$3:$FL$10))+SUMPRODUCT(($M$3:$M$10=CD7)*($FM$3:$FM$10)) -> 0 | CN7: =SUMPRODUCT(($D$3:$D$10=CD7)*($FN$3:$FN$10))+SUMPRODUCT(($M$3:$M$10=CD7)*($FO$3:$FO$10)) -> 0 | CO7: =SUMPRODUCT(($D$3:$D$10=CD7)*($FP$3:$FP$10))+SUMPRODUCT(($M$3:$M$10=CD7)*($FQ$3:$FQ$10)) -> 12 | CP7: =SUMPRODUCT(($D$3:$D$10=CD7)*($FR$3:$FR$10))+SUMPRODUCT(($M$3:$M$10=CD7)*($FS$3:$FS$10)) -> 10 | CQ7: 2 | CR7: 0 | CS7: =SUMPRODUCT(($D$3:$D$10=CD7)*($EV$3:$EV$10))+SUMPRODUCT(($M$3:$M$10=CD7)*($EW$3:$EW$10)) -> 0 | CT7: =SUMPRODUCT(($D$3:$D$10=CD7)*($EX$3:$EX$10))+SUMPRODUCT(($M$3:$M$10=CD7)*($EY$3:$EY$10)) -> 0 | CU7: 0 | CV7: =SUMPRODUCT(($D$3:$D$10=CD7)*($FT$3:$FT$10))+SUMPRODUCT(($M$3:$M$10=CD7)*($FU$3:$FU$10)) -> 0 | CW7: =SUMPRODUCT(($D$3:$D$10=CD7)*($FV$3:$FV$10))+SUMPRODUCT(($M$3:$M$10=CD7)*($FW$3:$FW$10)) -> 1 | CX7: -1 | CY7: =IF(Equipes!$C$6="","",Equipes!$C$6) -> Carcassonne | DA7: 2 | DB7: 0 | DC7: u | DD7: 2 | DE7: =SUMPRODUCT(($D$3:$D$10=CY7)*($FB$3:$FB$10))+SUMPRODUCT(($M$3:$M$10=CY7)*($FC$3:$FC$10)) -> 4 | DF7: =SUMPRODUCT(($D$3:$D$10=CY7)*($FF$3:$FF$10))+SUMPRODUCT(($M$3:$M$10=CY7)*($FG$3:$FG$10)) -> 1 | DG7: =SUMPRODUCT(($D$3:$D$10=CY7)*($FJ$3:$FJ$10))+SUMPRODUCT(($M$3:$M$10=CY7)*($FK$3:$FK$10)) -> 1 | DH7: =SUMPRODUCT(($D$3:$D$10=CY7)*($FL$3:$FL$10))+SUMPRODUCT(($M$3:$M$10=CY7)*($FM$3:$FM$10)) -> 0 | DI7: =SUMPRODUCT(($D$3:$D$10=CY7)*($FN$3:$FN$10))+SUMPRODUCT(($M$3:$M$10=CY7)*($FO$3:$FO$10)) -> 0 | DJ7: =SUMPRODUCT(($D$3:$D$10=CY7)*($FP$3:$FP$10))+SUMPRODUCT(($M$3:$M$10=CY7)*($FQ$3:$FQ$10)) -> 12 | DK7: =SUMPRODUCT(($D$3:$D$10=CY7)*($FR$3:$FR$10))+SUMPRODUCT(($M$3:$M$10=CY7)*($FS$3:$FS$10)) -> 10 | DL7: 2 | DM7: 0 | DN7: =SUMPRODUCT(($D$3:$D$10=CY7)*($EV$3:$EV$10))+SUMPRODUCT(($M$3:$M$10=CY7)*($EW$3:$EW$10)) -> 0 | DO7: =SUMPRODUCT(($D$3:$D$10=CY7)*($EX$3:$EX$10))+SUMPRODUCT(($M$3:$M$10=CY7)*($EY$3:$EY$10)) -> 0 | DP7: =SUMPRODUCT(($D$3:$D$10=CY7)*($FT$3:$FT$10))+SUMPRODUCT(($M$3:$M$10=CY7)*($FU$3:$FU$10)) -> 0 | DQ7: =SUMPRODUCT(($D$3:$D$10=CY7)*($FV$3:$FV$10))+SUMPRODUCT(($M$3:$M$10=CY7)*($FW$3:$FW$10)) -> 1 | DR7: -1 | DS7: =IF(Equipes!$C$6="","",Equipes!$C$6) -> Carcassonne | DU7: 2 | DV7: 0 | DW7: u | DX7: 2 | DY7: =SUMPRODUCT(($D$3:$D$10=DS7)*($ET$3:$ET$10))+SUMPRODUCT(($M$3:$M$10=DS7)*($EU$3:$EU$10)) -> 4 | DZ7: =SUMPRODUCT(($D3:$D$10=DS7)*($FF$3:$FF$10))+SUMPRODUCT(($M$3:$M$10=DS7)*($FG$3:$FG$10)) -> 1 | EA7: =SUMPRODUCT(($D$3:$D$10=DS7)*($FJ$3:$FJ$10))+SUMPRODUCT(($M$3:$M$10=DS7)*($FK$3:$FK$10)) -> 1 | EB7: =SUMPRODUCT(($D$3:$D$10=DS7)*($FL$3:$FL$10))+SUMPRODUCT(($M$3:$M$10=DS7)*($FM$3:$FM$10)) -> 0 | EC7: =SUMPRODUCT(($D$3:$D$10=DS7)*($FN$3:$FN$10))+SUMPRODUCT(($M$3:$M$10=DS7)*($FO$3:$FO$10)) -> 0 | ED7: =SUMPRODUCT(($D$3:$D$10=DS7)*($FP$3:$FP$10))+SUMPRODUCT(($M$3:$M$10=DS7)*($FQ$3:$FQ$10)) -> 12 | EE7: =SUMPRODUCT(($D$3:$D$10=DS7)*($FR$3:$FR$10))+SUMPRODUCT(($M$3:$M$10=DS7)*($FS$3:$FS$10)) -> 10 | EF7: 2 | EG7: =SUMPRODUCT(($D$3:$D$10=DS7)*($FT$3:$FT$10))+SUMPRODUCT(($M$3:$M$10=DS7)*($FU$3:$FU$10)) -> 0 | EH7: =SUMPRODUCT(($D$3:$D$10=DS7)*($FV$3:$FV$10))+SUMPRODUCT(($M$3:$M$10=DS7)*($FW$3:$FW$10)) -> 1 | EI7: -1 | EJ7: 4000.0212 | EK7: =EJ7+0.0000001 -> 4000.0212 | EL7: 4000.0212 | EM7: =EL7+0.0000001 -> 4000.0212 | EN7: 4000.0212 | EO7: =EN7+0.0000001 -> 4000.0212 | EP7: 0 | EQ7: 0 | ER7: 0 | ES7: 0 | ET7: 0 | EU7: 0 | EV7: FALSE | EW7: FALSE | EX7: FALSE | EY7: FALSE | EZ7: 0 | FA7: 0 | FB7: 0 | FC7: 0 | FF7: 1 | FG7: 1 | FH7: 1 | FI7: 1 | FJ7: 1 | FK7: FALSE | FL7: FALSE | FM7: FALSE | FN7: FALSE | FO7: 1 | FP7: 17 | FQ7: 6 | FR7: 6 | FS7: 17 | FT7: 1 | FU7: 0 | FV7: 0 | FW7: 1 | FX7: Périgueux | FY7: 0.1125 | FZ7: =IF(FY7="","",_xlfn.RANK.EQ(FY7,FY3:FY18)) -> 5 | GA7: Carcassonne | GB7: Périgueux | GC7: 0.1125 | GD7: =IF(GC7="","",_xlfn.RANK.EQ(GC7,GC3:GC18)) -> 5 | GE7: Carcassonne | GF7: Bourgoin-Jallieu | GG7: 0.1117 | GH7: =IF(GG7="","",_xlfn.RANK.EQ(GG7,GG3:GG18)) -> 5 | GI7: Carcassonne | GK7: ok | GL7: 2023-08-26T19:00:00 | GQ7: 1 | GR7: 1
D8: Narbonne | E8: 17 | G8: 2 | I8: 9 | K8: 0 | M8: Chambéry | Q8: 2023-08-26 | R8: 19:00:00 | U8: 6 | V8: Bourgoin-Jallieu | X8: 0 | Y8: 0 | Z8: u | AA8: 1 | AB8: 1 | AC8: 0 | AD8: 0 | AE8: 17 | AF8: 6 | AG8: 11 | AH8: 0 | AI8: 0 | AJ8: 0 | AK8: 0 | AL8: 1 | AM8: 0 | AN8: 1 | AO8: 6 | AP8: Bourgoin-Jallieu | AR8: 0 | AS8: 0 | AT8: u | AU8: 1 | AV8: 1 | AW8: 0 | AX8: 0 | AY8: 17 | AZ8: 6 | BA8: 11 | BB8: 0 | BC8: 0 | BD8: 0 | BE8: 1 | BF8: 0 | BG8: 1 | BH8: 6 | BI8: Narbonne | BK8: 0 | BL8: 0 | BM8: u | BN8: 1 | BO8: 1 | BP8: 0 | BQ8: 0 | BR8: 17 | BS8: 9 | BT8: 8 | BU8: 2 | BV8: 0 | BW8: 2 | BX8: 6 | BY8: 9 | BZ8: 6 | CA8: 9 | CB8: 6 | CC8: 9 | CD8: =IF(Equipes!$C$7="","",Equipes!$C$7) -> Chambéry | CF8: 9 | CG8: =CF8-CF8 -> 0 | CH8: u | CI8: 9 | CJ8: =SUMPRODUCT(($D$3:$D$10=CD8)*($FB$3:$FB$10))+SUMPRODUCT(($M$3:$M$10=CD8)*($FC$3:$FC$10))+CU8 -> 0 | CK8: =SUMPRODUCT(($D$3:$D$10=CD8)*($FF$3:$FF$10))+SUMPRODUCT(($M$3:$M$10=CD8)*($FG$3:$FG$10)) -> 1 | CL8: =SUMPRODUCT(($D$3:$D$10=CD8)*($FJ$3:$FJ$10))+SUMPRODUCT(($M$3:$M$10=CD8)*($FK$3:$FK$10)) -> 0 | CM8: =SUMPRODUCT(($D$3:$D$10=CD8)*($FL$3:$FL$10))+SUMPRODUCT(($M$3:$M$10=CD8)*($FM$3:$FM$10)) -> 0 | CN8: =SUMPRODUCT(($D$3:$D$10=CD8)*($FN$3:$FN$10))+SUMPRODUCT(($M$3:$M$10=CD8)*($FO$3:$FO$10)) -> 1 | CO8: =SUMPRODUCT(($D$3:$D$10=CD8)*($FP$3:$FP$10))+SUMPRODUCT(($M$3:$M$10=CD8)*($FQ$3:$FQ$10)) -> 9 | CP8: =SUMPRODUCT(($D$3:$D$10=CD8)*($FR$3:$FR$10))+SUMPRODUCT(($M$3:$M$10=CD8)*($FS$3:$FS$10)) -> 17 | CQ8: -8 | CR8: 0 | CS8: =SUMPRODUCT(($D$3:$D$10=CD8)*($EV$3:$EV$10))+SUMPRODUCT(($M$3:$M$10=CD8)*($EW$3:$EW$10)) -> 0 | CT8: =SUMPRODUCT(($D$3:$D$10=CD8)*($EX$3:$EX$10))+SUMPRODUCT(($M$3:$M$10=CD8)*($EY$3:$EY$10)) -> 0 | CU8: 0 | CV8: =SUMPRODUCT(($D$3:$D$10=CD8)*($FT$3:$FT$10))+SUMPRODUCT(($M$3:$M$10=CD8)*($FU$3:$FU$10)) -> 0 | CW8: =SUMPRODUCT(($D$3:$D$10=CD8)*($FV$3:$FV$10))+SUMPRODUCT(($M$3:$M$10=CD8)*($FW$3:$FW$10)) -> 2 | CX8: -2 | CY8: =IF(Equipes!$C$7="","",Equipes!$C$7) -> Chambéry | DA8: 9 | DB8: 0 | DC8: u | DD8: 9 | DE8: =SUMPRODUCT(($D$3:$D$10=CY8)*($FB$3:$FB$10))+SUMPRODUCT(($M$3:$M$10=CY8)*($FC$3:$FC$10)) -> 0 | DF8: =SUMPRODUCT(($D$3:$D$10=CY8)*($FF$3:$FF$10))+SUMPRODUCT(($M$3:$M$10=CY8)*($FG$3:$FG$10)) -> 1 | DG8: =SUMPRODUCT(($D$3:$D$10=CY8)*($FJ$3:$FJ$10))+SUMPRODUCT(($M$3:$M$10=CY8)*($FK$3:$FK$10)) -> 0 | DH8: =SUMPRODUCT(($D$3:$D$10=CY8)*($FL$3:$FL$10))+SUMPRODUCT(($M$3:$M$10=CY8)*($FM$3:$FM$10)) -> 0 | DI8: =SUMPRODUCT(($D$3:$D$10=CY8)*($FN$3:$FN$10))+SUMPRODUCT(($M$3:$M$10=CY8)*($FO$3:$FO$10)) -> 1 | DJ8: =SUMPRODUCT(($D$3:$D$10=CY8)*($FP$3:$FP$10))+SUMPRODUCT(($M$3:$M$10=CY8)*($FQ$3:$FQ$10)) -> 9 | DK8: =SUMPRODUCT(($D$3:$D$10=CY8)*($FR$3:$FR$10))+SUMPRODUCT(($M$3:$M$10=CY8)*($FS$3:$FS$10)) -> 17 | DL8: -8 | DM8: 0 | DN8: =SUMPRODUCT(($D$3:$D$10=CY8)*($EV$3:$EV$10))+SUMPRODUCT(($M$3:$M$10=CY8)*($EW$3:$EW$10)) -> 0 | DO8: =SUMPRODUCT(($D$3:$D$10=CY8)*($EX$3:$EX$10))+SUMPRODUCT(($M$3:$M$10=CY8)*($EY$3:$EY$10)) -> 0 | DP8: =SUMPRODUCT(($D$3:$D$10=CY8)*($FT$3:$FT$10))+SUMPRODUCT(($M$3:$M$10=CY8)*($FU$3:$FU$10)) -> 0 | DQ8: =SUMPRODUCT(($D$3:$D$10=CY8)*($FV$3:$FV$10))+SUMPRODUCT(($M$3:$M$10=CY8)*($FW$3:$FW$10)) -> 2 | DR8: -2 | DS8: =IF(Equipes!$C$7="","",Equipes!$C$7) -> Chambéry | DU8: 9 | DV8: 0 | DW8: u | DX8: 9 | DY8: =SUMPRODUCT(($D$3:$D$10=DS8)*($ET$3:$ET$10))+SUMPRODUCT(($M$3:$M$10=DS8)*($EU$3:$EU$10)) -> 0 | DZ8: =SUMPRODUCT(($D3:$D$10=DS8)*($FF$3:$FF$10))+SUMPRODUCT(($M$3:$M$10=DS8)*($FG$3:$FG$10)) -> 1 | EA8: =SUMPRODUCT(($D$3:$D$10=DS8)*($FJ$3:$FJ$10))+SUMPRODUCT(($M$3:$M$10=DS8)*($FK$3:$FK$10)) -> 0 | EB8: =SUMPRODUCT(($D$3:$D$10=DS8)*($FL$3:$FL$10))+SUMPRODUCT(($M$3:$M$10=DS8)*($FM$3:$FM$10)) -> 0 | EC8: =SUMPRODUCT(($D$3:$D$10=DS8)*($FN$3:$FN$10))+SUMPRODUCT(($M$3:$M$10=DS8)*($FO$3:$FO$10)) -> 1 | ED8: =SUMPRODUCT(($D$3:$D$10=DS8)*($FP$3:$FP$10))+SUMPRODUCT(($M$3:$M$10=DS8)*($FQ$3:$FQ$10)) -> 9 | EE8: =SUMPRODUCT(($D$3:$D$10=DS8)*($FR$3:$FR$10))+SUMPRODUCT(($M$3:$M$10=DS8)*($FS$3:$FS$10)) -> 17 | EF8: -8 | EG8: =SUMPRODUCT(($D$3:$D$10=DS8)*($FT$3:$FT$10))+SUMPRODUCT(($M$3:$M$10=DS8)*($FU$3:$FU$10)) -> 0 | EH8: =SUMPRODUCT(($D$3:$D$10=DS8)*($FV$3:$FV$10))+SUMPRODUCT(($M$3:$M$10=DS8)*($FW$3:$FW$10)) -> 2 | EI8: -2 | EJ8: -0.0791 | EK8: =EJ8+0.00000009 -> -0.07909991 | EL8: -0.0791 | EM8: =EL8+0.00000009 -> -0.07909991 | EN8: -0.0791 | EO8: =EN8+0.00000009 -> -0.07909991 | EP8: 0 | EQ8: 0 | ER8: 0 | ES8: 0 | ET8: 0 | EU8: 0 | EV8: FALSE | EW8: FALSE | EX8: FALSE | EY8: FALSE | EZ8: 0 | FA8: 0 | FB8: 0 | FC8: 0 | FF8: 1 | FG8: 1 | FH8: 1 | FI8: 1 | FJ8: 1 | FK8: FALSE | FL8: FALSE | FM8: FALSE | FN8: FALSE | FO8: 1 | FP8: 17 | FQ8: 9 | FR8: 9 | FS8: 17 | FT8: 2 | FU8: 0 | FV8: 0 | FW8: 2 | FX8: Bourgoin-Jallieu | FY8: 0.1117 | FZ8: =IF(FY8="","",_xlfn.RANK.EQ(FY8,FY3:FY18)) -> 6 | GA8: Chambéry | GB8: Bourgoin-Jallieu | GC8: 0.1117 | GD8: =IF(GC8="","",_xlfn.RANK.EQ(GC8,GC3:GC18)) -> 6 | GE8: Chambéry | GF8: Narbonne | GG8: 0.0817 | GH8: =IF(GG8="","",_xlfn.RANK.EQ(GG8,GG3:GG18)) -> 6 | GI8: Chambéry | GK8: ok | GL8: 2023-08-26T19:00:00 | GQ8: 1 | GR8: 1
D9: Bourg-en-Bresse | E9: 10 | F9: Bd | G9: 1 | I9: 12 | K9: 0 | M9: Carcassonne | Q9: 2023-08-25 | R9: 19:30:00 | U9: 7 | V9: Narbonne | X9: 0 | Y9: 0 | Z9: u | AA9: 1 | AB9: 1 | AC9: 0 | AD9: 0 | AE9: 17 | AF9: 9 | AG9: 8 | AH9: 0 | AI9: 0 | AJ9: 0 | AK9: 0 | AL9: 2 | AM9: 0 | AN9: 2 | AO9: 7 | AP9: Narbonne | AR9: 0 | AS9: 0 | AT9: u | AU9: 1 | AV9: 1 | AW9: 0 | AX9: 0 | AY9: 17 | AZ9: 9 | BA9: 8 | BB9: 0 | BC9: 0 | BD9: 0 | BE9: 2 | BF9: 0 | BG9: 2 | BH9: 7 | BI9: Massy | BK9: 0 | BL9: 0 | BM9: u | BN9: 1 | BO9: 1 | BP9: 0 | BQ9: 0 | BR9: 20 | BS9: 13 | BT9: 7 | BU9: 2 | BV9: 1 | BW9: 1 | BX9: 7 | BY9: 4 | BZ9: 7 | CA9: 4 | CB9: 7 | CC9: 3 | CD9: =IF(Equipes!$C$8="","",Equipes!$C$8) -> Hyères | CF9: 4 | CG9: 0 | CH9: u | CI9: 4 | CJ9: =SUMPRODUCT(($D$3:$D$10=CD9)*($FB$3:$FB$10))+SUMPRODUCT(($M$3:$M$10=CD9)*($FC$3:$FC$10))+CU9 -> 0 | CK9: =SUMPRODUCT(($D$3:$D$10=CD9)*($FF$3:$FF$10))+SUMPRODUCT(($M$3:$M$10=CD9)*($FG$3:$FG$10)) -> 1 | CL9: =SUMPRODUCT(($D$3:$D$10=CD9)*($FJ$3:$FJ$10))+SUMPRODUCT(($M$3:$M$10=CD9)*($FK$3:$FK$10)) -> 1 | CM9: =SUMPRODUCT(($D$3:$D$10=CD9)*($FL$3:$FL$10))+SUMPRODUCT(($M$3:$M$10=CD9)*($FM$3:$FM$10)) -> 0 | CN9: =SUMPRODUCT(($D$3:$D$10=CD9)*($FN$3:$FN$10))+SUMPRODUCT(($M$3:$M$10=CD9)*($FO$3:$FO$10)) -> 0 | CO9: =SUMPRODUCT(($D$3:$D$10=CD9)*($FP$3:$FP$10))+SUMPRODUCT(($M$3:$M$10=CD9)*($FQ$3:$FQ$10)) -> 24 | CP9: =SUMPRODUCT(($D$3:$D$10=CD9)*($FR$3:$FR$10))+SUMPRODUCT(($M$3:$M$10=CD9)*($FS$3:$FS$10)) -> 10 | CQ9: 14 | CR9: 0 | CS9: =SUMPRODUCT(($D$3:$D$10=CD9)*($EV$3:$EV$10))+SUMPRODUCT(($M$3:$M$10=CD9)*($EW$3:$EW$10)) -> 0 | CT9: =SUMPRODUCT(($D$3:$D$10=CD9)*($EX$3:$EX$10))+SUMPRODUCT(($M$3:$M$10=CD9)*($EY$3:$EY$10)) -> 0 | CU9: 0 | CV9: =SUMPRODUCT(($D$3:$D$10=CD9)*($FT$3:$FT$10))+SUMPRODUCT(($M$3:$M$10=CD9)*($FU$3:$FU$10)) -> 2 | CW9: =SUMPRODUCT(($D$3:$D$10=CD9)*($FV$3:$FV$10))+SUMPRODUCT(($M$3:$M$10=CD9)*($FW$3:$FW$10)) -> 1 | CX9: 1 | CY9: =IF(Equipes!$C$8="","",Equipes!$C$8) -> Hyères | DA9: 4 | DB9: 0 | DC9: u | DD9: 4 | DE9: =SUMPRODUCT(($D$3:$D$10=CY9)*($FB$3:$FB$10))+SUMPRODUCT(($M$3:$M$10=CY9)*($FC$3:$FC$10)) -> 0 | DF9: =SUMPRODUCT(($D$3:$D$10=CY9)*($FF$3:$FF$10))+SUMPRODUCT(($M$3:$M$10=CY9)*($FG$3:$FG$10)) -> 1 | DG9: =SUMPRODUCT(($D$3:$D$10=CY9)*($FJ$3:$FJ$10))+SUMPRODUCT(($M$3:$M$10=CY9)*($FK$3:$FK$10)) -> 1 | DH9: =SUMPRODUCT(($D$3:$D$10=CY9)*($FL$3:$FL$10))+SUMPRODUCT(($M$3:$M$10=CY9)*($FM$3:$FM$10)) -> 0 | DI9: =SUMPRODUCT(($D$3:$D$10=CY9)*($FN$3:$FN$10))+SUMPRODUCT(($M$3:$M$10=CY9)*($FO$3:$FO$10)) -> 0 | DJ9: =SUMPRODUCT(($D$3:$D$10=CY9)*($FP$3:$FP$10))+SUMPRODUCT(($M$3:$M$10=CY9)*($FQ$3:$FQ$10)) -> 24 | DK9: =SUMPRODUCT(($D$3:$D$10=CY9)*($FR$3:$FR$10))+SUMPRODUCT(($M$3:$M$10=CY9)*($FS$3:$FS$10)) -> 10 | DL9: 14 | DM9: 0 | DN9: =SUMPRODUCT(($D$3:$D$10=CY9)*($EV$3:$EV$10))+SUMPRODUCT(($M$3:$M$10=CY9)*($EW$3:$EW$10)) -> 0 | DO9: =SUMPRODUCT(($D$3:$D$10=CY9)*($EX$3:$EX$10))+SUMPRODUCT(($M$3:$M$10=CY9)*($EY$3:$EY$10)) -> 0 | DP9: =SUMPRODUCT(($D$3:$D$10=CY9)*($FT$3:$FT$10))+SUMPRODUCT(($M$3:$M$10=CY9)*($FU$3:$FU$10)) -> 2 | DQ9: =SUMPRODUCT(($D$3:$D$10=CY9)*($FV$3:$FV$10))+SUMPRODUCT(($M$3:$M$10=CY9)*($FW$3:$FW$10)) -> 1 | DR9: 1 | DS9: =IF(Equipes!$C$8="","",Equipes!$C$8) -> Hyères | DU9: 3 | DV9: 0 | DW9: u | DX9: 3 | DY9: =SUMPRODUCT(($D$3:$D$10=DS9)*($ET$3:$ET$10))+SUMPRODUCT(($M$3:$M$10=DS9)*($EU$3:$EU$10)) -> 0 | DZ9: =SUMPRODUCT(($D3:$D$10=DS9)*($FF$3:$FF$10))+SUMPRODUCT(($M$3:$M$10=DS9)*($FG$3:$FG$10)) -> 1 | EA9: =SUMPRODUCT(($D$3:$D$10=DS9)*($FJ$3:$FJ$10))+SUMPRODUCT(($M$3:$M$10=DS9)*($FK$3:$FK$10)) -> 1 | EB9: =SUMPRODUCT(($D$3:$D$10=DS9)*($FL$3:$FL$10))+SUMPRODUCT(($M$3:$M$10=DS9)*($FM$3:$FM$10)) -> 0 | EC9: =SUMPRODUCT(($D$3:$D$10=DS9)*($FN$3:$FN$10))+SUMPRODUCT(($M$3:$M$10=DS9)*($FO$3:$FO$10)) -> 0 | ED9: =SUMPRODUCT(($D$3:$D$10=DS9)*($FP$3:$FP$10))+SUMPRODUCT(($M$3:$M$10=DS9)*($FQ$3:$FQ$10)) -> 24 | EE9: =SUMPRODUCT(($D$3:$D$10=DS9)*($FR$3:$FR$10))+SUMPRODUCT(($M$3:$M$10=DS9)*($FS$3:$FS$10)) -> 10 | EF9: 14 | EG9: =SUMPRODUCT(($D$3:$D$10=DS9)*($FT$3:$FT$10))+SUMPRODUCT(($M$3:$M$10=DS9)*($FU$3:$FU$10)) -> 2 | EH9: =SUMPRODUCT(($D$3:$D$10=DS9)*($FV$3:$FV$10))+SUMPRODUCT(($M$3:$M$10=DS9)*($FW$3:$FW$10)) -> 1 | EI9: 1 | EJ9: 0.1424 | EK9: =EJ9+0.00000008 -> 0.14240008 | EL9: 0.1424 | EM9: =EL9+0.00000008 -> 0.14240008 | EN9: 0.1424 | EO9: =EN9+0.00000008 -> 0.14240008 | EP9: 0 | EQ9: 0 | ER9: 0 | ES9: 0 | ET9: -4 | EU9: 4 | EV9: FALSE | EW9: FALSE | EX9: 1 | EY9: FALSE | EZ9: -3 | FA9: 4 | FB9: -3 | FC9: 4 | FF9: 1 | FG9: 1 | FH9: 1 | FI9: 1 | FJ9: FALSE | FK9: 1 | FL9: FALSE | FM9: FALSE | FN9: 1 | FO9: FALSE | FP9: 10 | FQ9: 12 | FR9: 12 | FS9: 10 | FT9: 1 | FU9: 0 | FV9: 0 | FW9: 1 | FX9: Narbonne | FY9: 0.0817 | FZ9: =IF(FY9="","",_xlfn.RANK.EQ(FY9,FY3:FY18)) -> 7 | GA9: Hyères | GB9: Narbonne | GC9: 0.0817 | GD9: =IF(GC9="","",_xlfn.RANK.EQ(GC9,GC3:GC18)) -> 7 | GE9: Hyères | GF9: Massy | GG9: 0.072 | GH9: =IF(GG9="","",_xlfn.RANK.EQ(GG9,GG3:GG18)) -> 7 | GI9: Hyères | GK9: ok | GL9: 2023-08-25T19:30:00 | GQ9: 1 | GR9: 1
U10: 8 | V10: Massy | X10: 0 | Y10: 0 | Z10: u | AA10: 1 | AB10: 1 | AC10: 0 | AD10: 0 | AE10: 20 | AF10: 13 | AG10: 7 | AH10: 0 | AI10: 0 | AJ10: 0 | AK10: 0 | AL10: 2 | AM10: 1 | AN10: 1 | AO10: 8 | AP10: Massy | AR10: 0 | AS10: 0 | AT10: u | AU10: 1 | AV10: 1 | AW10: 0 | AX10: 0 | AY10: 20 | AZ10: 13 | BA10: 7 | BB10: 0 | BC10: 0 | BD10: 0 | BE10: 2 | BF10: 1 | BG10: 1 | BH10: 8 | BI10: Tarbes | BK10: 0 | BL10: 0 | BM10: u | BN10: 1 | BO10: 0 | BP10: 0 | BQ10: 1 | BR10: 13 | BS10: 20 | BT10: -7 | BU10: 1 | BV10: 2 | BW10: -1 | BX10: 8 | BY10: 8 | BZ10: 8 | CA10: 8 | CB10: 8 | CC10: 7 | CD10: =IF(Equipes!$C$9="","",Equipes!$C$9) -> Massy | CF10: 8 | CG10: 0 | CH10: u | CI10: 8 | CJ10: =SUMPRODUCT(($D$3:$D$10=CD10)*($FB$3:$FB$10))+SUMPRODUCT(($M$3:$M$10=CD10)*($FC$3:$FC$10))+CU10 -> 0 | CK10: =SUMPRODUCT(($D$3:$D$10=CD10)*($FF$3:$FF$10))+SUMPRODUCT(($M$3:$M$10=CD10)*($FG$3:$FG$10)) -> 1 | CL10: =SUMPRODUCT(($D$3:$D$10=CD10)*($FJ$3:$FJ$10))+SUMPRODUCT(($M$3:$M$10=CD10)*($FK$3:$FK$10)) -> 1 | CM10: =SUMPRODUCT(($D$3:$D$10=CD10)*($FL$3:$FL$10))+SUMPRODUCT(($M$3:$M$10=CD10)*($FM$3:$FM$10)) -> 0 | CN10: =SUMPRODUCT(($D$3:$D$10=CD10)*($FN$3:$FN$10))+SUMPRODUCT(($M$3:$M$10=CD10)*($FO$3:$FO$10)) -> 0 | CO10: =SUMPRODUCT(($D$3:$D$10=CD10)*($FP$3:$FP$10))+SUMPRODUCT(($M$3:$M$10=CD10)*($FQ$3:$FQ$10)) -> 20 | CP10: =SUMPRODUCT(($D$3:$D$10=CD10)*($FR$3:$FR$10))+SUMPRODUCT(($M$3:$M$10=CD10)*($FS$3:$FS$10)) -> 13 | CQ10: 7 | CR10: 0 | CS10: =SUMPRODUCT(($D$3:$D$10=CD10)*($EV$3:$EV$10))+SUMPRODUCT(($M$3:$M$10=CD10)*($EW$3:$EW$10)) -> 0 | CT10: =SUMPRODUCT(($D$3:$D$10=CD10)*($EX$3:$EX$10))+SUMPRODUCT(($M$3:$M$10=CD10)*($EY$3:$EY$10)) -> 0 | CU10: 0 | CV10: =SUMPRODUCT(($D$3:$D$10=CD10)*($FT$3:$FT$10))+SUMPRODUCT(($M$3:$M$10=CD10)*($FU$3:$FU$10)) -> 2 | CW10: =SUMPRODUCT(($D$3:$D$10=CD10)*($FV$3:$FV$10))+SUMPRODUCT(($M$3:$M$10=CD10)*($FW$3:$FW$10)) -> 1 | CX10: 1 | CY10: =IF(Equipes!$C$9="","",Equipes!$C$9) -> Massy | DA10: 8 | DB10: 0 | DC10: u | DD10: 8 | DE10: =SUMPRODUCT(($D$3:$D$10=CY10)*($FB$3:$FB$10))+SUMPRODUCT(($M$3:$M$10=CY10)*($FC$3:$FC$10)) -> 0 | DF10: =SUMPRODUCT(($D$3:$D$10=CY10)*($FF$3:$FF$10))+SUMPRODUCT(($M$3:$M$10=CY10)*($FG$3:$FG$10)) -> 1 | DG10: =SUMPRODUCT(($D$3:$D$10=CY10)*($FJ$3:$FJ$10))+SUMPRODUCT(($M$3:$M$10=CY10)*($FK$3:$FK$10)) -> 1 | DH10: =SUMPRODUCT(($D$3:$D$10=CY10)*($FL$3:$FL$10))+SUMPRODUCT(($M$3:$M$10=CY10)*($FM$3:$FM$10)) -> 0 | DI10: =SUMPRODUCT(($D$3:$D$10=CY10)*($FN$3:$FN$10))+SUMPRODUCT(($M$3:$M$10=CY10)*($FO$3:$FO$10)) -> 0 | DJ10: =SUMPRODUCT(($D$3:$D$10=CY10)*($FP$3:$FP$10))+SUMPRODUCT(($M$3:$M$10=CY10)*($FQ$3:$FQ$10)) -> 20 | DK10: =SUMPRODUCT(($D$3:$D$10=CY10)*($FR$3:$FR$10))+SUMPRODUCT(($M$3:$M$10=CY10)*($FS$3:$FS$10)) -> 13 | DL10: 7 | DM10: 0 | DN10: =SUMPRODUCT(($D$3:$D$10=CY10)*($EV$3:$EV$10))+SUMPRODUCT(($M$3:$M$10=CY10)*($EW$3:$EW$10)) -> 0 | DO10: =SUMPRODUCT(($D$3:$D$10=CY10)*($EX$3:$EX$10))+SUMPRODUCT(($M$3:$M$10=CY10)*($EY$3:$EY$10)) -> 0 | DP10: =SUMPRODUCT(($D$3:$D$10=CY10)*($FT$3:$FT$10))+SUMPRODUCT(($M$3:$M$10=CY10)*($FU$3:$FU$10)) -> 2 | DQ10: =SUMPRODUCT(($D$3:$D$10=CY10)*($FV$3:$FV$10))+SUMPRODUCT(($M$3:$M$10=CY10)*($FW$3:$FW$10)) -> 1 | DR10: 1 | DS10: =IF(Equipes!$C$9="","",Equipes!$C$9) -> Massy | DU10: 7 | DV10: 0 | DW10: u | DX10: 7 | DY10: =SUMPRODUCT(($D$3:$D$10=DS10)*($ET$3:$ET$10))+SUMPRODUCT(($M$3:$M$10=DS10)*($EU$3:$EU$10)) -> 0 | DZ10: =SUMPRODUCT(($D3:$D$10=DS10)*($FF$3:$FF$10))+SUMPRODUCT(($M$3:$M$10=DS10)*($FG$3:$FG$10)) -> 1 | EA10: =SUMPRODUCT(($D$3:$D$10=DS10)*($FJ$3:$FJ$10))+SUMPRODUCT(($M$3:$M$10=DS10)*($FK$3:$FK$10)) -> 1 | EB10: =SUMPRODUCT(($D$3:$D$10=DS10)*($FL$3:$FL$10))+SUMPRODUCT(($M$3:$M$10=DS10)*($FM$3:$FM$10)) -> 0 | EC10: =SUMPRODUCT(($D$3:$D$10=DS10)*($FN$3:$FN$10))+SUMPRODUCT(($M$3:$M$10=DS10)*($FO$3:$FO$10)) -> 0 | ED10: =SUMPRODUCT(($D$3:$D$10=DS10)*($FP$3:$FP$10))+SUMPRODUCT(($M$3:$M$10=DS10)*($FQ$3:$FQ$10)) -> 20 | EE10: =SUMPRODUCT(($D$3:$D$10=DS10)*($FR$3:$FR$10))+SUMPRODUCT(($M$3:$M$10=DS10)*($FS$3:$FS$10)) -> 13 | EF10: 7 | EG10: =SUMPRODUCT(($D$3:$D$10=DS10)*($FT$3:$FT$10))+SUMPRODUCT(($M$3:$M$10=DS10)*($FU$3:$FU$10)) -> 2 | EH10: =SUMPRODUCT(($D$3:$D$10=DS10)*($FV$3:$FV$10))+SUMPRODUCT(($M$3:$M$10=DS10)*($FW$3:$FW$10)) -> 1 | EI10: 1 | EJ10: 0.072 | EK10: =EJ10+0.00000007 -> 0.07200007 | EL10: 0.072 | EM10: =EL10+0.00000007 -> 0.07200007 | EN10: 0.072 | EO10: =EN10+0.00000007 -> 0.07200007 | FX10: Massy | FY10: 0.072 | FZ10: =IF(FY10="","",_xlfn.RANK.EQ(FY10,FY3:FY18)) -> 8 | GA10: Massy | GB10: Massy | GC10: 0.072 | GD10: =IF(GC10="","",_xlfn.RANK.EQ(GC10,GC3:GC18)) -> 8 | GE10: Massy | GF10: Tarbes | GG10: -0.0687 | GH10: =IF(GG10="","",_xlfn.RANK.EQ(GG10,GG3:GG18)) -> 8 | GI10: Massy
U11: 9 | V11: Chambéry | X11: 0 | Y11: 0 | Z11: u | AA11: 1 | AB11: 0 | AC11: 0 | AD11: 1 | AE11: 9 | AF11: 17 | AG11: -8 | AH11: 0 | AI11: 0 | AJ11: 0 | AK11: 0 | AL11: 0 | AM11: 2 | AN11: -2 | AO11: 9 | AP11: Chambéry | AR11: 0 | AS11: 0 | AT11: u | AU11: 1 | AV11: 0 | AW11: 0 | AX11: 1 | AY11: 9 | AZ11: 17 | BA11: -8 | BB11: 0 | BC11: 0 | BD11: 0 | BE11: 0 | BF11: 2 | BG11: -2 | BH11: 9 | BI11: Chambéry | BK11: 0 | BL11: 0 | BM11: u | BN11: 1 | BO11: 0 | BP11: 0 | BQ11: 1 | BR11: 9 | BS11: 17 | BT11: -8 | BU11: 0 | BV11: 2 | BW11: -2 | BX11: 9 | BY11: 7 | BZ11: 9 | CA11: 7 | CB11: 9 | CC11: 6 | CD11: =IF(Equipes!$C$10="","",Equipes!$C$10) -> Narbonne | CF11: 7 | CG11: 0 | CH11: u | CI11: 7 | CJ11: =SUMPRODUCT(($D$3:$D$10=CD11)*($FB$3:$FB$10))+SUMPRODUCT(($M$3:$M$10=CD11)*($FC$3:$FC$10))+CU11 -> 0 | CK11: =SUMPRODUCT(($D$3:$D$10=CD11)*($FF$3:$FF$10))+SUMPRODUCT(($M$3:$M$10=CD11)*($FG$3:$FG$10)) -> 1 | CL11: =SUMPRODUCT(($D$3:$D$10=CD11)*($FJ$3:$FJ$10))+SUMPRODUCT(($M$3:$M$10=CD11)*($FK$3:$FK$10)) -> 1 | CM11: =SUMPRODUCT(($D$3:$D$10=CD11)*($FL$3:$FL$10))+SUMPRODUCT(($M$3:$M$10=CD11)*($FM$3:$FM$10)) -> 0 | CN11: =SUMPRODUCT(($D$3:$D$10=CD11)*($FN$3:$FN$10))+SUMPRODUCT(($M$3:$M$10=CD11)*($FO$3:$FO$10)) -> 0 | CO11: =SUMPRODUCT(($D$3:$D$10=CD11)*($FP$3:$FP$10))+SUMPRODUCT(($M$3:$M$10=CD11)*($FQ$3:$FQ$10)) -> 17 | CP11: =SUMPRODUCT(($D$3:$D$10=CD11)*($FR$3:$FR$10))+SUMPRODUCT(($M$3:$M$10=CD11)*($FS$3:$FS$10)) -> 9 | CQ11: 8 | CR11: 0 | CS11: =SUMPRODUCT(($D$3:$D$10=CD11)*($EV$3:$EV$10))+SUMPRODUCT(($M$3:$M$10=CD11)*($EW$3:$EW$10)) -> 0 | CT11: =SUMPRODUCT(($D$3:$D$10=CD11)*($EX$3:$EX$10))+SUMPRODUCT(($M$3:$M$10=CD11)*($EY$3:$EY$10)) -> 0 | CU11: 0 | CV11: =SUMPRODUCT(($D$3:$D$10=CD11)*($FT$3:$FT$10))+SUMPRODUCT(($M$3:$M$10=CD11)*($FU$3:$FU$10)) -> 2 | CW11: =SUMPRODUCT(($D$3:$D$10=CD11)*($FV$3:$FV$10))+SUMPRODUCT(($M$3:$M$10=CD11)*($FW$3:$FW$10)) -> 0 | CX11: 2 | CY11: =IF(Equipes!$C$10="","",Equipes!$C$10) -> Narbonne | DA11: 7 | DB11: 0 | DC11: u | DD11: 7 | DE11: =SUMPRODUCT(($D$3:$D$10=CY11)*($FB$3:$FB$10))+SUMPRODUCT(($M$3:$M$10=CY11)*($FC$3:$FC$10)) -> 0 | DF11: =SUMPRODUCT(($D$3:$D$10=CY11)*($FF$3:$FF$10))+SUMPRODUCT(($M$3:$M$10=CY11)*($FG$3:$FG$10)) -> 1 | DG11: =SUMPRODUCT(($D$3:$D$10=CY11)*($FJ$3:$FJ$10))+SUMPRODUCT(($M$3:$M$10=CY11)*($FK$3:$FK$10)) -> 1 | DH11: =SUMPRODUCT(($D$3:$D$10=CY11)*($FL$3:$FL$10))+SUMPRODUCT(($M$3:$M$10=CY11)*($FM$3:$FM$10)) -> 0 | DI11: =SUMPRODUCT(($D$3:$D$10=CY11)*($FN$3:$FN$10))+SUMPRODUCT(($M$3:$M$10=CY11)*($FO$3:$FO$10)) -> 0 | DJ11: =SUMPRODUCT(($D$3:$D$10=CY11)*($FP$3:$FP$10))+SUMPRODUCT(($M$3:$M$10=CY11)*($FQ$3:$FQ$10)) -> 17 | DK11: =SUMPRODUCT(($D$3:$D$10=CY11)*($FR$3:$FR$10))+SUMPRODUCT(($M$3:$M$10=CY11)*($FS$3:$FS$10)) -> 9 | DL11: 8 | DM11: 0 | DN11: =SUMPRODUCT(($D$3:$D$10=CY11)*($EV$3:$EV$10))+SUMPRODUCT(($M$3:$M$10=CY11)*($EW$3:$EW$10)) -> 0 | DO11: =SUMPRODUCT(($D$3:$D$10=CY11)*($EX$3:$EX$10))+SUMPRODUCT(($M$3:$M$10=CY11)*($EY$3:$EY$10)) -> 0 | DP11: =SUMPRODUCT(($D$3:$D$10=CY11)*($FT$3:$FT$10))+SUMPRODUCT(($M$3:$M$10=CY11)*($FU$3:$FU$10)) -> 2 | DQ11: =SUMPRODUCT(($D$3:$D$10=CY11)*($FV$3:$FV$10))+SUMPRODUCT(($M$3:$M$10=CY11)*($FW$3:$FW$10)) -> 0 | DR11: 2 | DS11: =IF(Equipes!$C$10="","",Equipes!$C$10) -> Narbonne | DU11: 6 | DV11: 0 | DW11: u | DX11: 6 | DY11: =SUMPRODUCT(($D$3:$D$10=DS11)*($ET$3:$ET$10))+SUMPRODUCT(($M$3:$M$10=DS11)*($EU$3:$EU$10)) -> 0 | DZ11: =SUMPRODUCT(($D3:$D$10=DS11)*($FF$3:$FF$10))+SUMPRODUCT(($M$3:$M$10=DS10)*($FG$3:$FG$10)) -> 1 | EA11: =SUMPRODUCT(($D$3:$D$10=DS11)*($FJ$3:$FJ$10))+SUMPRODUCT(($M$3:$M$10=DS11)*($FK$3:$FK$10)) -> 1 | EB11: =SUMPRODUCT(($D$3:$D$10=DS11)*($FL$3:$FL$10))+SUMPRODUCT(($M$3:$M$10=DS11)*($FM$3:$FM$10)) -> 0 | EC11: =SUMPRODUCT(($D$3:$D$10=DS11)*($FN$3:$FN$10))+SUMPRODUCT(($M$3:$M$10=DS11)*($FO$3:$FO$10)) -> 0 | ED11: =SUMPRODUCT(($D$3:$D$10=DS11)*($FP$3:$FP$10))+SUMPRODUCT(($M$3:$M$10=DS11)*($FQ$3:$FQ$10)) -> 17 | EE11: =SUMPRODUCT(($D$3:$D$10=DS11)*($FR$3:$FR$10))+SUMPRODUCT(($M$3:$M$10=DS11)*($FS$3:$FS$10)) -> 9 | EF11: 8 | EG11: =SUMPRODUCT(($D$3:$D$10=DS11)*($FT$3:$FT$10))+SUMPRODUCT(($M$3:$M$10=DS11)*($FU$3:$FU$10)) -> 2 | EH11: =SUMPRODUCT(($D$3:$D$10=DS11)*($FV$3:$FV$10))+SUMPRODUCT(($M$3:$M$10=DS11)*($FW$3:$FW$10)) -> 0 | EI11: 2 | EJ11: 0.0817 | EK11: =EJ11+0.00000006 -> 0.08170006 | EL11: 0.0817 | EM11: =EL11+0.00000006 -> 0.08170006 | EN11: 0.0817 | EO11: =EN11+0.00000006 -> 0.08170006 | FX11: Chambéry | FY11: -0.0791 | FZ11: =IF(FY11="","",_xlfn.RANK.EQ(FY11,FY3:FY18)) -> 9 | GA11: Narbonne | GB11: Chambéry | GC11: -0.0791 | GD11: =IF(GC11="","",_xlfn.RANK.EQ(GC11,GC3:GC18)) -> 9 | GE11: Narbonne | GF11: Chambéry | GG11: -0.0791 | GH11: =IF(GG11="","",_xlfn.RANK.EQ(GG11,GG3:GG18)) -> 9 | GI11: Narbonne
U12: 10 | V12: Nice | X12: 0 | Y12: 0 | Z12: u | AA12: 1 | AB12: 0 | AC12: 0 | AD12: 1 | AE12: 14 | AF12: 25 | AG12: -11 | AH12: 0 | AI12: 0 | AJ12: 0 | AK12: 0 | AL12: 2 | AM12: 3 | AN12: -1 | AO12: 10 | AP12: Nice | AR12: 0 | AS12: 0 | AT12: u | AU12: 1 | AV12: 0 | AW12: 0 | AX12: 1 | AY12: 14 | AZ12: 25 | BA12: -11 | BB12: 0 | BC12: 0 | BD12: 0 | BE12: 2 | BF12: 3 | BG12: -1 | BH12: 10 | BI12: Nice | BK12: 0 | BL12: 0 | BM12: u | BN12: 1 | BO12: 0 | BP12: 0 | BQ12: 1 | BR12: 14 | BS12: 25 | BT12: -11 | BU12: 2 | BV12: 3 | BW12: -1 | BX12: 10 | BY12: 10 | BZ12: 10 | CA12: 10 | CB12: 10 | CC12: 10 | CD12: =IF(Equipes!$C$11="","",Equipes!$C$11) -> Nice | CF12: 10 | CG12: 0 | CH12: u | CI12: 10 | CJ12: =SUMPRODUCT(($D$3:$D$10=CD12)*($FB$3:$FB$10))+SUMPRODUCT(($M$3:$M$10=CD12)*($FC$3:$FC$10))+CU12 -> 0 | CK12: =SUMPRODUCT(($D$3:$D$10=CD12)*($FF$3:$FF$10))+SUMPRODUCT(($M$3:$M$10=CD12)*($FG$3:$FG$10)) -> 1 | CL12: =SUMPRODUCT(($D$3:$D$10=CD12)*($FJ$3:$FJ$10))+SUMPRODUCT(($M$3:$M$10=CD12)*($FK$3:$FK$10)) -> 0 | CM12: =SUMPRODUCT(($D$3:$D$10=CD12)*($FL$3:$FL$10))+SUMPRODUCT(($M$3:$M$10=CD12)*($FM$3:$FM$10)) -> 0 | CN12: =SUMPRODUCT(($D$3:$D$10=CD12)*($FN$3:$FN$10))+SUMPRODUCT(($M$3:$M$10=CD12)*($FO$3:$FO$10)) -> 1 | CO12: =SUMPRODUCT(($D$3:$D$10=CD12)*($FP$3:$FP$10))+SUMPRODUCT(($M$3:$M$10=CD12)*($FQ$3:$FQ$10)) -> 14 | CP12: =SUMPRODUCT(($D$3:$D$10=CD12)*($FR$3:$FR$10))+SUMPRODUCT(($M$3:$M$10=CD12)*($FS$3:$FS$10)) -> 25 | CQ12: -11 | CR12: 0 | CS12: =SUMPRODUCT(($D$3:$D$10=CD12)*($EV$3:$EV$10))+SUMPRODUCT(($M$3:$M$10=CD12)*($EW$3:$EW$10)) -> 0 | CT12: =SUMPRODUCT(($D$3:$D$10=CD12)*($EX$3:$EX$10))+SUMPRODUCT(($M$3:$M$10=CD12)*($EY$3:$EY$10)) -> 0 | CU12: 0 | CV12: =SUMPRODUCT(($D$3:$D$10=CD12)*($FT$3:$FT$10))+SUMPRODUCT(($M$3:$M$10=CD12)*($FU$3:$FU$10)) -> 2 | CW12: =SUMPRODUCT(($D$3:$D$10=CD12)*($FV$3:$FV$10))+SUMPRODUCT(($M$3:$M$10=CD12)*($FW$3:$FW$10)) -> 3 | CX12: -1 | CY12: =IF(Equipes!$C$11="","",Equipes!$C$11) -> Nice | DA12: 10 | DB12: 0 | DC12: u | DD12: 10 | DE12: =SUMPRODUCT(($D$3:$D$10=CY12)*($FB$3:$FB$10))+SUMPRODUCT(($M$3:$M$10=CY12)*($FC$3:$FC$10)) -> 0 | DF12: =SUMPRODUCT(($D$3:$D$10=CY12)*($FF$3:$FF$10))+SUMPRODUCT(($M$3:$M$10=CY12)*($FG$3:$FG$10)) -> 1 | DG12: =SUMPRODUCT(($D$3:$D$10=CY12)*($FJ$3:$FJ$10))+SUMPRODUCT(($M$3:$M$10=CY12)*($FK$3:$FK$10)) -> 0 | DH12: =SUMPRODUCT(($D$3:$D$10=CY12)*($FL$3:$FL$10))+SUMPRODUCT(($M$3:$M$10=CY12)*($FM$3:$FM$10)) -> 0 | DI12: =SUMPRODUCT(($D$3:$D$10=CY12)*($FN$3:$FN$10))+SUMPRODUCT(($M$3:$M$10=CY12)*($FO$3:$FO$10)) -> 1 | DJ12: =SUMPRODUCT(($D$3:$D$10=CY12)*($FP$3:$FP$10))+SUMPRODUCT(($M$3:$M$10=CY12)*($FQ$3:$FQ$10)) -> 14 | DK12: =SUMPRODUCT(($D$3:$D$10=CY12)*($FR$3:$FR$10))+SUMPRODUCT(($M$3:$M$10=CY12)*($FS$3:$FS$10)) -> 25 | DL12: -11 | DM12: 0 | DN12: =SUMPRODUCT(($D$3:$D$10=CY12)*($EV$3:$EV$10))+SUMPRODUCT(($M$3:$M$10=CY12)*($EW$3:$EW$10)) -> 0 | DO12: =SUMPRODUCT(($D$3:$D$10=CY12)*($EX$3:$EX$10))+SUMPRODUCT(($M$3:$M$10=CY12)*($EY$3:$EY$10)) -> 0 | DP12: =SUMPRODUCT(($D$3:$D$10=CY12)*($FT$3:$FT$10))+SUMPRODUCT(($M$3:$M$10=CY12)*($FU$3:$FU$10)) -> 2 | DQ12: =SUMPRODUCT(($D$3:$D$10=CY12)*($FV$3:$FV$10))+SUMPRODUCT(($M$3:$M$10=CY12)*($FW$3:$FW$10)) -> 3 | DR12: -1 | DS12: =IF(Equipes!$C$11="","",Equipes!$C$11) -> Nice | DU12: 10 | DV12: 0 | DW12: u | DX12: 10 | DY12: =SUMPRODUCT(($D$3:$D$10=DS12)*($ET$3:$ET$10))+SUMPRODUCT(($M$3:$M$10=DS12)*($EU$3:$EU$10)) -> 0 | DZ12: =SUMPRODUCT(($D3:$D$10=DS11)*($FF$3:$FF$10))+SUMPRODUCT(($M$3:$M$10=DS11)*($FG$3:$FG$10)) -> 1 | EA12: =SUMPRODUCT(($D$3:$D$10=DS12)*($FJ$3:$FJ$10))+SUMPRODUCT(($M$3:$M$10=DS12)*($FK$3:$FK$10)) -> 0 | EB12: =SUMPRODUCT(($D$3:$D$10=DS12)*($FL$3:$FL$10))+SUMPRODUCT(($M$3:$M$10=DS12)*($FM$3:$FM$10)) -> 0 | EC12: =SUMPRODUCT(($D$3:$D$10=DS12)*($FN$3:$FN$10))+SUMPRODUCT(($M$3:$M$10=DS12)*($FO$3:$FO$10)) -> 1 | ED12: =SUMPRODUCT(($D$3:$D$10=DS12)*($FP$3:$FP$10))+SUMPRODUCT(($M$3:$M$10=DS12)*($FQ$3:$FQ$10)) -> 14 | EE12: =SUMPRODUCT(($D$3:$D$10=DS12)*($FR$3:$FR$10))+SUMPRODUCT(($M$3:$M$10=DS12)*($FS$3:$FS$10)) -> 25 | EF12: -11 | EG12: =SUMPRODUCT(($D$3:$D$10=DS12)*($FT$3:$FT$10))+SUMPRODUCT(($M$3:$M$10=DS12)*($FU$3:$FU$10)) -> 2 | EH12: =SUMPRODUCT(($D$3:$D$10=DS12)*($FV$3:$FV$10))+SUMPRODUCT(($M$3:$M$10=DS12)*($FW$3:$FW$10)) -> 3 | EI12: -1 | EJ12: -0.1086 | EK12: =EJ12+0.00000005 -> -0.10859995 | EL12: -0.1086 | EM12: =EL12+0.00000005 -> -0.10859995 | EN12: -0.1086 | EO12: =EN12+0.00000005 -> -0.10859995 | FX12: Nice | FY12: -0.1086 | FZ12: =IF(FY12="","",_xlfn.RANK.EQ(FY12,FY3:FY18)) -> 10 | GA12: Nice | GB12: Nice | GC12: -0.1086 | GD12: =IF(GC12="","",_xlfn.RANK.EQ(GC12,GC3:GC18)) -> 10 | GE12: Nice | GF12: Nice | GG12: -0.1086 | GH12: =IF(GG12="","",_xlfn.RANK.EQ(GG12,GG3:GG18)) -> 10 | GI12: Nice
U13: 11 | V13: Albi | X13: 0 | Y13: 0 | Z13: u | AA13: 1 | AB13: 0 | AC13: 0 | AD13: 1 | AE13: 6 | AF13: 17 | AG13: -11 | AH13: 0 | AI13: 0 | AJ13: 0 | AK13: 0 | AL13: 0 | AM13: 1 | AN13: -1 | AO13: 11 | AP13: Albi | AR13: 0 | AS13: 0 | AT13: u | AU13: 1 | AV13: 0 | AW13: 0 | AX13: 1 | AY13: 6 | AZ13: 17 | BA13: -11 | BB13: 0 | BC13: 0 | BD13: 0 | BE13: 0 | BF13: 1 | BG13: -1 | BH13: 11 | BI13: Albi | BK13: 0 | BL13: 0 | BM13: u | BN13: 1 | BO13: 0 | BP13: 0 | BQ13: 1 | BR13: 6 | BS13: 17 | BT13: -11 | BU13: 0 | BV13: 1 | BW13: -1 | BX13: 11 | BY13: 5 | BZ13: 11 | CA13: 5 | CB13: 11 | CC13: 4 | CD13: =IF(Equipes!$C$12="","",Equipes!$C$12) -> Périgueux | CF13: 5 | CG13: 0 | CH13: u | CI13: 5 | CJ13: =SUMPRODUCT(($D$3:$D$10=CD13)*($FB$3:$FB$10))+SUMPRODUCT(($M$3:$M$10=CD13)*($FC$3:$FC$10))+CU13 -> 0 | CK13: =SUMPRODUCT(($D$3:$D$10=CD13)*($FF$3:$FF$10))+SUMPRODUCT(($M$3:$M$10=CD13)*($FG$3:$FG$10)) -> 1 | CL13: =SUMPRODUCT(($D$3:$D$10=CD13)*($FJ$3:$FJ$10))+SUMPRODUCT(($M$3:$M$10=CD13)*($FK$3:$FK$10)) -> 1 | CM13: =SUMPRODUCT(($D$3:$D$10=CD13)*($FL$3:$FL$10))+SUMPRODUCT(($M$3:$M$10=CD13)*($FM$3:$FM$10)) -> 0 | CN13: =SUMPRODUCT(($D$3:$D$10=CD13)*($FN$3:$FN$10))+SUMPRODUCT(($M$3:$M$10=CD13)*($FO$3:$FO$10)) -> 0 | CO13: =SUMPRODUCT(($D$3:$D$10=CD13)*($FP$3:$FP$10))+SUMPRODUCT(($M$3:$M$10=CD13)*($FQ$3:$FQ$10)) -> 25 | CP13: =SUMPRODUCT(($D$3:$D$10=CD13)*($FR$3:$FR$10))+SUMPRODUCT(($M$3:$M$10=CD13)*($FS$3:$FS$10)) -> 14 | CQ13: 11 | CR13: 0 | CS13: =SUMPRODUCT(($D$3:$D$10=CD13)*($EV$3:$EV$10))+SUMPRODUCT(($M$3:$M$10=CD13)*($EW$3:$EW$10)) -> 0 | CT13: =SUMPRODUCT(($D$3:$D$10=CD13)*($EX$3:$EX$10))+SUMPRODUCT(($M$3:$M$10=CD13)*($EY$3:$EY$10)) -> 0 | CU13: 0 | CV13: =SUMPRODUCT(($D$3:$D$10=CD13)*($FT$3:$FT$10))+SUMPRODUCT(($M$3:$M$10=CD13)*($FU$3:$FU$10)) -> 3 | CW13: =SUMPRODUCT(($D$3:$D$10=CD13)*($FV$3:$FV$10))+SUMPRODUCT(($M$3:$M$10=CD13)*($FW$3:$FW$10)) -> 2 | CX13: 1 | CY13: =IF(Equipes!$C$12="","",Equipes!$C$12) -> Périgueux | DA13: 5 | DB13: 0 | DC13: u | DD13: 5 | DE13: =SUMPRODUCT(($D$3:$D$10=CY13)*($FB$3:$FB$10))+SUMPRODUCT(($M$3:$M$10=CY13)*($FC$3:$FC$10)) -> 0 | DF13: =SUMPRODUCT(($D$3:$D$10=CY13)*($FF$3:$FF$10))+SUMPRODUCT(($M$3:$M$10=CY13)*($FG$3:$FG$10)) -> 1 | DG13: =SUMPRODUCT(($D$3:$D$10=CY13)*($FJ$3:$FJ$10))+SUMPRODUCT(($M$3:$M$10=CY13)*($FK$3:$FK$10)) -> 1 | DH13: =SUMPRODUCT(($D$3:$D$10=CY13)*($FL$3:$FL$10))+SUMPRODUCT(($M$3:$M$10=CY13)*($FM$3:$FM$10)) -> 0 | DI13: =SUMPRODUCT(($D$3:$D$10=CY13)*($FN$3:$FN$10))+SUMPRODUCT(($M$3:$M$10=CY13)*($FO$3:$FO$10)) -> 0 | DJ13: =SUMPRODUCT(($D$3:$D$10=CY13)*($FP$3:$FP$10))+SUMPRODUCT(($M$3:$M$10=CY13)*($FQ$3:$FQ$10)) -> 25 | DK13: =SUMPRODUCT(($D$3:$D$10=CY13)*($FR$3:$FR$10))+SUMPRODUCT(($M$3:$M$10=CY13)*($FS$3:$FS$10)) -> 14 | DL13: 11 | DM13: 0 | DN13: =SUMPRODUCT(($D$3:$D$10=CY13)*($EV$3:$EV$10))+SUMPRODUCT(($M$3:$M$10=CY13)*($EW$3:$EW$10)) -> 0 | DO13: =SUMPRODUCT(($D$3:$D$10=CY13)*($EX$3:$EX$10))+SUMPRODUCT(($M$3:$M$10=CY13)*($EY$3:$EY$10)) -> 0 | DP13: =SUMPRODUCT(($D$3:$D$10=CY13)*($FT$3:$FT$10))+SUMPRODUCT(($M$3:$M$10=CY13)*($FU$3:$FU$10)) -> 3 | DQ13: =SUMPRODUCT(($D$3:$D$10=CY13)*($FV$3:$FV$10))+SUMPRODUCT(($M$3:$M$10=CY13)*($FW$3:$FW$10)) -> 2 | DR13: 1 | DS13: =IF(Equipes!$C$12="","",Equipes!$C$12) -> Périgueux | DU13: 4 | DV13: 0 | DW13: u | DX13: 4 | DY13: =SUMPRODUCT(($D$3:$D$10=DS13)*($ET$3:$ET$10))+SUMPRODUCT(($M$3:$M$10=DS13)*($EU$3:$EU$10)) -> 0 | DZ13: =SUMPRODUCT(($D3:$D$10=DS12)*($FF$3:$FF$10))+SUMPRODUCT(($M$3:$M$10=DS12)*($FG$3:$FG$10)) -> 1 | EA13: =SUMPRODUCT(($D$3:$D$10=DS13)*($FJ$3:$FJ$10))+SUMPRODUCT(($M$3:$M$10=DS13)*($FK$3:$FK$10)) -> 1 | EB13: =SUMPRODUCT(($D$3:$D$10=DS13)*($FL$3:$FL$10))+SUMPRODUCT(($M$3:$M$10=DS13)*($FM$3:$FM$10)) -> 0 | EC13: =SUMPRODUCT(($D$3:$D$10=DS13)*($FN$3:$FN$10))+SUMPRODUCT(($M$3:$M$10=DS13)*($FO$3:$FO$10)) -> 0 | ED13: =SUMPRODUCT(($D$3:$D$10=DS13)*($FP$3:$FP$10))+SUMPRODUCT(($M$3:$M$10=DS13)*($FQ$3:$FQ$10)) -> 25 | EE13: =SUMPRODUCT(($D$3:$D$10=DS13)*($FR$3:$FR$10))+SUMPRODUCT(($M$3:$M$10=DS13)*($FS$3:$FS$10)) -> 14 | EF13: 11 | EG13: =SUMPRODUCT(($D$3:$D$10=DS13)*($FT$3:$FT$10))+SUMPRODUCT(($M$3:$M$10=DS13)*($FU$3:$FU$10)) -> 3 | EH13: =SUMPRODUCT(($D$3:$D$10=DS13)*($FV$3:$FV$10))+SUMPRODUCT(($M$3:$M$10=DS13)*($FW$3:$FW$10)) -> 2 | EI13: 1 | EJ13: 0.1125 | EK13: =EJ13+0.00000004 -> 0.11250004 | EL13: 0.1125 | EM13: =EL13+0.00000004 -> 0.11250004 | EN13: 0.1125 | EO13: =EN13+0.00000004 -> 0.11250004 | FX13: Albi | FY13: -0.1094 | FZ13: =IF(FY13="","",_xlfn.RANK.EQ(FY13,FY3:FY18)) -> 11 | GA13: Périgueux | GB13: Albi | GC13: -0.1094 | GD13: =IF(GC13="","",_xlfn.RANK.EQ(GC13,GC3:GC18)) -> 11 | GE13: Périgueux | GF13: Albi | GG13: -0.1094 | GH13: =IF(GG13="","",_xlfn.RANK.EQ(GG13,GG3:GG18)) -> 11 | GI13: Périgueux
N14: =IF(Accueil!$D$2="","",IF(Accueil!$D$2="Choix de la saison","","Aujourd'hui, nous sommes le "&TEXT(TODAY(),"jjjj jj mmmm aaaa"))) -> Aujourd'hui, nous sommes le vendredi 29 mars 2024 | U14: 12 | V14: Suresnes | X14: 0 | Y14: 0 | Z14: u | AA14: 1 | AB14: 0 | AC14: 0 | AD14: 1 | AE14: 10 | AF14: 24 | AG14: -14 | AH14: 0 | AI14: 0 | AJ14: 0 | AK14: 0 | AL14: 1 | AM14: 2 | AN14: -1 | AO14: 12 | AP14: Suresnes | AR14: 0 | AS14: 0 | AT14: u | AU14: 1 | AV14: 0 | AW14: 0 | AX14: 1 | AY14: 10 | AZ14: 24 | BA14: -14 | BB14: 0 | BC14: 0 | BD14: 0 | BE14: 1 | BF14: 2 | BG14: -1 | BH14: 12 | BI14: Suresnes | BK14: 0 | BL14: 0 | BM14: u | BN14: 1 | BO14: 0 | BP14: 0 | BQ14: 1 | BR14: 10 | BS14: 24 | BT14: -14 | BU14: 1 | BV14: 2 | BW14: -1 | BX14: 12 | BY14: 12 | BZ14: 12 | CA14: 12 | CB14: 12 | CC14: 12 | CD14: =IF(Equipes!$C$13="","",Equipes!$C$13) -> Suresnes | CF14: 12 | CG14: 0 | CH14: u | CI14: 12 | CJ14: =SUMPRODUCT(($D$3:$D$10=CD14)*($FB$3:$FB$10))+SUMPRODUCT(($M$3:$M$10=CD14)*($FC$3:$FC$10))+CU14 -> 0 | CK14: =SUMPRODUCT(($D$3:$D$10=CD14)*($FF$3:$FF$10))+SUMPRODUCT(($M$3:$M$10=CD14)*($FG$3:$FG$10)) -> 1 | CL14: =SUMPRODUCT(($D$3:$D$10=CD14)*($FJ$3:$FJ$10))+SUMPRODUCT(($M$3:$M$10=CD14)*($FK$3:$FK$10)) -> 0 | CM14: =SUMPRODUCT(($D$3:$D$10=CD14)*($FL$3:$FL$10))+SUMPRODUCT(($M$3:$M$10=CD14)*($FM$3:$FM$10)) -> 0 | CN14: =SUMPRODUCT(($D$3:$D$10=CD14)*($FN$3:$FN$10))+SUMPRODUCT(($M$3:$M$10=CD14)*($FO$3:$FO$10)) -> 1 | CO14: =SUMPRODUCT(($D$3:$D$10=CD14)*($FP$3:$FP$10))+SUMPRODUCT(($M$3:$M$10=CD14)*($FQ$3:$FQ$10)) -> 10 | CP14: =SUMPRODUCT(($D$3:$D$10=CD14)*($FR$3:$FR$10))+SUMPRODUCT(($M$3:$M$10=CD14)*($FS$3:$FS$10)) -> 24 | CQ14: -14 | CR14: 0 | CS14: =SUMPRODUCT(($D$3:$D$10=CD14)*($EV$3:$EV$10))+SUMPRODUCT(($M$3:$M$10=CD14)*($EW$3:$EW$10)) -> 0 | CT14: =SUMPRODUCT(($D$3:$D$10=CD14)*($EX$3:$EX$10))+SUMPRODUCT(($M$3:$M$10=CD14)*($EY$3:$EY$10)) -> 0 | CU14: 0 | CV14: =SUMPRODUCT(($D$3:$D$10=CD14)*($FT$3:$FT$10))+SUMPRODUCT(($M$3:$M$10=CD14)*($FU$3:$FU$10)) -> 1 | CW14: =SUMPRODUCT(($D$3:$D$10=CD14)*($FV$3:$FV$10))+SUMPRODUCT(($M$3:$M$10=CD14)*($FW$3:$FW$10)) -> 2 | CX14: -1 | CY14: =IF(Equipes!$C$13="","",Equipes!$C$13) -> Suresnes | DA14: 12 | DB14: 0 | DC14: u | DD14: 12 | DE14: =SUMPRODUCT(($D$3:$D$10=CY14)*($FB$3:$FB$10))+SUMPRODUCT(($M$3:$M$10=CY14)*($FC$3:$FC$10)) -> 0 | DF14: =SUMPRODUCT(($D$3:$D$10=CY14)*($FF$3:$FF$10))+SUMPRODUCT(($M$3:$M$10=CY14)*($FG$3:$FG$10)) -> 1 | DG14: =SUMPRODUCT(($D$3:$D$10=CY14)*($FJ$3:$FJ$10))+SUMPRODUCT(($M$3:$M$10=CY14)*($FK$3:$FK$10)) -> 0 | DH14: =SUMPRODUCT(($D$3:$D$10=CY14)*($FL$3:$FL$10))+SUMPRODUCT(($M$3:$M$10=CY14)*($FM$3:$FM$10)) -> 0 | DI14: =SUMPRODUCT(($D$3:$D$10=CY14)*($FN$3:$FN$10))+SUMPRODUCT(($M$3:$M$10=CY14)*($FO$3:$FO$10)) -> 1 | DJ14: =SUMPRODUCT(($D$3:$D$10=CY14)*($FP$3:$FP$10))+SUMPRODUCT(($M$3:$M$10=CY14)*($FQ$3:$FQ$10)) -> 10 | DK14: =SUMPRODUCT(($D$3:$D$10=CY14)*($FR$3:$FR$10))+SUMPRODUCT(($M$3:$M$10=CY14)*($FS$3:$FS$10)) -> 24 | DL14: -14 | DM14: 0 | DN14: =SUMPRODUCT(($D$3:$D$10=CY14)*($EV$3:$EV$10))+SUMPRODUCT(($M$3:$M$10=CY14)*($EW$3:$EW$10)) -> 0 | DO14: =SUMPRODUCT(($D$3:$D$10=CY14)*($EX$3:$EX$10))+SUMPRODUCT(($M$3:$M$10=CY14)*($EY$3:$EY$10)) -> 0 | DP14: =SUMPRODUCT(($D$3:$D$10=CY14)*($FT$3:$FT$10))+SUMPRODUCT(($M$3:$M$10=CY14)*($FU$3:$FU$10)) -> 1 | DQ14: =SUMPRODUCT(($D$3:$D$10=CY14)*($FV$3:$FV$10))+SUMPRODUCT(($M$3:$M$10=CY14)*($FW$3:$FW$10)) -> 2 | DR14: -1 | DS14: =IF(Equipes!$C$13="","",Equipes!$C$13) -> Suresnes | DU14: 12 | DV14: 0 | DW14: u | DX14: 12 | DY14: =SUMPRODUCT(($D$3:$D$10=DS14)*($ET$3:$ET$10))+SUMPRODUCT(($M$3:$M$10=DS14)*($EU$3:$EU$10)) -> 0 | DZ14: =SUMPRODUCT(($D3:$D$10=DS13)*($FF$3:$FF$10))+SUMPRODUCT(($M$3:$M$10=DS13)*($FG$3:$FG$10)) -> 1 | EA14: =SUMPRODUCT(($D$3:$D$10=DS14)*($FJ$3:$FJ$10))+SUMPRODUCT(($M$3:$M$10=DS14)*($FK$3:$FK$10)) -> 0 | EB14: =SUMPRODUCT(($D$3:$D$10=DS14)*($FL$3:$FL$10))+SUMPRODUCT(($M$3:$M$10=DS14)*($FM$3:$FM$10)) -> 0 | EC14: =SUMPRODUCT(($D$3:$D$10=DS14)*($FN$3:$FN$10))+SUMPRODUCT(($M$3:$M$10=DS14)*($FO$3:$FO$10)) -> 1 | ED14: =SUMPRODUCT(($D$3:$D$10=DS14)*($FP$3:$FP$10))+SUMPRODUCT(($M$3:$M$10=DS14)*($FQ$3:$FQ$10)) -> 10 | EE14: =SUMPRODUCT(($D$3:$D$10=DS14)*($FR$3:$FR$10))+SUMPRODUCT(($M$3:$M$10=DS14)*($FS$3:$FS$10)) -> 24 | EF14: -14 | EG14: =SUMPRODUCT(($D$3:$D$10=DS14)*($FT$3:$FT$10))+SUMPRODUCT(($M$3:$M$10=DS14)*($FU$3:$FU$10)) -> 1 | EH14: =SUMPRODUCT(($D$3:$D$10=DS14)*($FV$3:$FV$10))+SUMPRODUCT(($M$3:$M$10=DS14)*($FW$3:$FW$10)) -> 2 | EI14: -1 | EJ14: -0.139 | EK14: =EJ14+0.00000003 -> -0.13899997 | EL14: -0.139 | EM14: =EL14+0.00000003 -> -0.13899997 | EN14: -0.139 | EO14: =EN14+0.00000003 -> -0.13899997 | FX14: Suresnes | FY14: -0.139 | FZ14: =IF(FY14="","",_xlfn.RANK.EQ(FY14,FY3:FY18)) -> 12 | GA14: Suresnes | GB14: Suresnes | GC14: -0.139 | GD14: =IF(GC14="","",_xlfn.RANK.EQ(GC14,GC3:GC18)) -> 12 | GE14: Suresnes | GF14: Suresnes | GG14: -0.139 | GH14: =IF(GG14="","",_xlfn.RANK.EQ(GG14,GG3:GG18)) -> 12 | GI14: Suresnes
U15: 13 | V15: Bourg-en-Bresse | X15: -3 | Y15: 0 | Z15: u | AA15: 1 | AB15: 0 | AC15: 0 | AD15: 1 | AE15: 10 | AF15: 12 | AG15: -2 | AH15: 1 | AI15: 0 | AJ15: 1 | AK15: 0 | AL15: 1 | AM15: 0 | AN15: 1 | AO15: 13 | AP15: Bourg-en-Bresse | AR15: -3 | AS15: 0 | AT15: u | AU15: 1 | AV15: 0 | AW15: =IFERROR(_xlfn.XLOOKUP(AP15,$CY$3:$CY$18,$DH$3:$DH$18),"") -> 0 | AX15: 1 | AY15: 10 | AZ15: 12 | BA15: -2 | BB15: 1 | BC15: 0 | BD15: 1 | BE15: 1 | BF15: 0 | BG15: 1 | BH15: 13 | BI15: Bourg-en-Bresse | BK15: -4 | BL15: 0 | BM15: u | BN15: 1 | BO15: 0 | BP15: 0 | BQ15: 1 | BR15: 10 | BS15: 12 | BT15: -2 | BU15: 1 | BV15: 0 | BW15: 1 | BX15: 13 | BY15: 3 | BZ15: 13 | CA15: 3 | CB15: 13 | CC15: 8 | CD15: =IF(Equipes!$C$14="","",Equipes!$C$14) -> Tarbes | CF15: 3 | CG15: 0 | CH15: u | CI15: 3 | CJ15: =SUMPRODUCT(($D$3:$D$10=CD15)*($FB$3:$FB$10))+SUMPRODUCT(($M$3:$M$10=CD15)*($FC$3:$FC$10))+CU15 -> 1 | CK15: =SUMPRODUCT(($D$3:$D$10=CD15)*($FF$3:$FF$10))+SUMPRODUCT(($M$3:$M$10=CD15)*($FG$3:$FG$10)) -> 1 | CL15: =SUMPRODUCT(($D$3:$D$10=CD15)*($FJ$3:$FJ$10))+SUMPRODUCT(($M$3:$M$10=CD15)*($FK$3:$FK$10)) -> 0 | CM15: =SUMPRODUCT(($D$3:$D$10=CD15)*($FL$3:$FL$10))+SUMPRODUCT(($M$3:$M$10=CD15)*($FM$3:$FM$10)) -> 0 | CN15: =SUMPRODUCT(($D$3:$D$10=CD15)*($FN$3:$FN$10))+SUMPRODUCT(($M$3:$M$10=CD15)*($FO$3:$FO$10)) -> 1 | CO15: =SUMPRODUCT(($D$3:$D$10=CD15)*($FP$3:$FP$10))+SUMPRODUCT(($M$3:$M$10=CD15)*($FQ$3:$FQ$10)) -> 13 | CP15: =SUMPRODUCT(($D$3:$D$10=CD15)*($FR$3:$FR$10))+SUMPRODUCT(($M$3:$M$10=CD15)*($FS$3:$FS$10)) -> 20 | CQ15: -7 | CR15: 1 | CS15: =SUMPRODUCT(($D$3:$D$10=CD15)*($EV$3:$EV$10))+SUMPRODUCT(($M$3:$M$10=CD15)*($EW$3:$EW$10)) -> 0 | CT15: =SUMPRODUCT(($D$3:$D$10=CD15)*($EX$3:$EX$10))+SUMPRODUCT(($M$3:$M$10=CD15)*($EY$3:$EY$10)) -> 1 | CU15: 0 | CV15: =SUMPRODUCT(($D$3:$D$10=CD15)*($FT$3:$FT$10))+SUMPRODUCT(($M$3:$M$10=CD15)*($FU$3:$FU$10)) -> 1 | CW15: =SUMPRODUCT(($D$3:$D$10=CD15)*($FV$3:$FV$10))+SUMPRODUCT(($M$3:$M$10=CD15)*($FW$3:$FW$10)) -> 2 | CX15: -1 | CY15: =IF(Equipes!$C$14="","",Equipes!$C$14) -> Tarbes | DA15: 3 | DB15: 0 | DC15: u | DD15: 3 | DE15: =SUMPRODUCT(($D$3:$D$10=CY15)*($FB$3:$FB$10))+SUMPRODUCT(($M$3:$M$10=CY15)*($FC$3:$FC$10)) -> 1 | DF15: =SUMPRODUCT(($D$3:$D$10=CY15)*($FF$3:$FF$10))+SUMPRODUCT(($M$3:$M$10=CY15)*($FG$3:$FG$10)) -> 1 | DG15: =SUMPRODUCT(($D$3:$D$10=CY15)*($FJ$3:$FJ$10))+SUMPRODUCT(($M$3:$M$10=CY15)*($FK$3:$FK$10)) -> 0 | DH15: =SUMPRODUCT(($D$3:$D$10=CY15)*($FL$3:$FL$10))+SUMPRODUCT(($M$3:$M$10=CY15)*($FM$3:$FM$10)) -> 0 | DI15: =SUMPRODUCT(($D$3:$D$10=CY15)*($FN$3:$FN$10))+SUMPRODUCT(($M$3:$M$10=CY15)*($FO$3:$FO$10)) -> 1 | DJ15: =SUMPRODUCT(($D$3:$D$10=CY15)*($FP$3:$FP$10))+SUMPRODUCT(($M$3:$M$10=CY15)*($FQ$3:$FQ$10)) -> 13 | DK15: =SUMPRODUCT(($D$3:$D$10=CY15)*($FR$3:$FR$10))+SUMPRODUCT(($M$3:$M$10=CY15)*($FS$3:$FS$10)) -> 20 | DL15: -7 | DM15: 1 | DN15: =SUMPRODUCT(($D$3:$D$10=CY15)*($EV$3:$EV$10))+SUMPRODUCT(($M$3:$M$10=CY15)*($EW$3:$EW$10)) -> 0 | DO15: =SUMPRODUCT(($D$3:$D$10=CY15)*($EX$3:$EX$10))+SUMPRODUCT(($M$3:$M$10=CY15)*($EY$3:$EY$10)) -> 1 | DP15: =SUMPRODUCT(($D$3:$D$10=CY15)*($FT$3:$FT$10))+SUMPRODUCT(($M$3:$M$10=CY15)*($FU$3:$FU$10)) -> 1 | DQ15: =SUMPRODUCT(($D$3:$D$10=CY15)*($FV$3:$FV$10))+SUMPRODUCT(($M$3:$M$10=CY15)*($FW$3:$FW$10)) -> 2 | DR15: -1 | DS15: =IF(Equipes!$C$14="","",Equipes!$C$14) -> Tarbes | DU15: 8 | DV15: 0 | DW15: u | DX15: 8 | DY15: =SUMPRODUCT(($D$3:$D$10=DS15)*($ET$3:$ET$10))+SUMPRODUCT(($M$3:$M$10=DS15)*($EU$3:$EU$10)) -> 0 | DZ15: =SUMPRODUCT(($D3:$D$10=DS14)*($FF$3:$FF$10))+SUMPRODUCT(($M$3:$M$10=DS14)*($FG$3:$FG$10)) -> 1 | EA15: =SUMPRODUCT(($D$3:$D$10=DS15)*($FJ$3:$FJ$10))+SUMPRODUCT(($M$3:$M$10=DS15)*($FK$3:$FK$10)) -> 0 | EB15: =SUMPRODUCT(($D$3:$D$10=DS15)*($FL$3:$FL$10))+SUMPRODUCT(($M$3:$M$10=DS15)*($FM$3:$FM$10)) -> 0 | EC15: =SUMPRODUCT(($D$3:$D$10=DS15)*($FN$3:$FN$10))+SUMPRODUCT(($M$3:$M$10=DS15)*($FO$3:$FO$10)) -> 1 | ED15: =SUMPRODUCT(($D$3:$D$10=DS15)*($FP$3:$FP$10))+SUMPRODUCT(($M$3:$M$10=DS15)*($FQ$3:$FQ$10)) -> 13 | EE15: =SUMPRODUCT(($D$3:$D$10=DS15)*($FR$3:$FR$10))+SUMPRODUCT(($M$3:$M$10=DS15)*($FS$3:$FS$10)) -> 20 | EF15: -7 | EG15: =SUMPRODUCT(($D$3:$D$10=DS15)*($FT$3:$FT$10))+SUMPRODUCT(($M$3:$M$10=DS15)*($FU$3:$FU$10)) -> 1 | EH15: =SUMPRODUCT(($D$3:$D$10=DS15)*($FV$3:$FV$10))+SUMPRODUCT(($M$3:$M$10=DS15)*($FW$3:$FW$10)) -> 2 | EI15: -1 | EJ15: 999.9313 | EK15: =EJ15+0.00000002 -> 999.9313 | EL15: 999.9313 | EM15: =EL15+0.00000002 -> 999.9313 | EN15: -0.0687 | EO15: =EN15+0.00000002 -> -0.06869998 | FX15: Bourg-en-Bresse | FY15: -3000.019 | FZ15: =IF(FY15="","",_xlfn.RANK.EQ(FY15,FY3:FY18)) -> 13 | GA15: Tarbes | GB15: Bourg-en-Bresse | GC15: -3000.019 | GD15: =IF(GC15="","",_xlfn.RANK.EQ(GC15,GC3:GC18)) -> 13 | GE15: Tarbes | GF15: Bourg-en-Bresse | GG15: -4000.019 | GH15: =IF(GG15="","",_xlfn.RANK.EQ(GG15,GG3:GG18)) -> 13 | GI15: Tarbes
N16: =IF(Equipes!$M$20="","",Equipes!$M$20) -> Date du début du Championnat : vendredi 25 août 2023 | U16: 14 | V16: Blagnac | X16: -6 | Y16: 0 | Z16: u | AA16: 1 | AB16: 0 | AC16: 0 | AD16: 1 | AE16: 0 | AF16: 25 | AG16: -25 | AH16: 0 | AI16: 0 | AJ16: 0 | AK16: 0 | AL16: 0 | AM16: 0 | AN16: 0 | AO16: 14 | AP16: Blagnac | AR16: -6 | AS16: 0 | AT16: u | AU16: 1 | AV16: 0 | AW16: 0 | AX16: 1 | AY16: 0 | AZ16: 25 | BA16: -25 | BB16: 0 | BC16: 0 | BD16: 0 | BE16: 0 | BF16: 0 | BG16: 0 | BH16: 14 | BI16: Blagnac | BK16: -4 | BL16: 0 | BM16: u | BN16: 1 | BO16: 0 | BP16: 0 | BQ16: 1 | BR16: 0 | BS16: 25 | BT16: -25 | BU16: 0 | BV16: 0 | BW16: 0 | BX16: 14 | BY16: 1 | BZ16: 14 | CA16: 1 | CB16: 14 | CC16: 1 | CD16: =IF(Equipes!$C$15="","",Equipes!$C$15) -> Vienne | CF16: 1 | CG16: 0 | CH16: u | CI16: 1 | CJ16: =SUMPRODUCT(($D$3:$D$10=CD16)*($FB$3:$FB$10))+SUMPRODUCT(($M$3:$M$10=CD16)*($FC$3:$FC$10))+CU16 -> 5 | CK16: =SUMPRODUCT(($D$3:$D$10=CD16)*($FF$3:$FF$10))+SUMPRODUCT(($M$3:$M$10=CD16)*($FG$3:$FG$10)) -> 1 | CL16: =SUMPRODUCT(($D$3:$D$10=CD16)*($FJ$3:$FJ$10))+SUMPRODUCT(($M$3:$M$10=CD16)*($FK$3:$FK$10)) -> 1 | CM16: =SUMPRODUCT(($D$3:$D$10=CD16)*($FL$3:$FL$10))+SUMPRODUCT(($M$3:$M$10=CD16)*($FM$3:$FM$10)) -> 0 | CN16: =SUMPRODUCT(($D$3:$D$10=CD16)*($FN$3:$FN$10))+SUMPRODUCT(($M$3:$M$10=CD16)*($FO$3:$FO$10)) -> 0 | CO16: =SUMPRODUCT(($D$3:$D$10=CD16)*($FP$3:$FP$10))+SUMPRODUCT(($M$3:$M$10=CD16)*($FQ$3:$FQ$10)) -> 25 | CP16: =SUMPRODUCT(($D$3:$D$10=CD16)*($FR$3:$FR$10))+SUMPRODUCT(($M$3:$M$10=CD16)*($FS$3:$FS$10)) -> 0 | CQ16: 25 | CR16: 0 | CS16: =SUMPRODUCT(($D$3:$D$10=CD16)*($EV$3:$EV$10))+SUMPRODUCT(($M$3:$M$10=CD16)*($EW$3:$EW$10)) -> 0 | CT16: =SUMPRODUCT(($D$3:$D$10=CD16)*($EX$3:$EX$10))+SUMPRODUCT(($M$3:$M$10=CD16)*($EY$3:$EY$10)) -> 0 | CU16: 0 | CV16: =SUMPRODUCT(($D$3:$D$10=CD16)*($FT$3:$FT$10))+SUMPRODUCT(($M$3:$M$10=CD16)*($FU$3:$FU$10)) -> 0 | CW16: =SUMPRODUCT(($D$3:$D$10=CD16)*($FV$3:$FV$10))+SUMPRODUCT(($M$3:$M$10=CD16)*($FW$3:$FW$10)) -> 0 | CX16: 0 | CY16: =IF(Equipes!$C$15="","",Equipes!$C$15) -> Vienne | DA16: 1 | DB16: 0 | DC16: u | DD16: 1 | DE16: =SUMPRODUCT(($D$3:$D$10=CY16)*($FB$3:$FB$10))+SUMPRODUCT(($M$3:$M$10=CY16)*($FC$3:$FC$10)) -> 5 | DF16: =SUMPRODUCT(($D$3:$D$10=CY16)*($FF$3:$FF$10))+SUMPRODUCT(($M$3:$M$10=CY16)*($FG$3:$FG$10)) -> 1 | DG16: =SUMPRODUCT(($D$3:$D$10=CY16)*($FJ$3:$FJ$10))+SUMPRODUCT(($M$3:$M$10=CY16)*($FK$3:$FK$10)) -> 1 | DH16: =SUMPRODUCT(($D$3:$D$10=CY16)*($FL$3:$FL$10))+SUMPRODUCT(($M$3:$M$10=CY16)*($FM$3:$FM$10)) -> 0 | DI16: =SUMPRODUCT(($D$3:$D$10=CY16)*($FN$3:$FN$10))+SUMPRODUCT(($M$3:$M$10=CY16)*($FO$3:$FO$10)) -> 0 | DJ16: =SUMPRODUCT(($D$3:$D$10=CY16)*($FP$3:$FP$10))+SUMPRODUCT(($M$3:$M$10=CY16)*($FQ$3:$FQ$10)) -> 25 | DK16: =SUMPRODUCT(($D$3:$D$10=CY16)*($FR$3:$FR$10))+SUMPRODUCT(($M$3:$M$10=CY16)*($FS$3:$FS$10)) -> 0 | DL16: 25 | DM16: 0 | DN16: =SUMPRODUCT(($D$3:$D$10=CY16)*($EV$3:$EV$10))+SUMPRODUCT(($M$3:$M$10=CY16)*($EW$3:$EW$10)) -> 0 | DO16: =SUMPRODUCT(($D$3:$D$10=CY16)*($EX$3:$EX$10))+SUMPRODUCT(($M$3:$M$10=CY16)*($EY$3:$EY$10)) -> 0 | DP16: =SUMPRODUCT(($D$3:$D$10=CY16)*($FT$3:$FT$10))+SUMPRODUCT(($M$3:$M$10=CY16)*($FU$3:$FU$10)) -> 0 | DQ16: =SUMPRODUCT(($D$3:$D$10=CY16)*($FV$3:$FV$10))+SUMPRODUCT(($M$3:$M$10=CY16)*($FW$3:$FW$10)) -> 0 | DR16: 0 | DS16: =IF(Equipes!$C$15="","",Equipes!$C$15) -> Vienne | DU16: 1 | DV16: 0 | DW16: u | DX16: 1 | DY16: =SUMPRODUCT(($D$3:$D$10=DS16)*($ET$3:$ET$10))+SUMPRODUCT(($M$3:$M$10=DS16)*($EU$3:$EU$10)) -> 4 | DZ16: =SUMPRODUCT(($D3:$D$10=DS15)*($FF$3:$FF$10))+SUMPRODUCT(($M$3:$M$10=DS15)*($FG$3:$FG$10)) -> 1 | EA16: =SUMPRODUCT(($D$3:$D$10=DS16)*($FJ$3:$FJ$10))+SUMPRODUCT(($M$3:$M$10=DS16)*($FK$3:$FK$10)) -> 1 | EB16: =SUMPRODUCT(($D$3:$D$10=DS16)*($FL$3:$FL$10))+SUMPRODUCT(($M$3:$M$10=DS16)*($FM$3:$FM$10)) -> 0 | EC16: =SUMPRODUCT(($D$3:$D$10=DS16)*($FN$3:$FN$10))+SUMPRODUCT(($M$3:$M$10=DS16)*($FO$3:$FO$10)) -> 0 | ED16: =SUMPRODUCT(($D$3:$D$10=DS16)*($FP$3:$FP$10))+SUMPRODUCT(($M$3:$M$10=DS16)*($FQ$3:$FQ$10)) -> 25 | EE16: =SUMPRODUCT(($D$3:$D$10=DS16)*($FR$3:$FR$10))+SUMPRODUCT(($M$3:$M$10=DS16)*($FS$3:$FS$10)) -> 0 | EF16: 25 | EG16: =SUMPRODUCT(($D$3:$D$10=DS16)*($FT$3:$FT$10))+SUMPRODUCT(($M$3:$M$10=DS16)*($FU$3:$FU$10)) -> 0 | EH16: =SUMPRODUCT(($D$3:$D$10=DS16)*($FV$3:$FV$10))+SUMPRODUCT(($M$3:$M$10=DS16)*($FW$3:$FW$10)) -> 0 | EI16: 0 | EJ16: 5000.2525 | EK16: =EJ16+0.00000001 -> 5000.2525 | EL16: 5000.2525 | EM16: =EL16+0.00000001 -> 5000.2525 | EN16: 4000.2525 | EO16: =EN16+0.00000001 -> 4000.2525 | FX16: Blagnac | FY16: -6000.25 | FZ16: =IF(FY16="","",_xlfn.RANK.EQ(FY16,FY3:FY18)) -> 14 | GA16: Vienne | GB16: Blagnac | GC16: -6000.25 | GD16: =IF(GC16="","",_xlfn.RANK.EQ(GC16,GC3:GC18)) -> 14 | GE16: Vienne | GF16: Blagnac | GG16: -4000.25 | GH16: =IF(GG16="","",_xlfn.RANK.EQ(GG16,GG3:GG18)) -> 14 | GI16: Vienne
N18: =IF(Equipes!$M$22="","",Equipes!$M$22) -> Date de la fin du Championnat : samedi 27 avril 2024
AA20: =IF(SUM(AA3:AA16)<>0,SUM(AA3:AA16),"") -> 14 | CF20: p | CG20: u | CH20: q | DA20: p | DB20: u | DC20: q | DU20: p | DV20: u | DW20: q
CF21: p | CG21: u | CH21: q | DA21: p | DB21: u | DC21: q | DU21: p | DV21: u | DW21: q

Sheet J02
A1: =IF(Accueil!$H$2="","",IF(Accueil!$H$2="Choix du Championnat de Rugby","",IF(Accueil!$B$2="","",IF(Accueil!$D$2="","",IF(Accueil!$D$2="Choix de la saison","",_xlfn.CONCAT(Accueil!$H$2," / ",Accueil!$B$2," ",Accueil!$D$2)))))) -> Championnat de France de Rugby à 15 - Nationale / Saison du Championnat : 2023 - 2024 | S1: ='J01'!S1+1 -> 2 | U1: CLASSEMENT TOUS BONUS | AO1: CLASSEMENT B.O+B.D. | BH1: CLASSEMENT STRICT | BX1: =U1 -> CLASSEMENT TOUS BONUS | BZ1: =AO1 -> CLASSEMENT B.O+B.D. | CB1: =BH1 -> CLASSEMENT STRICT | CD1: =U1 -> CLASSEMENT TOUS BONUS | CY1: =AO1 -> CLASSEMENT B.O+B.D. | DS1: =BH1 -> CLASSEMENT STRICT | EJ1: =U1 -> CLASSEMENT TOUS BONUS | EL1: =AO1 -> CLASSEMENT B.O+B.D. | EN1: =BH1 -> CLASSEMENT STRICT | EP1: Dom. | EQ1: Ext. | ER1: Dom. | ES1: Ext. | ET1: Dom. | EU1: Ext. | EV1: Dom. | EW1: Ext. | EX1: Dom. | EY1: Ext. | EZ1: Dom. | FA1: Ext. | FB1: Dom. | FC1: Ext. | FD1: Dom. | FE1: Ext. | FF1: Dom. | FG1: Ext. | FH1: Dom. | FI1: Ext. | FJ1: Dom. | FK1: Ext. | FL1: Dom. | FM1: Ext. | FN1: Dom. | FO1: Ext. | FP1: Dom. | FQ1: Ext. | FR1: Dom. | FS1: Ext. | FT1: Dom. | FU1: Ext. | FV1: Dom. | FW1: Ext. | FX1: =U1 -> CLASSEMENT TOUS BONUS | GB1: =AO1 -> CLASSEMENT B.O+B.D. | GF1: =BH1 -> CLASSEMENT STRICT
A2: Points de pénalités | B2: Points de bonus | C2: Equipes exclues, forfaits, matchs gagnés ou perdus sur tapis vert | D2: Equipes | E2: Points | F2: Bonus défensif Bd | G2: Essais | H2: Bonus offensif Bo | I2: Points | J2: Bonus défensif Bd | K2: Essais | L2: Bonus offensif Bo | M2: Equipes | N2: Equipes exclues, forfaits, matchs gagnés ou perdus sur tapis vert | O2: Points de bonus | P2: Points de pénalités | Q2: Dates | R2: Horaires | S2: Matchs à rejouer, annulés, arrêtés, avec réserves, reportés ou reprogrammés | U2: Place | V2: Equipes | W2: Logo | X2: Points | Y2: Evolution | AA2: Joués | AB2: Gagnés | AC2: Nuls | AD2: Perdus | AE2: Points marqués | AF2: Points encaissés | AG2: +/- | AH2: Tous les bonus | AI2: Bonus offensif | AJ2: Bonus défensif | AK2: Bonus fédération | AL2: Essais marqués | AM2: Essais encaissés | AN2: +/- | AO2: Place | AP2: Equipes | AQ2: Logo | AR2: Points | AS2: Evolution | AU2: Joués | AV2: Gagnés | AW2: Nuls | AX2: Perdus | AY2: Points marqués | AZ2: Points encaissés | BA2: +/- | BB2: B.O+B.D | BC2: Bonus offensif | BD2: Bonus défensif | BE2: Essais marqués | BF2: Essais encaissés | BG2: +/- | BH2: Place | BI2: Equipes | BJ2: Logo | BK2: Points | BL2: Evolution | BN2: Joués | BO2: Gagnés | BP2: Nuls | BQ2: Perdus | BR2: Points marqués | BS2: Points encaissés | BT2: +/- | BU2: Essais marqués | BV2: Essais encaissés | BW2: +/- | BX2: Rang | BY2: Place | BZ2: Rang | CA2: Place | CB2: Rang | CC2: Place | CD2: Equipes | CE2: Logo | CF2: Rang | CG2: Evolution | CI2: Place | CJ2: Points | CK2: Joués | CL2: Gagnés | CM2: Nuls | CN2: Perdus | CO2: Points marqués | CP2: Points encaissés | CQ2: +/- | CR2: Tous les bonus | CS2: Bonus offensif | CT2: Bonus défensif | CU2: Bonus fédération | CV2: Essais marqués | CW2: Essais encaissés | CX2: +/- | CY2: Equipes | CZ2: Logo | DA2: Rang | DB2: Evolution | DD2: Place | DE2: Points | DF2: Joués | DG2: Gagnés | DH2: Nuls | DI2: Perdus | DJ2: Points marqués | DK2: Points encaissés | DL2: +/- | DM2: B.O + B.O. | DN2: Bonus offensif | DO2: Bonus défensif | DP2: Essais marqués | DQ2: Essais encaissés | DR2: +/- | DS2: Equipes | DT2: Logo | DU2: Rang | DV2: Evolution | DX2: Place | DY2: Points | DZ2: Joués | EA2: Gagnés | EB2: Nuls | EC2: Perdus | ED2: Points marqués | EE2: Points encaissés | EF2: +/- | EG2: Essais marqués | EH2: Essais encaissés | EI2: +/- | EJ2: Rang | EK2: Place | EL2: Rang | EM2: Place | EN2: Rang | EO2: Place | EP2: Points de pénalités | EQ2: Points de pénalités | ER2: Points de bonus | ES2: Points de bonus | ET2: Pts | EU2: Pts | EV2: Bo | EW2: Bo | EX2: Bd | EY2: Bd | EZ2: T Pts | FA2: T Pts | FB2: T Pts | FC2: TPts | FD2: J annulé | FE2: J annulé | FF2: J | FG2: J | FH2: Total J | FI2: Total J | FJ2: G | FK2: G | FL2: N | FM2: N | FN2: P | FO2: P | FP2: Pts + | FQ2: Pts + | FR2: Pts - | FS2: Pts - | FT2: Essais + | FU2: Essais + | FV2: Essais - | FW2: Essais - | FX2: Equipes | FY2: Rang | FZ2: Place | GA2: Equipes | GB2: Equipes | GC2: Rang | GD2: Place | GE2: Equipes | GF2: Equipes | GG2: Rang | GH2: Place | GI2: Equipes | GK2: ok | GL2: Dates et horaires des matchs prévus | GM2: Dates et horaires des matchs restant à jouer | GN2: Date et horaire minimum à jouer | GO2: Date et horaire maximum à jouer | GQ2: Total J | GR2: Total J
B3: 1 | C3: Forfait gagnant | D3: Tarbes | E3: 25 | F3: =IF(E3="","",IF(I3="","",IF(E3>I3,"",IF(E3=I3,"",IF(E3<I3,IF(SUM(I3-E3)<=7,"Bd","")))))) ->  | H3: =IF(G3="","",IF(K3="","",IF(SUM(G3-K3)>=3,"Bo",""))) ->  | I3: 0 | J3: =IF(I3="","",IF(E3="","",IF(I3>E3,"",IF(I3=E3,"",IF(I3<E3,IF(SUM(E3-I3)<=7,"Bd","")))))) ->  | L3: =IF(K3="","",IF(G3="","",IF(SUM(K3-G3)>=3,"Bo",""))) ->  | M3: Blagnac | N3: Forfait général | P3: 2 | Q3: 2023-09-02 | R3: 15:30:00 | U3: 1 | V3: =IFERROR(_xlfn.XLOOKUP(BX3,$BY$3:$BY$18,$CD$3:$CD$18),"") -> Nice | X3: =IFERROR(_xlfn.XLOOKUP(V3,$CD$3:$CD$18,$CJ$3:$CJ$18),"") -> 5 | Y3: =IFERROR(_xlfn.XLOOKUP(V3,$CD$3:$CD$18,$CG$3:$CG$18),"") -> 9 | Z3: =IFERROR(_xlfn.XLOOKUP(V3,$CD$3:$CD$18,$CH$3:$CH$18),"") -> p | AA3: =IFERROR(_xlfn.XLOOKUP(V3,$CD$3:$CD$18,$CK$3:$CK$18),"") -> 2 | AB3: =IFERROR(_xlfn.XLOOKUP(V3,$CD$3:$CD$18,$CL$3:$CL$18),"") -> 1 | AC3: =IFERROR(_xlfn.XLOOKUP(V3,$CD$3:$CD$18,$CM$3:$CM$18),"") -> 0 | AD3: =IFERROR(_xlfn.XLOOKUP(V3,$CD$3:$CD$18,$CN$3:$CN$18),"") -> 1 | AE3: =IFERROR(_xlfn.XLOOKUP(V3,$CD$3:$CD$18,$CO$3:$CO$18),"") -> 39 | AF3: =IFERROR(_xlfn.XLOOKUP(V3,$CD$3:$CD$18,$CP$3:$CP$18),"") -> 28 | AG3: =IFERROR(_xlfn.XLOOKUP(V3,$CD$3:$CD$18,$CQ$3:$CQ$18),"") -> 11 | AH3: =IFERROR(_xlfn.XLOOKUP(V3,$CD$3:$CD$18,$CR$3:$CR$18),"") -> 1 | AI3: =IFERROR(_xlfn.XLOOKUP(V3,$CD$3:$CD$18,$CS$3:$CS$18),"") -> 1 | AJ3: =IFERROR(_xlfn.XLOOKUP(V3,$CD$3:$CD$18,$CT$3:$CT$18),"") -> 0 | AK3: =IFERROR(_xlfn.XLOOKUP(V3,$CD$3:$CD$18,$CU$3:$CU$18),"") -> 0 | AL3: =IFERROR(_xlfn.XLOOKUP(V3,$CD$3:$CD$18,$CV$3:$CV$18),"") -> 5 | AM3: =IFERROR(_xlfn.XLOOKUP(V3,$CD$3:$CD$18,$CW$3:$CW$18),"") -> 3 | AN3: =IFERROR(_xlfn.XLOOKUP(V3,$CD$3:$CD$18,$CX$3:$CX$18),"") -> 2 | AO3: 1 | AP3: =IFERROR(_xlfn.XLOOKUP(BZ3,$CA$3:$CA$18,$CY$3:$CY$18),"") -> Nice | AR3: =IFERROR(_xlfn.XLOOKUP(AP3,$CY$3:$CY$18,$DE$3:$DE$18),"") -> 5 | AS3: =IFERROR(_xlfn.XLOOKUP(AP3,$CY$3:$CY$18,$DB$3:$DB$18),"") -> 9 | AT3: =IFERROR(_xlfn.XLOOKUP(AP3,$CY$3:$CY$18,$DC$3:$DC$18),"") -> p | AU3: =IFERROR(_xlfn.XLOOKUP(AP3,$CY$3:$CY$18,$DF$3:$DF$18),"") -> 2 | AV3: =IFERROR(_xlfn.XLOOKUP(AP3,$CY$3:$CY$18,$DG$3:$DG$18),"") -> 1 | AW3: =IFERROR(_xlfn.XLOOKUP(AP3,$CY$3:$CY$18,$DH$3:$DH$18),"") -> 0 | AX3: =IFERROR(_xlfn.XLOOKUP(AP3,$CY$3:$CY$18,$DI$3:$DI$18),"") -> 1 | AY3: =IFERROR(_xlfn.XLOOKUP(AP3,$CY$3:$CY$18,$DJ$3:$DJ$18),"") -> 39 | AZ3: =IFERROR(_xlfn.XLOOKUP(AP3,$CY$3:$CY$18,$DK$3:$DK$18),"") -> 28 | BA3: =IFERROR(_xlfn.XLOOKUP(AP3,$CY$3:$CY$18,$DL$3:$DL$18),"") -> 11 | BB3: =IFERROR(_xlfn.XLOOKUP(AP3,$CY$3:$CY$18,$DM$3:$DM$18),"") -> 1 | BC3: =IFERROR(_xlfn.XLOOKUP(AP3,$CY$3:$CY$18,$DN$3:$DN$18),"") -> 1 | BD3: =IFERROR(_xlfn.XLOOKUP(AP3,$CY$3:$CY$18,$DO$3:$DO$18),"") -> 0 | BE3: =IFERROR(_xlfn.XLOOKUP(AP3,$CY$3:$CY$18,$DP$3:$DP$18),"") -> 5 | BF3: =IFERROR(_xlfn.XLOOKUP(AP3,$CY$3:$CY$18,$DQ$3:$DQ$18),"") -> 3 | BG3: =IFERROR(_xlfn.XLOOKUP(AP3,$CY$3:$CY$18,$DR$3:$DR$18),"") -> 2 | BH3: 1 | BI3: =IFERROR(_xlfn.XLOOKUP(CB3,$CC$3:$CC$18,$DS$3:$DS$18),"") -> Narbonne | BK3: =IFERROR(_xlfn.XLOOKUP(BI3,$DS$3:$DS$18,$DY$3:$DY$18),"") -> 4 | BL3: =IFERROR(_xlfn.XLOOKUP(BI3,$DS$3:$DS$18,$DV$3:$DV$18),"") -> 5 | BM3: =IFERROR(_xlfn.XLOOKUP(BI3,$DS$3:$DS$18,$DW$3:$DW$18),"") -> p | BN3: =IFERROR(_xlfn.XLOOKUP(BI3,$DS$3:$DS$18,$DZ$3:$DZ$18),"") -> 2 | BO3: =IFERROR(_xlfn.XLOOKUP(BI3,$DS$3:$DS$18,$EA$3:$EA$18),"") -> 2 | BP3: =IFERROR(_xlfn.XLOOKUP(BI3,$DS$3:$DS$18,$EB$3:$EB$18),"") -> 0 | BQ3: =IFERROR(_xlfn.XLOOKUP(BI3,$DS$3:$DS$18,$EC$3:$EC$18),"") -> 0 | BR3: =IFERROR(_xlfn.XLOOKUP(BI3,$DS$3:$DS$18,$ED$3:$ED$18),"") -> 44 | BS3: =IFERROR(_xlfn.XLOOKUP(BI3,$DS$3:$DS$18,$EE$3:$EE$18),"") -> 32 | BT3: =IFERROR(_xlfn.XLOOKUP(BI3,$DS$3:$DS$18,$EF$3:$EF$18),"") -> 12 | BU3: =IFERROR(_xlfn.XLOOKUP(BI3,$DS$3:$DS$18,$EG$3:$EG$18),"") -> 5 | BV3: =IFERROR(_xlfn.XLOOKUP(BI3,$DS$3:$DS$18,$EH$3:$EH$18),"") -> 3 | BW3: =IFERROR(_xlfn.XLOOKUP(BI3,$DS$3:$DS$18,$EI$3:$EI$18),"") -> 2 | BX3: 1 | BY3: =CF3 -> 9 | BZ3: 1 | CA3: =DA3 -> 9 | CB3: 1 | CC3: =DU3 -> 8 | CD3: =IF(Equipes!$C$2="","",Equipes!$C$2) -> Albi | CF3: =_xlfn.RANK.EQ(EJ3,$EJ$3:$EJ$18) -> 9 | CG3: ='J01'!CF3-CF3 -> 2 | CH3: =IF(CF3>'J01'!CF3,'J01'!$CH$20,IF(CF3='J01'!CF3,'J01'!$CG$20,IF(CF3<'J01'!CF3,'J01'!$CF$20))) -> p | CI3: =_xlfn.RANK.EQ(EK3,$EK$3:$EK$18) -> 9 | CJ3: =SUMPRODUCT(($D$3:$D$10=CD3)*($FB$3:$FB$10))+SUMPRODUCT(($M$3:$M$10=CD3)*($FC$3:$FC$10))+'J01'!CJ3+CU3 -> 0 | CK3: =SUMPRODUCT(($D$3:$D$10=CD3)*($FF$3:$FF$10))+SUMPRODUCT(($M$3:$M$10=CD3)*($FG$3:$FG$10))+'J01'!CK3 -> 2 | CL3: =SUMPRODUCT(($D$3:$D$10=CD3)*($FJ$3:$FJ$10))+SUMPRODUCT(($M$3:$M$10=CD3)*($FK$3:$FK$10))+'J01'!CL3 -> 1 | CM3: =SUMPRODUCT(($D$3:$D$10=CD3)*($FL$3:$FL$10))+SUMPRODUCT(($M$3:$M$10=CD3)*($FM$3:$FM$10))+'J01'!CM3 -> 0 | CN3: =SUMPRODUCT(($D$3:$D$10=CD3)*($FN$3:$FN$10))+SUMPRODUCT(($M$3:$M$10=CD3)*($FO$3:$FO$10))+'J01'!CN3 -> 1 | CO3: =SUMPRODUCT(($D$3:$D$10=CD3)*($FP$3:$FP$10))+SUMPRODUCT(($M$3:$M$10=CD3)*($FQ$3:$FQ$10))+'J01'!CO3 -> 33 | CP3: =SUMPRODUCT(($D$3:$D$10=CD3)*($FR$3:$FR$10))+SUMPRODUCT(($M$3:$M$10=CD3)*($FS$3:$FS$10))+'J01'!CP3 -> 33 | CQ3: =CO3-CP3 -> 0 | CR3: =SUM(CS3:CU3) -> 0 | CS3: =SUMPRODUCT(($D$3:$D$10=CD3)*($EV$3:$EV$10))+SUMPRODUCT(($M$3:$M$10=CD3)*($EW$3:$EW$10))+'J01'!CS3 -> 0 | CT3: =SUMPRODUCT(($D$3:$D$10=CD3)*($EX$3:$EX$10))+SUMPRODUCT(($M$3:$M$10=CD3)*($EY$3:$EY$10))+'J01'!CT3 -> 0 | CU3: 0 | CV3: =SUMPRODUCT(($D$3:$D$10=CD3)*($FT$3:$FT$10))+SUMPRODUCT(($M$3:$M$10=CD3)*($FU$3:$FU$10))+'J01'!CV3 -> 3 | CW3: =SUMPRODUCT(($D$3:$D$10=CD3)*($FV$3:$FV$10))+SUMPRODUCT(($M$3:$M$10=CD3)*($FW$3:$FW$10))+'J01'!CW3 -> 2 | CX3: =CV3-CW3 -> 1 | CY3: =IF(Equipes!$C$2="","",Equipes!$C$2) -> Albi | DA3: =_xlfn.RANK.EQ(EL3,$EL$3:$EL$18) -> 9 | DB3: ='J01'!DA3-DA3 -> 2 | DC3: =IF(DA3>'J01'!DA3,'J01'!$DC$20,IF(DA3='J01'!DA3,'J01'!$DB$20,IF(DA3<'J01'!DA3,'J01'!$DA$20))) -> p | DD3: =_xlfn.RANK.EQ(EM3,$EM$3:$EM$18) -> 9 | DE3: =SUMPRODUCT(($D$3:$D$10=CY3)*($FB$3:$FB$10))+SUMPRODUCT(($M$3:$M$10=CY3)*($FC$3:$FC$10))+'J01'!DE3 -> 0 | DF3: =SUMPRODUCT(($D3:$D$10=CY3)*($FF$3:$FF$10))+SUMPRODUCT(($M$3:$M$10=CY3)*($FG$3:$FG$10))+'J01'!DF3 -> 2 | DG3: =SUMPRODUCT(($D$3:$D$10=CY3)*($FJ$3:$FJ$10))+SUMPRODUCT(($M$3:$M$10=CY3)*($FK$3:$FK$10))+'J01'!DG3 -> 1 | DH3: =SUMPRODUCT(($D$3:$D$10=CY3)*($FL$3:$FL$10))+SUMPRODUCT(($M$3:$M$10=CY3)*($FM$3:$FM$10))+'J01'!DH3 -> 0 | DI3: =SUMPRODUCT(($D$3:$D$10=CY3)*($FN$3:$FN$10))+SUMPRODUCT(($M$3:$M$10=CY3)*($FO$3:$FO$10))+'J01'!DI3 -> 1 | DJ3: =SUMPRODUCT(($D$3:$D$10=CY3)*($FP$3:$FP$10))+SUMPRODUCT(($M$3:$M$10=CY3)*($FQ$3:$FQ$10))+'J01'!DJ3 -> 33 | DK3: =SUMPRODUCT(($D$3:$D$10=CY3)*($FR$3:$FR$10))+SUMPRODUCT(($M$3:$M$10=CY3)*($FS$3:$FS$10))+'J01'!DK3 -> 33 | DL3: =DJ3-DK3 -> 0 | DM3: =SUM(DN3:DO3) -> 0 | DN3: =SUMPRODUCT(($D$3:$D$10=CY3)*($EV$3:$EV$10))+SUMPRODUCT(($M$3:$M$10=CY3)*($EW$3:$EW$10))+'J01'!DN3 -> 0 | DO3: =SUMPRODUCT(($D$3:$D$10=CY3)*($EX$3:$EX$10))+SUMPRODUCT(($M$3:$M$10=CY3)*($EY$3:$EY$10))+'J01'!DO3 -> 0 | DP3: =SUMPRODUCT(($D$3:$D$10=CY3)*($FT$3:$FT$10))+SUMPRODUCT(($M$3:$M$10=CY3)*($FU$3:$FU$10))+'J01'!DP3 -> 3 | DQ3: =SUMPRODUCT(($D$3:$D$10=CY3)*($FV$3:$FV$10))+SUMPRODUCT(($M$3:$M$10=CY3)*($FW$3:$FW$10))+'J01'!DQ3 -> 2 | DR3: =DP3-DQ3 -> 1 | DS3: =IF(Equipes!$C$2="","",Equipes!$C$2) -> Albi | DU3: =_xlfn.RANK.EQ(EN3,$EN$3:$EN$18) -> 8 | DV3: ='J01'!DU3-DU3 -> 3 | DW3: =IF(DU3>'J01'!DU3,'J01'!$DW$20,IF(DU3='J01'!DU3,'J01'!$DV$20,IF(DU3<'J01'!DU3,'J01'!$DU$20))) -> p | DX3: =_xlfn.RANK.EQ(EO3,$EO$3:$EO$18) -> 8 | DY3: =SUMPRODUCT(($D$3:$D$10=DS3)*($ET$3:$ET$10))+SUMPRODUCT(($M$3:$M$10=DS3)*($EU$3:$EU$10))+'J01'!DY3 -> 0 | DZ3: =SUMPRODUCT(($D3:$D$10=DS3)*($FF$3:$FF$10))+SUMPRODUCT(($M$3:$M$10=DS3)*($FG$3:$FG$10))+'J01'!DZ3 -> 2 | EA3: =SUMPRODUCT(($D$3:$D$10=DS3)*($FJ$3:$FJ$10))+SUMPRODUCT(($M$3:$M$10=DS3)*($FK$3:$FK$10))+'J01'!EA3 -> 1 | EB3: =SUMPRODUCT(($D$3:$D$10=DS3)*($FL$3:$FL$10))+SUMPRODUCT(($M$3:$M$10=DS3)*($FM$3:$FM$10))+'J01'!EB3 -> 0 | EC3: =SUMPRODUCT(($D$3:$D$10=DS3)*($FN$3:$FN$10))+SUMPRODUCT(($M$3:$M$10=DS3)*($FO$3:$FO$10))+'J01'!EC3 -> 1 | ED3: =SUMPRODUCT(($D$3:$D$10=DS3)*($FP$3:$FP$10))+SUMPRODUCT(($M$3:$M$10=DS3)*($FQ$3:$FQ$10))+'J01'!ED3 -> 33 | EE3: =SUMPRODUCT(($D$3:$D$10=DS3)*($FR$3:$FR$10))+SUMPRODUCT(($M$3:$M$10=DS3)*($FS$3:$FS$10))+'J01'!EE3 -> 33 | EF3: =ED3-EE3 -> 0 | EG3: =SUMPRODUCT(($D$3:$D$10=DS3)*($FT$3:$FT$10))+SUMPRODUCT(($M$3:$M$10=DS3)*($FU$3:$FU$10))+'J01'!EG3 -> 3 | EH3: =SUMPRODUCT(($D$3:$D$10=DS3)*($FV$3:$FV$10))+SUMPRODUCT(($M$3:$M$10=DS3)*($FW$3:$FW$10))+'J01'!EH3 -> 2 | EI3: =EG3-EH3 -> 1 | EJ3: =SUM(CJ3*1000)+(CQ3/100)+(CO3/10000) -> 0.0033 | EK3: =EJ3+0.00000014 -> 0.00330014 | EL3: =SUM(DE3*1000)+(DL3/100)+(DJ3/10000) -> 0.0033 | EM3: =EL3+0.00000014 -> 0.00330014 | EN3: =SUM(DY3*1000)+(EF3/100)+(ED3/10000) -> 0.0033 | EO3: =EN3+0.00000014 -> 0.00330014 | EP3: =A3 -> 0 | EQ3: =P3 -> 2 | ER3: =B3 -> 1 | ES3: =O3 -> 0 | ET3: =IF(E3="",0,IF(I3="",0,IF(E3>I3,0,IF(E3=I3,-2,IF(E3<I3,-4))))) -> 0 | EU3: =IF(I3="",0,IF(E3="",0,IF(I3>E3,4,IF(I3=E3,2,IF(I3<E3,0))))) -> 0 | EV3: =IF(G3<>"",IF(SUM(G3-K3)>=3,1)) -> FALSE | EW3: =IF(K3<>"",IF(SUM(K3-G3)>=3,1)) -> FALSE | EX3: =IF(E3<>"",IF(E3<I3,IF(SUM(I3-E3)<=7,1))) -> FALSE | EY3: =IF(I3<>"",IF(I3<E3,IF(SUM(E3-I3)<=7,1))) -> FALSE | EZ3: =SUM(ET3,EV3,EX3) -> 0 | FA3: =SUM(EU3,EW3,EY3) -> 0 | FB3: =EZ3-EP3+ER3 -> 1 | FC3: =FA3-EQ3+ES3 -> -2 | FD3: =IF(S3="Match annulé",1,"") ->  | FE3: =IF(S3="Match annulé",1,"") ->  | FF3: =IF(E3="",0,1) -> 1 | FG3: =IF(I3="",0,1) -> 1 | FH3: =IF(SUM(FD3,FF3)<>0,SUM(FD3,FF3),0) -> 1 | FI3: =IF(SUM(FE3,FG3)<>0,SUM(FE3,FG3),0) -> 1 | FJ3: =IF(E3<>"",IF(E3>I3,1)) -> 1 | FK3: =IF(I3<>"",IF(I3>E3,1)) -> FALSE | FL3: =IF(E3<>"",IF(E3=I3,1)) -> FALSE | FM3: =IF(I3<>"",IF(I3=E3,1)) -> FALSE | FN3: =IF(E3<>"",IF(E3<I3,1)) -> FALSE | FO3: =IF(I3<>"",IF(I3<E3,1)) -> 1 | FP3: =E3 -> 25 | FQ3: =I3 -> 0 | FR3: =I3 -> 0 | FS3: =E3 -> 25 | FT3: =G3 -> 0 | FU3: =K3 -> 0 | FV3: =K3 -> 0 | FW3: =G3 -> 0 | FX3: =IFERROR(_xlfn.XLOOKUP(BX3,$BY$3:$BY$18,$CD$3:$CD$18),"") -> Nice | FY3: =IFERROR(_xlfn.XLOOKUP(FX3,$CD$3:$CD$18,$EJ$3:$EJ$18),"") -> 5000.1139 | FZ3: =IF(FY3="","",_xlfn.RANK.EQ(FY3,FY3:FY18)) -> 1 | GA3: =IF(CD3="","",CD3) -> Albi | GB3: =IFERROR(_xlfn.XLOOKUP(BZ3,$CA$3:$CA$18,$CY$3:$CY$18),"") -> Nice | GC3: =IFERROR(_xlfn.XLOOKUP(GB3,$CY$3:$CY$18,$EL$3:$EL$18),"") -> 5000.1139 | GD3: =IF(GC3="","",_xlfn.RANK.EQ(GC3,GC3:GC18)) -> 1 | GE3: =IF(CY3="","",CY3) -> Albi | GF3: =IFERROR(_xlfn.XLOOKUP(CB3,$CC$3:$CC$18,$DS$3:$DS$18),"") -> Narbonne | GG3: =IFERROR(_xlfn.XLOOKUP(GF3,$DS$3:$DS$18,$EN$3:$EN$18),"") -> 4000.1244 | GH3: =IF(GG3="","",_xlfn.RANK.EQ(GG3,GG3:GG18)) -> 1 | GI3: =IF(DS3="","",DS3) -> Albi | GK3: =IF(AND(I3="",S3=""),"",IF(AND(I3>=0,S3=""),"ok",IF(AND(I3="",S3="Match à rejouer"),"ok",IF(AND(I3="",S3="Match annulé"),"ok",IF(AND(I3="",S3="Match arrêté"),"ok",IF(AND(I3="",S3="Match avec réserves"),"ok",IF(AND(I3="",S3="Match reporté"),"ok",IF(AND(I3="",S3="Match reprogrammé"),"")))))))) -> ok | GL3: =IF(Q3="","",IF(R3="","",Q3+R3)) -> 2023-09-02T15:30:00 | GM3: =IF(Q3="","",IF(R3="","",IF(GK3="ok","",Q3+R3))) ->  | GN3: =MIN(GM3:GM9) -> 00:00:00 | GO3: =MAX(GM3:GM9) -> 00:00:00 | GQ3: =IF(SUM(FD3,FF3)<>0,SUM(FD3,FF3),"") -> 1 | GR3: =IF(SUM(FE3,FG3)<>0,SUM(FE3,FG3),"") -> 1
D4: Hyères | E4: 16 | G4: 1 | I4: 16 | K4: 1 | M4: Chambéry | Q4: 2023-09-02 | R4: 17:00:00 | U4: =IF(FY4=FY3,FZ3,FZ4) -> 2 | V4: =IFERROR(_xlfn.XLOOKUP(BX4,$BY$3:$BY$18,$CD$3:$CD$18),"") -> Narbonne | X4: =IFERROR(_xlfn.XLOOKUP(V4,$CD$3:$CD$18,$CJ$3:$CJ$18),"") -> 4 | Y4: =IFERROR(_xlfn.XLOOKUP(V4,$CD$3:$CD$18,$CG$3:$CG$18),"") -> 5 | Z4: =IFERROR(_xlfn.XLOOKUP(V4,$CD$3:$CD$18,$CH$3:$CH$18),"") -> p | AA4: =IFERROR(_xlfn.XLOOKUP(V4,$CD$3:$CD$18,$CK$3:$CK$18),"") -> 2 | AB4: =IFERROR(_xlfn.XLOOKUP(V4,$CD$3:$CD$18,$CL$3:$CL$18),"") -> 2 | AC4: =IFERROR(_xlfn.XLOOKUP(V4,$CD$3:$CD$18,$CM$3:$CM$18),"") -> 0 | AD4: =IFERROR(_xlfn.XLOOKUP(V4,$CD$3:$CD$18,$CN$3:$CN$18),"") -> 0 | AE4: =IFERROR(_xlfn.XLOOKUP(V4,$CD$3:$CD$18,$CO$3:$CO$18),"") -> 44 | AF4: =IFERROR(_xlfn.XLOOKUP(V4,$CD$3:$CD$18,$CP$3:$CP$18),"") -> 32 | AG4: =IFERROR(_xlfn.XLOOKUP(V4,$CD$3:$CD$18,$CQ$3:$CQ$18),"") -> 12 | AH4: =IFERROR(_xlfn.XLOOKUP(V4,$CD$3:$CD$18,$CR$3:$CR$18),"") -> 0 | AI4: =IFERROR(_xlfn.XLOOKUP(V4,$CD$3:$CD$18,$CS$3:$CS$18),"") -> 0 | AJ4: =IFERROR(_xlfn.XLOOKUP(V4,$CD$3:$CD$18,$CT$3:$CT$18),"") -> 0 | AK4: =IFERROR(_xlfn.XLOOKUP(V4,$CD$3:$CD$18,$CU$3:$CU$18),"") -> 0 | AL4: =IFERROR(_xlfn.XLOOKUP(V4,$CD$3:$CD$18,$CV$3:$CV$18),"") -> 5 | AM4: =IFERROR(_xlfn.XLOOKUP(V4,$CD$3:$CD$18,$CW$3:$CW$18),"") -> 3 | AN4: =IFERROR(_xlfn.XLOOKUP(V4,$CD$3:$CD$18,$CX$3:$CX$18),"") -> 2 | AO4: =IF(GC4=GC3,GD3,GD4) -> 2 | AP4: =IFERROR(_xlfn.XLOOKUP(BZ4,$CA$3:$CA$18,$CY$3:$CY$18),"") -> Narbonne | AR4: =IFERROR(_xlfn.XLOOKUP(AP4,$CY$3:$CY$18,$DE$3:$DE$18),"") -> 4 | AS4: =IFERROR(_xlfn.XLOOKUP(AP4,$CY$3:$CY$18,$DB$3:$DB$18),"") -> 5 | AT4: =IFERROR(_xlfn.XLOOKUP(AP4,$CY$3:$CY$18,$DC$3:$DC$18),"") -> p | AU4: =IFERROR(_xlfn.XLOOKUP(AP4,$CY$3:$CY$18,$DF$3:$DF$18),"") -> 2 | AV4: =IFERROR(_xlfn.XLOOKUP(AP4,$CY$3:$CY$18,$DG$3:$DG$18),"") -> 2 | AW4: =IFERROR(_xlfn.XLOOKUP(AP4,$CY$3:$CY$18,$DH$3:$DH$18),"") -> 0 | AX4: =IFERROR(_xlfn.XLOOKUP(AP4,$CY$3:$CY$18,$DI$3:$DI$18),"") -> 0 | AY4: =IFERROR(_xlfn.XLOOKUP(AP4,$CY$3:$CY$18,$DJ$3:$DJ$18),"") -> 44 | AZ4: =IFERROR(_xlfn.XLOOKUP(AP4,$CY$3:$CY$18,$DK$3:$DK$18),"") -> 32 | BA4: =IFERROR(_xlfn.XLOOKUP(AP4,$CY$3:$CY$18,$DL$3:$DL$18),"") -> 12 | BB4: =IFERROR(_xlfn.XLOOKUP(AP4,$CY$3:$CY$18,$DM$3:$DM$18),"") -> 0 | BC4: =IFERROR(_xlfn.XLOOKUP(AP4,$CY$3:$CY$18,$DN$3:$DN$18),"") -> 0 | BD4: =IFERROR(_xlfn.XLOOKUP(AP4,$CY$3:$CY$18,$DO$3:$DO$18),"") -> 0 | BE4: =IFERROR(_xlfn.XLOOKUP(AP4,$CY$3:$CY$18,$DP$3:$DP$18),"") -> 5 | BF4: =IFERROR(_xlfn.XLOOKUP(AP4,$CY$3:$CY$18,$DQ$3:$DQ$18),"") -> 3 | BG4: =IFERROR(_xlfn.XLOOKUP(AP4,$CY$3:$CY$18,$DR$3:$DR$18),"") -> 2 | BH4: =IF(GG4=GG3,GH3,GH4) -> 2 | BI4: =IFERROR(_xlfn.XLOOKUP(CB4,$CC$3:$CC$18,$DS$3:$DS$18),"") -> Nice | BK4: =IFERROR(_xlfn.XLOOKUP(BI4,$DS$3:$DS$18,$DY$3:$DY$18),"") -> 4 | BL4: =IFERROR(_xlfn.XLOOKUP(BI4,$DS$3:$DS$18,$DV$3:$DV$18),"") -> 8 | BM4: =IFERROR(_xlfn.XLOOKUP(BI4,$DS$3:$DS$18,$DW$3:$DW$18),"") -> p | BN4: =IFERROR(_xlfn.XLOOKUP(BI4,$DS$3:$DS$18,$DZ$3:$DZ$18),"") -> 2 | BO4: =IFERROR(_xlfn.XLOOKUP(BI4,$DS$3:$DS$18,$EA$3:$EA$18),"") -> 1 | BP4: =IFERROR(_xlfn.XLOOKUP(BI4,$DS$3:$DS$18,$EB$3:$EB$18),"") -> 0 | BQ4: =IFERROR(_xlfn.XLOOKUP(BI4,$DS$3:$DS$18,$EC$3:$EC$18),"") -> 1 | BR4: =IFERROR(_xlfn.XLOOKUP(BI4,$DS$3:$DS$18,$ED$3:$ED$18),"") -> 39 | BS4: =IFERROR(_xlfn.XLOOKUP(BI4,$DS$3:$DS$18,$EE$3:$EE$18),"") -> 28 | BT4: =IFERROR(_xlfn.XLOOKUP(BI4,$DS$3:$DS$18,$EF$3:$EF$18),"") -> 11 | BU4: =IFERROR(_xlfn.XLOOKUP(BI4,$DS$3:$DS$18,$EG$3:$EG$18),"") -> 5 | BV4: =IFERROR(_xlfn.XLOOKUP(BI4,$DS$3:$DS$18,$EH$3:$EH$18),"") -> 3 | BW4: =IFERROR(_xlfn.XLOOKUP(BI4,$DS$3:$DS$18,$EI$3:$EI$18),"") -> 2 | BX4: 2 | BY4: =CF4 -> 14 | BZ4: 2 | CA4: =DA4 -> 14 | CB4: 2 | CC4: =DU4 -> 14 | CD4: =IF(Equipes!$C$3="","",Equipes!$C$3) -> Blagnac | CF4: =_xlfn.RANK.EQ(EJ4,$EJ$3:$EJ$18) -> 14 | CG4: ='J01'!CF4-CF4 -> 0 | CH4: =IF(CF4>'J01'!CF4,'J01'!$CH$20,IF(CF4='J01'!CF4,'J01'!$CG$20,IF(CF4<'J01'!CF4,'J01'!$CF$20))) -> u | CI4: =_xlfn.RANK.EQ(EK4,$EK$3:$EK$18) -> 14 | CJ4: =SUMPRODUCT(($D$3:$D$10=CD4)*($FB$3:$FB$10))+SUMPRODUCT(($M$3:$M$10=CD4)*($FC$3:$FC$10))+'J01'!CJ4+CU4 -> -8 | CK4: =SUMPRODUCT(($D$3:$D$10=CD4)*($FF$3:$FF$10))+SUMPRODUCT(($M$3:$M$10=CD4)*($FG$3:$FG$10))+'J01'!CK4 -> 2 | CL4: =SUMPRODUCT(($D$3:$D$10=CD4)*($FJ$3:$FJ$10))+SUMPRODUCT(($M$3:$M$10=CD4)*($FK$3:$FK$10))+'J01'!CL4 -> 0 | CM4: =SUMPRODUCT(($D$3:$D$10=CD4)*($FL$3:$FL$10))+SUMPRODUCT(($M$3:$M$10=CD4)*($FM$3:$FM$10))+'J01'!CM4 -> 0 | CN4: =SUMPRODUCT(($D$3:$D$10=CD4)*($FN$3:$FN$10))+SUMPRODUCT(($M$3:$M$10=CD4)*($FO$3:$FO$10))+'J01'!CN4 -> 2 | CO4: =SUMPRODUCT(($D$3:$D$10=CD4)*($FP$3:$FP$10))+SUMPRODUCT(($M$3:$M$10=CD4)*($FQ$3:$FQ$10))+'J01'!CO4 -> 0 | CP4: =SUMPRODUCT(($D$3:$D$10=CD4)*($FR$3:$FR$10))+SUMPRODUCT(($M$3:$M$10=CD4)*($FS$3:$FS$10))+'J01'!CP4 -> 50 | CQ4: -50 | CR4: =SUM(CS4:CU4) -> 0 | CS4: =SUMPRODUCT(($D$3:$D$10=CD4)*($EV$3:$EV$10))+SUMPRODUCT(($M$3:$M$10=CD4)*($EW$3:$EW$10))+'J01'!CS4 -> 0 | CT4: =SUMPRODUCT(($D$3:$D$10=CD4)*($EX$3:$EX$10))+SUMPRODUCT(($M$3:$M$10=CD4)*($EY$3:$EY$10))+'J01'!CT4 -> 0 | CU4: 0 | CV4: =SUMPRODUCT(($D$3:$D$10=CD4)*($FT$3:$FT$10))+SUMPRODUCT(($M$3:$M$10=CD4)*($FU$3:$FU$10))+'J01'!CV4 -> 0 | CW4: =SUMPRODUCT(($D$3:$D$10=CD4)*($FV$3:$FV$10))+SUMPRODUCT(($M$3:$M$10=CD4)*($FW$3:$FW$10))+'J01'!CW4 -> 0 | CX4: 0 | CY4: =IF(Equipes!$C$3="","",Equipes!$C$3) -> Blagnac | DA4: =_xlfn.RANK.EQ(EL4,$EL$3:$EL$18) -> 14 | DB4: ='J01'!DA4-DA4 -> 0 | DC4: =IF(DA4>'J01'!DA4,'J01'!$DC$20,IF(DA4='J01'!DA4,'J01'!$DB$20,IF(DA4<'J01'!DA4,'J01'!$DA$20))) -> u | DD4: =_xlfn.RANK.EQ(EL4,$EL$3:$EL$18) -> 14 | DE4: =SUMPRODUCT(($D$3:$D$10=CY4)*($FB$3:$FB$10))+SUMPRODUCT(($M$3:$M$10=CY4)*($FC$3:$FC$10))+'J01'!DE4 -> -8 | DF4: =SUMPRODUCT(($D3:$D$10=CY4)*($FF$3:$FF$10))+SUMPRODUCT(($M$3:$M$10=CY4)*($FG$3:$FG$10))+'J01'!DF4 -> 2 | DG4: =SUMPRODUCT(($D$3:$D$10=CY4)*($FJ$3:$FJ$10))+SUMPRODUCT(($M$3:$M$10=CY4)*($FK$3:$FK$10))+'J01'!DG4 -> 0 | DH4: =SUMPRODUCT(($D$3:$D$10=CY4)*($FL$3:$FL$10))+SUMPRODUCT(($M$3:$M$10=CY4)*($FM$3:$FM$10))+'J01'!DH4 -> 0 | DI4: =SUMPRODUCT(($D$3:$D$10=CY4)*($FN$3:$FN$10))+SUMPRODUCT(($M$3:$M$10=CY4)*($FO$3:$FO$10))+'J01'!DI4 -> 2 | DJ4: =SUMPRODUCT(($D$3:$D$10=CY4)*($FP$3:$FP$10))+SUMPRODUCT(($M$3:$M$10=CY4)*($FQ$3:$FQ$10))+'J01'!DJ4 -> 0 | DK4: =SUMPRODUCT(($D$3:$D$10=CY4)*($FR$3:$FR$10))+SUMPRODUCT(($M$3:$M$10=CY4)*($FS$3:$FS$10))+'J01'!DK4 -> 50 | DL4: =DJ4-DK4 -> -50 | DM4: =SUM(DN4:DO4) -> 0 | DN4: =SUMPRODUCT(($D$3:$D$10=CY4)*($EV$3:$EV$10))+SUMPRODUCT(($M$3:$M$10=CY4)*($EW$3:$EW$10))+'J01'!DN4 -> 0 | DO4: =SUMPRODUCT(($D$3:$D$10=CY4)*($EX$3:$EX$10))+SUMPRODUCT(($M$3:$M$10=CY4)*($EY$3:$EY$10))+'J01'!DO4 -> 0 | DP4: =SUMPRODUCT(($D$3:$D$10=CY4)*($FT$3:$FT$10))+SUMPRODUCT(($M$3:$M$10=CY4)*($FU$3:$FU$10))+'J01'!DP4 -> 0 | DQ4: =SUMPRODUCT(($D$3:$D$10=CY4)*($FV$3:$FV$10))+SUMPRODUCT(($M$3:$M$10=CY4)*($FW$3:$FW$10))+'J01'!DQ4 -> 0 | DR4: =DP4-DQ4 -> 0 | DS4: =IF(Equipes!$C$3="","",Equipes!$C$3) -> Blagnac | DU4: =_xlfn.RANK.EQ(EN4,$EN$3:$EN$18) -> 14 | DV4: ='J01'!DU4-DU4 -> 0 | DW4: =IF(DU4>'J01'!DU4,'J01'!$DW$20,IF(DU4='J01'!DU4,'J01'!$DV$20,IF(DU4<'J01'!DU4,'J01'!$DU$20))) -> u | DX4: =_xlfn.RANK.EQ(EN4,$EN$3:$EN$18) -> 14 | DY4: =SUMPRODUCT(($D$3:$D$10=DS4)*($ET$3:$ET$10))+SUMPRODUCT(($M$3:$M$10=DS4)*($EU$3:$EU$10))+'J01'!DY4 -> -4 | DZ4: =SUMPRODUCT(($D3:$D$10=DS4)*($FF$3:$FF$10))+SUMPRODUCT(($M$3:$M$10=DS4)*($FG$3:$FG$10))+'J01'!DZ4 -> 2 | EA4: =SUMPRODUCT(($D$3:$D$10=DS4)*($FJ$3:$FJ$10))+SUMPRODUCT(($M$3:$M$10=DS4)*($FK$3:$FK$10))+'J01'!EA4 -> 0 | EB4: =SUMPRODUCT(($D$3:$D$10=DS4)*($FL$3:$FL$10))+SUMPRODUCT(($M$3:$M$10=DS4)*($FM$3:$FM$10))+'J01'!EB4 -> 0 | EC4: =SUMPRODUCT(($D$3:$D$10=DS4)*($FN$3:$FN$10))+SUMPRODUCT(($M$3:$M$10=DS4)*($FO$3:$FO$10))+'J01'!EC4 -> 2 | ED4: =SUMPRODUCT(($D$3:$D$10=DS4)*($FP$3:$FP$10))+SUMPRODUCT(($M$3:$M$10=DS4)*($FQ$3:$FQ$10))+'J01'!ED4 -> 0 | EE4: =SUMPRODUCT(($D$3:$D$10=DS4)*($FR$3:$FR$10))+SUMPRODUCT(($M$3:$M$10=DS4)*($FS$3:$FS$10))+'J01'!EE4 -> 50 | EF4: =ED4-EE4 -> -50 | EG4: =SUMPRODUCT(($D$3:$D$10=DS4)*($FT$3:$FT$10))+SUMPRODUCT(($M$3:$M$10=DS4)*($FU$3:$FU$10))+'J01'!EG4 -> 0 | EH4: =SUMPRODUCT(($D$3:$D$10=DS4)*($FV$3:$FV$10))+SUMPRODUCT(($M$3:$M$10=DS4)*($FW$3:$FW$10))+'J01'!EH4 -> 0 | EI4: =EG4-EH4 -> 0 | EJ4: =SUM(CJ4*1000)+(CQ4/100)+(CO4/10000) -> -8000.5 | EK4: =EJ4+0.00000013 -> -8000.5 | EL4: =SUM(DE4*1000)+(DL4/100)+(DJ4/10000) -> -8000.5 | EM4: =EL4+0.00000013 -> -8000.5 | EN4: =SUM(DY4*1000)+(EF4/100)+(ED4/10000) -> -4000.5 | EO4: =EN4+0.00000013 -> -4000.5 | EP4: =A4 -> 0 | EQ4: =P4 -> 0 | ER4: =B4 -> 0 | ES4: =O4 -> 0 | ET4: =IF(E4="",0,IF(I4="",0,IF(E4>I4,0,IF(E4=I4,-2,IF(E4<I4,-4))))) -> -2 | EU4: =IF(I4="",0,IF(E4="",0,IF(I4>E4,4,IF(I4=E4,2,IF(I4<E4,0))))) -> 2 | EV4: =IF(G4<>"",IF(SUM(G4-K4)>=3,1)) -> FALSE | EW4: =IF(K4<>"",IF(SUM(K4-G4)>=3,1)) -> FALSE | EX4: =IF(E4<>"",IF(E4<I4,IF(SUM(I4-E4)<=7,1))) -> FALSE | EY4: =IF(I4<>"",IF(I4<E4,IF(SUM(E4-I4)<=7,1))) -> FALSE | EZ4: =SUM(ET4,EV4,EX4) -> -2 | FA4: 2 | FB4: =EZ4-EP4+ER4 -> -2 | FC4: 2 | FD4: =IF(S4="Match annulé",1,"") ->  | FE4: =IF(S4="Match annulé",1,"") ->  | FF4: =IF(E4="",0,1) -> 1 | FG4: =IF(I4="",0,1) -> 1 | FH4: =IF(SUM(FD4,FF4)<>0,SUM(FD4,FF4),0) -> 1 | FI4: 1 | FJ4: =IF(E4<>"",IF(E4>I4,1)) -> FALSE | FK4: =IF(I4<>"",IF(I4>E4,1)) -> FALSE | FL4: =IF(E4<>"",IF(E4=I4,1)) -> 1 | FM4: =IF(I4<>"",IF(I4=E4,1)) -> 1 | FN4: =IF(E4<>"",IF(E4<I4,1)) -> FALSE | FO4: =IF(I4<>"",IF(I4<E4,1)) -> FALSE | FP4: =E4 -> 16 | FQ4: =I4 -> 16 | FR4: =I4 -> 16 | FS4: =E4 -> 16 | FT4: =G4 -> 1 | FU4: =K4 -> 1 | FV4: =K4 -> 1 | FW4: =G4 -> 1 | FX4: =IFERROR(_xlfn.XLOOKUP(BX4,$BY$3:$BY$18,$CD$3:$CD$18),"") -> Narbonne | FY4: =IFERROR(_xlfn.XLOOKUP(FX4,$CD$3:$CD$18,$EJ$3:$EJ$18),"") -> 4000.1244 | FZ4: =IF(FY4="","",_xlfn.RANK.EQ(FY4,FY3:FY18)) -> 2 | GA4: =IF(CD4="","",CD4) -> Blagnac | GB4: =IFERROR(_xlfn.XLOOKUP(BZ4,$CA$3:$CA$18,$CY$3:$CY$18),"") -> Narbonne | GC4: =IFERROR(_xlfn.XLOOKUP(GB4,$CY$3:$CY$18,$EL$3:$EL$18),"") -> 4000.1244 | GD4: =IF(GC4="","",_xlfn.RANK.EQ(GC4,GC3:GC18)) -> 2 | GE4: =IF(CY4="","",CY4) -> Blagnac | GF4: =IFERROR(_xlfn.XLOOKUP(CB4,$CC$3:$CC$18,$DS$3:$DS$18),"") -> Nice | GG4: =IFERROR(_xlfn.XLOOKUP(GF4,$DS$3:$DS$18,$EN$3:$EN$18),"") -> 4000.1139 | GH4: =IF(GG4="","",_xlfn.RANK.EQ(GG4,GG3:GG18)) -> 2 | GI4: =IF(DS4="","",DS4) -> Blagnac | GK4: ok | GL4: 2023-09-02T17:00:00 | GQ4: =IF(SUM(FD4,FF4)<>0,SUM(FD4,FF4),"") -> 1 | GR4: 1
D5: Périgueux | E5: 22 | G5: 3 | I5: 7 | K5: 1 | M5: Bourgoin-Jallieu | Q5: 2023-09-02 | R5: 19:00:00 | U5: =IF(FY5=FY4,FZ4,FZ5) -> 3 | V5: Carcassonne | X5: 4 | Y5: -1 | Z5: q | AA5: 2 | AB5: 2 | AC5: 0 | AD5: 0 | AE5: 33 | AF5: 24 | AG5: 9 | AH5: 0 | AI5: 0 | AJ5: 0 | AK5: 0 | AL5: 3 | AM5: 3 | AN5: 0 | AO5: =IF(GC5=GC4,GD4,GD5) -> 3 | AP5: Carcassonne | AR5: 4 | AS5: -1 | AT5: q | AU5: 2 | AV5: 2 | AW5: 0 | AX5: 0 | AY5: 33 | AZ5: 24 | BA5: 9 | BB5: 0 | BC5: 0 | BD5: 0 | BE5: 3 | BF5: 3 | BG5: 0 | BH5: =IF(GG5=GG4,GH4,GH5) -> 3 | BI5: Carcassonne | BK5: 4 | BL5: -1 | BM5: q | BN5: 2 | BO5: 2 | BP5: 0 | BQ5: 0 | BR5: 33 | BS5: 24 | BT5: 9 | BU5: 3 | BV5: 3 | BW5: 0 | BX5: 3 | BY5: 13 | BZ5: 3 | CA5: 13 | CB5: 3 | CC5: 13 | CD5: =IF(Equipes!$C$4="","",Equipes!$C$4) -> Bourg-en-Bresse | CF5: 13 | CG5: ='J01'!CF5-CF5 -> 0 | CH5: =IF(CF5>'J01'!CF5,'J01'!$CH$20,IF(CF5='J01'!CF5,'J01'!$CG$20,IF(CF5<'J01'!CF5,'J01'!$CF$20))) -> u | CI5: 13 | CJ5: =SUMPRODUCT(($D$3:$D$10=CD5)*($FB$3:$FB$10))+SUMPRODUCT(($M$3:$M$10=CD5)*($FC$3:$FC$10))+'J01'!CJ5+CU5 -> -3 | CK5: =SUMPRODUCT(($D$3:$D$10=CD5)*($FF$3:$FF$10))+SUMPRODUCT(($M$3:$M$10=CD5)*($FG$3:$FG$10))+'J01'!CK5 -> 2 | CL5: =SUMPRODUCT(($D$3:$D$10=CD5)*($FJ$3:$FJ$10))+SUMPRODUCT(($M$3:$M$10=CD5)*($FK$3:$FK$10))+'J01'!CL5 -> 0 | CM5: =SUMPRODUCT(($D$3:$D$10=CD5)*($FL$3:$FL$10))+SUMPRODUCT(($M$3:$M$10=CD5)*($FM$3:$FM$10))+'J01'!CM5 -> 0 | CN5: =SUMPRODUCT(($D$3:$D$10=CD5)*($FN$3:$FN$10))+SUMPRODUCT(($M$3:$M$10=CD5)*($FO$3:$FO$10))+'J01'!CN5 -> 2 | CO5: =SUMPRODUCT(($D$3:$D$10=CD5)*($FP$3:$FP$10))+SUMPRODUCT(($M$3:$M$10=CD5)*($FQ$3:$FQ$10))+'J01'!CO5 -> 26 | CP5: =SUMPRODUCT(($D$3:$D$10=CD5)*($FR$3:$FR$10))+SUMPRODUCT(($M$3:$M$10=CD5)*($FS$3:$FS$10))+'J01'!CP5 -> 39 | CQ5: -13 | CR5: 1 | CS5: =SUMPRODUCT(($D$3:$D$10=CD5)*($EV$3:$EV$10))+SUMPRODUCT(($M$3:$M$10=CD5)*($EW$3:$EW$10))+'J01'!CS5 -> 0 | CT5: =SUMPRODUCT(($D$3:$D$10=CD5)*($EX$3:$EX$10))+SUMPRODUCT(($M$3:$M$10=CD5)*($EY$3:$EY$10))+'J01'!CT5 -> 1 | CU5: 0 | CV5: =SUMPRODUCT(($D$3:$D$10=CD5)*($FT$3:$FT$10))+SUMPRODUCT(($M$3:$M$10=CD5)*($FU$3:$FU$10))+'J01'!CV5 -> 2 | CW5: =SUMPRODUCT(($D$3:$D$10=CD5)*($FV$3:$FV$10))+SUMPRODUCT(($M$3:$M$10=CD5)*($FW$3:$FW$10))+'J01'!CW5 -> 3 | CX5: -1 | CY5: =IF(Equipes!$C$4="","",Equipes!$C$4) -> Bourg-en-Bresse | DA5: 13 | DB5: ='J01'!DA5-DA5 -> 0 | DC5: =IF(DA5>'J01'!DA5,'J01'!$DC$20,IF(DA5='J01'!DA5,'J01'!$DB$20,IF(DA5<'J01'!DA5,'J01'!$DA$20))) -> u | DD5: 13 | DE5: =SUMPRODUCT(($D$3:$D$10=CY5)*($FB$3:$FB$10))+SUMPRODUCT(($M$3:$M$10=CY5)*($FC$3:$FC$10))+'J01'!DE5 -> -3 | DF5: =SUMPRODUCT(($D3:$D$10=CY5)*($FF$3:$FF$10))+SUMPRODUCT(($M$3:$M$10=CY5)*($FG$3:$FG$10))+'J01'!DF5 -> 2 | DG5: =SUMPRODUCT(($D$3:$D$10=CY5)*($FJ$3:$FJ$10))+SUMPRODUCT(($M$3:$M$10=CY5)*($FK$3:$FK$10))+'J01'!DG5 -> 0 | DH5: =SUMPRODUCT(($D$3:$D$10=CY5)*($FL$3:$FL$10))+SUMPRODUCT(($M$3:$M$10=CY5)*($FM$3:$FM$10))+'J01'!DH5 -> 0 | DI5: =SUMPRODUCT(($D$3:$D$10=CY5)*($FN$3:$FN$10))+SUMPRODUCT(($M$3:$M$10=CY5)*($FO$3:$FO$10))+'J01'!DI5 -> 2 | DJ5: =SUMPRODUCT(($D$3:$D$10=CY5)*($FP$3:$FP$10))+SUMPRODUCT(($M$3:$M$10=CY5)*($FQ$3:$FQ$10))+'J01'!DJ5 -> 26 | DK5: =SUMPRODUCT(($D$3:$D$10=CY5)*($FR$3:$FR$10))+SUMPRODUCT(($M$3:$M$10=CY5)*($FS$3:$FS$10))+'J01'!DK5 -> 39 | DL5: -13 | DM5: 1 | DN5: =SUMPRODUCT(($D$3:$D$10=CY5)*($EV$3:$EV$10))+SUMPRODUCT(($M$3:$M$10=CY5)*($EW$3:$EW$10))+'J01'!DN5 -> 0 | DO5: =SUMPRODUCT(($D$3:$D$10=CY5)*($EX$3:$EX$10))+SUMPRODUCT(($M$3:$M$10=CY5)*($EY$3:$EY$10))+'J01'!DO5 -> 1 | DP5: =SUMPRODUCT(($D$3:$D$10=CY5)*($FT$3:$FT$10))+SUMPRODUCT(($M$3:$M$10=CY5)*($FU$3:$FU$10))+'J01'!DP5 -> 2 | DQ5: =SUMPRODUCT(($D$3:$D$10=CY5)*($FV$3:$FV$10))+SUMPRODUCT(($M$3:$M$10=CY5)*($FW$3:$FW$10))+'J01'!DQ5 -> 3 | DR5: -1 | DS5: =IF(Equipes!$C$4="","",Equipes!$C$4) -> Bourg-en-Bresse | DU5: 13 | DV5: ='J01'!DU5-DU5 -> 0 | DW5: =IF(DU5>'J01'!DU5,'J01'!$DW$20,IF(DU5='J01'!DU5,'J01'!$DV$20,IF(DU5<'J01'!DU5,'J01'!$DU$20))) -> u | DX5: 13 | DY5: =SUMPRODUCT(($D$3:$D$10=DS5)*($ET$3:$ET$10))+SUMPRODUCT(($M$3:$M$10=DS5)*($EU$3:$EU$10))+'J01'!DY5 -> -4 | DZ5: =SUMPRODUCT(($D3:$D$10=DS5)*($FF$3:$FF$10))+SUMPRODUCT(($M$3:$M$10=DS5)*($FG$3:$FG$10))+'J01'!DZ5 -> 2 | EA5: =SUMPRODUCT(($D$3:$D$10=DS5)*($FJ$3:$FJ$10))+SUMPRODUCT(($M$3:$M$10=DS5)*($FK$3:$FK$10))+'J01'!EA5 -> 0 | EB5: =SUMPRODUCT(($D$3:$D$10=DS5)*($FL$3:$FL$10))+SUMPRODUCT(($M$3:$M$10=DS5)*($FM$3:$FM$10))+'J01'!EB5 -> 0 | EC5: =SUMPRODUCT(($D$3:$D$10=DS5)*($FN$3:$FN$10))+SUMPRODUCT(($M$3:$M$10=DS5)*($FO$3:$FO$10))+'J01'!EC5 -> 2 | ED5: =SUMPRODUCT(($D$3:$D$10=DS5)*($FP$3:$FP$10))+SUMPRODUCT(($M$3:$M$10=DS5)*($FQ$3:$FQ$10))+'J01'!ED5 -> 26 | EE5: =SUMPRODUCT(($D$3:$D$10=DS5)*($FR$3:$FR$10))+SUMPRODUCT(($M$3:$M$10=DS5)*($FS$3:$FS$10))+'J01'!EE5 -> 39 | EF5: -13 | EG5: =SUMPRODUCT(($D$3:$D$10=DS5)*($FT$3:$FT$10))+SUMPRODUCT(($M$3:$M$10=DS5)*($FU$3:$FU$10))+'J01'!EG5 -> 2 | EH5: =SUMPRODUCT(($D$3:$D$10=DS5)*($FV$3:$FV$10))+SUMPRODUCT(($M$3:$M$10=DS5)*($FW$3:$FW$10))+'J01'!EH5 -> 3 | EI5: -1 | EJ5: -3000.1274 | EK5: =EJ5+0.00000012 -> -3000.1274 | EL5: -3000.1274 | EM5: =EL5+0.00000012 -> -3000.1274 | EN5: -4000.1274 | EO5: =EN5+0.00000012 -> -4000.1274 | EP5: 0 | EQ5: 0 | ER5: 0 | ES5: 0 | ET5: 0 | EU5: 0 | EV5: FALSE | EW5: FALSE | EX5: FALSE | EY5: FALSE | EZ5: 0 | FA5: 0 | FB5: 0 | FC5: 0 | FF5: 1 | FG5: 1 | FH5: 1 | FI5: 1 | FJ5: 1 | FK5: FALSE | FL5: FALSE | FM5: FALSE | FN5: FALSE | FO5: 1 | FP5: 22 | FQ5: 7 | FR5: 7 | FS5: 22 | FT5: 3 | FU5: 1 | FV5: 1 | FW5: 3 | FX5: =IFERROR(_xlfn.XLOOKUP(BX5,$BY$3:$BY$18,$CD$3:$CD$18),"") -> Carcassonne | FY5: =IFERROR(_xlfn.XLOOKUP(FX5,$CD$3:$CD$18,$EJ$3:$EJ$18),"") -> 4000.0933 | FZ5: =IF(FY5="","",_xlfn.RANK.EQ(FY5,FY3:FY18)) -> 3 | GA5: =IF(CD5="","",CD5) -> Bourg-en-Bresse | GB5: =IFERROR(_xlfn.XLOOKUP(BZ5,$CA$3:$CA$18,$CY$3:$CY$18),"") -> Carcassonne | GC5: 4000.0933 | GD5: =IF(GC5="","",_xlfn.RANK.EQ(GC5,GC3:GC18)) -> 3 | GE5: =IF(CY5="","",CY5) -> Bourg-en-Bresse | GF5: Carcassonne | GG5: 4000.0933 | GH5: =IF(GG5="","",_xlfn.RANK.EQ(GG5,GG3:GG18)) -> 3 | GI5: Bourg-en-Bresse | GK5: ok | GL5: 2023-09-02T19:00:00 | GQ5: 1 | GR5: 1
D6: Massy | E6: 23 | F6: Bd | G6: 3 | I6: 27 | K6: 3 | M6: Narbonne | Q6: 2023-09-02 | R6: 19:00:00 | U6: 4 | V6: Tarbes | X6: 2 | Y6: -1 | Z6: q | AA6: 2 | AB6: 1 | AC6: 0 | AD6: 1 | AE6: 38 | AF6: 20 | AG6: 18 | AH6: 1 | AI6: 0 | AJ6: 1 | AK6: 0 | AL6: 1 | AM6: 2 | AN6: -1 | AO6: 4 | AP6: Tarbes | AR6: 2 | AS6: -1 | AT6: q | AU6: 2 | AV6: 1 | AW6: 0 | AX6: 1 | AY6: 38 | AZ6: 20 | BA6: 18 | BB6: 1 | BC6: 0 | BD6: 1 | BE6: 1 | BF6: 2 | BG6: -1 | BH6: 4 | BI6: Chambéry | BK6: 2 | BL6: 5 | BM6: p | BN6: 2 | BO6: 0 | BP6: 1 | BQ6: 1 | BR6: 25 | BS6: 33 | BT6: -8 | BU6: 1 | BV6: 3 | BW6: -2 | BX6: 4 | BY6: 10 | BZ6: 4 | CA6: 10 | CB6: 4 | CC6: 9 | CD6: =IF(Equipes!$C$5="","",Equipes!$C$5) -> Bourgoin-Jallieu | CF6: 10 | CG6: ='J01'!CF6-CF6 -> -4 | CH6: =IF(CF6>'J01'!CF6,'J01'!$CH$20,IF(CF6='J01'!CF6,'J01'!$CG$20,IF(CF6<'J01'!CF6,'J01'!$CF$20))) -> q | CI6: 10 | CJ6: =SUMPRODUCT(($D$3:$D$10=CD6)*($FB$3:$FB$10))+SUMPRODUCT(($M$3:$M$10=CD6)*($FC$3:$FC$10))+'J01'!CJ6+CU6 -> 0 | CK6: =SUMPRODUCT(($D$3:$D$10=CD6)*($FF$3:$FF$10))+SUMPRODUCT(($M$3:$M$10=CD6)*($FG$3:$FG$10))+'J01'!CK6 -> 2 | CL6: =SUMPRODUCT(($D$3:$D$10=CD6)*($FJ$3:$FJ$10))+SUMPRODUCT(($M$3:$M$10=CD6)*($FK$3:$FK$10))+'J01'!CL6 -> 1 | CM6: =SUMPRODUCT(($D$3:$D$10=CD6)*($FL$3:$FL$10))+SUMPRODUCT(($M$3:$M$10=CD6)*($FM$3:$FM$10))+'J01'!CM6 -> 0 | CN6: =SUMPRODUCT(($D$3:$D$10=CD6)*($FN$3:$FN$10))+SUMPRODUCT(($M$3:$M$10=CD6)*($FO$3:$FO$10))+'J01'!CN6 -> 1 | CO6: =SUMPRODUCT(($D$3:$D$10=CD6)*($FP$3:$FP$10))+SUMPRODUCT(($M$3:$M$10=CD6)*($FQ$3:$FQ$10))+'J01'!CO6 -> 24 | CP6: =SUMPRODUCT(($D$3:$D$10=CD6)*($FR$3:$FR$10))+SUMPRODUCT(($M$3:$M$10=CD6)*($FS$3:$FS$10))+'J01'!CP6 -> 28 | CQ6: -4 | CR6: 0 | CS6: =SUMPRODUCT(($D$3:$D$10=CD6)*($EV$3:$EV$10))+SUMPRODUCT(($M$3:$M$10=CD6)*($EW$3:$EW$10))+'J01'!CS6 -> 0 | CT6: =SUMPRODUCT(($D$3:$D$10=CD6)*($EX$3:$EX$10))+SUMPRODUCT(($M$3:$M$10=CD6)*($EY$3:$EY$10))+'J01'!CT6 -> 0 | CU6: 0 | CV6: =SUMPRODUCT(($D$3:$D$10=CD6)*($FT$3:$FT$10))+SUMPRODUCT(($M$3:$M$10=CD6)*($FU$3:$FU$10))+'J01'!CV6 -> 2 | CW6: =SUMPRODUCT(($D$3:$D$10=CD6)*($FV$3:$FV$10))+SUMPRODUCT(($M$3:$M$10=CD6)*($FW$3:$FW$10))+'J01'!CW6 -> 3 | CX6: -1 | CY6: =IF(Equipes!$C$5="","",Equipes!$C$5) -> Bourgoin-Jallieu | DA6: 10 | DB6: ='J01'!DA6-DA6 -> -4 | DC6: =IF(DA6>'J01'!DA6,'J01'!$DC$20,IF(DA6='J01'!DA6,'J01'!$DB$20,IF(DA6<'J01'!DA6,'J01'!$DA$20))) -> q | DD6: 10 | DE6: =SUMPRODUCT(($D$3:$D$10=CY6)*($FB$3:$FB$10))+SUMPRODUCT(($M$3:$M$10=CY6)*($FC$3:$FC$10))+'J01'!DE6 -> 0 | DF6: =SUMPRODUCT(($D3:$D$10=CY6)*($FF$3:$FF$10))+SUMPRODUCT(($M$3:$M$10=CY6)*($FG$3:$FG$10))+'J01'!DF6 -> 2 | DG6: =SUMPRODUCT(($D$3:$D$10=CY6)*($FJ$3:$FJ$10))+SUMPRODUCT(($M$3:$M$10=CY6)*($FK$3:$FK$10))+'J01'!DG6 -> 1 | DH6: =SUMPRODUCT(($D$3:$D$10=CY6)*($FL$3:$FL$10))+SUMPRODUCT(($M$3:$M$10=CY6)*($FM$3:$FM$10))+'J01'!DH6 -> 0 | DI6: =SUMPRODUCT(($D$3:$D$10=CY6)*($FN$3:$FN$10))+SUMPRODUCT(($M$3:$M$10=CY6)*($FO$3:$FO$10))+'J01'!DI6 -> 1 | DJ6: =SUMPRODUCT(($D$3:$D$10=CY6)*($FP$3:$FP$10))+SUMPRODUCT(($M$3:$M$10=CY6)*($FQ$3:$FQ$10))+'J01'!DJ6 -> 24 | DK6: =SUMPRODUCT(($D$3:$D$10=CY6)*($FR$3:$FR$10))+SUMPRODUCT(($M$3:$M$10=CY6)*($FS$3:$FS$10))+'J01'!DK6 -> 28 | DL6: -4 | DM6: 0 | DN6: =SUMPRODUCT(($D$3:$D$10=CY6)*($EV$3:$EV$10))+SUMPRODUCT(($M$3:$M$10=CY6)*($EW$3:$EW$10))+'J01'!DN6 -> 0 | DO6: =SUMPRODUCT(($D$3:$D$10=CY6)*($EX$3:$EX$10))+SUMPRODUCT(($M$3:$M$10=CY6)*($EY$3:$EY$10))+'J01'!DO6 -> 0 | DP6: =SUMPRODUCT(($D$3:$D$10=CY6)*($FT$3:$FT$10))+SUMPRODUCT(($M$3:$M$10=CY6)*($FU$3:$FU$10))+'J01'!DP6 -> 2 | DQ6: =SUMPRODUCT(($D$3:$D$10=CY6)*($FV$3:$FV$10))+SUMPRODUCT(($M$3:$M$10=CY6)*($FW$3:$FW$10))+'J01'!DQ6 -> 3 | DR6: -1 | DS6: =IF(Equipes!$C$5="","",Equipes!$C$5) -> Bourgoin-Jallieu | DU6: 9 | DV6: ='J01'!DU6-DU6 -> -4 | DW6: =IF(DU6>'J01'!DU6,'J01'!$DW$20,IF(DU6='J01'!DU6,'J01'!$DV$20,IF(DU6<'J01'!DU6,'J01'!$DU$20))) -> q | DX6: 9 | DY6: =SUMPRODUCT(($D$3:$D$10=DS6)*($ET$3:$ET$10))+SUMPRODUCT(($M$3:$M$10=DS6)*($EU$3:$EU$10))+'J01'!DY6 -> 0 | DZ6: =SUMPRODUCT(($D3:$D$10=DS6)*($FF$3:$FF$10))+SUMPRODUCT(($M$3:$M$10=DS6)*($FG$3:$FG$10))+'J01'!DZ6 -> 2 | EA6: =SUMPRODUCT(($D$3:$D$10=DS6)*($FJ$3:$FJ$10))+SUMPRODUCT(($M$3:$M$10=DS6)*($FK$3:$FK$10))+'J01'!EA6 -> 1 | EB6: =SUMPRODUCT(($D$3:$D$10=DS6)*($FL$3:$FL$10))+SUMPRODUCT(($M$3:$M$10=DS6)*($FM$3:$FM$10))+'J01'!EB6 -> 0 | EC6: =SUMPRODUCT(($D$3:$D$10=DS6)*($FN$3:$FN$10))+SUMPRODUCT(($M$3:$M$10=DS6)*($FO$3:$FO$10))+'J01'!EC6 -> 1 | ED6: =SUMPRODUCT(($D$3:$D$10=DS6)*($FP$3:$FP$10))+SUMPRODUCT(($M$3:$M$10=DS6)*($FQ$3:$FQ$10))+'J01'!ED6 -> 24 | EE6: =SUMPRODUCT(($D$3:$D$10=DS6)*($FR$3:$FR$10))+SUMPRODUCT(($M$3:$M$10=DS6)*($FS$3:$FS$10))+'J01'!EE6 -> 28 | EF6: -4 | EG6: =SUMPRODUCT(($D$3:$D$10=DS6)*($FT$3:$FT$10))+SUMPRODUCT(($M$3:$M$10=DS6)*($FU$3:$FU$10))+'J01'!EG6 -> 2 | EH6: =SUMPRODUCT(($D$3:$D$10=DS6)*($FV$3:$FV$10))+SUMPRODUCT(($M$3:$M$10=DS6)*($FW$3:$FW$10))+'J01'!EH6 -> 3 | EI6: -1 | EJ6: -0.0376 | EK6: =EJ6+0.00000011 -> -0.03759989 | EL6: -0.0376 | EM6: =EL6+0.00000011 -> -0.03759989 | EN6: -0.0376 | EO6: =EN6+0.00000011 -> -0.03759989 | EP6: 0 | EQ6: 0 | ER6: 0 | ES6: 0 | ET6: -4 | EU6: 4 | EV6: FALSE | EW6: FALSE | EX6: 1 | EY6: FALSE | EZ6: -3 | FA6: 4 | FB6: -3 | FC6: 4 | FF6: 1 | FG6: 1 | FH6: 1 | FI6: 1 | FJ6: FALSE | FK6: 1 | FL6: FALSE | FM6: FALSE | FN6: 1 | FO6: FALSE | FP6: 23 | FQ6: 27 | FR6: 27 | FS6: 23 | FT6: 3 | FU6: 3 | FV6: 3 | FW6: 3 | FX6: =IFERROR(_xlfn.XLOOKUP(BX6,$BY$3:$BY$18,$CD$3:$CD$18),"") -> Tarbes | FY6: =IFERROR(_xlfn.XLOOKUP(FX6,$CD$3:$CD$18,$EJ$3:$EJ$18),"") -> 2000.1838 | FZ6: =IF(FY6="","",_xlfn.RANK.EQ(FY6,FY3:FY18)) -> 4 | GA6: Bourgoin-Jallieu | GB6: Tarbes | GC6: 2000.1838 | GD6: =IF(GC6="","",_xlfn.RANK.EQ(GC6,GC3:GC18)) -> 4 | GE6: Bourgoin-Jallieu | GF6: Chambéry | GG6: 1999.9225 | GH6: =IF(GG6="","",_xlfn.RANK.EQ(GG6,GG3:GG18)) -> 4 | GI6: Bourgoin-Jallieu | GK6: ok | GL6: 2023-09-02T19:00:00 | GQ6: 1 | GR6: 1
D7: Vienne | E7: 3 | G7: 0 | I7: 25 | K7: 3 | L7: Bo | M7: Nice | Q7: 2023-09-02 | R7: 19:30:00 | U7: 5 | V7: Chambéry | X7: 2 | Y7: 4 | Z7: p | AA7: 2 | AB7: 0 | AC7: 1 | AD7: 1 | AE7: 25 | AF7: 33 | AG7: -8 | AH7: 0 | AI7: 0 | AJ7: 0 | AK7: 0 | AL7: 1 | AM7: 3 | AN7: -2 | AO7: 5 | AP7: Chambéry | AR7: 2 | AS7: 4 | AT7: p | AU7: 2 | AV7: 0 | AW7: 1 | AX7: 1 | AY7: 25 | AZ7: 33 | BA7: -8 | BB7: 0 | BC7: 0 | BD7: 0 | BE7: 1 | BF7: 3 | BG7: -2 | BH7: 5 | BI7: Périgueux | BK7: 0 | BL7: -1 | BM7: q | BN7: 2 | BO7: 2 | BP7: 0 | BQ7: 0 | BR7: 47 | BS7: 21 | BT7: 26 | BU7: 6 | BV7: 3 | BW7: 3 | BX7: 5 | BY7: 3 | BZ7: 5 | CA7: 3 | CB7: 5 | CC7: 3 | CD7: =IF(Equipes!$C$6="","",Equipes!$C$6) -> Carcassonne | CF7: 3 | CG7: ='J01'!CF7-CF7 -> -1 | CH7: =IF(CF7>'J01'!CF7,'J01'!$CH$20,IF(CF7='J01'!CF7,'J01'!$CG$20,IF(CF7<'J01'!CF7,'J01'!$CF$20))) -> q | CI7: 3 | CJ7: =SUMPRODUCT(($D$3:$D$10=CD7)*($FB$3:$FB$10))+SUMPRODUCT(($M$3:$M$10=CD7)*($FC$3:$FC$10))+'J01'!CJ7+CU7 -> 4 | CK7: =SUMPRODUCT(($D$3:$D$10=CD7)*($FF$3:$FF$10))+SUMPRODUCT(($M$3:$M$10=CD7)*($FG$3:$FG$10))+'J01'!CK7 -> 2 | CL7: =SUMPRODUCT(($D$3:$D$10=CD7)*($FJ$3:$FJ$10))+SUMPRODUCT(($M$3:$M$10=CD7)*($FK$3:$FK$10))+'J01'!CL7 -> 2 | CM7: =SUMPRODUCT(($D$3:$D$10=CD7)*($FL$3:$FL$10))+SUMPRODUCT(($M$3:$M$10=CD7)*($FM$3:$FM$10))+'J01'!CM7 -> 0 | CN7: =SUMPRODUCT(($D$3:$D$10=CD7)*($FN$3:$FN$10))+SUMPRODUCT(($M$3:$M$10=CD7)*($FO$3:$FO$10))+'J01'!CN7 -> 0 | CO7: =SUMPRODUCT(($D$3:$D$10=CD7)*($FP$3:$FP$10))+SUMPRODUCT(($M$3:$M$10=CD7)*($FQ$3:$FQ$10))+'J01'!CO7 -> 33 | CP7: =SUMPRODUCT(($D$3:$D$10=CD7)*($FR$3:$FR$10))+SUMPRODUCT(($M$3:$M$10=CD7)*($FS$3:$FS$10))+'J01'!CP7 -> 24 | CQ7: 9 | CR7: 0 | CS7: =SUMPRODUCT(($D$3:$D$10=CD7)*($EV$3:$EV$10))+SUMPRODUCT(($M$3:$M$10=CD7)*($EW$3:$EW$10))+'J01'!CS7 -> 0 | CT7: =SUMPRODUCT(($D$3:$D$10=CD7)*($EX$3:$EX$10))+SUMPRODUCT(($M$3:$M$10=CD7)*($EY$3:$EY$10))+'J01'!CT7 -> 0 | CU7: 0 | CV7: =SUMPRODUCT(($D$3:$D$10=CD7)*($FT$3:$FT$10))+SUMPRODUCT(($M$3:$M$10=CD7)*($FU$3:$FU$10))+'J01'!CV7 -> 3 | CW7: =SUMPRODUCT(($D$3:$D$10=CD7)*($FV$3:$FV$10))+SUMPRODUCT(($M$3:$M$10=CD7)*($FW$3:$FW$10))+'J01'!CW7 -> 3 | CX7: 0 | CY7: =IF(Equipes!$C$6="","",Equipes!$C$6) -> Carcassonne | DA7: 3 | DB7: ='J01'!DA7-DA7 -> -1 | DC7: =IF(DA7>'J01'!DA7,'J01'!$DC$20,IF(DA7='J01'!DA7,'J01'!$DB$20,IF(DA7<'J01'!DA7,'J01'!$DA$20))) -> q | DD7: 3 | DE7: =SUMPRODUCT(($D$3:$D$10=CY7)*($FB$3:$FB$10))+SUMPRODUCT(($M$3:$M$10=CY7)*($FC$3:$FC$10))+'J01'!DE7 -> 4 | DF7: =SUMPRODUCT(($D3:$D$10=CY7)*($FF$3:$FF$10))+SUMPRODUCT(($M$3:$M$10=CY7)*($FG$3:$FG$10))+'J01'!DF7 -> 2 | DG7: =SUMPRODUCT(($D$3:$D$10=CY7)*($FJ$3:$FJ$10))+SUMPRODUCT(($M$3:$M$10=CY7)*($FK$3:$FK$10))+'J01'!DG7 -> 2 | DH7: =SUMPRODUCT(($D$3:$D$10=CY7)*($FL$3:$FL$10))+SUMPRODUCT(($M$3:$M$10=CY7)*($FM$3:$FM$10))+'J01'!DH7 -> 0 | DI7: =SUMPRODUCT(($D$3:$D$10=CY7)*($FN$3:$FN$10))+SUMPRODUCT(($M$3:$M$10=CY7)*($FO$3:$FO$10))+'J01'!DI7 -> 0 | DJ7: =SUMPRODUCT(($D$3:$D$10=CY7)*($FP$3:$FP$10))+SUMPRODUCT(($M$3:$M$10=CY7)*($FQ$3:$FQ$10))+'J01'!DJ7 -> 33 | DK7: =SUMPRODUCT(($D$3:$D$10=CY7)*($FR$3:$FR$10))+SUMPRODUCT(($M$3:$M$10=CY7)*($FS$3:$FS$10))+'J01'!DK7 -> 24 | DL7: 9 | DM7: 0 | DN7: =SUMPRODUCT(($D$3:$D$10=CY7)*($EV$3:$EV$10))+SUMPRODUCT(($M$3:$M$10=CY7)*($EW$3:$EW$10))+'J01'!DN7 -> 0 | DO7: =SUMPRODUCT(($D$3:$D$10=CY7)*($EX$3:$EX$10))+SUMPRODUCT(($M$3:$M$10=CY7)*($EY$3:$EY$10))+'J01'!DO7 -> 0 | DP7: =SUMPRODUCT(($D$3:$D$10=CY7)*($FT$3:$FT$10))+SUMPRODUCT(($M$3:$M$10=CY7)*($FU$3:$FU$10))+'J01'!DP7 -> 3 | DQ7: =SUMPRODUCT(($D$3:$D$10=CY7)*($FV$3:$FV$10))+SUMPRODUCT(($M$3:$M$10=CY7)*($FW$3:$FW$10))+'J01'!DQ7 -> 3 | DR7: 0 | DS7: =IF(Equipes!$C$6="","",Equipes!$C$6) -> Carcassonne | DU7: 3 | DV7: ='J01'!DU7-DU7 -> -1 | DW7: =IF(DU7>'J01'!DU7,'J01'!$DW$20,IF(DU7='J01'!DU7,'J01'!$DV$20,IF(DU7<'J01'!DU7,'J01'!$DU$20))) -> q | DX7: 3 | DY7: =SUMPRODUCT(($D$3:$D$10=DS7)*($ET$3:$ET$10))+SUMPRODUCT(($M$3:$M$10=DS7)*($EU$3:$EU$10))+'J01'!DY7 -> 4 | DZ7: =SUMPRODUCT(($D3:$D$10=DS7)*($FF$3:$FF$10))+SUMPRODUCT(($M$3:$M$10=DS7)*($FG$3:$FG$10))+'J01'!DZ7 -> 2 | EA7: =SUMPRODUCT(($D$3:$D$10=DS7)*($FJ$3:$FJ$10))+SUMPRODUCT(($M$3:$M$10=DS7)*($FK$3:$FK$10))+'J01'!EA7 -> 2 | EB7: =SUMPRODUCT(($D$3:$D$10=DS7)*($FL$3:$FL$10))+SUMPRODUCT(($M$3:$M$10=DS7)*($FM$3:$FM$10))+'J01'!EB7 -> 0 | EC7: =SUMPRODUCT(($D$3:$D$10=DS7)*($FN$3:$FN$10))+SUMPRODUCT(($M$3:$M$10=DS7)*($FO$3:$FO$10))+'J01'!EC7 -> 0 | ED7: =SUMPRODUCT(($D$3:$D$10=DS7)*($FP$3:$FP$10))+SUMPRODUCT(($M$3:$M$10=DS7)*($FQ$3:$FQ$10))+'J01'!ED7 -> 33 | EE7: =SUMPRODUCT(($D$3:$D$10=DS7)*($FR$3:$FR$10))+SUMPRODUCT(($M$3:$M$10=DS7)*($FS$3:$FS$10))+'J01'!EE7 -> 24 | EF7: 9 | EG7: =SUMPRODUCT(($D$3:$D$10=DS7)*($FT$3:$FT$10))+SUMPRODUCT(($M$3:$M$10=DS7)*($FU$3:$FU$10))+'J01'!EG7 -> 3 | EH7: =SUMPRODUCT(($D$3:$D$10=DS7)*($FV$3:$FV$10))+SUMPRODUCT(($M$3:$M$10=DS7)*($FW$3:$FW$10))+'J01'!EH7 -> 3 | EI7: 0 | EJ7: 4000.0933 | EK7: =EJ7+0.0000001 -> 4000.0933 | EL7: 4000.0933 | EM7: =EL7+0.0000001 -> 4000.0933 | EN7: 4000.0933 | EO7: =EN7+0.0000001 -> 4000.0933 | EP7: 0 | EQ7: 0 | ER7: 0 | ES7: 0 | ET7: -4 | EU7: 4 | EV7: FALSE | EW7: 1 | EX7: FALSE | EY7: FALSE | EZ7: -4 | FA7: 5 | FB7: -4 | FC7: 5 | FF7: 1 | FG7: 1 | FH7: 1 | FI7: 1 | FJ7: FALSE | FK7: 1 | FL7: FALSE | FM7: FALSE | FN7: 1 | FO7: FALSE | FP7: 3 | FQ7: 25 | FR7: 25 | FS7: 3 | FT7: 0 | FU7: 3 | FV7: 3 | FW7: 0 | FX7: Chambéry | FY7: 1999.9225 | FZ7: =IF(FY7="","",_xlfn.RANK.EQ(FY7,FY3:FY18)) -> 5 | GA7: Carcassonne | GB7: Chambéry | GC7: 1999.9225 | GD7: =IF(GC7="","",_xlfn.RANK.EQ(GC7,GC3:GC18)) -> 5 | GE7: Carcassonne | GF7: Périgueux | GG7: 0.2647 | GH7: =IF(GG7="","",_xlfn.RANK.EQ(GG7,GG3:GG18)) -> 5 | GI7: Carcassonne | GK7: ok | GL7: 2023-09-02T19:30:00 | GQ7: 1 | GR7: 1
D8: Albi | E8: 27 | G8: 3 | I8: 16 | K8: 1 | M8: Bourg-en-Bresse | Q8: 2023-09-01 | R8: 19:30:00 | U8: 6 | V8: Vienne | X8: 1 | Y8: -5 | Z8: q | AA8: 2 | AB8: 1 | AC8: 0 | AD8: 1 | AE8: 28 | AF8: 25 | AG8: 3 | AH8: 0 | AI8: 0 | AJ8: 0 | AK8: 0 | AL8: 0 | AM8: 3 | AN8: -3 | AO8: 6 | AP8: Vienne | AR8: 1 | AS8: -5 | AT8: q | AU8: 2 | AV8: 1 | AW8: 0 | AX8: 1 | AY8: 28 | AZ8: 25 | BA8: 3 | BB8: 0 | BC8: 0 | BD8: 0 | BE8: 0 | BF8: 3 | BG8: -3 | BH8: 6 | BI8: Tarbes | BK8: 0 | BL8: 2 | BM8: p | BN8: 2 | BO8: 1 | BP8: 0 | BQ8: 1 | BR8: 38 | BS8: 20 | BT8: 18 | BU8: 1 | BV8: 2 | BW8: -1 | BX8: 6 | BY8: 5 | BZ8: 6 | CA8: 5 | CB8: 6 | CC8: 4 | CD8: =IF(Equipes!$C$7="","",Equipes!$C$7) -> Chambéry | CF8: 5 | CG8: ='J01'!CF8-CF8 -> 4 | CH8: =IF(CF8>'J01'!CF8,'J01'!$CH$20,IF(CF8='J01'!CF8,'J01'!$CG$20,IF(CF8<'J01'!CF8,'J01'!$CF$20))) -> p | CI8: 5 | CJ8: =SUMPRODUCT(($D$3:$D$10=CD8)*($FB$3:$FB$10))+SUMPRODUCT(($M$3:$M$10=CD8)*($FC$3:$FC$10))+'J01'!CJ8+CU8 -> 2 | CK8: =SUMPRODUCT(($D$3:$D$10=CD8)*($FF$3:$FF$10))+SUMPRODUCT(($M$3:$M$10=CD8)*($FG$3:$FG$10))+'J01'!CK8 -> 2 | CL8: =SUMPRODUCT(($D$3:$D$10=CD8)*($FJ$3:$FJ$10))+SUMPRODUCT(($M$3:$M$10=CD8)*($FK$3:$FK$10))+'J01'!CL8 -> 0 | CM8: =SUMPRODUCT(($D$3:$D$10=CD8)*($FL$3:$FL$10))+SUMPRODUCT(($M$3:$M$10=CD8)*($FM$3:$FM$10))+'J01'!CM8 -> 1 | CN8: =SUMPRODUCT(($D$3:$D$10=CD8)*($FN$3:$FN$10))+SUMPRODUCT(($M$3:$M$10=CD8)*($FO$3:$FO$10))+'J01'!CN8 -> 1 | CO8: =SUMPRODUCT(($D$3:$D$10=CD8)*($FP$3:$FP$10))+SUMPRODUCT(($M$3:$M$10=CD8)*($FQ$3:$FQ$10))+'J01'!CO8 -> 25 | CP8: =SUMPRODUCT(($D$3:$D$10=CD8)*($FR$3:$FR$10))+SUMPRODUCT(($M$3:$M$10=CD8)*($FS$3:$FS$10))+'J01'!CP8 -> 33 | CQ8: -8 | CR8: 0 | CS8: =SUMPRODUCT(($D$3:$D$10=CD8)*($EV$3:$EV$10))+SUMPRODUCT(($M$3:$M$10=CD8)*($EW$3:$EW$10))+'J01'!CS8 -> 0 | CT8: =SUMPRODUCT(($D$3:$D$10=CD8)*($EX$3:$EX$10))+SUMPRODUCT(($M$3:$M$10=CD8)*($EY$3:$EY$10))+'J01'!CT8 -> 0 | CU8: 0 | CV8: =SUMPRODUCT(($D$3:$D$10=CD8)*($FT$3:$FT$10))+SUMPRODUCT(($M$3:$M$10=CD8)*($FU$3:$FU$10))+'J01'!CV8 -> 1 | CW8: =SUMPRODUCT(($D$3:$D$10=CD8)*($FV$3:$FV$10))+SUMPRODUCT(($M$3:$M$10=CD8)*($FW$3:$FW$10))+'J01'!CW8 -> 3 | CX8: -2 | CY8: =IF(Equipes!$C$7="","",Equipes!$C$7) -> Chambéry | DA8: 5 | DB8: ='J01'!DA8-DA8 -> 4 | DC8: =IF(DA8>'J01'!DA8,'J01'!$DC$20,IF(DA8='J01'!DA8,'J01'!$DB$20,IF(DA8<'J01'!DA8,'J01'!$DA$20))) -> p | DD8: 5 | DE8: =SUMPRODUCT(($D$3:$D$10=CY8)*($FB$3:$FB$10))+SUMPRODUCT(($M$3:$M$10=CY8)*($FC$3:$FC$10))+'J01'!DE8 -> 2 | DF8: =SUMPRODUCT(($D3:$D$10=CY8)*($FF$3:$FF$10))+SUMPRODUCT(($M$3:$M$10=CY8)*($FG$3:$FG$10))+'J01'!DF8 -> 2 | DG8: =SUMPRODUCT(($D$3:$D$10=CY8)*($FJ$3:$FJ$10))+SUMPRODUCT(($M$3:$M$10=CY8)*($FK$3:$FK$10))+'J01'!DG8 -> 0 | DH8: =SUMPRODUCT(($D$3:$D$10=CY8)*($FL$3:$FL$10))+SUMPRODUCT(($M$3:$M$10=CY8)*($FM$3:$FM$10))+'J01'!DH8 -> 1 | DI8: =SUMPRODUCT(($D$3:$D$10=CY8)*($FN$3:$FN$10))+SUMPRODUCT(($M$3:$M$10=CY8)*($FO$3:$FO$10))+'J01'!DI8 -> 1 | DJ8: =SUMPRODUCT(($D$3:$D$10=CY8)*($FP$3:$FP$10))+SUMPRODUCT(($M$3:$M$10=CY8)*($FQ$3:$FQ$10))+'J01'!DJ8 -> 25 | DK8: =SUMPRODUCT(($D$3:$D$10=CY8)*($FR$3:$FR$10))+SUMPRODUCT(($M$3:$M$10=CY8)*($FS$3:$FS$10))+'J01'!DK8 -> 33 | DL8: -8 | DM8: 0 | DN8: =SUMPRODUCT(($D$3:$D$10=CY8)*($EV$3:$EV$10))+SUMPRODUCT(($M$3:$M$10=CY8)*($EW$3:$EW$10))+'J01'!DN8 -> 0 | DO8: =SUMPRODUCT(($D$3:$D$10=CY8)*($EX$3:$EX$10))+SUMPRODUCT(($M$3:$M$10=CY8)*($EY$3:$EY$10))+'J01'!DO8 -> 0 | DP8: =SUMPRODUCT(($D$3:$D$10=CY8)*($FT$3:$FT$10))+SUMPRODUCT(($M$3:$M$10=CY8)*($FU$3:$FU$10))+'J01'!DP8 -> 1 | DQ8: =SUMPRODUCT(($D$3:$D$10=CY8)*($FV$3:$FV$10))+SUMPRODUCT(($M$3:$M$10=CY8)*($FW$3:$FW$10))+'J01'!DQ8 -> 3 | DR8: -2 | DS8: =IF(Equipes!$C$7="","",Equipes!$C$7) -> Chambéry | DU8: 4 | DV8: ='J01'!DU8-DU8 -> 5 | DW8: =IF(DU8>'J01'!DU8,'J01'!$DW$20,IF(DU8='J01'!DU8,'J01'!$DV$20,IF(DU8<'J01'!DU8,'J01'!$DU$20))) -> p | DX8: 4 | DY8: =SUMPRODUCT(($D$3:$D$10=DS8)*($ET$3:$ET$10))+SUMPRODUCT(($M$3:$M$10=DS8)*($EU$3:$EU$10))+'J01'!DY8 -> 2 | DZ8: =SUMPRODUCT(($D3:$D$10=DS8)*($FF$3:$FF$10))+SUMPRODUCT(($M$3:$M$10=DS8)*($FG$3:$FG$10))+'J01'!DZ8 -> 2 | EA8: =SUMPRODUCT(($D$3:$D$10=DS8)*($FJ$3:$FJ$10))+SUMPRODUCT(($M$3:$M$10=DS8)*($FK$3:$FK$10))+'J01'!EA8 -> 0 | EB8: =SUMPRODUCT(($D$3:$D$10=DS8)*($FL$3:$FL$10))+SUMPRODUCT(($M$3:$M$10=DS8)*($FM$3:$FM$10))+'J01'!EB8 -> 1 | EC8: =SUMPRODUCT(($D$3:$D$10=DS8)*($FN$3:$FN$10))+SUMPRODUCT(($M$3:$M$10=DS8)*($FO$3:$FO$10))+'J01'!EC8 -> 1 | ED8: =SUMPRODUCT(($D$3:$D$10=DS8)*($FP$3:$FP$10))+SUMPRODUCT(($M$3:$M$10=DS8)*($FQ$3:$FQ$10))+'J01'!ED8 -> 25 | EE8: =SUMPRODUCT(($D$3:$D$10=DS8)*($FR$3:$FR$10))+SUMPRODUCT(($M$3:$M$10=DS8)*($FS$3:$FS$10))+'J01'!EE8 -> 33 | EF8: -8 | EG8: =SUMPRODUCT(($D$3:$D$10=DS8)*($FT$3:$FT$10))+SUMPRODUCT(($M$3:$M$10=DS8)*($FU$3:$FU$10))+'J01'!EG8 -> 1 | EH8: =SUMPRODUCT(($D$3:$D$10=DS8)*($FV$3:$FV$10))+SUMPRODUCT(($M$3:$M$10=DS8)*($FW$3:$FW$10))+'J01'!EH8 -> 3 | EI8: -2 | EJ8: 1999.9225 | EK8: =EJ8+0.00000009 -> 1999.9225 | EL8: 1999.9225 | EM8: =EL8+0.00000009 -> 1999.9225 | EN8: 1999.9225 | EO8: =EN8+0.00000009 -> 1999.9225 | EP8: 0 | EQ8: 0 | ER8: 0 | ES8: 0 | ET8: 0 | EU8: 0 | EV8: FALSE | EW8: FALSE | EX8: FALSE | EY8: FALSE | EZ8: 0 | FA8: 0 | FB8: 0 | FC8: 0 | FF8: 1 | FG8: 1 | FH8: 1 | FI8: 1 | FJ8: 1 | FK8: FALSE | FL8: FALSE | FM8: FALSE | FN8: FALSE | FO8: 1 | FP8: 27 | FQ8: 16 | FR8: 16 | FS8: 27 | FT8: 3 | FU8: 1 | FV8: 1 | FW8: 3 | FX8: Vienne | FY8: 1000.0328 | FZ8: =IF(FY8="","",_xlfn.RANK.EQ(FY8,FY3:FY18)) -> 6 | GA8: Chambéry | GB8: Vienne | GC8: 1000.0328 | GD8: =IF(GC8="","",_xlfn.RANK.EQ(GC8,GC3:GC18)) -> 6 | GE8: Chambéry | GF8: Tarbes | GG8: 0.1838 | GH8: =IF(GG8="","",_xlfn.RANK.EQ(GG8,GG3:GG18)) -> 6 | GI8: Chambéry | GK8: ok | GL8: 2023-09-01T19:30:00 | GQ8: 1 | GR8: 1
D9: Carcassonne | E9: 21 | G9: 3 | I9: 14 | J9: Bd | K9: 2 | M9: Suresnes | Q9: 2023-09-01 | R9: 19:30:00 | U9: 7 | V9: Suresnes | X9: 1 | Y9: 5 | Z9: p | AA9: 2 | AB9: 0 | AC9: 0 | AD9: 2 | AE9: 24 | AF9: 45 | AG9: -21 | AH9: 1 | AI9: 0 | AJ9: 1 | AK9: 0 | AL9: 3 | AM9: 5 | AN9: -2 | AO9: 7 | AP9: Suresnes | AR9: 1 | AS9: 5 | AT9: p | AU9: 2 | AV9: 0 | AW9: 0 | AX9: 2 | AY9: 24 | AZ9: 45 | BA9: -21 | BB9: 1 | BC9: 0 | BD9: 1 | BE9: 3 | BF9: 5 | BG9: -2 | BH9: 7 | BI9: Vienne | BK9: 0 | BL9: -6 | BM9: q | BN9: 2 | BO9: 1 | BP9: 0 | BQ9: 1 | BR9: 28 | BS9: 25 | BT9: 3 | BU9: 0 | BV9: 3 | BW9: -3 | BX9: 7 | BY9: 11 | BZ9: 7 | CA9: 11 | CB9: 7 | CC9: 11 | CD9: =IF(Equipes!$C$8="","",Equipes!$C$8) -> Hyères | CF9: 11 | CG9: ='J01'!CF9-CF9 -> -7 | CH9: =IF(CF9>'J01'!CF9,'J01'!$CH$20,IF(CF9='J01'!CF9,'J01'!$CG$20,IF(CF9<'J01'!CF9,'J01'!$CF$20))) -> q | CI9: 11 | CJ9: =SUMPRODUCT(($D$3:$D$10=CD9)*($FB$3:$FB$10))+SUMPRODUCT(($M$3:$M$10=CD9)*($FC$3:$FC$10))+'J01'!CJ9+CU9 -> -2 | CK9: =SUMPRODUCT(($D$3:$D$10=CD9)*($FF$3:$FF$10))+SUMPRODUCT(($M$3:$M$10=CD9)*($FG$3:$FG$10))+'J01'!CK9 -> 2 | CL9: =SUMPRODUCT(($D$3:$D$10=CD9)*($FJ$3:$FJ$10))+SUMPRODUCT(($M$3:$M$10=CD9)*($FK$3:$FK$10))+'J01'!CL9 -> 1 | CM9: =SUMPRODUCT(($D$3:$D$10=CD9)*($FL$3:$FL$10))+SUMPRODUCT(($M$3:$M$10=CD9)*($FM$3:$FM$10))+'J01'!CM9 -> 1 | CN9: =SUMPRODUCT(($D$3:$D$10=CD9)*($FN$3:$FN$10))+SUMPRODUCT(($M$3:$M$10=CD9)*($FO$3:$FO$10))+'J01'!CN9 -> 0 | CO9: =SUMPRODUCT(($D$3:$D$10=CD9)*($FP$3:$FP$10))+SUMPRODUCT(($M$3:$M$10=CD9)*($FQ$3:$FQ$10))+'J01'!CO9 -> 40 | CP9: =SUMPRODUCT(($D$3:$D$10=CD9)*($FR$3:$FR$10))+SUMPRODUCT(($M$3:$M$10=CD9)*($FS$3:$FS$10))+'J01'!CP9 -> 26 | CQ9: 14 | CR9: 0 | CS9: =SUMPRODUCT(($D$3:$D$10=CD9)*($EV$3:$EV$10))+SUMPRODUCT(($M$3:$M$10=CD9)*($EW$3:$EW$10))+'J01'!CS9 -> 0 | CT9: =SUMPRODUCT(($D$3:$D$10=CD9)*($EX$3:$EX$10))+SUMPRODUCT(($M$3:$M$10=CD9)*($EY$3:$EY$10))+'J01'!CT9 -> 0 | CU9: 0 | CV9: =SUMPRODUCT(($D$3:$D$10=CD9)*($FT$3:$FT$10))+SUMPRODUCT(($M$3:$M$10=CD9)*($FU$3:$FU$10))+'J01'!CV9 -> 3 | CW9: =SUMPRODUCT(($D$3:$D$10=CD9)*($FV$3:$FV$10))+SUMPRODUCT(($M$3:$M$10=CD9)*($FW$3:$FW$10))+'J01'!CW9 -> 2 | CX9: 1 | CY9: =IF(Equipes!$C$8="","",Equipes!$C$8) -> Hyères | DA9: 11 | DB9: ='J01'!DA9-DA9 -> -7 | DC9: =IF(DA9>'J01'!DA9,'J01'!$DC$20,IF(DA9='J01'!DA9,'J01'!$DB$20,IF(DA9<'J01'!DA9,'J01'!$DA$20))) -> q | DD9: 11 | DE9: =SUMPRODUCT(($D$3:$D$10=CY9)*($FB$3:$FB$10))+SUMPRODUCT(($M$3:$M$10=CY9)*($FC$3:$FC$10))+'J01'!DE9 -> -2 | DF9: =SUMPRODUCT(($D3:$D$10=CY9)*($FF$3:$FF$10))+SUMPRODUCT(($M$3:$M$10=CY9)*($FG$3:$FG$10))+'J01'!DF9 -> 2 | DG9: =SUMPRODUCT(($D$3:$D$10=CY9)*($FJ$3:$FJ$10))+SUMPRODUCT(($M$3:$M$10=CY9)*($FK$3:$FK$10))+'J01'!DG9 -> 1 | DH9: =SUMPRODUCT(($D$3:$D$10=CY9)*($FL$3:$FL$10))+SUMPRODUCT(($M$3:$M$10=CY9)*($FM$3:$FM$10))+'J01'!DH9 -> 1 | DI9: =SUMPRODUCT(($D$3:$D$10=CY9)*($FN$3:$FN$10))+SUMPRODUCT(($M$3:$M$10=CY9)*($FO$3:$FO$10))+'J01'!DI9 -> 0 | DJ9: =SUMPRODUCT(($D$3:$D$10=CY9)*($FP$3:$FP$10))+SUMPRODUCT(($M$3:$M$10=CY9)*($FQ$3:$FQ$10))+'J01'!DJ9 -> 40 | DK9: =SUMPRODUCT(($D$3:$D$10=CY9)*($FR$3:$FR$10))+SUMPRODUCT(($M$3:$M$10=CY9)*($FS$3:$FS$10))+'J01'!DK9 -> 26 | DL9: 14 | DM9: 0 | DN9: =SUMPRODUCT(($D$3:$D$10=CY9)*($EV$3:$EV$10))+SUMPRODUCT(($M$3:$M$10=CY9)*($EW$3:$EW$10))+'J01'!DN9 -> 0 | DO9: =SUMPRODUCT(($D$3:$D$10=CY9)*($EX$3:$EX$10))+SUMPRODUCT(($M$3:$M$10=CY9)*($EY$3:$EY$10))+'J01'!DO9 -> 0 | DP9: =SUMPRODUCT(($D$3:$D$10=CY9)*($FT$3:$FT$10))+SUMPRODUCT(($M$3:$M$10=CY9)*($FU$3:$FU$10))+'J01'!DP9 -> 3 | DQ9: =SUMPRODUCT(($D$3:$D$10=CY9)*($FV$3:$FV$10))+SUMPRODUCT(($M$3:$M$10=CY9)*($FW$3:$FW$10))+'J01'!DQ9 -> 2 | DR9: 1 | DS9: =IF(Equipes!$C$8="","",Equipes!$C$8) -> Hyères | DU9: 11 | DV9: ='J01'!DU9-DU9 -> -8 | DW9: =IF(DU9>'J01'!DU9,'J01'!$DW$20,IF(DU9='J01'!DU9,'J01'!$DV$20,IF(DU9<'J01'!DU9,'J01'!$DU$20))) -> q | DX9: 11 | DY9: =SUMPRODUCT(($D$3:$D$10=DS9)*($ET$3:$ET$10))+SUMPRODUCT(($M$3:$M$10=DS9)*($EU$3:$EU$10))+'J01'!DY9 -> -2 | DZ9: =SUMPRODUCT(($D3:$D$10=DS9)*($FF$3:$FF$10))+SUMPRODUCT(($M$3:$M$10=DS9)*($FG$3:$FG$10))+'J01'!DZ9 -> 2 | EA9: =SUMPRODUCT(($D$3:$D$10=DS9)*($FJ$3:$FJ$10))+SUMPRODUCT(($M$3:$M$10=DS9)*($FK$3:$FK$10))+'J01'!EA9 -> 1 | EB9: =SUMPRODUCT(($D$3:$D$10=DS9)*($FL$3:$FL$10))+SUMPRODUCT(($M$3:$M$10=DS9)*($FM$3:$FM$10))+'J01'!EB9 -> 1 | EC9: =SUMPRODUCT(($D$3:$D$10=DS9)*($FN$3:$FN$10))+SUMPRODUCT(($M$3:$M$10=DS9)*($FO$3:$FO$10))+'J01'!EC9 -> 0 | ED9: =SUMPRODUCT(($D$3:$D$10=DS9)*($FP$3:$FP$10))+SUMPRODUCT(($M$3:$M$10=DS9)*($FQ$3:$FQ$10))+'J01'!ED9 -> 40 | EE9: =SUMPRODUCT(($D$3:$D$10=DS9)*($FR$3:$FR$10))+SUMPRODUCT(($M$3:$M$10=DS9)*($FS$3:$FS$10))+'J01'!EE9 -> 26 | EF9: 14 | EG9: =SUMPRODUCT(($D$3:$D$10=DS9)*($FT$3:$FT$10))+SUMPRODUCT(($M$3:$M$10=DS9)*($FU$3:$FU$10))+'J01'!EG9 -> 3 | EH9: =SUMPRODUCT(($D$3:$D$10=DS9)*($FV$3:$FV$10))+SUMPRODUCT(($M$3:$M$10=DS9)*($FW$3:$FW$10))+'J01'!EH9 -> 2 | EI9: 1 | EJ9: -1999.856 | EK9: =EJ9+0.00000008 -> -1999.856 | EL9: -1999.856 | EM9: =EL9+0.00000008 -> -1999.856 | EN9: -1999.856 | EO9: =EN9+0.00000008 -> -1999.856 | EP9: 0 | EQ9: 0 | ER9: 0 | ES9: 0 | ET9: 0 | EU9: 0 | EV9: FALSE | EW9: FALSE | EX9: FALSE | EY9: 1 | EZ9: 0 | FA9: 1 | FB9: 0 | FC9: 1 | FF9: 1 | FG9: 1 | FH9: 1 | FI9: 1 | FJ9: 1 | FK9: FALSE | FL9: FALSE | FM9: FALSE | FN9: FALSE | FO9: 1 | FP9: 21 | FQ9: 14 | FR9: 14 | FS9: 21 | FT9: 3 | FU9: 2 | FV9: 2 | FW9: 3 | FX9: Suresnes | FY9: 999.7924 | FZ9: =IF(FY9="","",_xlfn.RANK.EQ(FY9,FY3:FY18)) -> 7 | GA9: Hyères | GB9: Suresnes | GC9: 999.7924 | GD9: =IF(GC9="","",_xlfn.RANK.EQ(GC9,GC3:GC18)) -> 7 | GE9: Hyères | GF9: Vienne | GG9: 0.0328 | GH9: =IF(GG9="","",_xlfn.RANK.EQ(GG9,GG3:GG18)) -> 7 | GI9: Hyères | GK9: ok | GL9: 2023-09-01T19:30:00 | GQ9: 1 | GR9: 1
U10: 8 | V10: Périgueux | X10: 0 | Y10: -3 | Z10: q | AA10: 2 | AB10: 2 | AC10: 0 | AD10: 0 | AE10: 47 | AF10: 21 | AG10: 26 | AH10: 0 | AI10: 0 | AJ10: 0 | AK10: 0 | AL10: 6 | AM10: 3 | AN10: 3 | AO10: 8 | AP10: Périgueux | AR10: 0 | AS10: -3 | AT10: q | AU10: 2 | AV10: 2 | AW10: 0 | AX10: 0 | AY10: 47 | AZ10: 21 | BA10: 26 | BB10: 0 | BC10: 0 | BD10: 0 | BE10: 6 | BF10: 3 | BG10: 3 | BH10: 8 | BI10: Albi | BK10: 0 | BL10: 3 | BM10: p | BN10: 2 | BO10: 1 | BP10: 0 | BQ10: 1 | BR10: 33 | BS10: 33 | BT10: 0 | BU10: 3 | BV10: 2 | BW10: 1 | BX10: 8 | BY10: 12 | BZ10: 8 | CA10: 12 | CB10: 8 | CC10: 12 | CD10: =IF(Equipes!$C$9="","",Equipes!$C$9) -> Massy | CF10: 12 | CG10: ='J01'!CF10-CF10 -> -4 | CH10: =IF(CF10>'J01'!CF10,'J01'!$CH$20,IF(CF10='J01'!CF10,'J01'!$CG$20,IF(CF10<'J01'!CF10,'J01'!$CF$20))) -> q | CI10: 12 | CJ10: =SUMPRODUCT(($D$3:$D$10=CD10)*($FB$3:$FB$10))+SUMPRODUCT(($M$3:$M$10=CD10)*($FC$3:$FC$10))+'J01'!CJ10+CU10 -> -3 | CK10: =SUMPRODUCT(($D$3:$D$10=CD10)*($FF$3:$FF$10))+SUMPRODUCT(($M$3:$M$10=CD10)*($FG$3:$FG$10))+'J01'!CK10 -> 2 | CL10: =SUMPRODUCT(($D$3:$D$10=CD10)*($FJ$3:$FJ$10))+SUMPRODUCT(($M$3:$M$10=CD10)*($FK$3:$FK$10))+'J01'!CL10 -> 1 | CM10: =SUMPRODUCT(($D$3:$D$10=CD10)*($FL$3:$FL$10))+SUMPRODUCT(($M$3:$M$10=CD10)*($FM$3:$FM$10))+'J01'!CM10 -> 0 | CN10: =SUMPRODUCT(($D$3:$D$10=CD10)*($FN$3:$FN$10))+SUMPRODUCT(($M$3:$M$10=CD10)*($FO$3:$FO$10))+'J01'!CN10 -> 1 | CO10: =SUMPRODUCT(($D$3:$D$10=CD10)*($FP$3:$FP$10))+SUMPRODUCT(($M$3:$M$10=CD10)*($FQ$3:$FQ$10))+'J01'!CO10 -> 43 | CP10: =SUMPRODUCT(($D$3:$D$10=CD10)*($FR$3:$FR$10))+SUMPRODUCT(($M$3:$M$10=CD10)*($FS$3:$FS$10))+'J01'!CP10 -> 40 | CQ10: 3 | CR10: 1 | CS10: =SUMPRODUCT(($D$3:$D$10=CD10)*($EV$3:$EV$10))+SUMPRODUCT(($M$3:$M$10=CD10)*($EW$3:$EW$10))+'J01'!CS10 -> 0 | CT10: =SUMPRODUCT(($D$3:$D$10=CD10)*($EX$3:$EX$10))+SUMPRODUCT(($M$3:$M$10=CD10)*($EY$3:$EY$10))+'J01'!CT10 -> 1 | CU10: 0 | CV10: =SUMPRODUCT(($D$3:$D$10=CD10)*($FT$3:$FT$10))+SUMPRODUCT(($M$3:$M$10=CD10)*($FU$3:$FU$10))+'J01'!CV10 -> 5 | CW10: =SUMPRODUCT(($D$3:$D$10=CD10)*($FV$3:$FV$10))+SUMPRODUCT(($M$3:$M$10=CD10)*($FW$3:$FW$10))+'J01'!CW10 -> 4 | CX10: 1 | CY10: =IF(Equipes!$C$9="","",Equipes!$C$9) -> Massy | DA10: 12 | DB10: ='J01'!DA10-DA10 -> -4 | DC10: =IF(DA10>'J01'!DA10,'J01'!$DC$20,IF(DA10='J01'!DA10,'J01'!$DB$20,IF(DA10<'J01'!DA10,'J01'!$DA$20))) -> q | DD10: 12 | DE10: =SUMPRODUCT(($D$3:$D$10=CY10)*($FB$3:$FB$10))+SUMPRODUCT(($M$3:$M$10=CY10)*($FC$3:$FC$10))+'J01'!DE10 -> -3 | DF10: =SUMPRODUCT(($D3:$D$10=CY10)*($FF$3:$FF$10))+SUMPRODUCT(($M$3:$M$10=CY10)*($FG$3:$FG$10))+'J01'!DF10 -> 2 | DG10: =SUMPRODUCT(($D$3:$D$10=CY10)*($FJ$3:$FJ$10))+SUMPRODUCT(($M$3:$M$10=CY10)*($FK$3:$FK$10))+'J01'!DG10 -> 1 | DH10: =SUMPRODUCT(($D$3:$D$10=CY10)*($FL$3:$FL$10))+SUMPRODUCT(($M$3:$M$10=CY10)*($FM$3:$FM$10))+'J01'!DH10 -> 0 | DI10: =SUMPRODUCT(($D$3:$D$10=CY10)*($FN$3:$FN$10))+SUMPRODUCT(($M$3:$M$10=CY10)*($FO$3:$FO$10))+'J01'!DI10 -> 1 | DJ10: =SUMPRODUCT(($D$3:$D$10=CY10)*($FP$3:$FP$10))+SUMPRODUCT(($M$3:$M$10=CY10)*($FQ$3:$FQ$10))+'J01'!DJ10 -> 43 | DK10: =SUMPRODUCT(($D$3:$D$10=CY10)*($FR$3:$FR$10))+SUMPRODUCT(($M$3:$M$10=CY10)*($FS$3:$FS$10))+'J01'!DK10 -> 40 | DL10: 3 | DM10: 1 | DN10: =SUMPRODUCT(($D$3:$D$10=CY10)*($EV$3:$EV$10))+SUMPRODUCT(($M$3:$M$10=CY10)*($EW$3:$EW$10))+'J01'!DN10 -> 0 | DO10: =SUMPRODUCT(($D$3:$D$10=CY10)*($EX$3:$EX$10))+SUMPRODUCT(($M$3:$M$10=CY10)*($EY$3:$EY$10))+'J01'!DO10 -> 1 | DP10: =SUMPRODUCT(($D$3:$D$10=CY10)*($FT$3:$FT$10))+SUMPRODUCT(($M$3:$M$10=CY10)*($FU$3:$FU$10))+'J01'!DP10 -> 5 | DQ10: =SUMPRODUCT(($D$3:$D$10=CY10)*($FV$3:$FV$10))+SUMPRODUCT(($M$3:$M$10=CY10)*($FW$3:$FW$10))+'J01'!DQ10 -> 4 | DR10: 1 | DS10: =IF(Equipes!$C$9="","",Equipes!$C$9) -> Massy | DU10: 12 | DV10: ='J01'!DU10-DU10 -> -5 | DW10: =IF(DU10>'J01'!DU10,'J01'!$DW$20,IF(DU10='J01'!DU10,'J01'!$DV$20,IF(DU10<'J01'!DU10,'J01'!$DU$20))) -> q | DX10: 12 | DY10: =SUMPRODUCT(($D$3:$D$10=DS10)*($ET$3:$ET$10))+SUMPRODUCT(($M$3:$M$10=DS10)*($EU$3:$EU$10))+'J01'!DY10 -> -4 | DZ10: =SUMPRODUCT(($D3:$D$10=DS10)*($FF$3:$FF$10))+SUMPRODUCT(($M$3:$M$10=DS10)*($FG$3:$FG$10))+'J01'!DZ10 -> 2 | EA10: =SUMPRODUCT(($D$3:$D$10=DS10)*($FJ$3:$FJ$10))+SUMPRODUCT(($M$3:$M$10=DS10)*($FK$3:$FK$10))+'J01'!EA10 -> 1 | EB10: =SUMPRODUCT(($D$3:$D$10=DS10)*($FL$3:$FL$10))+SUMPRODUCT(($M$3:$M$10=DS10)*($FM$3:$FM$10))+'J01'!EB10 -> 0 | EC10: =SUMPRODUCT(($D$3:$D$10=DS10)*($FN$3:$FN$10))+SUMPRODUCT(($M$3:$M$10=DS10)*($FO$3:$FO$10))+'J01'!EC10 -> 1 | ED10: =SUMPRODUCT(($D$3:$D$10=DS10)*($FP$3:$FP$10))+SUMPRODUCT(($M$3:$M$10=DS10)*($FQ$3:$FQ$10))+'J01'!ED10 -> 43 | EE10: =SUMPRODUCT(($D$3:$D$10=DS10)*($FR$3:$FR$10))+SUMPRODUCT(($M$3:$M$10=DS10)*($FS$3:$FS$10))+'J01'!EE10 -> 40 | EF10: 3 | EG10: =SUMPRODUCT(($D$3:$D$10=DS10)*($FT$3:$FT$10))+SUMPRODUCT(($M$3:$M$10=DS10)*($FU$3:$FU$10))+'J01'!EG10 -> 5 | EH10: =SUMPRODUCT(($D$3:$D$10=DS10)*($FV$3:$FV$10))+SUMPRODUCT(($M$3:$M$10=DS10)*($FW$3:$FW$10))+'J01'!EH10 -> 4 | EI10: 1 | EJ10: -2999.9657 | EK10: =EJ10+0.00000007 -> -2999.9657 | EL10: -2999.9657 | EM10: =EL10+0.00000007 -> -2999.9657 | EN10: -3999.9657 | EO10: =EN10+0.00000007 -> -3999.9657 | FX10: Périgueux | FY10: 0.2647 | FZ10: =IF(FY10="","",_xlfn.RANK.EQ(FY10,FY3:FY18)) -> 8 | GA10: Massy | GB10: Périgueux | GC10: 0.2647 | GD10: =IF(GC10="","",_xlfn.RANK.EQ(GC10,GC3:GC18)) -> 8 | GE10: Massy | GF10: Albi | GG10: 0.0033 | GH10: =IF(GG10="","",_xlfn.RANK.EQ(GG10,GG3:GG18)) -> 8 | GI10: Massy
U11: 9 | V11: Albi | X11: 0 | Y11: 2 | Z11: p | AA11: 2 | AB11: 1 | AC11: 0 | AD11: 1 | AE11: 33 | AF11: 33 | AG11: 0 | AH11: 0 | AI11: 0 | AJ11: 0 | AK11: 0 | AL11: 3 | AM11: 2 | AN11: 1 | AO11: 9 | AP11: Albi | AR11: 0 | AS11: 2 | AT11: p | AU11: 2 | AV11: 1 | AW11: 0 | AX11: 1 | AY11: 33 | AZ11: 33 | BA11: 0 | BB11: 0 | BC11: 0 | BD11: 0 | BE11: 3 | BF11: 2 | BG11: 1 | BH11: 9 | BI11: Bourgoin-Jallieu | BK11: 0 | BL11: -4 | BM11: q | BN11: 2 | BO11: 1 | BP11: 0 | BQ11: 1 | BR11: 24 | BS11: 28 | BT11: -4 | BU11: 2 | BV11: 3 | BW11: -1 | BX11: 9 | BY11: 2 | BZ11: 9 | CA11: 2 | CB11: 9 | CC11: 1 | CD11: =IF(Equipes!$C$10="","",Equipes!$C$10) -> Narbonne | CF11: 2 | CG11: ='J01'!CF11-CF11 -> 5 | CH11: =IF(CF11>'J01'!CF11,'J01'!$CH$20,IF(CF11='J01'!CF11,'J01'!$CG$20,IF(CF11<'J01'!CF11,'J01'!$CF$20))) -> p | CI11: 2 | CJ11: =SUMPRODUCT(($D$3:$D$10=CD11)*($FB$3:$FB$10))+SUMPRODUCT(($M$3:$M$10=CD11)*($FC$3:$FC$10))+'J01'!CJ11+CU11 -> 4 | CK11: =SUMPRODUCT(($D$3:$D$10=CD11)*($FF$3:$FF$10))+SUMPRODUCT(($M$3:$M$10=CD11)*($FG$3:$FG$10))+'J01'!CK11 -> 2 | CL11: =SUMPRODUCT(($D$3:$D$10=CD11)*($FJ$3:$FJ$10))+SUMPRODUCT(($M$3:$M$10=CD11)*($FK$3:$FK$10))+'J01'!CL11 -> 2 | CM11: =SUMPRODUCT(($D$3:$D$10=CD11)*($FL$3:$FL$10))+SUMPRODUCT(($M$3:$M$10=CD11)*($FM$3:$FM$10))+'J01'!CM11 -> 0 | CN11: =SUMPRODUCT(($D$3:$D$10=CD11)*($FN$3:$FN$10))+SUMPRODUCT(($M$3:$M$10=CD11)*($FO$3:$FO$10))+'J01'!CN11 -> 0 | CO11: =SUMPRODUCT(($D$3:$D$10=CD11)*($FP$3:$FP$10))+SUMPRODUCT(($M$3:$M$10=CD11)*($FQ$3:$FQ$10))+'J01'!CO11 -> 44 | CP11: =SUMPRODUCT(($D$3:$D$10=CD11)*($FR$3:$FR$10))+SUMPRODUCT(($M$3:$M$10=CD11)*($FS$3:$FS$10))+'J01'!CP11 -> 32 | CQ11: 12 | CR11: 0 | CS11: =SUMPRODUCT(($D$3:$D$10=CD11)*($EV$3:$EV$10))+SUMPRODUCT(($M$3:$M$10=CD11)*($EW$3:$EW$10))+'J01'!CS11 -> 0 | CT11: =SUMPRODUCT(($D$3:$D$10=CD11)*($EX$3:$EX$10))+SUMPRODUCT(($M$3:$M$10=CD11)*($EY$3:$EY$10))+'J01'!CT11 -> 0 | CU11: 0 | CV11: =SUMPRODUCT(($D$3:$D$10=CD11)*($FT$3:$FT$10))+SUMPRODUCT(($M$3:$M$10=CD11)*($FU$3:$FU$10))+'J01'!CV11 -> 5 | CW11: =SUMPRODUCT(($D$3:$D$10=CD11)*($FV$3:$FV$10))+SUMPRODUCT(($M$3:$M$10=CD11)*($FW$3:$FW$10))+'J01'!CW11 -> 3 | CX11: 2 | CY11: =IF(Equipes!$C$10="","",Equipes!$C$10) -> Narbonne | DA11: 2 | DB11: ='J01'!DA11-DA11 -> 5 | DC11: =IF(DA11>'J01'!DA11,'J01'!$DC$20,IF(DA11='J01'!DA11,'J01'!$DB$20,IF(DA11<'J01'!DA11,'J01'!$DA$20))) -> p | DD11: 2 | DE11: =SUMPRODUCT(($D$3:$D$10=CY11)*($FB$3:$FB$10))+SUMPRODUCT(($M$3:$M$10=CY11)*($FC$3:$FC$10))+'J01'!DE11 -> 4 | DF11: =SUMPRODUCT(($D3:$D$10=CY11)*($FF$3:$FF$10))+SUMPRODUCT(($M$3:$M$10=CY11)*($FG$3:$FG$10))+'J01'!DF11 -> 2 | DG11: =SUMPRODUCT(($D$3:$D$10=CY11)*($FJ$3:$FJ$10))+SUMPRODUCT(($M$3:$M$10=CY11)*($FK$3:$FK$10))+'J01'!DG11 -> 2 | DH11: =SUMPRODUCT(($D$3:$D$10=CY11)*($FL$3:$FL$10))+SUMPRODUCT(($M$3:$M$10=CY11)*($FM$3:$FM$10))+'J01'!DH11 -> 0 | DI11: =SUMPRODUCT(($D$3:$D$10=CY11)*($FN$3:$FN$10))+SUMPRODUCT(($M$3:$M$10=CY11)*($FO$3:$FO$10))+'J01'!DI11 -> 0 | DJ11: =SUMPRODUCT(($D$3:$D$10=CY11)*($FP$3:$FP$10))+SUMPRODUCT(($M$3:$M$10=CY11)*($FQ$3:$FQ$10))+'J01'!DJ11 -> 44 | DK11: =SUMPRODUCT(($D$3:$D$10=CY11)*($FR$3:$FR$10))+SUMPRODUCT(($M$3:$M$10=CY11)*($FS$3:$FS$10))+'J01'!DK11 -> 32 | DL11: 12 | DM11: 0 | DN11: =SUMPRODUCT(($D$3:$D$10=CY11)*($EV$3:$EV$10))+SUMPRODUCT(($M$3:$M$10=CY11)*($EW$3:$EW$10))+'J01'!DN11 -> 0 | DO11: =SUMPRODUCT(($D$3:$D$10=CY11)*($EX$3:$EX$10))+SUMPRODUCT(($M$3:$M$10=CY11)*($EY$3:$EY$10))+'J01'!DO11 -> 0 | DP11: =SUMPRODUCT(($D$3:$D$10=CY11)*($FT$3:$FT$10))+SUMPRODUCT(($M$3:$M$10=CY11)*($FU$3:$FU$10))+'J01'!DP11 -> 5 | DQ11: =SUMPRODUCT(($D$3:$D$10=CY11)*($FV$3:$FV$10))+SUMPRODUCT(($M$3:$M$10=CY11)*($FW$3:$FW$10))+'J01'!DQ11 -> 3 | DR11: 2 | DS11: =IF(Equipes!$C$10="","",Equipes!$C$10) -> Narbonne | DU11: 1 | DV11: ='J01'!DU11-DU11 -> 5 | DW11: =IF(DU11>'J01'!DU11,'J01'!$DW$20,IF(DU11='J01'!DU11,'J01'!$DV$20,IF(DU11<'J01'!DU11,'J01'!$DU$20))) -> p | DX11: 1 | DY11: =SUMPRODUCT(($D$3:$D$10=DS11)*($ET$3:$ET$10))+SUMPRODUCT(($M$3:$M$10=DS11)*($EU$3:$EU$10))+'J01'!DY11 -> 4 | DZ11: =SUMPRODUCT(($D3:$D$10=DS11)*($FF$3:$FF$10))+SUMPRODUCT(($M$3:$M$10=DS11)*($FG$3:$FG$10))+'J01'!DZ11 -> 2 | EA11: =SUMPRODUCT(($D$3:$D$10=DS11)*($FJ$3:$FJ$10))+SUMPRODUCT(($M$3:$M$10=DS11)*($FK$3:$FK$10))+'J01'!EA11 -> 2 | EB11: =SUMPRODUCT(($D$3:$D$10=DS11)*($FL$3:$FL$10))+SUMPRODUCT(($M$3:$M$10=DS11)*($FM$3:$FM$10))+'J01'!EB11 -> 0 | EC11: =SUMPRODUCT(($D$3:$D$10=DS11)*($FN$3:$FN$10))+SUMPRODUCT(($M$3:$M$10=DS11)*($FO$3:$FO$10))+'J01'!EC11 -> 0 | ED11: =SUMPRODUCT(($D$3:$D$10=DS11)*($FP$3:$FP$10))+SUMPRODUCT(($M$3:$M$10=DS11)*($FQ$3:$FQ$10))+'J01'!ED11 -> 44 | EE11: =SUMPRODUCT(($D$3:$D$10=DS11)*($FR$3:$FR$10))+SUMPRODUCT(($M$3:$M$10=DS11)*($FS$3:$FS$10))+'J01'!EE11 -> 32 | EF11: 12 | EG11: =SUMPRODUCT(($D$3:$D$10=DS11)*($FT$3:$FT$10))+SUMPRODUCT(($M$3:$M$10=DS11)*($FU$3:$FU$10))+'J01'!EG11 -> 5 | EH11: =SUMPRODUCT(($D$3:$D$10=DS11)*($FV$3:$FV$10))+SUMPRODUCT(($M$3:$M$10=DS11)*($FW$3:$FW$10))+'J01'!EH11 -> 3 | EI11: 2 | EJ11: 4000.1244 | EK11: =EJ11+0.00000006 -> 4000.1244 | EL11: 4000.1244 | EM11: =EL11+0.00000006 -> 4000.1244 | EN11: 4000.1244 | EO11: =EN11+0.00000006 -> 4000.1244 | FX11: Albi | FY11: 0.0033 | FZ11: =IF(FY11="","",_xlfn.RANK.EQ(FY11,FY3:FY18)) -> 9 | GA11: Narbonne | GB11: Albi | GC11: 0.0033 | GD11: =IF(GC11="","",_xlfn.RANK.EQ(GC11,GC3:GC18)) -> 9 | GE11: Narbonne | GF11: Bourgoin-Jallieu | GG11: -0.0376 | GH11: =IF(GG11="","",_xlfn.RANK.EQ(GG11,GG3:GG18)) -> 9 | GI11: Narbonne
U12: 10 | V12: Bourgoin-Jallieu | X12: 0 | Y12: -4 | Z12: q | AA12: 2 | AB12: 1 | AC12: 0 | AD12: 1 | AE12: 24 | AF12: 28 | AG12: -4 | AH12: 0 | AI12: 0 | AJ12: 0 | AK12: 0 | AL12: 2 | AM12: 3 | AN12: -1 | AO12: 10 | AP12: Bourgoin-Jallieu | AR12: 0 | AS12: -4 | AT12: q | AU12: 2 | AV12: 1 | AW12: 0 | AX12: 1 | AY12: 24 | AZ12: 28 | BA12: -4 | BB12: 0 | BC12: 0 | BD12: 0 | BE12: 2 | BF12: 3 | BG12: -1 | BH12: 10 | BI12: Suresnes | BK12: 0 | BL12: 2 | BM12: p | BN12: 2 | BO12: 0 | BP12: 0 | BQ12: 2 | BR12: 24 | BS12: 45 | BT12: -21 | BU12: 3 | BV12: 5 | BW12: -2 | BX12: 10 | BY12: 1 | BZ12: 10 | CA12: 1 | CB12: 10 | CC12: 2 | CD12: =IF(Equipes!$C$11="","",Equipes!$C$11) -> Nice | CF12: 1 | CG12: ='J01'!CF12-CF12 -> 9 | CH12: =IF(CF12>'J01'!CF12,'J01'!$CH$20,IF(CF12='J01'!CF12,'J01'!$CG$20,IF(CF12<'J01'!CF12,'J01'!$CF$20))) -> p | CI12: 1 | CJ12: =SUMPRODUCT(($D$3:$D$10=CD12)*($FB$3:$FB$10))+SUMPRODUCT(($M$3:$M$10=CD12)*($FC$3:$FC$10))+'J01'!CJ12+CU12 -> 5 | CK12: =SUMPRODUCT(($D$3:$D$10=CD12)*($FF$3:$FF$10))+SUMPRODUCT(($M$3:$M$10=CD12)*($FG$3:$FG$10))+'J01'!CK12 -> 2 | CL12: =SUMPRODUCT(($D$3:$D$10=CD12)*($FJ$3:$FJ$10))+SUMPRODUCT(($M$3:$M$10=CD12)*($FK$3:$FK$10))+'J01'!CL12 -> 1 | CM12: =SUMPRODUCT(($D$3:$D$10=CD12)*($FL$3:$FL$10))+SUMPRODUCT(($M$3:$M$10=CD12)*($FM$3:$FM$10))+'J01'!CM12 -> 0 | CN12: =SUMPRODUCT(($D$3:$D$10=CD12)*($FN$3:$FN$10))+SUMPRODUCT(($M$3:$M$10=CD12)*($FO$3:$FO$10))+'J01'!CN12 -> 1 | CO12: =SUMPRODUCT(($D$3:$D$10=CD12)*($FP$3:$FP$10))+SUMPRODUCT(($M$3:$M$10=CD12)*($FQ$3:$FQ$10))+'J01'!CO12 -> 39 | CP12: =SUMPRODUCT(($D$3:$D$10=CD12)*($FR$3:$FR$10))+SUMPRODUCT(($M$3:$M$10=CD12)*($FS$3:$FS$10))+'J01'!CP12 -> 28 | CQ12: 11 | CR12: 1 | CS12: =SUMPRODUCT(($D$3:$D$10=CD12)*($EV$3:$EV$10))+SUMPRODUCT(($M$3:$M$10=CD12)*($EW$3:$EW$10))+'J01'!CS12 -> 1 | CT12: =SUMPRODUCT(($D$3:$D$10=CD12)*($EX$3:$EX$10))+SUMPRODUCT(($M$3:$M$10=CD12)*($EY$3:$EY$10))+'J01'!CT12 -> 0 | CU12: 0 | CV12: =SUMPRODUCT(($D$3:$D$10=CD12)*($FT$3:$FT$10))+SUMPRODUCT(($M$3:$M$10=CD12)*($FU$3:$FU$10))+'J01'!CV12 -> 5 | CW12: =SUMPRODUCT(($D$3:$D$10=CD12)*($FV$3:$FV$10))+SUMPRODUCT(($M$3:$M$10=CD12)*($FW$3:$FW$10))+'J01'!CW12 -> 3 | CX12: 2 | CY12: =IF(Equipes!$C$11="","",Equipes!$C$11) -> Nice | DA12: 1 | DB12: ='J01'!DA12-DA12 -> 9 | DC12: =IF(DA12>'J01'!DA12,'J01'!$DC$20,IF(DA12='J01'!DA12,'J01'!$DB$20,IF(DA12<'J01'!DA12,'J01'!$DA$20))) -> p | DD12: 1 | DE12: =SUMPRODUCT(($D$3:$D$10=CY12)*($FB$3:$FB$10))+SUMPRODUCT(($M$3:$M$10=CY12)*($FC$3:$FC$10))+'J01'!DE12 -> 5 | DF12: =SUMPRODUCT(($D3:$D$10=CY12)*($FF$3:$FF$10))+SUMPRODUCT(($M$3:$M$10=CY12)*($FG$3:$FG$10))+'J01'!DF12 -> 2 | DG12: =SUMPRODUCT(($D$3:$D$10=CY12)*($FJ$3:$FJ$10))+SUMPRODUCT(($M$3:$M$10=CY12)*($FK$3:$FK$10))+'J01'!DG12 -> 1 | DH12: =SUMPRODUCT(($D$3:$D$10=CY12)*($FL$3:$FL$10))+SUMPRODUCT(($M$3:$M$10=CY12)*($FM$3:$FM$10))+'J01'!DH12 -> 0 | DI12: =SUMPRODUCT(($D$3:$D$10=CY12)*($FN$3:$FN$10))+SUMPRODUCT(($M$3:$M$10=CY12)*($FO$3:$FO$10))+'J01'!DI12 -> 1 | DJ12: =SUMPRODUCT(($D$3:$D$10=CY12)*($FP$3:$FP$10))+SUMPRODUCT(($M$3:$M$10=CY12)*($FQ$3:$FQ$10))+'J01'!DJ12 -> 39 | DK12: =SUMPRODUCT(($D$3:$D$10=CY12)*($FR$3:$FR$10))+SUMPRODUCT(($M$3:$M$10=CY12)*($FS$3:$FS$10))+'J01'!DK12 -> 28 | DL12: 11 | DM12: 1 | DN12: =SUMPRODUCT(($D$3:$D$10=CY12)*($EV$3:$EV$10))+SUMPRODUCT(($M$3:$M$10=CY12)*($EW$3:$EW$10))+'J01'!DN12 -> 1 | DO12: =SUMPRODUCT(($D$3:$D$10=CY12)*($EX$3:$EX$10))+SUMPRODUCT(($M$3:$M$10=CY12)*($EY$3:$EY$10))+'J01'!DO12 -> 0 | DP12: =SUMPRODUCT(($D$3:$D$10=CY12)*($FT$3:$FT$10))+SUMPRODUCT(($M$3:$M$10=CY12)*($FU$3:$FU$10))+'J01'!DP12 -> 5 | DQ12: =SUMPRODUCT(($D$3:$D$10=CY12)*($FV$3:$FV$10))+SUMPRODUCT(($M$3:$M$10=CY12)*($FW$3:$FW$10))+'J01'!DQ12 -> 3 | DR12: 2 | DS12: =IF(Equipes!$C$11="","",Equipes!$C$11) -> Nice | DU12: =_xlfn.RANK.EQ(EN12,$EN$3:$EN$18) -> 2 | DV12: ='J01'!DU12-DU12 -> 8 | DW12: =IF(DU12>'J01'!DU12,'J01'!$DW$20,IF(DU12='J01'!DU12,'J01'!$DV$20,IF(DU12<'J01'!DU12,'J01'!$DU$20))) -> p | DX12: 2 | DY12: =SUMPRODUCT(($D$3:$D$10=DS12)*($ET$3:$ET$10))+SUMPRODUCT(($M$3:$M$10=DS12)*($EU$3:$EU$10))+'J01'!DY12 -> 4 | DZ12: =SUMPRODUCT(($D3:$D$10=DS12)*($FF$3:$FF$10))+SUMPRODUCT(($M$3:$M$10=DS12)*($FG$3:$FG$10))+'J01'!DZ12 -> 2 | EA12: =SUMPRODUCT(($D$3:$D$10=DS12)*($FJ$3:$FJ$10))+SUMPRODUCT(($M$3:$M$10=DS12)*($FK$3:$FK$10))+'J01'!EA12 -> 1 | EB12: =SUMPRODUCT(($D$3:$D$10=DS12)*($FL$3:$FL$10))+SUMPRODUCT(($M$3:$M$10=DS12)*($FM$3:$FM$10))+'J01'!EB12 -> 0 | EC12: =SUMPRODUCT(($D$3:$D$10=DS12)*($FN$3:$FN$10))+SUMPRODUCT(($M$3:$M$10=DS12)*($FO$3:$FO$10))+'J01'!EC12 -> 1 | ED12: =SUMPRODUCT(($D$3:$D$10=DS12)*($FP$3:$FP$10))+SUMPRODUCT(($M$3:$M$10=DS12)*($FQ$3:$FQ$10))+'J01'!ED12 -> 39 | EE12: =SUMPRODUCT(($D$3:$D$10=DS12)*($FR$3:$FR$10))+SUMPRODUCT(($M$3:$M$10=DS12)*($FS$3:$FS$10))+'J01'!EE12 -> 28 | EF12: 11 | EG12: =SUMPRODUCT(($D$3:$D$10=DS12)*($FT$3:$FT$10))+SUMPRODUCT(($M$3:$M$10=DS12)*($FU$3:$FU$10))+'J01'!EG12 -> 5 | EH12: =SUMPRODUCT(($D$3:$D$10=DS12)*($FV$3:$FV$10))+SUMPRODUCT(($M$3:$M$10=DS12)*($FW$3:$FW$10))+'J01'!EH12 -> 3 | EI12: 2 | EJ12: 5000.1139 | EK12: =EJ12+0.00000005 -> 5000.1139 | EL12: 5000.1139 | EM12: =EL12+0.00000005 -> 5000.1139 | EN12: 4000.1139 | EO12: =EN12+0.00000005 -> 4000.1139 | FX12: Bourgoin-Jallieu | FY12: -0.0376 | FZ12: =IF(FY12="","",_xlfn.RANK.EQ(FY12,FY3:FY18)) -> 10 | GA12: Nice | GB12: Bourgoin-Jallieu | GC12: -0.0376 | GD12: =IF(GC12="","",_xlfn.RANK.EQ(GC12,GC3:GC18)) -> 10 | GE12: Nice | GF12: Suresnes | GG12: -0.2076 | GH12: =IF(GG12="","",_xlfn.RANK.EQ(GG12,GG3:GG18)) -> 10 | GI12: Nice
U13: 11 | V13: Hyères | X13: -2 | Y13: -7 | Z13: q | AA13: 2 | AB13: 1 | AC13: 1 | AD13: 0 | AE13: 40 | AF13: 26 | AG13: 14 | AH13: 0 | AI13: 0 | AJ13: 0 | AK13: 0 | AL13: 3 | AM13: 2 | AN13: 1 | AO13: 11 | AP13: Hyères | AR13: -2 | AS13: -7 | AT13: q | AU13: 2 | AV13: 1 | AW13: 1 | AX13: 0 | AY13: 40 | AZ13: 26 | BA13: 14 | BB13: 0 | BC13: 0 | BD13: 0 | BE13: 3 | BF13: 2 | BG13: 1 | BH13: 11 | BI13: Hyères | BK13: -2 | BL13: -8 | BM13: q | BN13: 2 | BO13: 1 | BP13: 1 | BQ13: 0 | BR13: 40 | BS13: 26 | BT13: 14 | BU13: 3 | BV13: 2 | BW13: 1 | BX13: 11 | BY13: 8 | BZ13: 11 | CA13: 8 | CB13: 11 | CC13: 5 | CD13: =IF(Equipes!$C$12="","",Equipes!$C$12) -> Périgueux | CF13: 8 | CG13: ='J01'!CF13-CF13 -> -3 | CH13: =IF(CF13>'J01'!CF13,'J01'!$CH$20,IF(CF13='J01'!CF13,'J01'!$CG$20,IF(CF13<'J01'!CF13,'J01'!$CF$20))) -> q | CI13: 8 | CJ13: =SUMPRODUCT(($D$3:$D$10=CD13)*($FB$3:$FB$10))+SUMPRODUCT(($M$3:$M$10=CD13)*($FC$3:$FC$10))+'J01'!CJ13+CU13 -> 0 | CK13: =SUMPRODUCT(($D$3:$D$10=CD13)*($FF$3:$FF$10))+SUMPRODUCT(($M$3:$M$10=CD13)*($FG$3:$FG$10))+'J01'!CK13 -> 2 | CL13: =SUMPRODUCT(($D$3:$D$10=CD13)*($FJ$3:$FJ$10))+SUMPRODUCT(($M$3:$M$10=CD13)*($FK$3:$FK$10))+'J01'!CL13 -> 2 | CM13: =SUMPRODUCT(($D$3:$D$10=CD13)*($FL$3:$FL$10))+SUMPRODUCT(($M$3:$M$10=CD13)*($FM$3:$FM$10))+'J01'!CM13 -> 0 | CN13: =SUMPRODUCT(($D$3:$D$10=CD13)*($FN$3:$FN$10))+SUMPRODUCT(($M$3:$M$10=CD13)*($FO$3:$FO$10))+'J01'!CN13 -> 0 | CO13: =SUMPRODUCT(($D$3:$D$10=CD13)*($FP$3:$FP$10))+SUMPRODUCT(($M$3:$M$10=CD13)*($FQ$3:$FQ$10))+'J01'!CO13 -> 47 | CP13: =SUMPRODUCT(($D$3:$D$10=CD13)*($FR$3:$FR$10))+SUMPRODUCT(($M$3:$M$10=CD13)*($FS$3:$FS$10))+'J01'!CP13 -> 21 | CQ13: 26 | CR13: 0 | CS13: =SUMPRODUCT(($D$3:$D$10=CD13)*($EV$3:$EV$10))+SUMPRODUCT(($M$3:$M$10=CD13)*($EW$3:$EW$10))+'J01'!CS13 -> 0 | CT13: =SUMPRODUCT(($D$3:$D$10=CD13)*($EX$3:$EX$10))+SUMPRODUCT(($M$3:$M$10=CD13)*($EY$3:$EY$10))+'J01'!CT13 -> 0 | CU13: 0 | CV13: =SUMPRODUCT(($D$3:$D$10=CD13)*($FT$3:$FT$10))+SUMPRODUCT(($M$3:$M$10=CD13)*($FU$3:$FU$10))+'J01'!CV13 -> 6 | CW13: =SUMPRODUCT(($D$3:$D$10=CD13)*($FV$3:$FV$10))+SUMPRODUCT(($M$3:$M$10=CD13)*($FW$3:$FW$10))+'J01'!CW13 -> 3 | CX13: 3 | CY13: =IF(Equipes!$C$12="","",Equipes!$C$12) -> Périgueux | DA13: 8 | DB13: ='J01'!DA13-DA13 -> -3 | DC13: =IF(DA13>'J01'!DA13,'J01'!$DC$20,IF(DA13='J01'!DA13,'J01'!$DB$20,IF(DA13<'J01'!DA13,'J01'!$DA$20))) -> q | DD13: 8 | DE13: =SUMPRODUCT(($D$3:$D$10=CY13)*($FB$3:$FB$10))+SUMPRODUCT(($M$3:$M$10=CY13)*($FC$3:$FC$10))+'J01'!DE13 -> 0 | DF13: =SUMPRODUCT(($D3:$D$10=CY13)*($FF$3:$FF$10))+SUMPRODUCT(($M$3:$M$10=CY13)*($FG$3:$FG$10))+'J01'!DF13 -> 2 | DG13: =SUMPRODUCT(($D$3:$D$10=CY13)*($FJ$3:$FJ$10))+SUMPRODUCT(($M$3:$M$10=CY13)*($FK$3:$FK$10))+'J01'!DG13 -> 2 | DH13: =SUMPRODUCT(($D$3:$D$10=CY13)*($FL$3:$FL$10))+SUMPRODUCT(($M$3:$M$10=CY13)*($FM$3:$FM$10))+'J01'!DH13 -> 0 | DI13: =SUMPRODUCT(($D$3:$D$10=CY13)*($FN$3:$FN$10))+SUMPRODUCT(($M$3:$M$10=CY13)*($FO$3:$FO$10))+'J01'!DI13 -> 0 | DJ13: =SUMPRODUCT(($D$3:$D$10=CY13)*($FP$3:$FP$10))+SUMPRODUCT(($M$3:$M$10=CY13)*($FQ$3:$FQ$10))+'J01'!DJ13 -> 47 | DK13: =SUMPRODUCT(($D$3:$D$10=CY13)*($FR$3:$FR$10))+SUMPRODUCT(($M$3:$M$10=CY13)*($FS$3:$FS$10))+'J01'!DK13 -> 21 | DL13: 26 | DM13: 0 | DN13: =SUMPRODUCT(($D$3:$D$10=CY13)*($EV$3:$EV$10))+SUMPRODUCT(($M$3:$M$10=CY13)*($EW$3:$EW$10))+'J01'!DN13 -> 0 | DO13: =SUMPRODUCT(($D$3:$D$10=CY13)*($EX$3:$EX$10))+SUMPRODUCT(($M$3:$M$10=CY13)*($EY$3:$EY$10))+'J01'!DO13 -> 0 | DP13: =SUMPRODUCT(($D$3:$D$10=CY13)*($FT$3:$FT$10))+SUMPRODUCT(($M$3:$M$10=CY13)*($FU$3:$FU$10))+'J01'!DP13 -> 6 | DQ13: =SUMPRODUCT(($D$3:$D$10=CY13)*($FV$3:$FV$10))+SUMPRODUCT(($M$3:$M$10=CY13)*($FW$3:$FW$10))+'J01'!DQ13 -> 3 | DR13: 3 | DS13: =IF(Equipes!$C$12="","",Equipes!$C$12) -> Périgueux | DU13: 5 | DV13: ='J01'!DU13-DU13 -> -1 | DW13: =IF(DU13>'J01'!DU13,'J01'!$DW$20,IF(DU13='J01'!DU13,'J01'!$DV$20,IF(DU13<'J01'!DU13,'J01'!$DU$20))) -> q | DX13: 5 | DY13: =SUMPRODUCT(($D$3:$D$10=DS13)*($ET$3:$ET$10))+SUMPRODUCT(($M$3:$M$10=DS13)*($EU$3:$EU$10))+'J01'!DY13 -> 0 | DZ13: =SUMPRODUCT(($D3:$D$10=DS13)*($FF$3:$FF$10))+SUMPRODUCT(($M$3:$M$10=DS13)*($FG$3:$FG$10))+'J01'!DZ13 -> 2 | EA13: =SUMPRODUCT(($D$3:$D$10=DS13)*($FJ$3:$FJ$10))+SUMPRODUCT(($M$3:$M$10=DS13)*($FK$3:$FK$10))+'J01'!EA13 -> 2 | EB13: =SUMPRODUCT(($D$3:$D$10=DS13)*($FL$3:$FL$10))+SUMPRODUCT(($M$3:$M$10=DS13)*($FM$3:$FM$10))+'J01'!EB13 -> 0 | EC13: =SUMPRODUCT(($D$3:$D$10=DS13)*($FN$3:$FN$10))+SUMPRODUCT(($M$3:$M$10=DS13)*($FO$3:$FO$10))+'J01'!EC13 -> 0 | ED13: =SUMPRODUCT(($D$3:$D$10=DS13)*($FP$3:$FP$10))+SUMPRODUCT(($M$3:$M$10=DS13)*($FQ$3:$FQ$10))+'J01'!ED13 -> 47 | EE13: =SUMPRODUCT(($D$3:$D$10=DS13)*($FR$3:$FR$10))+SUMPRODUCT(($M$3:$M$10=DS13)*($FS$3:$FS$10))+'J01'!EE13 -> 21 | EF13: 26 | EG13: =SUMPRODUCT(($D$3:$D$10=DS13)*($FT$3:$FT$10))+SUMPRODUCT(($M$3:$M$10=DS13)*($FU$3:$FU$10))+'J01'!EG13 -> 6 | EH13: =SUMPRODUCT(($D$3:$D$10=DS13)*($FV$3:$FV$10))+SUMPRODUCT(($M$3:$M$10=DS13)*($FW$3:$FW$10))+'J01'!EH13 -> 3 | EI13: 3 | EJ13: 0.2647 | EK13: =EJ13+0.00000004 -> 0.26470004 | EL13: 0.2647 | EM13: =EL13+0.00000004 -> 0.26470004 | EN13: 0.2647 | EO13: =EN13+0.00000004 -> 0.26470004 | FX13: Hyères | FY13: -1999.856 | FZ13: =IF(FY13="","",_xlfn.RANK.EQ(FY13,FY3:FY18)) -> 11 | GA13: Périgueux | GB13: Hyères | GC13: -1999.856 | GD13: =IF(GC13="","",_xlfn.RANK.EQ(GC13,GC3:GC18)) -> 11 | GE13: Périgueux | GF13: Hyères | GG13: -1999.856 | GH13: =IF(GG13="","",_xlfn.RANK.EQ(GG13,GG3:GG18)) -> 11 | GI13: Périgueux
N14: =IF(Accueil!$D$2="","",IF(Accueil!$D$2="Choix de la saison","","Aujourd'hui, nous sommes le "&TEXT(TODAY(),"jjjj jj mmmm aaaa"))) -> Aujourd'hui, nous sommes le vendredi 29 mars 2024 | U14: 12 | V14: Massy | X14: -3 | Y14: -4 | Z14: q | AA14: 2 | AB14: 1 | AC14: 0 | AD14: 1 | AE14: 43 | AF14: 40 | AG14: 3 | AH14: 1 | AI14: 0 | AJ14: 1 | AK14: 0 | AL14: 5 | AM14: 4 | AN14: 1 | AO14: 12 | AP14: Massy | AR14: -3 | AS14: -4 | AT14: q | AU14: 2 | AV14: 1 | AW14: 0 | AX14: 1 | AY14: 43 | AZ14: 40 | BA14: 3 | BB14: 1 | BC14: 0 | BD14: 1 | BE14: 5 | BF14: 4 | BG14: 1 | BH14: 12 | BI14: Massy | BK14: -4 | BL14: -5 | BM14: q | BN14: 2 | BO14: 1 | BP14: 0 | BQ14: 1 | BR14: 43 | BS14: 40 | BT14: 3 | BU14: 5 | BV14: 4 | BW14: 1 | BX14: 12 | BY14: 7 | BZ14: 12 | CA14: 7 | CB14: 12 | CC14: 10 | CD14: =IF(Equipes!$C$13="","",Equipes!$C$13) -> Suresnes | CF14: 7 | CG14: ='J01'!CF14-CF14 -> 5 | CH14: =IF(CF14>'J01'!CF14,'J01'!$CH$20,IF(CF14='J01'!CF14,'J01'!$CG$20,IF(CF14<'J01'!CF14,'J01'!$CF$20))) -> p | CI14: 7 | CJ14: =SUMPRODUCT(($D$3:$D$10=CD14)*($FB$3:$FB$10))+SUMPRODUCT(($M$3:$M$10=CD14)*($FC$3:$FC$10))+'J01'!CJ14+CU14 -> 1 | CK14: =SUMPRODUCT(($D$3:$D$10=CD14)*($FF$3:$FF$10))+SUMPRODUCT(($M$3:$M$10=CD14)*($FG$3:$FG$10))+'J01'!CK14 -> 2 | CL14: =SUMPRODUCT(($D$3:$D$10=CD14)*($FJ$3:$FJ$10))+SUMPRODUCT(($M$3:$M$10=CD14)*($FK$3:$FK$10))+'J01'!CL14 -> 0 | CM14: =SUMPRODUCT(($D$3:$D$10=CD14)*($FL$3:$FL$10))+SUMPRODUCT(($M$3:$M$10=CD14)*($FM$3:$FM$10))+'J01'!CM14 -> 0 | CN14: =SUMPRODUCT(($D$3:$D$10=CD14)*($FN$3:$FN$10))+SUMPRODUCT(($M$3:$M$10=CD14)*($FO$3:$FO$10))+'J01'!CN14 -> 2 | CO14: =SUMPRODUCT(($D$3:$D$10=CD14)*($FP$3:$FP$10))+SUMPRODUCT(($M$3:$M$10=CD14)*($FQ$3:$FQ$10))+'J01'!CO14 -> 24 | CP14: =SUMPRODUCT(($D$3:$D$10=CD14)*($FR$3:$FR$10))+SUMPRODUCT(($M$3:$M$10=CD14)*($FS$3:$FS$10))+'J01'!CP14 -> 45 | CQ14: -21 | CR14: 1 | CS14: =SUMPRODUCT(($D$3:$D$10=CD14)*($EV$3:$EV$10))+SUMPRODUCT(($M$3:$M$10=CD14)*($EW$3:$EW$10))+'J01'!CS14 -> 0 | CT14: =SUMPRODUCT(($D$3:$D$10=CD14)*($EX$3:$EX$10))+SUMPRODUCT(($M$3:$M$10=CD14)*($EY$3:$EY$10))+'J01'!CT14 -> 1 | CU14: 0 | CV14: =SUMPRODUCT(($D$3:$D$10=CD14)*($FT$3:$FT$10))+SUMPRODUCT(($M$3:$M$10=CD14)*($FU$3:$FU$10))+'J01'!CV14 -> 3 | CW14: =SUMPRODUCT(($D$3:$D$10=CD14)*($FV$3:$FV$10))+SUMPRODUCT(($M$3:$M$10=CD14)*($FW$3:$FW$10))+'J01'!CW14 -> 5 | CX14: -2 | CY14: =IF(Equipes!$C$13="","",Equipes!$C$13) -> Suresnes | DA14: 7 | DB14: ='J01'!DA14-DA14 -> 5 | DC14: =IF(DA14>'J01'!DA14,'J01'!$DC$20,IF(DA14='J01'!DA14,'J01'!$DB$20,IF(DA14<'J01'!DA14,'J01'!$DA$20))) -> p | DD14: 7 | DE14: =SUMPRODUCT(($D$3:$D$10=CY14)*($FB$3:$FB$10))+SUMPRODUCT(($M$3:$M$10=CY14)*($FC$3:$FC$10))+'J01'!DE14 -> 1 | DF14: =SUMPRODUCT(($D3:$D$10=CY14)*($FF$3:$FF$10))+SUMPRODUCT(($M$3:$M$10=CY14)*($FG$3:$FG$10))+'J01'!DF14 -> 2 | DG14: =SUMPRODUCT(($D$3:$D$10=CY14)*($FJ$3:$FJ$10))+SUMPRODUCT(($M$3:$M$10=CY14)*($FK$3:$FK$10))+'J01'!DG14 -> 0 | DH14: =SUMPRODUCT(($D$3:$D$10=CY14)*($FL$3:$FL$10))+SUMPRODUCT(($M$3:$M$10=CY14)*($FM$3:$FM$10))+'J01'!DH14 -> 0 | DI14: =SUMPRODUCT(($D$3:$D$10=CY14)*($FN$3:$FN$10))+SUMPRODUCT(($M$3:$M$10=CY14)*($FO$3:$FO$10))+'J01'!DI14 -> 2 | DJ14: =SUMPRODUCT(($D$3:$D$10=CY14)*($FP$3:$FP$10))+SUMPRODUCT(($M$3:$M$10=CY14)*($FQ$3:$FQ$10))+'J01'!DJ14 -> 24 | DK14: =SUMPRODUCT(($D$3:$D$10=CY14)*($FR$3:$FR$10))+SUMPRODUCT(($M$3:$M$10=CY14)*($FS$3:$FS$10))+'J01'!DK14 -> 45 | DL14: -21 | DM14: 1 | DN14: =SUMPRODUCT(($D$3:$D$10=CY14)*($EV$3:$EV$10))+SUMPRODUCT(($M$3:$M$10=CY14)*($EW$3:$EW$10))+'J01'!DN14 -> 0 | DO14: =SUMPRODUCT(($D$3:$D$10=CY14)*($EX$3:$EX$10))+SUMPRODUCT(($M$3:$M$10=CY14)*($EY$3:$EY$10))+'J01'!DO14 -> 1 | DP14: =SUMPRODUCT(($D$3:$D$10=CY14)*($FT$3:$FT$10))+SUMPRODUCT(($M$3:$M$10=CY14)*($FU$3:$FU$10))+'J01'!DP14 -> 3 | DQ14: =SUMPRODUCT(($D$3:$D$10=CY14)*($FV$3:$FV$10))+SUMPRODUCT(($M$3:$M$10=CY14)*($FW$3:$FW$10))+'J01'!DQ14 -> 5 | DR14: -2 | DS14: =IF(Equipes!$C$13="","",Equipes!$C$13) -> Suresnes | DU14: 10 | DV14: ='J01'!DU14-DU14 -> 2 | DW14: =IF(DU14>'J01'!DU14,'J01'!$DW$20,IF(DU14='J01'!DU14,'J01'!$DV$20,IF(DU14<'J01'!DU14,'J01'!$DU$20))) -> p | DX14: 10 | DY14: =SUMPRODUCT(($D$3:$D$10=DS14)*($ET$3:$ET$10))+SUMPRODUCT(($M$3:$M$10=DS14)*($EU$3:$EU$10))+'J01'!DY14 -> 0 | DZ14: =SUMPRODUCT(($D3:$D$10=DS14)*($FF$3:$FF$10))+SUMPRODUCT(($M$3:$M$10=DS14)*($FG$3:$FG$10))+'J01'!DZ14 -> 2 | EA14: =SUMPRODUCT(($D$3:$D$10=DS14)*($FJ$3:$FJ$10))+SUMPRODUCT(($M$3:$M$10=DS14)*($FK$3:$FK$10))+'J01'!EA14 -> 0 | EB14: =SUMPRODUCT(($D$3:$D$10=DS14)*($FL$3:$FL$10))+SUMPRODUCT(($M$3:$M$10=DS14)*($FM$3:$FM$10))+'J01'!EB14 -> 0 | EC14: =SUMPRODUCT(($D$3:$D$10=DS14)*($FN$3:$FN$10))+SUMPRODUCT(($M$3:$M$10=DS14)*($FO$3:$FO$10))+'J01'!EC14 -> 2 | ED14: =SUMPRODUCT(($D$3:$D$10=DS14)*($FP$3:$FP$10))+SUMPRODUCT(($M$3:$M$10=DS14)*($FQ$3:$FQ$10))+'J01'!ED14 -> 24 | EE14: =SUMPRODUCT(($D$3:$D$10=DS14)*($FR$3:$FR$10))+SUMPRODUCT(($M$3:$M$10=DS14)*($FS$3:$FS$10))+'J01'!EE14 -> 45 | EF14: -21 | EG14: =SUMPRODUCT(($D$3:$D$10=DS14)*($FT$3:$FT$10))+SUMPRODUCT(($M$3:$M$10=DS14)*($FU$3:$FU$10))+'J01'!EG14 -> 3 | EH14: =SUMPRODUCT(($D$3:$D$10=DS14)*($FV$3:$FV$10))+SUMPRODUCT(($M$3:$M$10=DS14)*($FW$3:$FW$10))+'J01'!EH14 -> 5 | EI14: -2 | EJ14: 999.7924 | EK14: =EJ14+0.00000003 -> 999.7924 | EL14: 999.7924 | EM14: =EL14+0.00000003 -> 999.7924 | EN14: -0.2076 | EO14: =EN14+0.00000003 -> -0.20759997 | FX14: Massy | FY14: -2999.9657 | FZ14: =IF(FY14="","",_xlfn.RANK.EQ(FY14,FY3:FY18)) -> 12 | GA14: Suresnes | GB14: Massy | GC14: -2999.9657 | GD14: =IF(GC14="","",_xlfn.RANK.EQ(GC14,GC3:GC18)) -> 12 | GE14: Suresnes | GF14: Massy | GG14: -3999.9657 | GH14: =IF(GG14="","",_xlfn.RANK.EQ(GG14,GG3:GG18)) -> 12 | GI14: Suresnes
U15: 13 | V15: Bourg-en-Bresse | X15: -3 | Y15: 0 | Z15: u | AA15: 2 | AB15: 0 | AC15: 0 | AD15: 2 | AE15: 26 | AF15: 39 | AG15: -13 | AH15: 1 | AI15: 0 | AJ15: 1 | AK15: 0 | AL15: 2 | AM15: 3 | AN15: -1 | AO15: 13 | AP15: Bourg-en-Bresse | AR15: -3 | AS15: 0 | AT15: u | AU15: 2 | AV15: 0 | AW15: 0 | AX15: 2 | AY15: 26 | AZ15: 39 | BA15: -13 | BB15: 1 | BC15: 0 | BD15: 1 | BE15: 2 | BF15: 3 | BG15: -1 | BH15: 13 | BI15: Bourg-en-Bresse | BK15: -4 | BL15: 0 | BM15: u | BN15: 2 | BO15: 0 | BP15: 0 | BQ15: 2 | BR15: 26 | BS15: 39 | BT15: -13 | BU15: 2 | BV15: 3 | BW15: -1 | BX15: 13 | BY15: 4 | BZ15: 13 | CA15: 4 | CB15: 13 | CC15: 6 | CD15: =IF(Equipes!$C$14="","",Equipes!$C$14) -> Tarbes | CF15: 4 | CG15: ='J01'!CF15-CF15 -> -1 | CH15: =IF(CF15>'J01'!CF15,'J01'!$CH$20,IF(CF15='J01'!CF15,'J01'!$CG$20,IF(CF15<'J01'!CF15,'J01'!$CF$20))) -> q | CI15: 4 | CJ15: =SUMPRODUCT(($D$3:$D$10=CD15)*($FB$3:$FB$10))+SUMPRODUCT(($M$3:$M$10=CD15)*($FC$3:$FC$10))+'J01'!CJ15+CU15 -> 2 | CK15: =SUMPRODUCT(($D$3:$D$10=CD15)*($FF$3:$FF$10))+SUMPRODUCT(($M$3:$M$10=CD15)*($FG$3:$FG$10))+'J01'!CK15 -> 2 | CL15: =SUMPRODUCT(($D$3:$D$10=CD15)*($FJ$3:$FJ$10))+SUMPRODUCT(($M$3:$M$10=CD15)*($FK$3:$FK$10))+'J01'!CL15 -> 1 | CM15: =SUMPRODUCT(($D$3:$D$10=CD15)*($FL$3:$FL$10))+SUMPRODUCT(($M$3:$M$10=CD15)*($FM$3:$FM$10))+'J01'!CM15 -> 0 | CN15: =SUMPRODUCT(($D$3:$D$10=CD15)*($FN$3:$FN$10))+SUMPRODUCT(($M$3:$M$10=CD15)*($FO$3:$FO$10))+'J01'!CN15 -> 1 | CO15: =SUMPRODUCT(($D$3:$D$10=CD15)*($FP$3:$FP$10))+SUMPRODUCT(($M$3:$M$10=CD15)*($FQ$3:$FQ$10))+'J01'!CO15 -> 38 | CP15: =SUMPRODUCT(($D$3:$D$10=CD15)*($FR$3:$FR$10))+SUMPRODUCT(($M$3:$M$10=CD15)*($FS$3:$FS$10))+'J01'!CP15 -> 20 | CQ15: 18 | CR15: 1 | CS15: =SUMPRODUCT(($D$3:$D$10=CD15)*($EV$3:$EV$10))+SUMPRODUCT(($M$3:$M$10=CD15)*($EW$3:$EW$10))+'J01'!CS15 -> 0 | CT15: =SUMPRODUCT(($D$3:$D$10=CD15)*($EX$3:$EX$10))+SUMPRODUCT(($M$3:$M$10=CD15)*($EY$3:$EY$10))+'J01'!CT15 -> 1 | CU15: 0 | CV15: =SUMPRODUCT(($D$3:$D$10=CD15)*($FT$3:$FT$10))+SUMPRODUCT(($M$3:$M$10=CD15)*($FU$3:$FU$10))+'J01'!CV15 -> 1 | CW15: =SUMPRODUCT(($D$3:$D$10=CD15)*($FV$3:$FV$10))+SUMPRODUCT(($M$3:$M$10=CD15)*($FW$3:$FW$10))+'J01'!CW15 -> 2 | CX15: -1 | CY15: =IF(Equipes!$C$14="","",Equipes!$C$14) -> Tarbes | DA15: 4 | DB15: ='J01'!DA15-DA15 -> -1 | DC15: =IF(DA15>'J01'!DA15,'J01'!$DC$20,IF(DA15='J01'!DA15,'J01'!$DB$20,IF(DA15<'J01'!DA15,'J01'!$DA$20))) -> q | DD15: 4 | DE15: =SUMPRODUCT(($D$3:$D$10=CY15)*($FB$3:$FB$10))+SUMPRODUCT(($M$3:$M$10=CY15)*($FC$3:$FC$10))+'J01'!DE15 -> 2 | DF15: =SUMPRODUCT(($D3:$D$10=CY15)*($FF$3:$FF$10))+SUMPRODUCT(($M$3:$M$10=CY15)*($FG$3:$FG$10))+'J01'!DF15 -> 2 | DG15: =SUMPRODUCT(($D$3:$D$10=CY15)*($FJ$3:$FJ$10))+SUMPRODUCT(($M$3:$M$10=CY15)*($FK$3:$FK$10))+'J01'!DG15 -> 1 | DH15: =SUMPRODUCT(($D$3:$D$10=CY15)*($FL$3:$FL$10))+SUMPRODUCT(($M$3:$M$10=CY15)*($FM$3:$FM$10))+'J01'!DH15 -> 0 | DI15: =SUMPRODUCT(($D$3:$D$10=CY15)*($FN$3:$FN$10))+SUMPRODUCT(($M$3:$M$10=CY15)*($FO$3:$FO$10))+'J01'!DI15 -> 1 | DJ15: =SUMPRODUCT(($D$3:$D$10=CY15)*($FP$3:$FP$10))+SUMPRODUCT(($M$3:$M$10=CY15)*($FQ$3:$FQ$10))+'J01'!DJ15 -> 38 | DK15: =SUMPRODUCT(($D$3:$D$10=CY15)*($FR$3:$FR$10))+SUMPRODUCT(($M$3:$M$10=CY15)*($FS$3:$FS$10))+'J01'!DK15 -> 20 | DL15: 18 | DM15: 1 | DN15: =SUMPRODUCT(($D$3:$D$10=CY15)*($EV$3:$EV$10))+SUMPRODUCT(($M$3:$M$10=CY15)*($EW$3:$EW$10))+'J01'!DN15 -> 0 | DO15: =SUMPRODUCT(($D$3:$D$10=CY15)*($EX$3:$EX$10))+SUMPRODUCT(($M$3:$M$10=CY15)*($EY$3:$EY$10))+'J01'!DO15 -> 1 | DP15: =SUMPRODUCT(($D$3:$D$10=CY15)*($FT$3:$FT$10))+SUMPRODUCT(($M$3:$M$10=CY15)*($FU$3:$FU$10))+'J01'!DP15 -> 1 | DQ15: =SUMPRODUCT(($D$3:$D$10=CY15)*($FV$3:$FV$10))+SUMPRODUCT(($M$3:$M$10=CY15)*($FW$3:$FW$10))+'J01'!DQ15 -> 2 | DR15: -1 | DS15: =IF(Equipes!$C$14="","",Equipes!$C$14) -> Tarbes | DU15: 6 | DV15: ='J01'!DU15-DU15 -> 2 | DW15: =IF(DU15>'J01'!DU15,'J01'!$DW$20,IF(DU15='J01'!DU15,'J01'!$DV$20,IF(DU15<'J01'!DU15,'J01'!$DU$20))) -> p | DX15: 6 | DY15: =SUMPRODUCT(($D$3:$D$10=DS15)*($ET$3:$ET$10))+SUMPRODUCT(($M$3:$M$10=DS15)*($EU$3:$EU$10))+'J01'!DY15 -> 0 | DZ15: =SUMPRODUCT(($D3:$D$10=DS15)*($FF$3:$FF$10))+SUMPRODUCT(($M$3:$M$10=DS15)*($FG$3:$FG$10))+'J01'!DZ15 -> 2 | EA15: =SUMPRODUCT(($D$3:$D$10=DS15)*($FJ$3:$FJ$10))+SUMPRODUCT(($M$3:$M$10=DS15)*($FK$3:$FK$10))+'J01'!EA15 -> 1 | EB15: =SUMPRODUCT(($D$3:$D$10=DS15)*($FL$3:$FL$10))+SUMPRODUCT(($M$3:$M$10=DS15)*($FM$3:$FM$10))+'J01'!EB15 -> 0 | EC15: =SUMPRODUCT(($D$3:$D$10=DS15)*($FN$3:$FN$10))+SUMPRODUCT(($M$3:$M$10=DS15)*($FO$3:$FO$10))+'J01'!EC15 -> 1 | ED15: =SUMPRODUCT(($D$3:$D$10=DS15)*($FP$3:$FP$10))+SUMPRODUCT(($M$3:$M$10=DS15)*($FQ$3:$FQ$10))+'J01'!ED15 -> 38 | EE15: =SUMPRODUCT(($D$3:$D$10=DS15)*($FR$3:$FR$10))+SUMPRODUCT(($M$3:$M$10=DS15)*($FS$3:$FS$10))+'J01'!EE15 -> 20 | EF15: 18 | EG15: =SUMPRODUCT(($D$3:$D$10=DS15)*($FT$3:$FT$10))+SUMPRODUCT(($M$3:$M$10=DS15)*($FU$3:$FU$10))+'J01'!EG15 -> 1 | EH15: =SUMPRODUCT(($D$3:$D$10=DS15)*($FV$3:$FV$10))+SUMPRODUCT(($M$3:$M$10=DS15)*($FW$3:$FW$10))+'J01'!EH15 -> 2 | EI15: -1 | EJ15: 2000.1838 | EK15: =EJ15+0.00000002 -> 2000.1838 | EL15: 2000.1838 | EM15: =EL15+0.00000002 -> 2000.1838 | EN15: 0.1838 | EO15: =EN15+0.00000002 -> 0.18380002 | FX15: Bourg-en-Bresse | FY15: -3000.1274 | FZ15: =IF(FY15="","",_xlfn.RANK.EQ(FY15,FY3:FY18)) -> 13 | GA15: Tarbes | GB15: Bourg-en-Bresse | GC15: -3000.1274 | GD15: =IF(GC15="","",_xlfn.RANK.EQ(GC15,GC3:GC18)) -> 13 | GE15: Tarbes | GF15: Bourg-en-Bresse | GG15: -4000.1274 | GH15: =IF(GG15="","",_xlfn.RANK.EQ(GG15,GG3:GG18)) -> 13 | GI15: Tarbes
N16: =IF(Equipes!$M$20="","",Equipes!$M$20) -> Date du début du Championnat : vendredi 25 août 2023 | U16: 14 | V16: Blagnac | X16: -8 | Y16: 0 | Z16: u | AA16: 2 | AB16: 0 | AC16: 0 | AD16: 2 | AE16: 0 | AF16: 50 | AG16: -50 | AH16: 0 | AI16: 0 | AJ16: 0 | AK16: 0 | AL16: 0 | AM16: 0 | AN16: 0 | AO16: 14 | AP16: Blagnac | AR16: -8 | AS16: 0 | AT16: u | AU16: 2 | AV16: 0 | AW16: 0 | AX16: 2 | AY16: 0 | AZ16: 50 | BA16: -50 | BB16: 0 | BC16: 0 | BD16: 0 | BE16: 0 | BF16: 0 | BG16: 0 | BH16: 14 | BI16: Blagnac | BK16: -4 | BL16: 0 | BM16: u | BN16: 2 | BO16: 0 | BP16: 0 | BQ16: 2 | BR16: 0 | BS16: 50 | BT16: -50 | BU16: 0 | BV16: 0 | BW16: 0 | BX16: 14 | BY16: 6 | BZ16: 14 | CA16: 6 | CB16: 14 | CC16: 7 | CD16: =IF(Equipes!$C$15="","",Equipes!$C$15) -> Vienne | CF16: 6 | CG16: ='J01'!CF16-CF16 -> -5 | CH16: =IF(CF16>'J01'!CF16,'J01'!$CH$20,IF(CF16='J01'!CF16,'J01'!$CG$20,IF(CF16<'J01'!CF16,'J01'!$CF$20))) -> q | CI16: 6 | CJ16: =SUMPRODUCT(($D$3:$D$10=CD16)*($FB$3:$FB$10))+SUMPRODUCT(($M$3:$M$10=CD16)*($FC$3:$FC$10))+'J01'!CJ16+CU16 -> 1 | CK16: =SUMPRODUCT(($D$3:$D$10=CD16)*($FF$3:$FF$10))+SUMPRODUCT(($M$3:$M$10=CD16)*($FG$3:$FG$10))+'J01'!CK16 -> 2 | CL16: =SUMPRODUCT(($D$3:$D$10=CD16)*($FJ$3:$FJ$10))+SUMPRODUCT(($M$3:$M$10=CD16)*($FK$3:$FK$10))+'J01'!CL16 -> 1 | CM16: =SUMPRODUCT(($D$3:$D$10=CD16)*($FL$3:$FL$10))+SUMPRODUCT(($M$3:$M$10=CD16)*($FM$3:$FM$10))+'J01'!CM16 -> 0 | CN16: =SUMPRODUCT(($D$3:$D$10=CD16)*($FN$3:$FN$10))+SUMPRODUCT(($M$3:$M$10=CD16)*($FO$3:$FO$10))+'J01'!CN16 -> 1 | CO16: =SUMPRODUCT(($D$3:$D$10=CD16)*($FP$3:$FP$10))+SUMPRODUCT(($M$3:$M$10=CD16)*($FQ$3:$FQ$10))+'J01'!CO16 -> 28 | CP16: =SUMPRODUCT(($D$3:$D$10=CD16)*($FR$3:$FR$10))+SUMPRODUCT(($M$3:$M$10=CD16)*($FS$3:$FS$10))+'J01'!CP16 -> 25 | CQ16: 3 | CR16: 0 | CS16: =SUMPRODUCT(($D$3:$D$10=CD16)*($EV$3:$EV$10))+SUMPRODUCT(($M$3:$M$10=CD16)*($EW$3:$EW$10))+'J01'!CS16 -> 0 | CT16: =SUMPRODUCT(($D$3:$D$10=CD16)*($EX$3:$EX$10))+SUMPRODUCT(($M$3:$M$10=CD16)*($EY$3:$EY$10))+'J01'!CT16 -> 0 | CU16: 0 | CV16: =SUMPRODUCT(($D$3:$D$10=CD16)*($FT$3:$FT$10))+SUMPRODUCT(($M$3:$M$10=CD16)*($FU$3:$FU$10))+'J01'!CV16 -> 0 | CW16: =SUMPRODUCT(($D$3:$D$10=CD16)*($FV$3:$FV$10))+SUMPRODUCT(($M$3:$M$10=CD16)*($FW$3:$FW$10))+'J01'!CW16 -> 3 | CX16: -3 | CY16: =IF(Equipes!$C$15="","",Equipes!$C$15) -> Vienne | DA16: 6 | DB16: ='J01'!DA16-DA16 -> -5 | DC16: =IF(DA16>'J01'!DA16,'J01'!$DC$20,IF(DA16='J01'!DA16,'J01'!$DB$20,IF(DA16<'J01'!DA16,'J01'!$DA$20))) -> q | DD16: 6 | DE16: =SUMPRODUCT(($D$3:$D$10=CY16)*($FB$3:$FB$10))+SUMPRODUCT(($M$3:$M$10=CY16)*($FC$3:$FC$10))+'J01'!DE16 -> 1 | DF16: =SUMPRODUCT(($D3:$D$10=CY16)*($FF$3:$FF$10))+SUMPRODUCT(($M$3:$M$10=CY16)*($FG$3:$FG$10))+'J01'!DF16 -> 2 | DG16: =SUMPRODUCT(($D$3:$D$10=CY16)*($FJ$3:$FJ$10))+SUMPRODUCT(($M$3:$M$10=CY16)*($FK$3:$FK$10))+'J01'!DG16 -> 1 | DH16: =SUMPRODUCT(($D$3:$D$10=CY16)*($FL$3:$FL$10))+SUMPRODUCT(($M$3:$M$10=CY16)*($FM$3:$FM$10))+'J01'!DH16 -> 0 | DI16: =SUMPRODUCT(($D$3:$D$10=CY16)*($FN$3:$FN$10))+SUMPRODUCT(($M$3:$M$10=CY16)*($FO$3:$FO$10))+'J01'!DI16 -> 1 | DJ16: =SUMPRODUCT(($D$3:$D$10=CY16)*($FP$3:$FP$10))+SUMPRODUCT(($M$3:$M$10=CY16)*($FQ$3:$FQ$10))+'J01'!DJ16 -> 28 | DK16: =SUMPRODUCT(($D$3:$D$10=CY16)*($FR$3:$FR$10))+SUMPRODUCT(($M$3:$M$10=CY16)*($FS$3:$FS$10))+'J01'!DK16 -> 25 | DL16: 3 | DM16: 0 | DN16: =SUMPRODUCT(($D$3:$D$10=CY16)*($EV$3:$EV$10))+SUMPRODUCT(($M$3:$M$10=CY16)*($EW$3:$EW$10))+'J01'!DN16 -> 0 | DO16: =SUMPRODUCT(($D$3:$D$10=CY16)*($EX$3:$EX$10))+SUMPRODUCT(($M$3:$M$10=CY16)*($EY$3:$EY$10))+'J01'!DO16 -> 0 | DP16: =SUMPRODUCT(($D$3:$D$10=CY16)*($FT$3:$FT$10))+SUMPRODUCT(($M$3:$M$10=CY16)*($FU$3:$FU$10))+'J01'!DP16 -> 0 | DQ16: =SUMPRODUCT(($D$3:$D$10=CY16)*($FV$3:$FV$10))+SUMPRODUCT(($M$3:$M$10=CY16)*($FW$3:$FW$10))+'J01'!DQ16 -> 3 | DR16: -3 | DS16: =IF(Equipes!$C$15="","",Equipes!$C$15) -> Vienne | DU16: 7 | DV16: ='J01'!DU16-DU16 -> -6 | DW16: =IF(DU16>'J01'!DU16,'J01'!$DW$20,IF(DU16='J01'!DU16,'J01'!$DV$20,IF(DU16<'J01'!DU16,'J01'!$DU$20))) -> q | DX16: 7 | DY16: =SUMPRODUCT(($D$3:$D$10=DS16)*($ET$3:$ET$10))+SUMPRODUCT(($M$3:$M$10=DS16)*($EU$3:$EU$10))+'J01'!DY16 -> 0 | DZ16: =SUMPRODUCT(($D3:$D$10=DS16)*($FF$3:$FF$10))+SUMPRODUCT(($M$3:$M$10=DS16)*($FG$3:$FG$10))+'J01'!DZ16 -> 2 | EA16: =SUMPRODUCT(($D$3:$D$10=DS16)*($FJ$3:$FJ$10))+SUMPRODUCT(($M$3:$M$10=DS16)*($FK$3:$FK$10))+'J01'!EA16 -> 1 | EB16: =SUMPRODUCT(($D$3:$D$10=DS16)*($FL$3:$FL$10))+SUMPRODUCT(($M$3:$M$10=DS16)*($FM$3:$FM$10))+'J01'!EB16 -> 0 | EC16: =SUMPRODUCT(($D$3:$D$10=DS16)*($FN$3:$FN$10))+SUMPRODUCT(($M$3:$M$10=DS16)*($FO$3:$FO$10))+'J01'!EC16 -> 1 | ED16: =SUMPRODUCT(($D$3:$D$10=DS16)*($FP$3:$FP$10))+SUMPRODUCT(($M$3:$M$10=DS16)*($FQ$3:$FQ$10))+'J01'!ED16 -> 28 | EE16: =SUMPRODUCT(($D$3:$D$10=DS16)*($FR$3:$FR$10))+SUMPRODUCT(($M$3:$M$10=DS16)*($FS$3:$FS$10))+'J01'!EE16 -> 25 | EF16: 3 | EG16: =SUMPRODUCT(($D$3:$D$10=DS16)*($FT$3:$FT$10))+SUMPRODUCT(($M$3:$M$10=DS16)*($FU$3:$FU$10))+'J01'!EG16 -> 0 | EH16: =SUMPRODUCT(($D$3:$D$10=DS16)*($FV$3:$FV$10))+SUMPRODUCT(($M$3:$M$10=DS16)*($FW$3:$FW$10))+'J01'!EH16 -> 3 | EI16: -3 | EJ16: 1000.0328 | EK16: =EJ16+0.00000001 -> 1000.0328 | EL16: 1000.0328 | EM16: =EL16+0.00000001 -> 1000.0328 | EN16: 0.0328 | EO16: =EN16+0.00000001 -> 0.03280001 | FX16: Blagnac | FY16: -8000.5 | FZ16: =IF(FY16="","",_xlfn.RANK.EQ(FY16,FY3:FY18)) -> 14 | GA16: Vienne | GB16: Blagnac | GC16: -8000.5 | GD16: =IF(GC16="","",_xlfn.RANK.EQ(GC16,GC3:GC18)) -> 14 | GE16: Vienne | GF16: Blagnac | GG16: -4000.5 | GH16: =IF(GG16="","",_xlfn.RANK.EQ(GG16,GG3:GG18)) -> 14 | GI16: Vienne
N18: =IF(Equipes!$M$22="","",Equipes!$M$22) -> Date de la fin du Championnat : samedi 27 avril 2024
AA20: =IF(SUM(AA3:AA16)<>0,SUM(AA3:AA16),"") -> 28 | CF20: p | CG20: u | CH20: q | DA20: p | DB20: u | DC20: q | DU20: p | DV20: u | DW20: q
CF21: p | CG21: u | CH21: q | DA21: p | DB21: u | DC21: q | DU21: p | DV21: u | DW21: q

Sheet J03
A1: =IF(Accueil!$H$2="","",IF(Accueil!$H$2="Choix du Championnat de Rugby","",IF(Accueil!$B$2="","",IF(Accueil!$D$2="","",IF(Accueil!$D$2="Choix de la saison","",_xlfn.CONCAT(Accueil!$H$2," / ",Accueil!$B$2," ",Accueil!$D$2)))))) -> Championnat de France de Rugby à 15 - Nationale / Saison du Championnat : 2023 - 2024 | S1: ='J02'!S1+1 -> 3 | U1: CLASSEMENT TOUS BONUS | AO1: CLASSEMENT B.O+B.D. | BH1: CLASSEMENT STRICT | BX1: =U1 -> CLASSEMENT TOUS BONUS | BZ1: =AO1 -> CLASSEMENT B.O+B.D. | CB1: =BH1 -> CLASSEMENT STRICT | CD1: =U1 -> CLASSEMENT TOUS BONUS | CY1: =AO1 -> CLASSEMENT B.O+B.D. | DS1: =BH1 -> CLASSEMENT STRICT | EJ1: =U1 -> CLASSEMENT TOUS BONUS | EL1: =AO1 -> CLASSEMENT B.O+B.D. | EN1: =BH1 -> CLASSEMENT STRICT | EP1: Dom. | EQ1: Ext. | ER1: Dom. | ES1: Ext. | ET1: Dom. | EU1: Ext. | EV1: Dom. | EW1: Ext. | EX1: Dom. | EY1: Ext. | EZ1: Dom. | FA1: Ext. | FB1: Dom. | FC1: Ext. | FD1: Dom. | FE1: Ext. | FF1: Dom. | FG1: Ext. | FH1: Dom. | FI1: Ext. | FJ1: Dom. | FK1: Ext. | FL1: Dom. | FM1: Ext. | FN1: Dom. | FO1: Ext. | FP1: Dom. | FQ1: Ext. | FR1: Dom. | FS1: Ext. | FT1: Dom. | FU1: Ext. | FV1: Dom. | FW1: Ext. | FX1: =U1 -> CLASSEMENT TOUS BONUS | GB1: =AO1 -> CLASSEMENT B.O+B.D. | GF1: =BH1 -> CLASSEMENT STRICT
A2: Points de pénalités | B2: Points de bonus | C2: Equipes exclues, forfaits, matchs gagnés ou perdus sur tapis vert | D2: Equipes | E2: Points | F2: Bonus défensif Bd | G2: Essais | H2: Bonus offensif Bo | I2: Points | J2: Bonus défensif Bd | K2: Essais | L2: Bonus offensif Bo | M2: Equipes | N2: Equipes exclues, forfaits, matchs gagnés ou perdus sur tapis vert | O2: Points de bonus | P2: Points de pénalités | Q2: Dates | R2: Horaires | S2: Matchs à rejouer, annulés, arrêtés, avec réserves, reportés ou reprogrammés | U2: Place | V2: Equipes | W2: Logo | X2: Points | Y2: Evolution | AA2: Joués | AB2: Gagnés | AC2: Nuls | AD2: Perdus | AE2: Points marqués | AF2: Points encaissés | AG2: +/- | AH2: Tous les bonus | AI2: Bonus offensif | AJ2: Bonus défensif | AK2: Bonus fédération | AL2: Essais marqués | AM2: Essais encaissés | AN2: +/- | AO2: Place | AP2: Equipes | AQ2: Logo | AR2: Points | AS2: Evolution | AU2: Joués | AV2: Gagnés | AW2: Nuls | AX2: Perdus | AY2: Points marqués | AZ2: Points encaissés | BA2: +/- | BB2: B.O+B.D | BC2: Bonus offensif | BD2: Bonus défensif | BE2: Essais marqués | BF2: Essais encaissés | BG2: +/- | BH2: Place | BI2: Equipes | BJ2: Logo | BK2: Points | BL2: Evolution | BN2: Joués | BO2: Gagnés | BP2: Nuls | BQ2: Perdus | BR2: Points marqués | BS2: Points encaissés | BT2: +/- | BU2: Essais marqués | BV2: Essais encaissés | BW2: +/- | BX2: Rang | BY2: Place | BZ2: Rang | CA2: Place | CB2: Rang | CC2: Place | CD2: Equipes | CE2: Logo | CF2: Rang | CG2: Evolution | CI2: Place | CJ2: Points | CK2: Joués | CL2: Gagnés | CM2: Nuls | CN2: Perdus | CO2: Points marqués | CP2: Points encaissés | CQ2: +/- | CR2: Tous les bonus | CS2: Bonus offensif | CT2: Bonus défensif | CU2: Bonus fédération | CV2: Essais marqués | CW2: Essais encaissés | CX2: +/- | CY2: Equipes | CZ2: Logo | DA2: Rang | DB2: Evolution | DD2: Place | DE2: Points | DF2: Joués | DG2: Gagnés | DH2: Nuls | DI2: Perdus | DJ2: Points marqués | DK2: Points encaissés | DL2: +/- | DM2: B.O + B.O. | DN2: Bonus offensif | DO2: Bonus défensif | DP2: Essais marqués | DQ2: Essais encaissés | DR2: +/- | DS2: Equipes | DT2: Logo | DU2: Rang | DV2: Evolution | DX2: Place | DY2: Points | DZ2: Joués | EA2: Gagnés | EB2: Nuls | EC2: Perdus | ED2: Points marqués | EE2: Points encaissés | EF2: +/- | EG2: Essais marqués | EH2: Essais encaissés | EI2: +/- | EJ2: Rang | EK2: Place | EL2: Rang | EM2: Place | EN2: Rang | EO2: Place | EP2: Points de pénalités | EQ2: Points de pénalités | ER2: Points de bonus | ES2: Points de bonus | ET2: Pts | EU2: Pts | EV2: Bo | EW2: Bo | EX2: Bd | EY2: Bd | EZ2: T Pts | FA2: T Pts | FB2: T Pts | FC2: TPts | FD2: J annulé | FE2: J annulé | FF2: J | FG2: J | FH2: Total J | FI2: Total J | FJ2: G | FK2: G | FL2: N | FM2: N | FN2: P | FO2: P | FP2: Pts + | FQ2: Pts + | FR2: Pts - | FS2: Pts - | FT2: Essais + | FU2: Essais + | FV2: Essais - | FW2: Essais - | FX2: Equipes | FY2: Rang | FZ2: Place | GA2: Equipes | GB2: Equipes | GC2: Rang | GD2: Place | GE2: Equipes | GF2: Equipes | GG2: Rang | GH2: Place | GI2: Equipes | GK2: ok | GL2: Dates et horaires des matchs prévus | GM2: Dates et horaires des matchs restant à jouer | GN2: Date et horaire minimum à jouer | GO2: Date et horaire maximum à jouer | GQ2: Total J | GR2: Total J
D3: Albi | E3: 10 | F3: =IF(E3="","",IF(I3="","",IF(E3>I3,"",IF(E3=I3,"",IF(E3<I3,IF(SUM(I3-E3)<=7,"Bd","")))))) ->  | G3: 1 | H3: =IF(G3="","",IF(K3="","",IF(SUM(G3-K3)>=3,"Bo",""))) ->  | I3: 7 | J3: =IF(I3="","",IF(E3="","",IF(I3>E3,"",IF(I3=E3,"",IF(I3<E3,IF(SUM(E3-I3)<=7,"Bd","")))))) -> Bd | K3: 1 | L3: =IF(K3="","",IF(G3="","",IF(SUM(K3-G3)>=3,"Bo",""))) ->  | M3: Périgueux | Q3: 2023-09-09 | R3: 19:00:00 | U3: 1 | V3: =IFERROR(_xlfn.XLOOKUP(BX3,$BY$3:$BY$18,$CD$3:$CD$18),"") -> Nice | X3: =IFERROR(_xlfn.XLOOKUP(V3,$CD$3:$CD$18,$CJ$3:$CJ$18),"") -> 10 | Y3: =IFERROR(_xlfn.XLOOKUP(V3,$CD$3:$CD$18,$CG$3:$CG$18),"") -> 0 | Z3: =IFERROR(_xlfn.XLOOKUP(V3,$CD$3:$CD$18,$CH$3:$CH$18),"") -> u | AA3: =IFERROR(_xlfn.XLOOKUP(V3,$CD$3:$CD$18,$CK$3:$CK$18),"") -> 3 | AB3: =IFERROR(_xlfn.XLOOKUP(V3,$CD$3:$CD$18,$CL$3:$CL$18),"") -> 2 | AC3: =IFERROR(_xlfn.XLOOKUP(V3,$CD$3:$CD$18,$CM$3:$CM$18),"") -> 0 | AD3: =IFERROR(_xlfn.XLOOKUP(V3,$CD$3:$CD$18,$CN$3:$CN$18),"") -> 1 | AE3: =IFERROR(_xlfn.XLOOKUP(V3,$CD$3:$CD$18,$CO$3:$CO$18),"") -> 77 | AF3: =IFERROR(_xlfn.XLOOKUP(V3,$CD$3:$CD$18,$CP$3:$CP$18),"") -> 31 | AG3: =IFERROR(_xlfn.XLOOKUP(V3,$CD$3:$CD$18,$CQ$3:$CQ$18),"") -> 46 | AH3: =IFERROR(_xlfn.XLOOKUP(V3,$CD$3:$CD$18,$CR$3:$CR$18),"") -> 2 | AI3: =IFERROR(_xlfn.XLOOKUP(V3,$CD$3:$CD$18,$CS$3:$CS$18),"") -> 2 | AJ3: =IFERROR(_xlfn.XLOOKUP(V3,$CD$3:$CD$18,$CT$3:$CT$18),"") -> 0 | AK3: =IFERROR(_xlfn.XLOOKUP(V3,$CD$3:$CD$18,$CU$3:$CU$18),"") -> 0 | AL3: =IFERROR(_xlfn.XLOOKUP(V3,$CD$3:$CD$18,$CV$3:$CV$18),"") -> 10 | AM3: =IFERROR(_xlfn.XLOOKUP(V3,$CD$3:$CD$18,$CW$3:$CW$18),"") -> 3 | AN3: =IFERROR(_xlfn.XLOOKUP(V3,$CD$3:$CD$18,$CX$3:$CX$18),"") -> 7 | AO3: 1 | AP3: =IFERROR(_xlfn.XLOOKUP(BZ3,$CA$3:$CA$18,$CY$3:$CY$18),"") -> Nice | AR3: =IFERROR(_xlfn.XLOOKUP(AP3,$CY$3:$CY$18,$DE$3:$DE$18),"") -> 10 | AS3: =IFERROR(_xlfn.XLOOKUP(AP3,$CY$3:$CY$18,$DB$3:$DB$18),"") -> 0 | AT3: =IFERROR(_xlfn.XLOOKUP(AP3,$CY$3:$CY$18,$DC$3:$DC$18),"") -> u | AU3: =IFERROR(_xlfn.XLOOKUP(AP3,$CY$3:$CY$18,$DF$3:$DF$18),"") -> 3 | AV3: =IFERROR(_xlfn.XLOOKUP(AP3,$CY$3:$CY$18,$DG$3:$DG$18),"") -> 2 | AW3: =IFERROR(_xlfn.XLOOKUP(AP3,$CY$3:$CY$18,$DH$3:$DH$18),"") -> 0 | AX3: =IFERROR(_xlfn.XLOOKUP(AP3,$CY$3:$CY$18,$DI$3:$DI$18),"") -> 1 | AY3: =IFERROR(_xlfn.XLOOKUP(AP3,$CY$3:$CY$18,$DJ$3:$DJ$18),"") -> 77 | AZ3: =IFERROR(_xlfn.XLOOKUP(AP3,$CY$3:$CY$18,$DK$3:$DK$18),"") -> 31 | BA3: =IFERROR(_xlfn.XLOOKUP(AP3,$CY$3:$CY$18,$DL$3:$DL$18),"") -> 46 | BB3: =IFERROR(_xlfn.XLOOKUP(AP3,$CY$3:$CY$18,$DM$3:$DM$18),"") -> 2 | BC3: =IFERROR(_xlfn.XLOOKUP(AP3,$CY$3:$CY$18,$DN$3:$DN$18),"") -> 2 | BD3: =IFERROR(_xlfn.XLOOKUP(AP3,$CY$3:$CY$18,$DO$3:$DO$18),"") -> 0 | BE3: =IFERROR(_xlfn.XLOOKUP(AP3,$CY$3:$CY$18,$DP$3:$DP$18),"") -> 10 | BF3: =IFERROR(_xlfn.XLOOKUP(AP3,$CY$3:$CY$18,$DQ$3:$DQ$18),"") -> 3 | BG3: =IFERROR(_xlfn.XLOOKUP(AP3,$CY$3:$CY$18,$DR$3:$DR$18),"") -> 7 | BH3: 1 | BI3: =IFERROR(_xlfn.XLOOKUP(CB3,$CC$3:$CC$18,$DS$3:$DS$18),"") -> Nice | BK3: =IFERROR(_xlfn.XLOOKUP(BI3,$DS$3:$DS$18,$DY$3:$DY$18),"") -> 8 | BL3: =IFERROR(_xlfn.XLOOKUP(BI3,$DS$3:$DS$18,$DV$3:$DV$18),"") -> 1 | BM3: =IFERROR(_xlfn.XLOOKUP(BI3,$DS$3:$DS$18,$DW$3:$DW$18),"") -> p | BN3: =IFERROR(_xlfn.XLOOKUP(BI3,$DS$3:$DS$18,$DZ$3:$DZ$18),"") -> 3 | BO3: =IFERROR(_xlfn.XLOOKUP(BI3,$DS$3:$DS$18,$EA$3:$EA$18),"") -> 2 | BP3: =IFERROR(_xlfn.XLOOKUP(BI3,$DS$3:$DS$18,$EB$3:$EB$18),"") -> 0 | BQ3: =IFERROR(_xlfn.XLOOKUP(BI3,$DS$3:$DS$18,$EC$3:$EC$18),"") -> 1 | BR3: =IFERROR(_xlfn.XLOOKUP(BI3,$DS$3:$DS$18,$ED$3:$ED$18),"") -> 77 | BS3: =IFERROR(_xlfn.XLOOKUP(BI3,$DS$3:$DS$18,$EE$3:$EE$18),"") -> 31 | BT3: =IFERROR(_xlfn.XLOOKUP(BI3,$DS$3:$DS$18,$EF$3:$EF$18),"") -> 46 | BU3: =IFERROR(_xlfn.XLOOKUP(BI3,$DS$3:$DS$18,$EG$3:$EG$18),"") -> 10 | BV3: =IFERROR(_xlfn.XLOOKUP(BI3,$DS$3:$DS$18,$EH$3:$EH$18),"") -> 3 | BW3: =IFERROR(_xlfn.XLOOKUP(BI3,$DS$3:$DS$18,$EI$3:$EI$18),"") -> 7 | BX3: 1 | BY3: =CF3 -> 9 | BZ3: 1 | CA3: =DA3 -> 9 | CB3: 1 | CC3: =DU3 -> 9 | CD3: =IF(Equipes!$C$2="","",Equipes!$C$2) -> Albi | CF3: =_xlfn.RANK.EQ(EJ3,$EJ$3:$EJ$18) -> 9 | CG3: ='J02'!CF3-CF3 -> 0 | CH3: =IF(CF3>'J02'!CF3,'J02'!$CH$20,IF(CF3='J02'!CF3,'J02'!$CG$20,IF(CF3<'J02'!CF3,'J02'!$CF$20))) -> u | CI3: =_xlfn.RANK.EQ(EK3,$EK$3:$EK$18) -> 9 | CJ3: =SUMPRODUCT(($D$3:$D$10=CD3)*($FB$3:$FB$10))+SUMPRODUCT(($M$3:$M$10=CD3)*($FC$3:$FC$10))+'J02'!CJ3+CU3 -> 0 | CK3: =SUMPRODUCT(($D$3:$D$10=CD3)*($FF$3:$FF$10))+SUMPRODUCT(($M$3:$M$10=CD3)*($FG$3:$FG$10))+'J02'!CK3 -> 3 | CL3: =SUMPRODUCT(($D$3:$D$10=CD3)*($FJ$3:$FJ$10))+SUMPRODUCT(($M$3:$M$10=CD3)*($FK$3:$FK$10))+'J02'!CL3 -> 2 | CM3: =SUMPRODUCT(($D$3:$D$10=CD3)*($FL$3:$FL$10))+SUMPRODUCT(($M$3:$M$10=CD3)*($FM$3:$FM$10))+'J02'!CM3 -> 0 | CN3: =SUMPRODUCT(($D$3:$D$10=CD3)*($FN$3:$FN$10))+SUMPRODUCT(($M$3:$M$10=CD3)*($FO$3:$FO$10))+'J02'!CN3 -> 1 | CO3: =SUMPRODUCT(($D$3:$D$10=CD3)*($FP$3:$FP$10))+SUMPRODUCT(($M$3:$M$10=CD3)*($FQ$3:$FQ$10))+'J02'!CO3 -> 43 | CP3: =SUMPRODUCT(($D$3:$D$10=CD3)*($FR$3:$FR$10))+SUMPRODUCT(($M$3:$M$10=CD3)*($FS$3:$FS$10))+'J02'!CP3 -> 40 | CQ3: =CO3-CP3 -> 3 | CR3: =SUM(CS3:CU3) -> 0 | CS3: =SUMPRODUCT(($D$3:$D$10=CD3)*($EV$3:$EV$10))+SUMPRODUCT(($M$3:$M$10=CD3)*($EW$3:$EW$10))+'J02'!CS3 -> 0 | CT3: =SUMPRODUCT(($D$3:$D$10=CD3)*($EX$3:$EX$10))+SUMPRODUCT(($M$3:$M$10=CD3)*($EY$3:$EY$10))+'J02'!CT3 -> 0 | CU3: 0 | CV3: =SUMPRODUCT(($D$3:$D$10=CD3)*($FT$3:$FT$10))+SUMPRODUCT(($M$3:$M$10=CD3)*($FU$3:$FU$10))+'J02'!CV3 -> 4 | CW3: =SUMPRODUCT(($D$3:$D$10=CD3)*($FV$3:$FV$10))+SUMPRODUCT(($M$3:$M$10=CD3)*($FW$3:$FW$10))+'J02'!CW3 -> 3 | CX3: =CV3-CW3 -> 1 | CY3: =IF(Equipes!$C$2="","",Equipes!$C$2) -> Albi | DA3: =_xlfn.RANK.EQ(EL3,$EL$3:$EL$18) -> 9 | DB3: ='J02'!DA3-DA3 -> 0 | DC3: =IF(DA3>'J02'!DA3,'J02'!$DC$20,IF(DA3='J02'!DA3,'J02'!$DB$20,IF(DA3<'J02'!DA3,'J02'!$DA$20))) -> u | DD3: =_xlfn.RANK.EQ(EM3,$EM$3:$EM$18) -> 9 | DE3: =SUMPRODUCT(($D$3:$D$10=CY3)*($FB$3:$FB$10))+SUMPRODUCT(($M$3:$M$10=CY3)*($FC$3:$FC$10))+'J02'!DE3 -> 0 | DF3: =SUMPRODUCT(($D3:$D$10=CY3)*($FF$3:$FF$10))+SUMPRODUCT(($M$3:$M$10=CY3)*($FG$3:$FG$10))+'J02'!DF3 -> 3 | DG3: =SUMPRODUCT(($D$3:$D$10=CY3)*($FJ$3:$FJ$10))+SUMPRODUCT(($M$3:$M$10=CY3)*($FK$3:$FK$10))+'J02'!DG3 -> 2 | DH3: =SUMPRODUCT(($D$3:$D$10=CY3)*($FL$3:$FL$10))+SUMPRODUCT(($M$3:$M$10=CY3)*($FM$3:$FM$10))+'J02'!DH3 -> 0 | DI3: =SUMPRODUCT(($D$3:$D$10=CY3)*($FN$3:$FN$10))+SUMPRODUCT(($M$3:$M$10=CY3)*($FO$3:$FO$10))+'J02'!DI3 -> 1 | DJ3: =SUMPRODUCT(($D$3:$D$10=CY3)*($FP$3:$FP$10))+SUMPRODUCT(($M$3:$M$10=CY3)*($FQ$3:$FQ$10))+'J02'!DJ3 -> 43 | DK3: =SUMPRODUCT(($D$3:$D$10=CY3)*($FR$3:$FR$10))+SUMPRODUCT(($M$3:$M$10=CY3)*($FS$3:$FS$10))+'J02'!DK3 -> 40 | DL3: =DJ3-DK3 -> 3 | DM3: =SUM(DN3:DO3) -> 0 | DN3: =SUMPRODUCT(($D$3:$D$10=CY3)*($EV$3:$EV$10))+SUMPRODUCT(($M$3:$M$10=CY3)*($EW$3:$EW$10))+'J02'!DN3 -> 0 | DO3: =SUMPRODUCT(($D$3:$D$10=CY3)*($EX$3:$EX$10))+SUMPRODUCT(($M$3:$M$10=CY3)*($EY$3:$EY$10))+'J02'!DO3 -> 0 | DP3: =SUMPRODUCT(($D$3:$D$10=CY3)*($FT$3:$FT$10))+SUMPRODUCT(($M$3:$M$10=CY3)*($FU$3:$FU$10))+'J02'!DP3 -> 4 | DQ3: =SUMPRODUCT(($D$3:$D$10=CY3)*($FV$3:$FV$10))+SUMPRODUCT(($M$3:$M$10=CY3)*($FW$3:$FW$10))+'J02'!DQ3 -> 3 | DR3: =DP3-DQ3 -> 1 | DS3: =IF(Equipes!$C$2="","",Equipes!$C$2) -> Albi | DU3: =_xlfn.RANK.EQ(EN3,$EN$3:$EN$18) -> 9 | DV3: ='J02'!DU3-DU3 -> -1 | DW3: =IF(DU3>'J02'!DU3,'J02'!$DW$20,IF(DU3='J02'!DU3,'J02'!$DV$20,IF(DU3<'J02'!DU3,'J02'!$DU$20))) -> q | DX3: =_xlfn.RANK.EQ(EO3,$EO$3:$EO$18) -> 9 | DY3: =SUMPRODUCT(($D$3:$D$10=DS3)*($ET$3:$ET$10))+SUMPRODUCT(($M$3:$M$10=DS3)*($EU$3:$EU$10))+'J02'!DY3 -> 0 | DZ3: =SUMPRODUCT(($D3:$D$10=DS3)*($FF$3:$FF$10))+SUMPRODUCT(($M$3:$M$10=DS3)*($FG$3:$FG$10))+'J02'!DZ3 -> 3 | EA3: =SUMPRODUCT(($D$3:$D$10=DS3)*($FJ$3:$FJ$10))+SUMPRODUCT(($M$3:$M$10=DS3)*($FK$3:$FK$10))+'J02'!EA3 -> 2 | EB3: =SUMPRODUCT(($D$3:$D$10=DS3)*($FL$3:$FL$10))+SUMPRODUCT(($M$3:$M$10=DS3)*($FM$3:$FM$10))+'J02'!EB3 -> 0 | EC3: =SUMPRODUCT(($D$3:$D$10=DS3)*($FN$3:$FN$10))+SUMPRODUCT(($M$3:$M$10=DS3)*($FO$3:$FO$10))+'J02'!EC3 -> 1 | ED3: =SUMPRODUCT(($D$3:$D$10=DS3)*($FP$3:$FP$10))+SUMPRODUCT(($M$3:$M$10=DS3)*($FQ$3:$FQ$10))+'J02'!ED3 -> 43 | EE3: =SUMPRODUCT(($D$3:$D$10=DS3)*($FR$3:$FR$10))+SUMPRODUCT(($M$3:$M$10=DS3)*($FS$3:$FS$10))+'J02'!EE3 -> 40 | EF3: =ED3-EE3 -> 3 | EG3: =SUMPRODUCT(($D$3:$D$10=DS3)*($FT$3:$FT$10))+SUMPRODUCT(($M$3:$M$10=DS3)*($FU$3:$FU$10))+'J02'!EG3 -> 4 | EH3: =SUMPRODUCT(($D$3:$D$10=DS3)*($FV$3:$FV$10))+SUMPRODUCT(($M$3:$M$10=DS3)*($FW$3:$FW$10))+'J02'!EH3 -> 3 | EI3: =EG3-EH3 -> 1 | EJ3: =SUM(CJ3*1000)+(CQ3/100)+(CO3/10000) -> 0.0343 | EK3: =EJ3+0.00000014 -> 0.03430014 | EL3: =SUM(DE3*1000)+(DL3/100)+(DJ3/10000) -> 0.0343 | EM3: =EL3+0.00000014 -> 0.03430014 | EN3: =SUM(DY3*1000)+(EF3/100)+(ED3/10000) -> 0.0343 | EO3: =EN3+0.00000014 -> 0.03430014 | EP3: =A3 -> 0 | EQ3: =P3 -> 0 | ER3: =B3 -> 0 | ES3: =O3 -> 0 | ET3: =IF(E3="",0,IF(I3="",0,IF(E3>I3,0,IF(E3=I3,-2,IF(E3<I3,-4))))) -> 0 | EU3: =IF(I3="",0,IF(E3="",0,IF(I3>E3,4,IF(I3=E3,2,IF(I3<E3,0))))) -> 0 | EV3: =IF(G3<>"",IF(SUM(G3-K3)>=3,1)) -> FALSE | EW3: =IF(K3<>"",IF(SUM(K3-G3)>=3,1)) -> FALSE | EX3: =IF(E3<>"",IF(E3<I3,IF(SUM(I3-E3)<=7,1))) -> FALSE | EY3: =IF(I3<>"",IF(I3<E3,IF(SUM(E3-I3)<=7,1))) -> 1 | EZ3: =SUM(ET3,EV3,EX3) -> 0 | FA3: =SUM(EU3,EW3,EY3) -> 1 | FB3: =EZ3-EP3+ER3 -> 0 | FC3: =FA3-EQ3+ES3 -> 1 | FD3: =IF(S3="Match annulé",1,"") ->  | FE3: =IF(S3="Match annulé",1,"") ->  | FF3: =IF(E3="",0,1) -> 1 | FG3: =IF(I3="",0,1) -> 1 | FH3: =IF(SUM(FD3,FF3)<>0,SUM(FD3,FF3),0) -> 1 | FI3: =IF(SUM(FE3,FG3)<>0,SUM(FE3,FG3),0) -> 1 | FJ3: =IF(E3<>"",IF(E3>I3,1)) -> 1 | FK3: =IF(I3<>"",IF(I3>E3,1)) -> FALSE | FL3: =IF(E3<>"",IF(E3=I3,1)) -> FALSE | FM3: =IF(I3<>"",IF(I3=E3,1)) -> FALSE | FN3: =IF(E3<>"",IF(E3<I3,1)) -> FALSE | FO3: =IF(I3<>"",IF(I3<E3,1)) -> 1 | FP3: =E3 -> 10 | FQ3: =I3 -> 7 | FR3: =I3 -> 7 | FS3: =E3 -> 10 | FT3: =G3 -> 1 | FU3: =K3 -> 1 | FV3: =K3 -> 1 | FW3: =G3 -> 1 | FX3: =IFERROR(_xlfn.XLOOKUP(BX3,$BY$3:$BY$18,$CD$3:$CD$18),"") -> Nice | FY3: =IFERROR(_xlfn.XLOOKUP(FX3,$CD$3:$CD$18,$EJ$3:$EJ$18),"") -> 10000.4677 | FZ3: =IF(FY3="","",_xlfn.RANK.EQ(FY3,FY3:FY18)) -> 1 | GA3: =IF(CD3="","",CD3) -> Albi | GB3: =IFERROR(_xlfn.XLOOKUP(BZ3,$CA$3:$CA$18,$CY$3:$CY$18),"") -> Nice | GC3: =IFERROR(_xlfn.XLOOKUP(GB3,$CY$3:$CY$18,$EL$3:$EL$18),"") -> 10000.4677 | GD3: =IF(GC3="","",_xlfn.RANK.EQ(GC3,GC3:GC18)) -> 1 | GE3: =IF(CY3="","",CY3) -> Albi | GF3: =IFERROR(_xlfn.XLOOKUP(CB3,$CC$3:$CC$18,$DS$3:$DS$18),"") -> Nice | GG3: =IFERROR(_xlfn.XLOOKUP(GF3,$DS$3:$DS$18,$EN$3:$EN$18),"") -> 8000.4677 | GH3: =IF(GG3="","",_xlfn.RANK.EQ(GG3,GG3:GG18)) -> 1 | GI3: =IF(DS3="","",DS3) -> Albi | GK3: =IF(AND(I3="",S3=""),"",IF(AND(I3>=0,S3=""),"ok",IF(AND(I3="",S3="Match à rejouer"),"ok",IF(AND(I3="",S3="Match annulé"),"ok",IF(AND(I3="",S3="Match arrêté"),"ok",IF(AND(I3="",S3="Match avec réserves"),"ok",IF(AND(I3="",S3="Match reporté"),"ok",IF(AND(I3="",S3="Match reprogrammé"),"")))))))) -> ok | GL3: =IF(Q3="","",IF(R3="","",Q3+R3)) -> 2023-09-09T19:00:00 | GM3: =IF(Q3="","",IF(R3="","",IF(GK3="ok","",Q3+R3))) ->  | GN3: =MIN(GM3:GM9) -> 00:00:00 | GO3: =MAX(GM3:GM9) -> 00:00:00 | GQ3: =IF(SUM(FD3,FF3)<>0,SUM(FD3,FF3),"") -> 1 | GR3: =IF(SUM(FE3,FG3)<>0,SUM(FE3,FG3),"") -> 1
B4: 1 | C4: Forfait gagnant | D4: Narbonne | E4: 25 | F4: =IF(E4="","",IF(I4="","",IF(E4>I4,"",IF(E4=I4,"",IF(E4<I4,IF(SUM(I4-E4)<=7,"Bd","")))))) ->  | H4: =IF(G4="","",IF(K4="","",IF(SUM(G4-K4)>=3,"Bo",""))) ->  | I4: 0 | J4: =IF(I4="","",IF(E4="","",IF(I4>E4,"",IF(I4=E4,"",IF(I4<E4,IF(SUM(E4-I4)<=7,"Bd","")))))) ->  | L4: =IF(K4="","",IF(G4="","",IF(SUM(K4-G4)>=3,"Bo",""))) ->  | M4: Blagnac | N4: Forfait général | P4: 2 | Q4: 2023-09-09 | R4: 19:00:00 | U4: =IF(FY4=FY3,FZ3,FZ4) -> 2 | V4: =IFERROR(_xlfn.XLOOKUP(BX4,$BY$3:$BY$18,$CD$3:$CD$18),"") -> Narbonne | X4: =IFERROR(_xlfn.XLOOKUP(V4,$CD$3:$CD$18,$CJ$3:$CJ$18),"") -> 5 | Y4: =IFERROR(_xlfn.XLOOKUP(V4,$CD$3:$CD$18,$CG$3:$CG$18),"") -> 0 | Z4: =IFERROR(_xlfn.XLOOKUP(V4,$CD$3:$CD$18,$CH$3:$CH$18),"") -> u | AA4: =IFERROR(_xlfn.XLOOKUP(V4,$CD$3:$CD$18,$CK$3:$CK$18),"") -> 3 | AB4: =IFERROR(_xlfn.XLOOKUP(V4,$CD$3:$CD$18,$CL$3:$CL$18),"") -> 3 | AC4: =IFERROR(_xlfn.XLOOKUP(V4,$CD$3:$CD$18,$CM$3:$CM$18),"") -> 0 | AD4: =IFERROR(_xlfn.XLOOKUP(V4,$CD$3:$CD$18,$CN$3:$CN$18),"") -> 0 | AE4: =IFERROR(_xlfn.XLOOKUP(V4,$CD$3:$CD$18,$CO$3:$CO$18),"") -> 69 | AF4: =IFERROR(_xlfn.XLOOKUP(V4,$CD$3:$CD$18,$CP$3:$CP$18),"") -> 32 | AG4: =IFERROR(_xlfn.XLOOKUP(V4,$CD$3:$CD$18,$CQ$3:$CQ$18),"") -> 37 | AH4: =IFERROR(_xlfn.XLOOKUP(V4,$CD$3:$CD$18,$CR$3:$CR$18),"") -> 0 | AI4: =IFERROR(_xlfn.XLOOKUP(V4,$CD$3:$CD$18,$CS$3:$CS$18),"") -> 0 | AJ4: =IFERROR(_xlfn.XLOOKUP(V4,$CD$3:$CD$18,$CT$3:$CT$18),"") -> 0 | AK4: =IFERROR(_xlfn.XLOOKUP(V4,$CD$3:$CD$18,$CU$3:$CU$18),"") -> 0 | AL4: =IFERROR(_xlfn.XLOOKUP(V4,$CD$3:$CD$18,$CV$3:$CV$18),"") -> 5 | AM4: =IFERROR(_xlfn.XLOOKUP(V4,$CD$3:$CD$18,$CW$3:$CW$18),"") -> 3 | AN4: =IFERROR(_xlfn.XLOOKUP(V4,$CD$3:$CD$18,$CX$3:$CX$18),"") -> 2 | AO4: =IF(GC4=GC3,GD3,GD4) -> 2 | AP4: =IFERROR(_xlfn.XLOOKUP(BZ4,$CA$3:$CA$18,$CY$3:$CY$18),"") -> Narbonne | AR4: =IFERROR(_xlfn.XLOOKUP(AP4,$CY$3:$CY$18,$DE$3:$DE$18),"") -> 5 | AS4: =IFERROR(_xlfn.XLOOKUP(AP4,$CY$3:$CY$18,$DB$3:$DB$18),"") -> 0 | AT4: =IFERROR(_xlfn.XLOOKUP(AP4,$CY$3:$CY$18,$DC$3:$DC$18),"") -> u | AU4: =IFERROR(_xlfn.XLOOKUP(AP4,$CY$3:$CY$18,$DF$3:$DF$18),"") -> 3 | AV4: =IFERROR(_xlfn.XLOOKUP(AP4,$CY$3:$CY$18,$DG$3:$DG$18),"") -> 3 | AW4: =IFERROR(_xlfn.XLOOKUP(AP4,$CY$3:$CY$18,$DH$3:$DH$18),"") -> 0 | AX4: =IFERROR(_xlfn.XLOOKUP(AP4,$CY$3:$CY$18,$DI$3:$DI$18),"") -> 0 | AY4: =IFERROR(_xlfn.XLOOKUP(AP4,$CY$3:$CY$18,$DJ$3:$DJ$18),"") -> 69 | AZ4: =IFERROR(_xlfn.XLOOKUP(AP4,$CY$3:$CY$18,$DK$3:$DK$18),"") -> 32 | BA4: =IFERROR(_xlfn.XLOOKUP(AP4,$CY$3:$CY$18,$DL$3:$DL$18),"") -> 37 | BB4: =IFERROR(_xlfn.XLOOKUP(AP4,$CY$3:$CY$18,$DM$3:$DM$18),"") -> 0 | BC4: =IFERROR(_xlfn.XLOOKUP(AP4,$CY$3:$CY$18,$DN$3:$DN$18),"") -> 0 | BD4: =IFERROR(_xlfn.XLOOKUP(AP4,$CY$3:$CY$18,$DO$3:$DO$18),"") -> 0 | BE4: =IFERROR(_xlfn.XLOOKUP(AP4,$CY$3:$CY$18,$DP$3:$DP$18),"") -> 5 | BF4: =IFERROR(_xlfn.XLOOKUP(AP4,$CY$3:$CY$18,$DQ$3:$DQ$18),"") -> 3 | BG4: =IFERROR(_xlfn.XLOOKUP(AP4,$CY$3:$CY$18,$DR$3:$DR$18),"") -> 2 | BH4: =IF(GG4=GG3,GH3,GH4) -> 2 | BI4: =IFERROR(_xlfn.XLOOKUP(CB4,$CC$3:$CC$18,$DS$3:$DS$18),"") -> Narbonne | BK4: =IFERROR(_xlfn.XLOOKUP(BI4,$DS$3:$DS$18,$DY$3:$DY$18),"") -> 4 | BL4: =IFERROR(_xlfn.XLOOKUP(BI4,$DS$3:$DS$18,$DV$3:$DV$18),"") -> -1 | BM4: =IFERROR(_xlfn.XLOOKUP(BI4,$DS$3:$DS$18,$DW$3:$DW$18),"") -> q | BN4: =IFERROR(_xlfn.XLOOKUP(BI4,$DS$3:$DS$18,$DZ$3:$DZ$18),"") -> 3 | BO4: =IFERROR(_xlfn.XLOOKUP(BI4,$DS$3:$DS$18,$EA$3:$EA$18),"") -> 3 | BP4: =IFERROR(_xlfn.XLOOKUP(BI4,$DS$3:$DS$18,$EB$3:$EB$18),"") -> 0 | BQ4: =IFERROR(_xlfn.XLOOKUP(BI4,$DS$3:$DS$18,$EC$3:$EC$18),"") -> 0 | BR4: =IFERROR(_xlfn.XLOOKUP(BI4,$DS$3:$DS$18,$ED$3:$ED$18),"") -> 69 | BS4: =IFERROR(_xlfn.XLOOKUP(BI4,$DS$3:$DS$18,$EE$3:$EE$18),"") -> 32 | BT4: =IFERROR(_xlfn.XLOOKUP(BI4,$DS$3:$DS$18,$EF$3:$EF$18),"") -> 37 | BU4: =IFERROR(_xlfn.XLOOKUP(BI4,$DS$3:$DS$18,$EG$3:$EG$18),"") -> 5 | BV4: =IFERROR(_xlfn.XLOOKUP(BI4,$DS$3:$DS$18,$EH$3:$EH$18),"") -> 3 | BW4: =IFERROR(_xlfn.XLOOKUP(BI4,$DS$3:$DS$18,$EI$3:$EI$18),"") -> 2 | BX4: 2 | BY4: =CF4 -> 14 | BZ4: 2 | CA4: =DA4 -> 14 | CB4: 2 | CC4: =DU4 -> 12 | CD4: =IF(Equipes!$C$3="","",Equipes!$C$3) -> Blagnac | CF4: =_xlfn.RANK.EQ(EJ4,$EJ$3:$EJ$18) -> 14 | CG4: ='J02'!CF4-CF4 -> 0 | CH4: =IF(CF4>'J02'!CF4,'J02'!$CH$20,IF(CF4='J02'!CF4,'J02'!$CG$20,IF(CF4<'J02'!CF4,'J02'!$CF$20))) -> u | CI4: =_xlfn.RANK.EQ(EK4,$EK$3:$EK$18) -> 14 | CJ4: =SUMPRODUCT(($D$3:$D$10=CD4)*($FB$3:$FB$10))+SUMPRODUCT(($M$3:$M$10=CD4)*($FC$3:$FC$10))+'J02'!CJ4+CU4 -> -10 | CK4: =SUMPRODUCT(($D$3:$D$10=CD4)*($FF$3:$FF$10))+SUMPRODUCT(($M$3:$M$10=CD4)*($FG$3:$FG$10))+'J02'!CK4 -> 3 | CL4: =SUMPRODUCT(($D$3:$D$10=CD4)*($FJ$3:$FJ$10))+SUMPRODUCT(($M$3:$M$10=CD4)*($FK$3:$FK$10))+'J02'!CL4 -> 0 | CM4: =SUMPRODUCT(($D$3:$D$10=CD4)*($FL$3:$FL$10))+SUMPRODUCT(($M$3:$M$10=CD4)*($FM$3:$FM$10))+'J02'!CM4 -> 0 | CN4: =SUMPRODUCT(($D$3:$D$10=CD4)*($FN$3:$FN$10))+SUMPRODUCT(($M$3:$M$10=CD4)*($FO$3:$FO$10))+'J02'!CN4 -> 3 | CO4: =SUMPRODUCT(($D$3:$D$10=CD4)*($FP$3:$FP$10))+SUMPRODUCT(($M$3:$M$10=CD4)*($FQ$3:$FQ$10))+'J02'!CO4 -> 0 | CP4: =SUMPRODUCT(($D$3:$D$10=CD4)*($FR$3:$FR$10))+SUMPRODUCT(($M$3:$M$10=CD4)*($FS$3:$FS$10))+'J02'!CP4 -> 75 | CQ4: -75 | CR4: =SUM(CS4:CU4) -> 0 | CS4: =SUMPRODUCT(($D$3:$D$10=CD4)*($EV$3:$EV$10))+SUMPRODUCT(($M$3:$M$10=CD4)*($EW$3:$EW$10))+'J02'!CS4 -> 0 | CT4: =SUMPRODUCT(($D$3:$D$10=CD4)*($EX$3:$EX$10))+SUMPRODUCT(($M$3:$M$10=CD4)*($EY$3:$EY$10))+'J02'!CT4 -> 0 | CU4: 0 | CV4: =SUMPRODUCT(($D$3:$D$10=CD4)*($FT$3:$FT$10))+SUMPRODUCT(($M$3:$M$10=CD4)*($FU$3:$FU$10))+'J02'!CV4 -> 0 | CW4: =SUMPRODUCT(($D$3:$D$10=CD4)*($FV$3:$FV$10))+SUMPRODUCT(($M$3:$M$10=CD4)*($FW$3:$FW$10))+'J02'!CW4 -> 0 | CX4: 0 | CY4: =IF(Equipes!$C$3="","",Equipes!$C$3) -> Blagnac | DA4: =_xlfn.RANK.EQ(EL4,$EL$3:$EL$18) -> 14 | DB4: ='J02'!DA4-DA4 -> 0 | DC4: =IF(DA4>'J02'!DA4,'J02'!$DC$20,IF(DA4='J02'!DA4,'J02'!$DB$20,IF(DA4<'J02'!DA4,'J02'!$DA$20))) -> u | DD4: =_xlfn.RANK.EQ(EL4,$EL$3:$EL$18) -> 14 | DE4: =SUMPRODUCT(($D$3:$D$10=CY4)*($FB$3:$FB$10))+SUMPRODUCT(($M$3:$M$10=CY4)*($FC$3:$FC$10))+'J02'!DE4 -> -10 | DF4: =SUMPRODUCT(($D3:$D$10=CY4)*($FF$3:$FF$10))+SUMPRODUCT(($M$3:$M$10=CY4)*($FG$3:$FG$10))+'J02'!DF4 -> 3 | DG4: =SUMPRODUCT(($D$3:$D$10=CY4)*($FJ$3:$FJ$10))+SUMPRODUCT(($M$3:$M$10=CY4)*($FK$3:$FK$10))+'J02'!DG4 -> 0 | DH4: =SUMPRODUCT(($D$3:$D$10=CY4)*($FL$3:$FL$10))+SUMPRODUCT(($M$3:$M$10=CY4)*($FM$3:$FM$10))+'J02'!DH4 -> 0 | DI4: =SUMPRODUCT(($D$3:$D$10=CY4)*($FN$3:$FN$10))+SUMPRODUCT(($M$3:$M$10=CY4)*($FO$3:$FO$10))+'J02'!DI4 -> 3 | DJ4: =SUMPRODUCT(($D$3:$D$10=CY4)*($FP$3:$FP$10))+SUMPRODUCT(($M$3:$M$10=CY4)*($FQ$3:$FQ$10))+'J02'!DJ4 -> 0 | DK4: =SUMPRODUCT(($D$3:$D$10=CY4)*($FR$3:$FR$10))+SUMPRODUCT(($M$3:$M$10=CY4)*($FS$3:$FS$10))+'J02'!DK4 -> 75 | DL4: =DJ4-DK4 -> -75 | DM4: =SUM(DN4:DO4) -> 0 | DN4: =SUMPRODUCT(($D$3:$D$10=CY4)*($EV$3:$EV$10))+SUMPRODUCT(($M$3:$M$10=CY4)*($EW$3:$EW$10))+'J02'!DN4 -> 0 | DO4: =SUMPRODUCT(($D$3:$D$10=CY4)*($EX$3:$EX$10))+SUMPRODUCT(($M$3:$M$10=CY4)*($EY$3:$EY$10))+'J02'!DO4 -> 0 | DP4: =SUMPRODUCT(($D$3:$D$10=CY4)*($FT$3:$FT$10))+SUMPRODUCT(($M$3:$M$10=CY4)*($FU$3:$FU$10))+'J02'!DP4 -> 0 | DQ4: =SUMPRODUCT(($D$3:$D$10=CY4)*($FV$3:$FV$10))+SUMPRODUCT(($M$3:$M$10=CY4)*($FW$3:$FW$10))+'J02'!DQ4 -> 0 | DR4: =DP4-DQ4 -> 0 | DS4: =IF(Equipes!$C$3="","",Equipes!$C$3) -> Blagnac | DU4: =_xlfn.RANK.EQ(EN4,$EN$3:$EN$18) -> 12 | DV4: ='J02'!DU4-DU4 -> 2 | DW4: =IF(DU4>'J02'!DU4,'J02'!$DW$20,IF(DU4='J02'!DU4,'J02'!$DV$20,IF(DU4<'J02'!DU4,'J02'!$DU$20))) -> p | DX4: =_xlfn.RANK.EQ(EN4,$EN$3:$EN$18) -> 12 | DY4: =SUMPRODUCT(($D$3:$D$10=DS4)*($ET$3:$ET$10))+SUMPRODUCT(($M$3:$M$10=DS4)*($EU$3:$EU$10))+'J02'!DY4 -> -4 | DZ4: =SUMPRODUCT(($D3:$D$10=DS4)*($FF$3:$FF$10))+SUMPRODUCT(($M$3:$M$10=DS4)*($FG$3:$FG$10))+'J02'!DZ4 -> 3 | EA4: =SUMPRODUCT(($D$3:$D$10=DS4)*($FJ$3:$FJ$10))+SUMPRODUCT(($M$3:$M$10=DS4)*($FK$3:$FK$10))+'J02'!EA4 -> 0 | EB4: =SUMPRODUCT(($D$3:$D$10=DS4)*($FL$3:$FL$10))+SUMPRODUCT(($M$3:$M$10=DS4)*($FM$3:$FM$10))+'J02'!EB4 -> 0 | EC4: =SUMPRODUCT(($D$3:$D$10=DS4)*($FN$3:$FN$10))+SUMPRODUCT(($M$3:$M$10=DS4)*($FO$3:$FO$10))+'J02'!EC4 -> 3 | ED4: =SUMPRODUCT(($D$3:$D$10=DS4)*($FP$3:$FP$10))+SUMPRODUCT(($M$3:$M$10=DS4)*($FQ$3:$FQ$10))+'J02'!ED4 -> 0 | EE4: =SUMPRODUCT(($D$3:$D$10=DS4)*($FR$3:$FR$10))+SUMPRODUCT(($M$3:$M$10=DS4)*($FS$3:$FS$10))+'J02'!EE4 -> 75 | EF4: =ED4-EE4 -> -75 | EG4: =SUMPRODUCT(($D$3:$D$10=DS4)*($FT$3:$FT$10))+SUMPRODUCT(($M$3:$M$10=DS4)*($FU$3:$FU$10))+'J02'!EG4 -> 0 | EH4: =SUMPRODUCT(($D$3:$D$10=DS4)*($FV$3:$FV$10))+SUMPRODUCT(($M$3:$M$10=DS4)*($FW$3:$FW$10))+'J02'!EH4 -> 0 | EI4: =EG4-EH4 -> 0 | EJ4: =SUM(CJ4*1000)+(CQ4/100)+(CO4/10000) -> -10000.75 | EK4: =EJ4+0.00000013 -> -10000.75 | EL4: =SUM(DE4*1000)+(DL4/100)+(DJ4/10000) -> -10000.75 | EM4: =EL4+0.00000013 -> -10000.75 | EN4: =SUM(DY4*1000)+(EF4/100)+(ED4/10000) -> -4000.75 | EO4: =EN4+0.00000013 -> -4000.75 | EP4: =A4 -> 0 | EQ4: =P4 -> 2 | ER4: =B4 -> 1 | ES4: =O4 -> 0 | ET4: =IF(E4="",0,IF(I4="",0,IF(E4>I4,0,IF(E4=I4,-2,IF(E4<I4,-4))))) -> 0 | EU4: =IF(I4="",0,IF(E4="",0,IF(I4>E4,4,IF(I4=E4,2,IF(I4<E4,0))))) -> 0 | EV4: =IF(G4<>"",IF(SUM(G4-K4)>=3,1)) -> FALSE | EW4: =IF(K4<>"",IF(SUM(K4-G4)>=3,1)) -> FALSE | EX4: =IF(E4<>"",IF(E4<I4,IF(SUM(I4-E4)<=7,1))) -> FALSE | EY4: =IF(I4<>"",IF(I4<E4,IF(SUM(E4-I4)<=7,1))) -> FALSE | EZ4: =SUM(ET4,EV4,EX4) -> 0 | FA4: 0 | FB4: =EZ4-EP4+ER4 -> 1 | FC4: -2 | FD4: =IF(S4="Match annulé",1,"") ->  | FE4: =IF(S4="Match annulé",1,"") ->  | FF4: =IF(E4="",0,1) -> 1 | FG4: =IF(I4="",0,1) -> 1 | FH4: =IF(SUM(FD4,FF4)<>0,SUM(FD4,FF4),0) -> 1 | FI4: 1 | FJ4: =IF(E4<>"",IF(E4>I4,1)) -> 1 | FK4: =IF(I4<>"",IF(I4>E4,1)) -> FALSE | FL4: =IF(E4<>"",IF(E4=I4,1)) -> FALSE | FM4: =IF(I4<>"",IF(I4=E4,1)) -> FALSE | FN4: =IF(E4<>"",IF(E4<I4,1)) -> FALSE | FO4: =IF(I4<>"",IF(I4<E4,1)) -> 1 | FP4: =E4 -> 25 | FQ4: =I4 -> 0 | FR4: =I4 -> 0 | FS4: =E4 -> 25 | FT4: =G4 -> 0 | FU4: =K4 -> 0 | FV4: =K4 -> 0 | FW4: =G4 -> 0 | FX4: =IFERROR(_xlfn.XLOOKUP(BX4,$BY$3:$BY$18,$CD$3:$CD$18),"") -> Narbonne | FY4: =IFERROR(_xlfn.XLOOKUP(FX4,$CD$3:$CD$18,$EJ$3:$EJ$18),"") -> 5000.3769 | FZ4: =IF(FY4="","",_xlfn.RANK.EQ(FY4,FY3:FY18)) -> 2 | GA4: =IF(CD4="","",CD4) -> Blagnac | GB4: =IFERROR(_xlfn.XLOOKUP(BZ4,$CA$3:$CA$18,$CY$3:$CY$18),"") -> Narbonne | GC4: =IFERROR(_xlfn.XLOOKUP(GB4,$CY$3:$CY$18,$EL$3:$EL$18),"") -> 5000.3769 | GD4: =IF(GC4="","",_xlfn.RANK.EQ(GC4,GC3:GC18)) -> 2 | GE4: =IF(CY4="","",CY4) -> Blagnac | GF4: =IFERROR(_xlfn.XLOOKUP(CB4,$CC$3:$CC$18,$DS$3:$DS$18),"") -> Narbonne | GG4: =IFERROR(_xlfn.XLOOKUP(GF4,$DS$3:$DS$18,$EN$3:$EN$18),"") -> 4000.3769 | GH4: =IF(GG4="","",_xlfn.RANK.EQ(GG4,GG3:GG18)) -> 2 | GI4: =IF(DS4="","",DS4) -> Blagnac | GK4: ok | GL4: 2023-09-09T19:00:00 | GQ4: =IF(SUM(FD4,FF4)<>0,SUM(FD4,FF4),"") -> 1 | GR4: 1
D5: Tarbes | E5: 3 | G5: 0 | I5: 38 | K5: 5 | L5: Bo | M5: Nice | Q5: 2023-09-09 | R5: 19:30:00 | U5: =IF(FY5=FY4,FZ4,FZ5) -> 3 | V5: Suresnes | X5: 5 | Y5: 4 | Z5: p | AA5: 3 | AB5: 1 | AC5: 0 | AD5: 2 | AE5: 46 | AF5: 62 | AG5: -16 | AH5: 1 | AI5: 0 | AJ5: 1 | AK5: 0 | AL5: 4 | AM5: 7 | AN5: -3 | AO5: =IF(GC5=GC4,GD4,GD5) -> 3 | AP5: Suresnes | AR5: 5 | AS5: 4 | AT5: p | AU5: 3 | AV5: 1 | AW5: 0 | AX5: 2 | AY5: 46 | AZ5: 62 | BA5: -16 | BB5: 1 | BC5: 0 | BD5: 1 | BE5: 4 | BF5: 7 | BG5: -3 | BH5: =IF(GG5=GG4,GH4,GH5) -> 3 | BI5: Carcassonne | BK5: 4 | BL5: 0 | BM5: u | BN5: 3 | BO5: 3 | BP5: 0 | BQ5: 0 | BR5: 53 | BS5: 40 | BT5: 13 | BU5: 5 | BV5: 4 | BW5: 1 | BX5: 3 | BY5: 13 | BZ5: 3 | CA5: 13 | CB5: 3 | CC5: 14 | CD5: =IF(Equipes!$C$4="","",Equipes!$C$4) -> Bourg-en-Bresse | CF5: 13 | CG5: ='J02'!CF5-CF5 -> 0 | CH5: =IF(CF5>'J02'!CF5,'J02'!$CH$20,IF(CF5='J02'!CF5,'J02'!$CG$20,IF(CF5<'J02'!CF5,'J02'!$CF$20))) -> u | CI5: 13 | CJ5: =SUMPRODUCT(($D$3:$D$10=CD5)*($FB$3:$FB$10))+SUMPRODUCT(($M$3:$M$10=CD5)*($FC$3:$FC$10))+'J02'!CJ5+CU5 -> -6 | CK5: =SUMPRODUCT(($D$3:$D$10=CD5)*($FF$3:$FF$10))+SUMPRODUCT(($M$3:$M$10=CD5)*($FG$3:$FG$10))+'J02'!CK5 -> 3 | CL5: =SUMPRODUCT(($D$3:$D$10=CD5)*($FJ$3:$FJ$10))+SUMPRODUCT(($M$3:$M$10=CD5)*($FK$3:$FK$10))+'J02'!CL5 -> 0 | CM5: =SUMPRODUCT(($D$3:$D$10=CD5)*($FL$3:$FL$10))+SUMPRODUCT(($M$3:$M$10=CD5)*($FM$3:$FM$10))+'J02'!CM5 -> 0 | CN5: =SUMPRODUCT(($D$3:$D$10=CD5)*($FN$3:$FN$10))+SUMPRODUCT(($M$3:$M$10=CD5)*($FO$3:$FO$10))+'J02'!CN5 -> 3 | CO5: =SUMPRODUCT(($D$3:$D$10=CD5)*($FP$3:$FP$10))+SUMPRODUCT(($M$3:$M$10=CD5)*($FQ$3:$FQ$10))+'J02'!CO5 -> 43 | CP5: =SUMPRODUCT(($D$3:$D$10=CD5)*($FR$3:$FR$10))+SUMPRODUCT(($M$3:$M$10=CD5)*($FS$3:$FS$10))+'J02'!CP5 -> 61 | CQ5: -18 | CR5: 2 | CS5: =SUMPRODUCT(($D$3:$D$10=CD5)*($EV$3:$EV$10))+SUMPRODUCT(($M$3:$M$10=CD5)*($EW$3:$EW$10))+'J02'!CS5 -> 0 | CT5: =SUMPRODUCT(($D$3:$D$10=CD5)*($EX$3:$EX$10))+SUMPRODUCT(($M$3:$M$10=CD5)*($EY$3:$EY$10))+'J02'!CT5 -> 2 | CU5: 0 | CV5: =SUMPRODUCT(($D$3:$D$10=CD5)*($FT$3:$FT$10))+SUMPRODUCT(($M$3:$M$10=CD5)*($FU$3:$FU$10))+'J02'!CV5 -> 4 | CW5: =SUMPRODUCT(($D$3:$D$10=CD5)*($FV$3:$FV$10))+SUMPRODUCT(($M$3:$M$10=CD5)*($FW$3:$FW$10))+'J02'!CW5 -> 4 | CX5: 0 | CY5: =IF(Equipes!$C$4="","",Equipes!$C$4) -> Bourg-en-Bresse | DA5: 13 | DB5: ='J02'!DA5-DA5 -> 0 | DC5: =IF(DA5>'J02'!DA5,'J02'!$DC$20,IF(DA5='J02'!DA5,'J02'!$DB$20,IF(DA5<'J02'!DA5,'J02'!$DA$20))) -> u | DD5: 13 | DE5: =SUMPRODUCT(($D$3:$D$10=CY5)*($FB$3:$FB$10))+SUMPRODUCT(($M$3:$M$10=CY5)*($FC$3:$FC$10))+'J02'!DE5 -> -6 | DF5: =SUMPRODUCT(($D3:$D$10=CY5)*($FF$3:$FF$10))+SUMPRODUCT(($M$3:$M$10=CY5)*($FG$3:$FG$10))+'J02'!DF5 -> 3 | DG5: =SUMPRODUCT(($D$3:$D$10=CY5)*($FJ$3:$FJ$10))+SUMPRODUCT(($M$3:$M$10=CY5)*($FK$3:$FK$10))+'J02'!DG5 -> 0 | DH5: =SUMPRODUCT(($D$3:$D$10=CY5)*($FL$3:$FL$10))+SUMPRODUCT(($M$3:$M$10=CY5)*($FM$3:$FM$10))+'J02'!DH5 -> 0 | DI5: =SUMPRODUCT(($D$3:$D$10=CY5)*($FN$3:$FN$10))+SUMPRODUCT(($M$3:$M$10=CY5)*($FO$3:$FO$10))+'J02'!DI5 -> 3 | DJ5: =SUMPRODUCT(($D$3:$D$10=CY5)*($FP$3:$FP$10))+SUMPRODUCT(($M$3:$M$10=CY5)*($FQ$3:$FQ$10))+'J02'!DJ5 -> 43 | DK5: =SUMPRODUCT(($D$3:$D$10=CY5)*($FR$3:$FR$10))+SUMPRODUCT(($M$3:$M$10=CY5)*($FS$3:$FS$10))+'J02'!DK5 -> 61 | DL5: -18 | DM5: 2 | DN5: =SUMPRODUCT(($D$3:$D$10=CY5)*($EV$3:$EV$10))+SUMPRODUCT(($M$3:$M$10=CY5)*($EW$3:$EW$10))+'J02'!DN5 -> 0 | DO5: =SUMPRODUCT(($D$3:$D$10=CY5)*($EX$3:$EX$10))+SUMPRODUCT(($M$3:$M$10=CY5)*($EY$3:$EY$10))+'J02'!DO5 -> 2 | DP5: =SUMPRODUCT(($D$3:$D$10=CY5)*($FT$3:$FT$10))+SUMPRODUCT(($M$3:$M$10=CY5)*($FU$3:$FU$10))+'J02'!DP5 -> 4 | DQ5: =SUMPRODUCT(($D$3:$D$10=CY5)*($FV$3:$FV$10))+SUMPRODUCT(($M$3:$M$10=CY5)*($FW$3:$FW$10))+'J02'!DQ5 -> 4 | DR5: 0 | DS5: =IF(Equipes!$C$4="","",Equipes!$C$4) -> Bourg-en-Bresse | DU5: 14 | DV5: ='J02'!DU5-DU5 -> -1 | DW5: =IF(DU5>'J02'!DU5,'J02'!$DW$20,IF(DU5='J02'!DU5,'J02'!$DV$20,IF(DU5<'J02'!DU5,'J02'!$DU$20))) -> q | DX5: 14 | DY5: =SUMPRODUCT(($D$3:$D$10=DS5)*($ET$3:$ET$10))+SUMPRODUCT(($M$3:$M$10=DS5)*($EU$3:$EU$10))+'J02'!DY5 -> -8 | DZ5: =SUMPRODUCT(($D3:$D$10=DS5)*($FF$3:$FF$10))+SUMPRODUCT(($M$3:$M$10=DS5)*($FG$3:$FG$10))+'J02'!DZ5 -> 3 | EA5: =SUMPRODUCT(($D$3:$D$10=DS5)*($FJ$3:$FJ$10))+SUMPRODUCT(($M$3:$M$10=DS5)*($FK$3:$FK$10))+'J02'!EA5 -> 0 | EB5: =SUMPRODUCT(($D$3:$D$10=DS5)*($FL$3:$FL$10))+SUMPRODUCT(($M$3:$M$10=DS5)*($FM$3:$FM$10))+'J02'!EB5 -> 0 | EC5: =SUMPRODUCT(($D$3:$D$10=DS5)*($FN$3:$FN$10))+SUMPRODUCT(($M$3:$M$10=DS5)*($FO$3:$FO$10))+'J02'!EC5 -> 3 | ED5: =SUMPRODUCT(($D$3:$D$10=DS5)*($FP$3:$FP$10))+SUMPRODUCT(($M$3:$M$10=DS5)*($FQ$3:$FQ$10))+'J02'!ED5 -> 43 | EE5: =SUMPRODUCT(($D$3:$D$10=DS5)*($FR$3:$FR$10))+SUMPRODUCT(($M$3:$M$10=DS5)*($FS$3:$FS$10))+'J02'!EE5 -> 61 | EF5: -18 | EG5: =SUMPRODUCT(($D$3:$D$10=DS5)*($FT$3:$FT$10))+SUMPRODUCT(($M$3:$M$10=DS5)*($FU$3:$FU$10))+'J02'!EG5 -> 4 | EH5: =SUMPRODUCT(($D$3:$D$10=DS5)*($FV$3:$FV$10))+SUMPRODUCT(($M$3:$M$10=DS5)*($FW$3:$FW$10))+'J02'!EH5 -> 4 | EI5: 0 | EJ5: -6000.1757 | EK5: =EJ5+0.00000012 -> -6000.1757 | EL5: -6000.1757 | EM5: =EL5+0.00000012 -> -6000.1757 | EN5: -8000.1757 | EO5: =EN5+0.00000012 -> -8000.1757 | EP5: 0 | EQ5: 0 | ER5: 0 | ES5: 0 | ET5: -4 | EU5: 4 | EV5: FALSE | EW5: 1 | EX5: FALSE | EY5: FALSE | EZ5: -4 | FA5: 5 | FB5: -4 | FC5: 5 | FF5: 1 | FG5: 1 | FH5: 1 | FI5: 1 | FJ5: FALSE | FK5: 1 | FL5: FALSE | FM5: FALSE | FN5: 1 | FO5: FALSE | FP5: 3 | FQ5: 38 | FR5: 38 | FS5: 3 | FT5: 0 | FU5: 5 | FV5: 5 | FW5: 0 | FX5: =IFERROR(_xlfn.XLOOKUP(BX5,$BY$3:$BY$18,$CD$3:$CD$18),"") -> Suresnes | FY5: =IFERROR(_xlfn.XLOOKUP(FX5,$CD$3:$CD$18,$EJ$3:$EJ$18),"") -> 4999.8446 | FZ5: =IF(FY5="","",_xlfn.RANK.EQ(FY5,FY3:FY18)) -> 3 | GA5: =IF(CD5="","",CD5) -> Bourg-en-Bresse | GB5: =IFERROR(_xlfn.XLOOKUP(BZ5,$CA$3:$CA$18,$CY$3:$CY$18),"") -> Suresnes | GC5: 4999.8446 | GD5: =IF(GC5="","",_xlfn.RANK.EQ(GC5,GC3:GC18)) -> 3 | GE5: =IF(CY5="","",CY5) -> Bourg-en-Bresse | GF5: Carcassonne | GG5: 4000.1353 | GH5: =IF(GG5="","",_xlfn.RANK.EQ(GG5,GG3:GG18)) -> 3 | GI5: Bourg-en-Bresse | GK5: ok | GL5: 2023-09-09T19:30:00 | GQ5: 1 | GR5: 1
D6: Vienne | E6: 7 | G6: 1 | I6: 21 | K6: 2 | M6: Bourgoin-Jallieu | Q6: 2023-09-09 | R6: 19:30:00 | U6: 4 | V6: Carcassonne | X6: 4 | Y6: -1 | Z6: q | AA6: 3 | AB6: 3 | AC6: 0 | AD6: 0 | AE6: 53 | AF6: 40 | AG6: 13 | AH6: 0 | AI6: 0 | AJ6: 0 | AK6: 0 | AL6: 5 | AM6: 4 | AN6: 1 | AO6: 4 | AP6: Carcassonne | AR6: 4 | AS6: -1 | AT6: q | AU6: 3 | AV6: 3 | AW6: 0 | AX6: 0 | AY6: 53 | AZ6: 40 | BA6: 13 | BB6: 0 | BC6: 0 | BD6: 0 | BE6: 5 | BF6: 4 | BG6: 1 | BH6: 4 | BI6: Bourgoin-Jallieu | BK6: 4 | BL6: 5 | BM6: p | BN6: 3 | BO6: 2 | BP6: 0 | BQ6: 1 | BR6: 45 | BS6: 35 | BT6: 10 | BU6: 4 | BV6: 4 | BW6: 0 | BX6: 4 | BY6: 5 | BZ6: 4 | CA6: 5 | CB6: 4 | CC6: 4 | CD6: =IF(Equipes!$C$5="","",Equipes!$C$5) -> Bourgoin-Jallieu | CF6: 5 | CG6: ='J02'!CF6-CF6 -> 5 | CH6: =IF(CF6>'J02'!CF6,'J02'!$CH$20,IF(CF6='J02'!CF6,'J02'!$CG$20,IF(CF6<'J02'!CF6,'J02'!$CF$20))) -> p | CI6: 5 | CJ6: =SUMPRODUCT(($D$3:$D$10=CD6)*($FB$3:$FB$10))+SUMPRODUCT(($M$3:$M$10=CD6)*($FC$3:$FC$10))+'J02'!CJ6+CU6 -> 4 | CK6: =SUMPRODUCT(($D$3:$D$10=CD6)*($FF$3:$FF$10))+SUMPRODUCT(($M$3:$M$10=CD6)*($FG$3:$FG$10))+'J02'!CK6 -> 3 | CL6: =SUMPRODUCT(($D$3:$D$10=CD6)*($FJ$3:$FJ$10))+SUMPRODUCT(($M$3:$M$10=CD6)*($FK$3:$FK$10))+'J02'!CL6 -> 2 | CM6: =SUMPRODUCT(($D$3:$D$10=CD6)*($FL$3:$FL$10))+SUMPRODUCT(($M$3:$M$10=CD6)*($FM$3:$FM$10))+'J02'!CM6 -> 0 | CN6: =SUMPRODUCT(($D$3:$D$10=CD6)*($FN$3:$FN$10))+SUMPRODUCT(($M$3:$M$10=CD6)*($FO$3:$FO$10))+'J02'!CN6 -> 1 | CO6: =SUMPRODUCT(($D$3:$D$10=CD6)*($FP$3:$FP$10))+SUMPRODUCT(($M$3:$M$10=CD6)*($FQ$3:$FQ$10))+'J02'!CO6 -> 45 | CP6: =SUMPRODUCT(($D$3:$D$10=CD6)*($FR$3:$FR$10))+SUMPRODUCT(($M$3:$M$10=CD6)*($FS$3:$FS$10))+'J02'!CP6 -> 35 | CQ6: 10 | CR6: 0 | CS6: =SUMPRODUCT(($D$3:$D$10=CD6)*($EV$3:$EV$10))+SUMPRODUCT(($M$3:$M$10=CD6)*($EW$3:$EW$10))+'J02'!CS6 -> 0 | CT6: =SUMPRODUCT(($D$3:$D$10=CD6)*($EX$3:$EX$10))+SUMPRODUCT(($M$3:$M$10=CD6)*($EY$3:$EY$10))+'J02'!CT6 -> 0 | CU6: 0 | CV6: =SUMPRODUCT(($D$3:$D$10=CD6)*($FT$3:$FT$10))+SUMPRODUCT(($M$3:$M$10=CD6)*($FU$3:$FU$10))+'J02'!CV6 -> 4 | CW6: =SUMPRODUCT(($D$3:$D$10=CD6)*($FV$3:$FV$10))+SUMPRODUCT(($M$3:$M$10=CD6)*($FW$3:$FW$10))+'J02'!CW6 -> 4 | CX6: 0 | CY6: =IF(Equipes!$C$5="","",Equipes!$C$5) -> Bourgoin-Jallieu | DA6: 5 | DB6: ='J02'!DA6-DA6 -> 5 | DC6: =IF(DA6>'J02'!DA6,'J02'!$DC$20,IF(DA6='J02'!DA6,'J02'!$DB$20,IF(DA6<'J02'!DA6,'J02'!$DA$20))) -> p | DD6: 5 | DE6: =SUMPRODUCT(($D$3:$D$10=CY6)*($FB$3:$FB$10))+SUMPRODUCT(($M$3:$M$10=CY6)*($FC$3:$FC$10))+'J02'!DE6 -> 4 | DF6: =SUMPRODUCT(($D3:$D$10=CY6)*($FF$3:$FF$10))+SUMPRODUCT(($M$3:$M$10=CY6)*($FG$3:$FG$10))+'J02'!DF6 -> 3 | DG6: =SUMPRODUCT(($D$3:$D$10=CY6)*($FJ$3:$FJ$10))+SUMPRODUCT(($M$3:$M$10=CY6)*($FK$3:$FK$10))+'J02'!DG6 -> 2 | DH6: =SUMPRODUCT(($D$3:$D$10=CY6)*($FL$3:$FL$10))+SUMPRODUCT(($M$3:$M$10=CY6)*($FM$3:$FM$10))+'J02'!DH6 -> 0 | DI6: =SUMPRODUCT(($D$3:$D$10=CY6)*($FN$3:$FN$10))+SUMPRODUCT(($M$3:$M$10=CY6)*($FO$3:$FO$10))+'J02'!DI6 -> 1 | DJ6: =SUMPRODUCT(($D$3:$D$10=CY6)*($FP$3:$FP$10))+SUMPRODUCT(($M$3:$M$10=CY6)*($FQ$3:$FQ$10))+'J02'!DJ6 -> 45 | DK6: =SUMPRODUCT(($D$3:$D$10=CY6)*($FR$3:$FR$10))+SUMPRODUCT(($M$3:$M$10=CY6)*($FS$3:$FS$10))+'J02'!DK6 -> 35 | DL6: 10 | DM6: 0 | DN6: =SUMPRODUCT(($D$3:$D$10=CY6)*($EV$3:$EV$10))+SUMPRODUCT(($M$3:$M$10=CY6)*($EW$3:$EW$10))+'J02'!DN6 -> 0 | DO6: =SUMPRODUCT(($D$3:$D$10=CY6)*($EX$3:$EX$10))+SUMPRODUCT(($M$3:$M$10=CY6)*($EY$3:$EY$10))+'J02'!DO6 -> 0 | DP6: =SUMPRODUCT(($D$3:$D$10=CY6)*($FT$3:$FT$10))+SUMPRODUCT(($M$3:$M$10=CY6)*($FU$3:$FU$10))+'J02'!DP6 -> 4 | DQ6: =SUMPRODUCT(($D$3:$D$10=CY6)*($FV$3:$FV$10))+SUMPRODUCT(($M$3:$M$10=CY6)*($FW$3:$FW$10))+'J02'!DQ6 -> 4 | DR6: 0 | DS6: =IF(Equipes!$C$5="","",Equipes!$C$5) -> Bourgoin-Jallieu | DU6: 4 | DV6: ='J02'!DU6-DU6 -> 5 | DW6: =IF(DU6>'J02'!DU6,'J02'!$DW$20,IF(DU6='J02'!DU6,'J02'!$DV$20,IF(DU6<'J02'!DU6,'J02'!$DU$20))) -> p | DX6: 4 | DY6: =SUMPRODUCT(($D$3:$D$10=DS6)*($ET$3:$ET$10))+SUMPRODUCT(($M$3:$M$10=DS6)*($EU$3:$EU$10))+'J02'!DY6 -> 4 | DZ6: =SUMPRODUCT(($D3:$D$10=DS6)*($FF$3:$FF$10))+SUMPRODUCT(($M$3:$M$10=DS6)*($FG$3:$FG$10))+'J02'!DZ6 -> 3 | EA6: =SUMPRODUCT(($D$3:$D$10=DS6)*($FJ$3:$FJ$10))+SUMPRODUCT(($M$3:$M$10=DS6)*($FK$3:$FK$10))+'J02'!EA6 -> 2 | EB6: =SUMPRODUCT(($D$3:$D$10=DS6)*($FL$3:$FL$10))+SUMPRODUCT(($M$3:$M$10=DS6)*($FM$3:$FM$10))+'J02'!EB6 -> 0 | EC6: =SUMPRODUCT(($D$3:$D$10=DS6)*($FN$3:$FN$10))+SUMPRODUCT(($M$3:$M$10=DS6)*($FO$3:$FO$10))+'J02'!EC6 -> 1 | ED6: =SUMPRODUCT(($D$3:$D$10=DS6)*($FP$3:$FP$10))+SUMPRODUCT(($M$3:$M$10=DS6)*($FQ$3:$FQ$10))+'J02'!ED6 -> 45 | EE6: =SUMPRODUCT(($D$3:$D$10=DS6)*($FR$3:$FR$10))+SUMPRODUCT(($M$3:$M$10=DS6)*($FS$3:$FS$10))+'J02'!EE6 -> 35 | EF6: 10 | EG6: =SUMPRODUCT(($D$3:$D$10=DS6)*($FT$3:$FT$10))+SUMPRODUCT(($M$3:$M$10=DS6)*($FU$3:$FU$10))+'J02'!EG6 -> 4 | EH6: =SUMPRODUCT(($D$3:$D$10=DS6)*($FV$3:$FV$10))+SUMPRODUCT(($M$3:$M$10=DS6)*($FW$3:$FW$10))+'J02'!EH6 -> 4 | EI6: 0 | EJ6: 4000.1045 | EK6: =EJ6+0.00000011 -> 4000.1045 | EL6: 4000.1045 | EM6: =EL6+0.00000011 -> 4000.1045 | EN6: 4000.1045 | EO6: =EN6+0.00000011 -> 4000.1045 | EP6: 0 | EQ6: 0 | ER6: 0 | ES6: 0 | ET6: -4 | EU6: 4 | EV6: FALSE | EW6: FALSE | EX6: FALSE | EY6: FALSE | EZ6: -4 | FA6: 4 | FB6: -4 | FC6: 4 | FF6: 1 | FG6: 1 | FH6: 1 | FI6: 1 | FJ6: FALSE | FK6: 1 | FL6: FALSE | FM6: FALSE | FN6: 1 | FO6: FALSE | FP6: 7 | FQ6: 21 | FR6: 21 | FS6: 7 | FT6: 1 | FU6: 2 | FV6: 2 | FW6: 1 | FX6: =IFERROR(_xlfn.XLOOKUP(BX6,$BY$3:$BY$18,$CD$3:$CD$18),"") -> Carcassonne | FY6: =IFERROR(_xlfn.XLOOKUP(FX6,$CD$3:$CD$18,$EJ$3:$EJ$18),"") -> 4000.1353 | FZ6: =IF(FY6="","",_xlfn.RANK.EQ(FY6,FY3:FY18)) -> 4 | GA6: Bourgoin-Jallieu | GB6: Carcassonne | GC6: 4000.1353 | GD6: =IF(GC6="","",_xlfn.RANK.EQ(GC6,GC3:GC18)) -> 4 | GE6: Bourgoin-Jallieu | GF6: Bourgoin-Jallieu | GG6: 4000.1045 | GH6: =IF(GG6="","",_xlfn.RANK.EQ(GG6,GG3:GG18)) -> 4 | GI6: Bourgoin-Jallieu | GK6: ok | GL6: 2023-09-09T19:30:00 | GQ6: 1 | GR6: 1
D7: Carcassonne | E7: 20 | G7: 2 | I7: 16 | J7: Bd | K7: 1 | M7: Chambéry | Q7: 2023-09-08 | R7: 18:00:00 | U7: 5 | V7: Bourgoin-Jallieu | X7: 4 | Y7: 5 | Z7: p | AA7: 3 | AB7: 2 | AC7: 0 | AD7: 1 | AE7: 45 | AF7: 35 | AG7: 10 | AH7: 0 | AI7: 0 | AJ7: 0 | AK7: 0 | AL7: 4 | AM7: 4 | AN7: 0 | AO7: 5 | AP7: Bourgoin-Jallieu | AR7: 4 | AS7: 5 | AT7: p | AU7: 3 | AV7: 2 | AW7: 0 | AX7: 1 | AY7: 45 | AZ7: 35 | BA7: 10 | BB7: 0 | BC7: 0 | BD7: 0 | BE7: 4 | BF7: 4 | BG7: 0 | BH7: 5 | BI7: Suresnes | BK7: 4 | BL7: 5 | BM7: p | BN7: 3 | BO7: 1 | BP7: 0 | BQ7: 2 | BR7: 46 | BS7: 62 | BT7: -16 | BU7: 4 | BV7: 7 | BW7: -3 | BX7: 5 | BY7: 4 | BZ7: 5 | CA7: 4 | CB7: 5 | CC7: 3 | CD7: =IF(Equipes!$C$6="","",Equipes!$C$6) -> Carcassonne | CF7: 4 | CG7: ='J02'!CF7-CF7 -> -1 | CH7: =IF(CF7>'J02'!CF7,'J02'!$CH$20,IF(CF7='J02'!CF7,'J02'!$CG$20,IF(CF7<'J02'!CF7,'J02'!$CF$20))) -> q | CI7: 4 | CJ7: =SUMPRODUCT(($D$3:$D$10=CD7)*($FB$3:$FB$10))+SUMPRODUCT(($M$3:$M$10=CD7)*($FC$3:$FC$10))+'J02'!CJ7+CU7 -> 4 | CK7: =SUMPRODUCT(($D$3:$D$10=CD7)*($FF$3:$FF$10))+SUMPRODUCT(($M$3:$M$10=CD7)*($FG$3:$FG$10))+'J02'!CK7 -> 3 | CL7: =SUMPRODUCT(($D$3:$D$10=CD7)*($FJ$3:$FJ$10))+SUMPRODUCT(($M$3:$M$10=CD7)*($FK$3:$FK$10))+'J02'!CL7 -> 3 | CM7: =SUMPRODUCT(($D$3:$D$10=CD7)*($FL$3:$FL$10))+SUMPRODUCT(($M$3:$M$10=CD7)*($FM$3:$FM$10))+'J02'!CM7 -> 0 | CN7: =SUMPRODUCT(($D$3:$D$10=CD7)*($FN$3:$FN$10))+SUMPRODUCT(($M$3:$M$10=CD7)*($FO$3:$FO$10))+'J02'!CN7 -> 0 | CO7: =SUMPRODUCT(($D$3:$D$10=CD7)*($FP$3:$FP$10))+SUMPRODUCT(($M$3:$M$10=CD7)*($FQ$3:$FQ$10))+'J02'!CO7 -> 53 | CP7: =SUMPRODUCT(($D$3:$D$10=CD7)*($FR$3:$FR$10))+SUMPRODUCT(($M$3:$M$10=CD7)*($FS$3:$FS$10))+'J02'!CP7 -> 40 | CQ7: 13 | CR7: 0 | CS7: =SUMPRODUCT(($D$3:$D$10=CD7)*($EV$3:$EV$10))+SUMPRODUCT(($M$3:$M$10=CD7)*($EW$3:$EW$10))+'J02'!CS7 -> 0 | CT7: =SUMPRODUCT(($D$3:$D$10=CD7)*($EX$3:$EX$10))+SUMPRODUCT(($M$3:$M$10=CD7)*($EY$3:$EY$10))+'J02'!CT7 -> 0 | CU7: 0 | CV7: =SUMPRODUCT(($D$3:$D$10=CD7)*($FT$3:$FT$10))+SUMPRODUCT(($M$3:$M$10=CD7)*($FU$3:$FU$10))+'J02'!CV7 -> 5 | CW7: =SUMPRODUCT(($D$3:$D$10=CD7)*($FV$3:$FV$10))+SUMPRODUCT(($M$3:$M$10=CD7)*($FW$3:$FW$10))+'J02'!CW7 -> 4 | CX7: 1 | CY7: =IF(Equipes!$C$6="","",Equipes!$C$6) -> Carcassonne | DA7: 4 | DB7: ='J02'!DA7-DA7 -> -1 | DC7: =IF(DA7>'J02'!DA7,'J02'!$DC$20,IF(DA7='J02'!DA7,'J02'!$DB$20,IF(DA7<'J02'!DA7,'J02'!$DA$20))) -> q | DD7: 4 | DE7: =SUMPRODUCT(($D$3:$D$10=CY7)*($FB$3:$FB$10))+SUMPRODUCT(($M$3:$M$10=CY7)*($FC$3:$FC$10))+'J02'!DE7 -> 4 | DF7: =SUMPRODUCT(($D3:$D$10=CY7)*($FF$3:$FF$10))+SUMPRODUCT(($M$3:$M$10=CY7)*($FG$3:$FG$10))+'J02'!DF7 -> 3 | DG7: =SUMPRODUCT(($D$3:$D$10=CY7)*($FJ$3:$FJ$10))+SUMPRODUCT(($M$3:$M$10=CY7)*($FK$3:$FK$10))+'J02'!DG7 -> 3 | DH7: =SUMPRODUCT(($D$3:$D$10=CY7)*($FL$3:$FL$10))+SUMPRODUCT(($M$3:$M$10=CY7)*($FM$3:$FM$10))+'J02'!DH7 -> 0 | DI7: =SUMPRODUCT(($D$3:$D$10=CY7)*($FN$3:$FN$10))+SUMPRODUCT(($M$3:$M$10=CY7)*($FO$3:$FO$10))+'J02'!DI7 -> 0 | DJ7: =SUMPRODUCT(($D$3:$D$10=CY7)*($FP$3:$FP$10))+SUMPRODUCT(($M$3:$M$10=CY7)*($FQ$3:$FQ$10))+'J02'!DJ7 -> 53 | DK7: =SUMPRODUCT(($D$3:$D$10=CY7)*($FR$3:$FR$10))+SUMPRODUCT(($M$3:$M$10=CY7)*($FS$3:$FS$10))+'J02'!DK7 -> 40 | DL7: 13 | DM7: 0 | DN7: =SUMPRODUCT(($D$3:$D$10=CY7)*($EV$3:$EV$10))+SUMPRODUCT(($M$3:$M$10=CY7)*($EW$3:$EW$10))+'J02'!DN7 -> 0 | DO7: =SUMPRODUCT(($D$3:$D$10=CY7)*($EX$3:$EX$10))+SUMPRODUCT(($M$3:$M$10=CY7)*($EY$3:$EY$10))+'J02'!DO7 -> 0 | DP7: =SUMPRODUCT(($D$3:$D$10=CY7)*($FT$3:$FT$10))+SUMPRODUCT(($M$3:$M$10=CY7)*($FU$3:$FU$10))+'J02'!DP7 -> 5 | DQ7: =SUMPRODUCT(($D$3:$D$10=CY7)*($FV$3:$FV$10))+SUMPRODUCT(($M$3:$M$10=CY7)*($FW$3:$FW$10))+'J02'!DQ7 -> 4 | DR7: 1 | DS7: =IF(Equipes!$C$6="","",Equipes!$C$6) -> Carcassonne | DU7: 3 | DV7: ='J02'!DU7-DU7 -> 0 | DW7: =IF(DU7>'J02'!DU7,'J02'!$DW$20,IF(DU7='J02'!DU7,'J02'!$DV$20,IF(DU7<'J02'!DU7,'J02'!$DU$20))) -> u | DX7: 3 | DY7: =SUMPRODUCT(($D$3:$D$10=DS7)*($ET$3:$ET$10))+SUMPRODUCT(($M$3:$M$10=DS7)*($EU$3:$EU$10))+'J02'!DY7 -> 4 | DZ7: =SUMPRODUCT(($D3:$D$10=DS7)*($FF$3:$FF$10))+SUMPRODUCT(($M$3:$M$10=DS7)*($FG$3:$FG$10))+'J02'!DZ7 -> 3 | EA7: =SUMPRODUCT(($D$3:$D$10=DS7)*($FJ$3:$FJ$10))+SUMPRODUCT(($M$3:$M$10=DS7)*($FK$3:$FK$10))+'J02'!EA7 -> 3 | EB7: =SUMPRODUCT(($D$3:$D$10=DS7)*($FL$3:$FL$10))+SUMPRODUCT(($M$3:$M$10=DS7)*($FM$3:$FM$10))+'J02'!EB7 -> 0 | EC7: =SUMPRODUCT(($D$3:$D$10=DS7)*($FN$3:$FN$10))+SUMPRODUCT(($M$3:$M$10=DS7)*($FO$3:$FO$10))+'J02'!EC7 -> 0 | ED7: =SUMPRODUCT(($D$3:$D$10=DS7)*($FP$3:$FP$10))+SUMPRODUCT(($M$3:$M$10=DS7)*($FQ$3:$FQ$10))+'J02'!ED7 -> 53 | EE7: =SUMPRODUCT(($D$3:$D$10=DS7)*($FR$3:$FR$10))+SUMPRODUCT(($M$3:$M$10=DS7)*($FS$3:$FS$10))+'J02'!EE7 -> 40 | EF7: 13 | EG7: =SUMPRODUCT(($D$3:$D$10=DS7)*($FT$3:$FT$10))+SUMPRODUCT(($M$3:$M$10=DS7)*($FU$3:$FU$10))+'J02'!EG7 -> 5 | EH7: =SUMPRODUCT(($D$3:$D$10=DS7)*($FV$3:$FV$10))+SUMPRODUCT(($M$3:$M$10=DS7)*($FW$3:$FW$10))+'J02'!EH7 -> 4 | EI7: 1 | EJ7: 4000.1353 | EK7: =EJ7+0.0000001 -> 4000.1353 | EL7: 4000.1353 | EM7: =EL7+0.0000001 -> 4000.1353 | EN7: 4000.1353 | EO7: =EN7+0.0000001 -> 4000.1353 | EP7: 0 | EQ7: 0 | ER7: 0 | ES7: 0 | ET7: 0 | EU7: 0 | EV7: FALSE | EW7: FALSE | EX7: FALSE | EY7: 1 | EZ7: 0 | FA7: 1 | FB7: 0 | FC7: 1 | FF7: 1 | FG7: 1 | FH7: 1 | FI7: 1 | FJ7: 1 | FK7: FALSE | FL7: FALSE | FM7: FALSE | FN7: FALSE | FO7: 1 | FP7: 20 | FQ7: 16 | FR7: 16 | FS7: 20 | FT7: 2 | FU7: 1 | FV7: 1 | FW7: 2 | FX7: Bourgoin-Jallieu | FY7: 4000.1045 | FZ7: =IF(FY7="","",_xlfn.RANK.EQ(FY7,FY3:FY18)) -> 5 | GA7: Carcassonne | GB7: Bourgoin-Jallieu | GC7: 4000.1045 | GD7: =IF(GC7="","",_xlfn.RANK.EQ(GC7,GC3:GC18)) -> 5 | GE7: Carcassonne | GF7: Suresnes | GG7: 3999.8446 | GH7: =IF(GG7="","",_xlfn.RANK.EQ(GG7,GG3:GG18)) -> 5 | GI7: Carcassonne | GK7: ok | GL7: 2023-09-08T18:00:00 | GQ7: 1 | GR7: 1
D8: Massy | E8: 6 | F8: Bd | G8: 0 | I8: 13 | K8: 1 | M8: Hyères | Q8: 2023-09-08 | R8: 18:30:00 | U8: 6 | V8: Chambéry | X8: 3 | Y8: -1 | Z8: q | AA8: 3 | AB8: 0 | AC8: 1 | AD8: 2 | AE8: 41 | AF8: 53 | AG8: -12 | AH8: 1 | AI8: 0 | AJ8: 1 | AK8: 0 | AL8: 2 | AM8: 5 | AN8: -3 | AO8: 6 | AP8: Chambéry | AR8: 3 | AS8: -1 | AT8: q | AU8: 3 | AV8: 0 | AW8: 1 | AX8: 2 | AY8: 41 | AZ8: 53 | BA8: -12 | BB8: 1 | BC8: 0 | BD8: 1 | BE8: 2 | BF8: 5 | BG8: -3 | BH8: 6 | BI8: Hyères | BK8: 2 | BL8: 5 | BM8: p | BN8: 3 | BO8: 2 | BP8: 1 | BQ8: 0 | BR8: 53 | BS8: 32 | BT8: 21 | BU8: 4 | BV8: 2 | BW8: 2 | BX8: 6 | BY8: 6 | BZ8: 6 | CA8: 6 | CB8: 6 | CC8: 7 | CD8: =IF(Equipes!$C$7="","",Equipes!$C$7) -> Chambéry | CF8: 6 | CG8: ='J02'!CF8-CF8 -> -1 | CH8: =IF(CF8>'J02'!CF8,'J02'!$CH$20,IF(CF8='J02'!CF8,'J02'!$CG$20,IF(CF8<'J02'!CF8,'J02'!$CF$20))) -> q | CI8: 6 | CJ8: =SUMPRODUCT(($D$3:$D$10=CD8)*($FB$3:$FB$10))+SUMPRODUCT(($M$3:$M$10=CD8)*($FC$3:$FC$10))+'J02'!CJ8+CU8 -> 3 | CK8: =SUMPRODUCT(($D$3:$D$10=CD8)*($FF$3:$FF$10))+SUMPRODUCT(($M$3:$M$10=CD8)*($FG$3:$FG$10))+'J02'!CK8 -> 3 | CL8: =SUMPRODUCT(($D$3:$D$10=CD8)*($FJ$3:$FJ$10))+SUMPRODUCT(($M$3:$M$10=CD8)*($FK$3:$FK$10))+'J02'!CL8 -> 0 | CM8: =SUMPRODUCT(($D$3:$D$10=CD8)*($FL$3:$FL$10))+SUMPRODUCT(($M$3:$M$10=CD8)*($FM$3:$FM$10))+'J02'!CM8 -> 1 | CN8: =SUMPRODUCT(($D$3:$D$10=CD8)*($FN$3:$FN$10))+SUMPRODUCT(($M$3:$M$10=CD8)*($FO$3:$FO$10))+'J02'!CN8 -> 2 | CO8: =SUMPRODUCT(($D$3:$D$10=CD8)*($FP$3:$FP$10))+SUMPRODUCT(($M$3:$M$10=CD8)*($FQ$3:$FQ$10))+'J02'!CO8 -> 41 | CP8: =SUMPRODUCT(($D$3:$D$10=CD8)*($FR$3:$FR$10))+SUMPRODUCT(($M$3:$M$10=CD8)*($FS$3:$FS$10))+'J02'!CP8 -> 53 | CQ8: -12 | CR8: 1 | CS8: =SUMPRODUCT(($D$3:$D$10=CD8)*($EV$3:$EV$10))+SUMPRODUCT(($M$3:$M$10=CD8)*($EW$3:$EW$10))+'J02'!CS8 -> 0 | CT8: =SUMPRODUCT(($D$3:$D$10=CD8)*($EX$3:$EX$10))+SUMPRODUCT(($M$3:$M$10=CD8)*($EY$3:$EY$10))+'J02'!CT8 -> 1 | CU8: 0 | CV8: =SUMPRODUCT(($D$3:$D$10=CD8)*($FT$3:$FT$10))+SUMPRODUCT(($M$3:$M$10=CD8)*($FU$3:$FU$10))+'J02'!CV8 -> 2 | CW8: =SUMPRODUCT(($D$3:$D$10=CD8)*($FV$3:$FV$10))+SUMPRODUCT(($M$3:$M$10=CD8)*($FW$3:$FW$10))+'J02'!CW8 -> 5 | CX8: -3 | CY8: =IF(Equipes!$C$7="","",Equipes!$C$7) -> Chambéry | DA8: 6 | DB8: ='J02'!DA8-DA8 -> -1 | DC8: =IF(DA8>'J02'!DA8,'J02'!$DC$20,IF(DA8='J02'!DA8,'J02'!$DB$20,IF(DA8<'J02'!DA8,'J02'!$DA$20))) -> q | DD8: 6 | DE8: =SUMPRODUCT(($D$3:$D$10=CY8)*($FB$3:$FB$10))+SUMPRODUCT(($M$3:$M$10=CY8)*($FC$3:$FC$10))+'J02'!DE8 -> 3 | DF8: =SUMPRODUCT(($D3:$D$10=CY8)*($FF$3:$FF$10))+SUMPRODUCT(($M$3:$M$10=CY8)*($FG$3:$FG$10))+'J02'!DF8 -> 3 | DG8: =SUMPRODUCT(($D$3:$D$10=CY8)*($FJ$3:$FJ$10))+SUMPRODUCT(($M$3:$M$10=CY8)*($FK$3:$FK$10))+'J02'!DG8 -> 0 | DH8: =SUMPRODUCT(($D$3:$D$10=CY8)*($FL$3:$FL$10))+SUMPRODUCT(($M$3:$M$10=CY8)*($FM$3:$FM$10))+'J02'!DH8 -> 1 | DI8: =SUMPRODUCT(($D$3:$D$10=CY8)*($FN$3:$FN$10))+SUMPRODUCT(($M$3:$M$10=CY8)*($FO$3:$FO$10))+'J02'!DI8 -> 2 | DJ8: =SUMPRODUCT(($D$3:$D$10=CY8)*($FP$3:$FP$10))+SUMPRODUCT(($M$3:$M$10=CY8)*($FQ$3:$FQ$10))+'J02'!DJ8 -> 41 | DK8: =SUMPRODUCT(($D$3:$D$10=CY8)*($FR$3:$FR$10))+SUMPRODUCT(($M$3:$M$10=CY8)*($FS$3:$FS$10))+'J02'!DK8 -> 53 | DL8: -12 | DM8: 1 | DN8: =SUMPRODUCT(($D$3:$D$10=CY8)*($EV$3:$EV$10))+SUMPRODUCT(($M$3:$M$10=CY8)*($EW$3:$EW$10))+'J02'!DN8 -> 0 | DO8: =SUMPRODUCT(($D$3:$D$10=CY8)*($EX$3:$EX$10))+SUMPRODUCT(($M$3:$M$10=CY8)*($EY$3:$EY$10))+'J02'!DO8 -> 1 | DP8: =SUMPRODUCT(($D$3:$D$10=CY8)*($FT$3:$FT$10))+SUMPRODUCT(($M$3:$M$10=CY8)*($FU$3:$FU$10))+'J02'!DP8 -> 2 | DQ8: =SUMPRODUCT(($D$3:$D$10=CY8)*($FV$3:$FV$10))+SUMPRODUCT(($M$3:$M$10=CY8)*($FW$3:$FW$10))+'J02'!DQ8 -> 5 | DR8: -3 | DS8: =IF(Equipes!$C$7="","",Equipes!$C$7) -> Chambéry | DU8: 7 | DV8: ='J02'!DU8-DU8 -> -3 | DW8: =IF(DU8>'J02'!DU8,'J02'!$DW$20,IF(DU8='J02'!DU8,'J02'!$DV$20,IF(DU8<'J02'!DU8,'J02'!$DU$20))) -> q | DX8: 7 | DY8: =SUMPRODUCT(($D$3:$D$10=DS8)*($ET$3:$ET$10))+SUMPRODUCT(($M$3:$M$10=DS8)*($EU$3:$EU$10))+'J02'!DY8 -> 2 | DZ8: =SUMPRODUCT(($D3:$D$10=DS8)*($FF$3:$FF$10))+SUMPRODUCT(($M$3:$M$10=DS8)*($FG$3:$FG$10))+'J02'!DZ8 -> 3 | EA8: =SUMPRODUCT(($D$3:$D$10=DS8)*($FJ$3:$FJ$10))+SUMPRODUCT(($M$3:$M$10=DS8)*($FK$3:$FK$10))+'J02'!EA8 -> 0 | EB8: =SUMPRODUCT(($D$3:$D$10=DS8)*($FL$3:$FL$10))+SUMPRODUCT(($M$3:$M$10=DS8)*($FM$3:$FM$10))+'J02'!EB8 -> 1 | EC8: =SUMPRODUCT(($D$3:$D$10=DS8)*($FN$3:$FN$10))+SUMPRODUCT(($M$3:$M$10=DS8)*($FO$3:$FO$10))+'J02'!EC8 -> 2 | ED8: =SUMPRODUCT(($D$3:$D$10=DS8)*($FP$3:$FP$10))+SUMPRODUCT(($M$3:$M$10=DS8)*($FQ$3:$FQ$10))+'J02'!ED8 -> 41 | EE8: =SUMPRODUCT(($D$3:$D$10=DS8)*($FR$3:$FR$10))+SUMPRODUCT(($M$3:$M$10=DS8)*($FS$3:$FS$10))+'J02'!EE8 -> 53 | EF8: -12 | EG8: =SUMPRODUCT(($D$3:$D$10=DS8)*($FT$3:$FT$10))+SUMPRODUCT(($M$3:$M$10=DS8)*($FU$3:$FU$10))+'J02'!EG8 -> 2 | EH8: =SUMPRODUCT(($D$3:$D$10=DS8)*($FV$3:$FV$10))+SUMPRODUCT(($M$3:$M$10=DS8)*($FW$3:$FW$10))+'J02'!EH8 -> 5 | EI8: -3 | EJ8: 2999.8841 | EK8: =EJ8+0.00000009 -> 2999.8841 | EL8: 2999.8841 | EM8: =EL8+0.00000009 -> 2999.8841 | EN8: 1999.8841 | EO8: =EN8+0.00000009 -> 1999.8841 | EP8: 0 | EQ8: 0 | ER8: 0 | ES8: 0 | ET8: -4 | EU8: 4 | EV8: FALSE | EW8: FALSE | EX8: 1 | EY8: FALSE | EZ8: -3 | FA8: 4 | FB8: -3 | FC8: 4 | FF8: 1 | FG8: 1 | FH8: 1 | FI8: 1 | FJ8: FALSE | FK8: 1 | FL8: FALSE | FM8: FALSE | FN8: 1 | FO8: FALSE | FP8: 6 | FQ8: 13 | FR8: 13 | FS8: 6 | FT8: 0 | FU8: 1 | FV8: 1 | FW8: 0 | FX8: Chambéry | FY8: 2999.8841 | FZ8: =IF(FY8="","",_xlfn.RANK.EQ(FY8,FY3:FY18)) -> 6 | GA8: Chambéry | GB8: Chambéry | GC8: 2999.8841 | GD8: =IF(GC8="","",_xlfn.RANK.EQ(GC8,GC3:GC18)) -> 6 | GE8: Chambéry | GF8: Hyères | GG8: 2000.2153 | GH8: =IF(GG8="","",_xlfn.RANK.EQ(GG8,GG3:GG18)) -> 6 | GI8: Chambéry | GK8: ok | GL8: 2023-09-08T18:30:00 | GQ8: 1 | GR8: 1
D9: Bourg-en-Bresse | E9: 17 | F9: Bd | G9: 2 | I9: 22 | K9: 1 | M9: Suresnes | Q9: 2023-09-08 | R9: 19:00:00 | U9: 7 | V9: Hyères | X9: 2 | Y9: 4 | Z9: p | AA9: 3 | AB9: 2 | AC9: 1 | AD9: 0 | AE9: 53 | AF9: 32 | AG9: 21 | AH9: 0 | AI9: 0 | AJ9: 0 | AK9: 0 | AL9: 4 | AM9: 2 | AN9: 2 | AO9: 7 | AP9: Hyères | AR9: 2 | AS9: 4 | AT9: p | AU9: 3 | AV9: 2 | AW9: 1 | AX9: 0 | AY9: 53 | AZ9: 32 | BA9: 21 | BB9: 0 | BC9: 0 | BD9: 0 | BE9: 4 | BF9: 2 | BG9: 2 | BH9: 7 | BI9: Chambéry | BK9: 2 | BL9: -3 | BM9: q | BN9: 3 | BO9: 0 | BP9: 1 | BQ9: 2 | BR9: 41 | BS9: 53 | BT9: -12 | BU9: 2 | BV9: 5 | BW9: -3 | BX9: 7 | BY9: 7 | BZ9: 7 | CA9: 7 | CB9: 7 | CC9: 6 | CD9: =IF(Equipes!$C$8="","",Equipes!$C$8) -> Hyères | CF9: 7 | CG9: ='J02'!CF9-CF9 -> 4 | CH9: =IF(CF9>'J02'!CF9,'J02'!$CH$20,IF(CF9='J02'!CF9,'J02'!$CG$20,IF(CF9<'J02'!CF9,'J02'!$CF$20))) -> p | CI9: 7 | CJ9: =SUMPRODUCT(($D$3:$D$10=CD9)*($FB$3:$FB$10))+SUMPRODUCT(($M$3:$M$10=CD9)*($FC$3:$FC$10))+'J02'!CJ9+CU9 -> 2 | CK9: =SUMPRODUCT(($D$3:$D$10=CD9)*($FF$3:$FF$10))+SUMPRODUCT(($M$3:$M$10=CD9)*($FG$3:$FG$10))+'J02'!CK9 -> 3 | CL9: =SUMPRODUCT(($D$3:$D$10=CD9)*($FJ$3:$FJ$10))+SUMPRODUCT(($M$3:$M$10=CD9)*($FK$3:$FK$10))+'J02'!CL9 -> 2 | CM9: =SUMPRODUCT(($D$3:$D$10=CD9)*($FL$3:$FL$10))+SUMPRODUCT(($M$3:$M$10=CD9)*($FM$3:$FM$10))+'J02'!CM9 -> 1 | CN9: =SUMPRODUCT(($D$3:$D$10=CD9)*($FN$3:$FN$10))+SUMPRODUCT(($M$3:$M$10=CD9)*($FO$3:$FO$10))+'J02'!CN9 -> 0 | CO9: =SUMPRODUCT(($D$3:$D$10=CD9)*($FP$3:$FP$10))+SUMPRODUCT(($M$3:$M$10=CD9)*($FQ$3:$FQ$10))+'J02'!CO9 -> 53 | CP9: =SUMPRODUCT(($D$3:$D$10=CD9)*($FR$3:$FR$10))+SUMPRODUCT(($M$3:$M$10=CD9)*($FS$3:$FS$10))+'J02'!CP9 -> 32 | CQ9: 21 | CR9: 0 | CS9: =SUMPRODUCT(($D$3:$D$10=CD9)*($EV$3:$EV$10))+SUMPRODUCT(($M$3:$M$10=CD9)*($EW$3:$EW$10))+'J02'!CS9 -> 0 | CT9: =SUMPRODUCT(($D$3:$D$10=CD9)*($EX$3:$EX$10))+SUMPRODUCT(($M$3:$M$10=CD9)*($EY$3:$EY$10))+'J02'!CT9 -> 0 | CU9: 0 | CV9: =SUMPRODUCT(($D$3:$D$10=CD9)*($FT$3:$FT$10))+SUMPRODUCT(($M$3:$M$10=CD9)*($FU$3:$FU$10))+'J02'!CV9 -> 4 | CW9: =SUMPRODUCT(($D$3:$D$10=CD9)*($FV$3:$FV$10))+SUMPRODUCT(($M$3:$M$10=CD9)*($FW$3:$FW$10))+'J02'!CW9 -> 2 | CX9: 2 | CY9: =IF(Equipes!$C$8="","",Equipes!$C$8) -> Hyères | DA9: 7 | DB9: ='J02'!DA9-DA9 -> 4 | DC9: =IF(DA9>'J02'!DA9,'J02'!$DC$20,IF(DA9='J02'!DA9,'J02'!$DB$20,IF(DA9<'J02'!DA9,'J02'!$DA$20))) -> p | DD9: 7 | DE9: =SUMPRODUCT(($D$3:$D$10=CY9)*($FB$3:$FB$10))+SUMPRODUCT(($M$3:$M$10=CY9)*($FC$3:$FC$10))+'J02'!DE9 -> 2 | DF9: =SUMPRODUCT(($D3:$D$10=CY9)*($FF$3:$FF$10))+SUMPRODUCT(($M$3:$M$10=CY9)*($FG$3:$FG$10))+'J02'!DF9 -> 3 | DG9: =SUMPRODUCT(($D$3:$D$10=CY9)*($FJ$3:$FJ$10))+SUMPRODUCT(($M$3:$M$10=CY9)*($FK$3:$FK$10))+'J02'!DG9 -> 2 | DH9: =SUMPRODUCT(($D$3:$D$10=CY9)*($FL$3:$FL$10))+SUMPRODUCT(($M$3:$M$10=CY9)*($FM$3:$FM$10))+'J02'!DH9 -> 1 | DI9: =SUMPRODUCT(($D$3:$D$10=CY9)*($FN$3:$FN$10))+SUMPRODUCT(($M$3:$M$10=CY9)*($FO$3:$FO$10))+'J02'!DI9 -> 0 | DJ9: =SUMPRODUCT(($D$3:$D$10=CY9)*($FP$3:$FP$10))+SUMPRODUCT(($M$3:$M$10=CY9)*($FQ$3:$FQ$10))+'J02'!DJ9 -> 53 | DK9: =SUMPRODUCT(($D$3:$D$10=CY9)*($FR$3:$FR$10))+SUMPRODUCT(($M$3:$M$10=CY9)*($FS$3:$FS$10))+'J02'!DK9 -> 32 | DL9: 21 | DM9: 0 | DN9: =SUMPRODUCT(($D$3:$D$10=CY9)*($EV$3:$EV$10))+SUMPRODUCT(($M$3:$M$10=CY9)*($EW$3:$EW$10))+'J02'!DN9 -> 0 | DO9: =SUMPRODUCT(($D$3:$D$10=CY9)*($EX$3:$EX$10))+SUMPRODUCT(($M$3:$M$10=CY9)*($EY$3:$EY$10))+'J02'!DO9 -> 0 | DP9: =SUMPRODUCT(($D$3:$D$10=CY9)*($FT$3:$FT$10))+SUMPRODUCT(($M$3:$M$10=CY9)*($FU$3:$FU$10))+'J02'!DP9 -> 4 | DQ9: =SUMPRODUCT(($D$3:$D$10=CY9)*($FV$3:$FV$10))+SUMPRODUCT(($M$3:$M$10=CY9)*($FW$3:$FW$10))+'J02'!DQ9 -> 2 | DR9: 2 | DS9: =IF(Equipes!$C$8="","",Equipes!$C$8) -> Hyères | DU9: 6 | DV9: ='J02'!DU9-DU9 -> 5 | DW9: =IF(DU9>'J02'!DU9,'J02'!$DW$20,IF(DU9='J02'!DU9,'J02'!$DV$20,IF(DU9<'J02'!DU9,'J02'!$DU$20))) -> p | DX9: 6 | DY9: =SUMPRODUCT(($D$3:$D$10=DS9)*($ET$3:$ET$10))+SUMPRODUCT(($M$3:$M$10=DS9)*($EU$3:$EU$10))+'J02'!DY9 -> 2 | DZ9: =SUMPRODUCT(($D3:$D$10=DS9)*($FF$3:$FF$10))+SUMPRODUCT(($M$3:$M$10=DS9)*($FG$3:$FG$10))+'J02'!DZ9 -> 3 | EA9: =SUMPRODUCT(($D$3:$D$10=DS9)*($FJ$3:$FJ$10))+SUMPRODUCT(($M$3:$M$10=DS9)*($FK$3:$FK$10))+'J02'!EA9 -> 2 | EB9: =SUMPRODUCT(($D$3:$D$10=DS9)*($FL$3:$FL$10))+SUMPRODUCT(($M$3:$M$10=DS9)*($FM$3:$FM$10))+'J02'!EB9 -> 1 | EC9: =SUMPRODUCT(($D$3:$D$10=DS9)*($FN$3:$FN$10))+SUMPRODUCT(($M$3:$M$10=DS9)*($FO$3:$FO$10))+'J02'!EC9 -> 0 | ED9: =SUMPRODUCT(($D$3:$D$10=DS9)*($FP$3:$FP$10))+SUMPRODUCT(($M$3:$M$10=DS9)*($FQ$3:$FQ$10))+'J02'!ED9 -> 53 | EE9: =SUMPRODUCT(($D$3:$D$10=DS9)*($FR$3:$FR$10))+SUMPRODUCT(($M$3:$M$10=DS9)*($FS$3:$FS$10))+'J02'!EE9 -> 32 | EF9: 21 | EG9: =SUMPRODUCT(($D$3:$D$10=DS9)*($FT$3:$FT$10))+SUMPRODUCT(($M$3:$M$10=DS9)*($FU$3:$FU$10))+'J02'!EG9 -> 4 | EH9: =SUMPRODUCT(($D$3:$D$10=DS9)*($FV$3:$FV$10))+SUMPRODUCT(($M$3:$M$10=DS9)*($FW$3:$FW$10))+'J02'!EH9 -> 2 | EI9: 2 | EJ9: 2000.2153 | EK9: =EJ9+0.00000008 -> 2000.2153 | EL9: 2000.2153 | EM9: =EL9+0.00000008 -> 2000.2153 | EN9: 2000.2153 | EO9: =EN9+0.00000008 -> 2000.2153 | EP9: 0 | EQ9: 0 | ER9: 0 | ES9: 0 | ET9: -4 | EU9: 4 | EV9: FALSE | EW9: FALSE | EX9: 1 | EY9: FALSE | EZ9: -3 | FA9: 4 | FB9: -3 | FC9: 4 | FF9: 1 | FG9: 1 | FH9: 1 | FI9: 1 | FJ9: FALSE | FK9: 1 | FL9: FALSE | FM9: FALSE | FN9: 1 | FO9: FALSE | FP9: 17 | FQ9: 22 | FR9: 22 | FS9: 17 | FT9: 2 | FU9: 1 | FV9: 1 | FW9: 2 | FX9: Hyères | FY9: 2000.2153 | FZ9: =IF(FY9="","",_xlfn.RANK.EQ(FY9,FY3:FY18)) -> 7 | GA9: Hyères | GB9: Hyères | GC9: 2000.2153 | GD9: =IF(GC9="","",_xlfn.RANK.EQ(GC9,GC3:GC18)) -> 7 | GE9: Hyères | GF9: Chambéry | GG9: 1999.8841 | GH9: =IF(GG9="","",_xlfn.RANK.EQ(GG9,GG3:GG18)) -> 7 | GI9: Hyères | GK9: ok | GL9: 2023-09-08T19:00:00 | GQ9: 1 | GR9: 1
U10: 8 | V10: Périgueux | X10: 1 | Y10: 0 | Z10: u | AA10: 3 | AB10: 2 | AC10: 0 | AD10: 1 | AE10: 54 | AF10: 31 | AG10: 23 | AH10: 1 | AI10: 0 | AJ10: 1 | AK10: 0 | AL10: 7 | AM10: 4 | AN10: 3 | AO10: 8 | AP10: Périgueux | AR10: 1 | AS10: 0 | AT10: u | AU10: 3 | AV10: 2 | AW10: 0 | AX10: 1 | AY10: 54 | AZ10: 31 | BA10: 23 | BB10: 1 | BC10: 0 | BD10: 1 | BE10: 7 | BF10: 4 | BG10: 3 | BH10: 8 | BI10: Périgueux | BK10: 0 | BL10: -3 | BM10: q | BN10: 3 | BO10: 2 | BP10: 0 | BQ10: 1 | BR10: 54 | BS10: 31 | BT10: 23 | BU10: 7 | BV10: 4 | BW10: 3 | BX10: 8 | BY10: 12 | BZ10: 8 | CA10: 12 | CB10: 8 | CC10: 13 | CD10: =IF(Equipes!$C$9="","",Equipes!$C$9) -> Massy | CF10: 12 | CG10: ='J02'!CF10-CF10 -> 0 | CH10: =IF(CF10>'J02'!CF10,'J02'!$CH$20,IF(CF10='J02'!CF10,'J02'!$CG$20,IF(CF10<'J02'!CF10,'J02'!$CF$20))) -> u | CI10: 12 | CJ10: =SUMPRODUCT(($D$3:$D$10=CD10)*($FB$3:$FB$10))+SUMPRODUCT(($M$3:$M$10=CD10)*($FC$3:$FC$10))+'J02'!CJ10+CU10 -> -6 | CK10: =SUMPRODUCT(($D$3:$D$10=CD10)*($FF$3:$FF$10))+SUMPRODUCT(($M$3:$M$10=CD10)*($FG$3:$FG$10))+'J02'!CK10 -> 3 | CL10: =SUMPRODUCT(($D$3:$D$10=CD10)*($FJ$3:$FJ$10))+SUMPRODUCT(($M$3:$M$10=CD10)*($FK$3:$FK$10))+'J02'!CL10 -> 1 | CM10: =SUMPRODUCT(($D$3:$D$10=CD10)*($FL$3:$FL$10))+SUMPRODUCT(($M$3:$M$10=CD10)*($FM$3:$FM$10))+'J02'!CM10 -> 0 | CN10: =SUMPRODUCT(($D$3:$D$10=CD10)*($FN$3:$FN$10))+SUMPRODUCT(($M$3:$M$10=CD10)*($FO$3:$FO$10))+'J02'!CN10 -> 2 | CO10: =SUMPRODUCT(($D$3:$D$10=CD10)*($FP$3:$FP$10))+SUMPRODUCT(($M$3:$M$10=CD10)*($FQ$3:$FQ$10))+'J02'!CO10 -> 49 | CP10: =SUMPRODUCT(($D$3:$D$10=CD10)*($FR$3:$FR$10))+SUMPRODUCT(($M$3:$M$10=CD10)*($FS$3:$FS$10))+'J02'!CP10 -> 53 | CQ10: -4 | CR10: 2 | CS10: =SUMPRODUCT(($D$3:$D$10=CD10)*($EV$3:$EV$10))+SUMPRODUCT(($M$3:$M$10=CD10)*($EW$3:$EW$10))+'J02'!CS10 -> 0 | CT10: =SUMPRODUCT(($D$3:$D$10=CD10)*($EX$3:$EX$10))+SUMPRODUCT(($M$3:$M$10=CD10)*($EY$3:$EY$10))+'J02'!CT10 -> 2 | CU10: 0 | CV10: =SUMPRODUCT(($D$3:$D$10=CD10)*($FT$3:$FT$10))+SUMPRODUCT(($M$3:$M$10=CD10)*($FU$3:$FU$10))+'J02'!CV10 -> 5 | CW10: =SUMPRODUCT(($D$3:$D$10=CD10)*($FV$3:$FV$10))+SUMPRODUCT(($M$3:$M$10=CD10)*($FW$3:$FW$10))+'J02'!CW10 -> 5 | CX10: 0 | CY10: =IF(Equipes!$C$9="","",Equipes!$C$9) -> Massy | DA10: 12 | DB10: ='J02'!DA10-DA10 -> 0 | DC10: =IF(DA10>'J02'!DA10,'J02'!$DC$20,IF(DA10='J02'!DA10,'J02'!$DB$20,IF(DA10<'J02'!DA10,'J02'!$DA$20))) -> u | DD10: 12 | DE10: =SUMPRODUCT(($D$3:$D$10=CY10)*($FB$3:$FB$10))+SUMPRODUCT(($M$3:$M$10=CY10)*($FC$3:$FC$10))+'J02'!DE10 -> -6 | DF10: =SUMPRODUCT(($D3:$D$10=CY10)*($FF$3:$FF$10))+SUMPRODUCT(($M$3:$M$10=CY10)*($FG$3:$FG$10))+'J02'!DF10 -> 3 | DG10: =SUMPRODUCT(($D$3:$D$10=CY10)*($FJ$3:$FJ$10))+SUMPRODUCT(($M$3:$M$10=CY10)*($FK$3:$FK$10))+'J02'!DG10 -> 1 | DH10: =SUMPRODUCT(($D$3:$D$10=CY10)*($FL$3:$FL$10))+SUMPRODUCT(($M$3:$M$10=CY10)*($FM$3:$FM$10))+'J02'!DH10 -> 0 | DI10: =SUMPRODUCT(($D$3:$D$10=CY10)*($FN$3:$FN$10))+SUMPRODUCT(($M$3:$M$10=CY10)*($FO$3:$FO$10))+'J02'!DI10 -> 2 | DJ10: =SUMPRODUCT(($D$3:$D$10=CY10)*($FP$3:$FP$10))+SUMPRODUCT(($M$3:$M$10=CY10)*($FQ$3:$FQ$10))+'J02'!DJ10 -> 49 | DK10: =SUMPRODUCT(($D$3:$D$10=CY10)*($FR$3:$FR$10))+SUMPRODUCT(($M$3:$M$10=CY10)*($FS$3:$FS$10))+'J02'!DK10 -> 53 | DL10: -4 | DM10: 2 | DN10: =SUMPRODUCT(($D$3:$D$10=CY10)*($EV$3:$EV$10))+SUMPRODUCT(($M$3:$M$10=CY10)*($EW$3:$EW$10))+'J02'!DN10 -> 0 | DO10: =SUMPRODUCT(($D$3:$D$10=CY10)*($EX$3:$EX$10))+SUMPRODUCT(($M$3:$M$10=CY10)*($EY$3:$EY$10))+'J02'!DO10 -> 2 | DP10: =SUMPRODUCT(($D$3:$D$10=CY10)*($FT$3:$FT$10))+SUMPRODUCT(($M$3:$M$10=CY10)*($FU$3:$FU$10))+'J02'!DP10 -> 5 | DQ10: =SUMPRODUCT(($D$3:$D$10=CY10)*($FV$3:$FV$10))+SUMPRODUCT(($M$3:$M$10=CY10)*($FW$3:$FW$10))+'J02'!DQ10 -> 5 | DR10: 0 | DS10: =IF(Equipes!$C$9="","",Equipes!$C$9) -> Massy | DU10: 13 | DV10: ='J02'!DU10-DU10 -> -1 | DW10: =IF(DU10>'J02'!DU10,'J02'!$DW$20,IF(DU10='J02'!DU10,'J02'!$DV$20,IF(DU10<'J02'!DU10,'J02'!$DU$20))) -> q | DX10: 13 | DY10: =SUMPRODUCT(($D$3:$D$10=DS10)*($ET$3:$ET$10))+SUMPRODUCT(($M$3:$M$10=DS10)*($EU$3:$EU$10))+'J02'!DY10 -> -8 | DZ10: =SUMPRODUCT(($D3:$D$10=DS10)*($FF$3:$FF$10))+SUMPRODUCT(($M$3:$M$10=DS10)*($FG$3:$FG$10))+'J02'!DZ10 -> 3 | EA10: =SUMPRODUCT(($D$3:$D$10=DS10)*($FJ$3:$FJ$10))+SUMPRODUCT(($M$3:$M$10=DS10)*($FK$3:$FK$10))+'J02'!EA10 -> 1 | EB10: =SUMPRODUCT(($D$3:$D$10=DS10)*($FL$3:$FL$10))+SUMPRODUCT(($M$3:$M$10=DS10)*($FM$3:$FM$10))+'J02'!EB10 -> 0 | EC10: =SUMPRODUCT(($D$3:$D$10=DS10)*($FN$3:$FN$10))+SUMPRODUCT(($M$3:$M$10=DS10)*($FO$3:$FO$10))+'J02'!EC10 -> 2 | ED10: =SUMPRODUCT(($D$3:$D$10=DS10)*($FP$3:$FP$10))+SUMPRODUCT(($M$3:$M$10=DS10)*($FQ$3:$FQ$10))+'J02'!ED10 -> 49 | EE10: =SUMPRODUCT(($D$3:$D$10=DS10)*($FR$3:$FR$10))+SUMPRODUCT(($M$3:$M$10=DS10)*($FS$3:$FS$10))+'J02'!EE10 -> 53 | EF10: -4 | EG10: =SUMPRODUCT(($D$3:$D$10=DS10)*($FT$3:$FT$10))+SUMPRODUCT(($M$3:$M$10=DS10)*($FU$3:$FU$10))+'J02'!EG10 -> 5 | EH10: =SUMPRODUCT(($D$3:$D$10=DS10)*($FV$3:$FV$10))+SUMPRODUCT(($M$3:$M$10=DS10)*($FW$3:$FW$10))+'J02'!EH10 -> 5 | EI10: 0 | EJ10: -6000.0351 | EK10: =EJ10+0.00000007 -> -6000.0351 | EL10: -6000.0351 | EM10: =EL10+0.00000007 -> -6000.0351 | EN10: -8000.0351 | EO10: =EN10+0.00000007 -> -8000.0351 | FX10: Périgueux | FY10: 1000.2354 | FZ10: =IF(FY10="","",_xlfn.RANK.EQ(FY10,FY3:FY18)) -> 8 | GA10: Massy | GB10: Périgueux | GC10: 1000.2354 | GD10: =IF(GC10="","",_xlfn.RANK.EQ(GC10,GC3:GC18)) -> 8 | GE10: Massy | GF10: Périgueux | GG10: 0.2354 | GH10: =IF(GG10="","",_xlfn.RANK.EQ(GG10,GG3:GG18)) -> 8 | GI10: Massy
